Workbook

Sheet Cover Sheet
A1: OHIO DEPARTMENT OF TRANSPORTATION OFFICE OF GEOTECHNICAL ENGINEERING PLAN SUBGRADES Geotechnical Bulletin GB1
A2: =IF(ISNONTEXT(G10),"","Instructions: Enter data in the shaded cells only." & CHAR(10) & "(Enter state route number, project description,county, consultant's name," & CHAR(10) & "prepared by name, and date prepared. This information will be transferred" & CHAR(10) & "to all other sheets. The date prepared must be entered in the appropriate" & CHAR(10) & "cell on this sheet to remove these instructions prior to printing.)") -> Instructions: Enter data in the shaded cells only. (Enter state route number, project description,county, consultant's name, prepared by name, and date prepared. This information will be transferred to all other sheets. The date prepared must be entered in the appropriate cell on this sheet to remove these instructions prior to printing.)
G3: <COUNTY-ROUTE-SECTION>
G4: <PID>
A5: <PROJECT DESCRIPTION - roadway length, number of bridges/culverts, type and length of other structures, type and length of geohazard>
G7: <GEOTECHNICAL CONSULTANT>
A9: Prepared By: | G9: <NAME>
A10: Date prepared: | G10: <MM/DD/YYYY>
G12: <CONTACT NAME>
G13: <CONTACT ADDRESS>
G14: <CONTACT ADDRESS>
G15: <CONTACT ADDRESS>
G16: <BUSINESS TELEPHONE>
G17: <EMAIL ADDRESS>
A19: NO. OF BORINGS: | G19: 1

Sheet Boring Logs Entry
A1: # | B1: Boring ID | C1: Alignment | D1: Station | E1: Offset | F1: Dir | G1: Drill Rig | H1: ER | I1: Boring EL. | J1: Proposed Subgrade EL | K1: Cut Fill
A2: =IF((ROW()-1)<=INDIRECT("'Cover Sheet'!G19"), ROW()-1,"") -> 1 | B2: B-001-0-18 | C2: CENTERLINE OF I-70 | D2: 343+51 | E2: 88 | F2: Lt | G2: CME 850R Tracked \05 | H2: 81 | I2: 962.51 | J2: 961 | K2: =IF(OR(C2="",I2="",J2=""),"",J2-I2) -> -1.51
A3: =IF((ROW()-1)<=INDIRECT("'Cover Sheet'!G19"), ROW()-1,"") -> 
J32: =IF(OR(B32="",F32="",I32=""),"",I32-F32) -> 
J66: =IF(OR(B66="",F66="",I66=""),"",I66-F66) ->  | K66: =IF(OR(C66="",I66="",J66=""),"",J66-I66) -> 
A67: =IF((ROW()-1)<=INDIRECT("'Cover Sheet'!G19"), ROW()-1,"") -> 
J130: =IF(OR(B130="",F130="",I130=""),"",I130-F130) ->  | K130: =IF(OR(C130="",I130="",J130=""),"",J130-I130) -> 
A131: =IF((ROW()-1)<=INDIRECT("'Cover Sheet'!G19"), ROW()-1,"") -> 
J194: =IF(OR(B194="",F194="",I194=""),"",I194-F194) ->  | K194: =IF(OR(C194="",I194="",J194=""),"",J194-I194) -> 
A195: =IF((ROW()-1)<=INDIRECT("'Cover Sheet'!G19"), ROW()-1,"") -> 
J258: =IF(OR(B258="",F258="",I258=""),"",I258-F258) ->  | K258: =IF(OR(C258="",I258="",J258=""),"",J258-I258) -> 
A259: =IF((ROW()-1)<=INDIRECT("'Cover Sheet'!G19"), ROW()-1,"") -> 
J322: =IF(OR(B322="",F322="",I322=""),"",I322-F322) ->  | K322: =IF(OR(C322="",I322="",J322=""),"",J322-I322) -> 
A323: =IF((ROW()-1)<=INDIRECT("'Cover Sheet'!G19"), ROW()-1,"") -> 
J386: =IF(OR(B386="",F386="",I386=""),"",I386-F386) ->  | K386: =IF(OR(C386="",I386="",J386=""),"",J386-I386) -> 
A387: =IF((ROW()-1)<=INDIRECT("'Cover Sheet'!G19"), ROW()-1,"") -> 
J450: =IF(OR(B450="",F450="",I450=""),"",I450-F450) ->  | K450: =IF(OR(C450="",I450="",J450=""),"",J450-I450) -> 
A451: =IF((ROW()-1)<=INDIRECT("'Cover Sheet'!G19"), ROW()-1,"") -> 

Sheet Subgrade Analysis
A1: # | B1: Boring | C1: Sample | D1: Sample Depth | F1: Subgrade Depth | H1: Standard Penetration | J1: HP (tsf) | K1: Physical Characteristics | Q1: Moisture | S1: Ohio DOT | U1: Sulfate Content (ppm) | V1: Problem | X1: Excavate and Replace (Item 204) | Z1: Recommendation (Enter depth in inches)
D2: From | E2: To | F2: From | G2: To | H2: N60 | I2: N60L | K2: LL | L2: PL | M2: PI | N2: % Silt | O2: % Clay | P2: P200 | Q2: MC | R2: MOPT | S2: Class | T2: GI | V2: Unsuitable | W2: Unstable | X2: Unsuitable | Y2: Unstable | AA2: 1st row# <=3.5 | AC2: 1st cell<=3.5 | AD2: 1st zero row# | AE2: Unsuitable | AG2: Unstable | AH2: Average Undercut | AI2: Surface start | AJ2: surface end | AN2: Unsuitable | AO2: Unstable | AP2: Unstable & Unsuitable
A3: ='Boring Logs Entry'!A2 -> 1 | B3: =MID('Boring Logs Entry'!B2, 1, 1) -> B | F3: =IFERROR(IF(D3="","",D3 + 'Boring Logs Entry'!K2),"") ->  | G3: =IFERROR(IF(OR(D3="",E3=""),"",ROUND(F3-D3+E3,2)),"") ->  | M3: =IFERROR(IF(AND(K3="",L3=""),"",IF(K3="NP","NP",IF(K3>0,IF(L3="NP","NP",+K3-L3),"NP"))),"") ->  | P3: =IFERROR(IF(N3+O3=0,"",N3+O3),"") ->  | R3: =IFERROR(IF(S3="","",IF(OR(S3="A-1-a",S3="A-1-b",S3="A-3",S3="A-3a",S3="A-2-4",S3="A-2-5",S3="A-2-6",S3="A-2-7"),VLOOKUP(S3,CLASS!$B$2:$E$23,4,FALSE),IF(OR(S3="A-5",S3="A-7-5",S3="A-8a",S3="A-8b",S3="R",S3="S",S3="C"),"",IF(AND(OR(S3="A-4b",S3="A-4a"),M3="NP"),11,IF(L3="NP", VLOOKUP(S3,CLASS!$B$2:$E$23,4,FALSE),IF(AND(OR(S3="A-4a",S3="A-4b"),L3-5>=10),L3-5,IF(L3="NP", VLOOKUP(S3,CLASS!$B$2:$E$23,4,FALSE),IF(AND(S3="A-6a",L3-5>=14),L3-5,IF(L3="NP", VLOOKUP(S3,CLASS!$B$2:$E$23,4,FALSE),IF(AND(S3="A-6b",L3-5>=16),L3-5,IF(L3="NP", VLOOKUP(S3,CLASS!$B$2:$E$23,4,FALSE),IF(AND(S3="A-7-6",L3-3>=18),L3-3,VLOOKUP(S3,CLASS!$B$2:$E$23,4,FALSE))))))))))))),"") ->  | T3: =IFERROR(IF(ROUNDUP(F3,0)>=6,"",IF(OR(S3="",S3="R"),"",IF(P3=0,VLOOKUP(S3,CLASS!$B$2:$D$19,2,FALSE),IF(IF(S3="","",ROUND((0.2*IF(P3>75,40,IF(P3<35,0,P3-35)))+(0.005*IF(P3>75,40,IF(P3<35,0,P3-35))*IF(K3="np",0,IF(K3>60,20,IF(K3<40,0,K3-40))))+(0.01*IF(P3>55,40,IF(P3<15,0,P3-15))*IF(M3="np",0,IF(M3>30,20,IF(M3<10,0,M3-10)))),0))>VLOOKUP(S3,CLASS!$B$2:$D$19,3,FALSE),VLOOKUP(S3,CLASS!$B$2:$D$19,3,FALSE),IF(S3="","",ROUND((0.2*IF(P3>75,40,IF(P3<35,0,P3-35)))+(0.005*IF(P3>75,40,IF(P3<35,0,P3-35))*IF(K3="np",0,IF(K3>60,20,IF(K3<40,0,K3-40))))+(0.01*IF(P3>55,40,IF(P3<15,0,P3-15))*IF(M3="np",0,IF(M3>30,20,IF(M3<10,0,M3-10)))),0)))))),"") ->  | V3: =IFERROR(IF(AND(AA3<>"",ROW()<=AA3,AB3<>""), IF(AND(AND(K3>=65,K3<>"NP",K3<>""), OR(S3="A-4b", S3="A-2-5", S3="A-5",S3="A-7-5",S3="A-8a", S3="A-8b",AND(S3="Rock",F3<2))), S3 & " & High LL", IF(AND(K3>=65,K3<>"NP",K3<>""), "High LL", IF(OR(S3="A-4b", S3="A-2-5", S3="A-5",S3="A-7-5",S3="A-8a", S3="A-8b", AND(S3="Rock",F3<2)), S3,""))),""),"") ->  | W3: =IFERROR(IF(AND(AA3<>"",ROW()<=AA3,AB3<>""),IF(OR(S3="A-1-a",S3="A-1-b",S3="A-3",S3="A-3a"),"",IF(OR(Q3="",R3=""),IF(AND(J3<>"",J3<=1.5)," HP",IF(H3<12,CONCATENATE("N","₆₀"),"")),IF(AND(J3<>"",J3<=1.875, Q3>=R3+3), "HP & " & "Mc", IF(AND(J3<>"",J3<=1.5), " HP", IF(AND(H3<15, Q3>=R3+3),CONCATENATE("N","₆₀", " & ", "M" & "c"),IF(H3<12,CONCATENATE("N","₆₀"), IF(Q3>=R3+3,"M" & "c",""))))))),""),"") ->  | X3: =IF(V3="","",IF(G3<0,"",IF(ROW()=AF3,12*G3,""))) ->  | Y3: =IF(F3>=1.09,"",IF(AM3>0,IF(AND(W3<>"Mc",W3<>""),MAX(IFERROR(IF(J3="",0,VLOOKUP(J3,CLASS!$AM$2:$AO$62,3)),0), IFERROR(IF(H3="",0,VLOOKUP(H3,CLASS!$AN$2:$AO$62,2)),0)),""),"")) ->  | AA3: =IF(OR(AC3=0,AC3=""),"",ROW()-1+AC3) ->  | AB3: =IFERROR(IF(G3<=0,"",ROW()),"") -> 3 | AC3: =IF(F3>=3,0,IF(MATCH(3.5,G3:G6)="NA",1,MATCH(3.5,G3:G6))) -> 0 | AD3: =ROW()+IFERROR(MATCH(0,F3:F6),1)-1 -> 3 | AE3: =IF(LEN(V3)<1,"",1) ->  | AF3: =IF(COUNTBLANK(AE3:AE6)<4,ROW()+IFERROR(MATCH(1,AE3:AE6),1)-1,"") ->  | AG3: =IF(LEN(W3)<1,"",1) ->  | AH3: =Z3 -> 0 | AI3: =IF(AD3="","",AD3) -> 3 | AJ3: =MAX(AM3:AM6) ->  | AL3: =ROW()+IFERROR(MATCH(3,G3:G6),1) -> 4 | AM3: =IF(3-F3<=0.2,"",ROW()) ->  | AN3: =IF(COUNTBLANK(AE3:AE6)=4,"",MAX(AE3:AE6)) ->  | AO3: =IF(COUNTBLANK(AG3:AG6)=4,"",MAX(AG3:AG6)) ->  | AP3: =IF(COUNTBLANK(AN3:AO6)=8,"",MAX(AN3:AO6)) ->  | AQ3: 204 Geotextile
B4: =MID('Boring Logs Entry'!B2, 3, 5) -> 001-0 | F4: =IFERROR(IF(OR(D4="",E4=""),"",ROUND(D4-D3+F3,2)),"") ->  | G4: =IFERROR(IF(OR(D4="",E4=""),"",ROUND(E4-D4+F4,2)),"") ->  | P4: =IFERROR(IF(N4+O4=0,"",N4+O4),"") ->  | R4: =IFERROR(IF(S4="","",IF(OR(S4="A-1-a",S4="A-1-b",S4="A-3",S4="A-3a",S4="A-2-4",S4="A-2-5",S4="A-2-6",S4="A-2-7"),VLOOKUP(S4,CLASS!$B$2:$E$23,4,FALSE),IF(OR(S4="A-5",S4="A-7-5",S4="A-8a",S4="A-8b",S4="R",S4="S",S4="C"),"",IF(AND(OR(S4="A-4b",S4="A-4a"),M4="NP"),11,IF(L4="NP", VLOOKUP(S4,CLASS!$B$2:$E$23,4,FALSE),IF(AND(OR(S4="A-4a",S4="A-4b"),L4-5>=10),L4-5,IF(L4="NP", VLOOKUP(S4,CLASS!$B$2:$E$23,4,FALSE),IF(AND(S4="A-6a",L4-5>=14),L4-5,IF(L4="NP", VLOOKUP(S4,CLASS!$B$2:$E$23,4,FALSE),IF(AND(S4="A-6b",L4-5>=16),L4-5,IF(L4="NP", VLOOKUP(S4,CLASS!$B$2:$E$23,4,FALSE),IF(AND(S4="A-7-6",L4-3>=18),L4-3,VLOOKUP(S4,CLASS!$B$2:$E$23,4,FALSE))))))))))))),"") ->  | T4: =IFERROR(IF(ROUNDUP(F4,0)>=6,"",IF(OR(S4="",S4="R"),"",IF(P4=0,VLOOKUP(S4,CLASS!$B$2:$D$19,2,FALSE),IF(IF(S4="","",ROUND((0.2*IF(P4>75,40,IF(P4<35,0,P4-35)))+(0.005*IF(P4>75,40,IF(P4<35,0,P4-35))*IF(K4="np",0,IF(K4>60,20,IF(K4<40,0,K4-40))))+(0.01*IF(P4>55,40,IF(P4<15,0,P4-15))*IF(M4="np",0,IF(M4>30,20,IF(M4<10,0,M4-10)))),0))>VLOOKUP(S4,CLASS!$B$2:$D$19,3,FALSE),VLOOKUP(S4,CLASS!$B$2:$D$19,3,FALSE),IF(S4="","",ROUND((0.2*IF(P4>75,40,IF(P4<35,0,P4-35)))+(0.005*IF(P4>75,40,IF(P4<35,0,P4-35))*IF(K4="np",0,IF(K4>60,20,IF(K4<40,0,K4-40))))+(0.01*IF(P4>55,40,IF(P4<15,0,P4-15))*IF(M4="np",0,IF(M4>30,20,IF(M4<10,0,M4-10)))),0)))))),"") ->  | V4: =IFERROR(IF(AND(AA4<>"",ROW()<=AA4,AB4<>""), IF(AND(AND(K4>=65,K4<>"NP",K4<>""), OR(S4="A-4b", S4="A-2-5", S4="A-5",S4="A-7-5",S4="A-8a", S4="A-8b",AND(S4="Rock",F4<2))), S4 & " & High LL", IF(AND(K4>=65,K4<>"NP",K4<>""), "High LL", IF(OR(S4="A-4b", S4="A-2-5", S4="A-5",S4="A-7-5",S4="A-8a", S4="A-8b", AND(S4="Rock",F4<2)), S4,""))),""),"") ->  | W4: =IFERROR(IF(AND(AA4<>"",ROW()<=AA4,AB4<>""),IF(OR(S4="A-1-a",S4="A-1-b",S4="A-3",S4="A-3a"),"",IF(OR(Q4="",R4=""),IF(AND(J4<>"",J4<=1.5)," HP",IF(H4<12,CONCATENATE("N","₆₀"),"")),IF(AND(J4<>"",J4<=1.875, Q4>=R4+3), "HP & " & "Mc", IF(AND(J4<>"",J4<=1.5), " HP", IF(AND(H4<15, Q4>=R4+3),CONCATENATE("N","₆₀", " & ", "M" & "c"),IF(H4<12,CONCATENATE("N","₆₀"), IF(Q4>=R4+3,"M" & "c",""))))))),""),"") ->  | X4: =IF(V4="","",IF(AND(V3="",F4>1.09,SUM(Y3:Y6)=0),"",IF(G4<0,"",IF(ROW()=AF3,12*G4,"")))) ->  | Y4: =IF(F4>=1.09,"",IF(AM4>0,IF(AND(W4<>"Mc",W4<>""),MAX(IFERROR(IF(J4="",0,VLOOKUP(J4,CLASS!$AM$2:$AO$62,3)),0), IFERROR(IF(H4="",0,VLOOKUP(H4,CLASS!$AN$2:$AO$62,2)),0)),""),"")) ->  | AA4: =AA3 ->  | AB4: =IFERROR(IF(G4<=0,"",ROW()),"") -> 4 | AE4: =IF(LEN(V4)<1,"",1) ->  | AG4: =IF(LEN(W4)<1,"",1) ->  | AI4: =IF(AD4="","",AD4) ->  | AM4: =IF(3-F4<=0.2,"",ROW()) ->  | AQ4: 861 Geogrid
B5: =MID('Boring Logs Entry'!B2, 9, 2) -> 18 | F5: =IFERROR(IF(OR(D5="",E5=""),"",ROUND(D5-D4+F4,2)),"") ->  | G5: =IFERROR(IF(OR(D5="",E5=""),"",ROUND(E5-D5+F5,2)),"") ->  | R5: =IFERROR(IF(S5="","",IF(OR(S5="A-1-a",S5="A-1-b",S5="A-3",S5="A-3a",S5="A-2-4",S5="A-2-5",S5="A-2-6",S5="A-2-7"),VLOOKUP(S5,CLASS!$B$2:$E$23,4,FALSE),IF(OR(S5="A-5",S5="A-7-5",S5="A-8a",S5="A-8b",S5="R",S5="S",S5="C"),"",IF(AND(OR(S5="A-4b",S5="A-4a"),M5="NP"),11,IF(L5="NP", VLOOKUP(S5,CLASS!$B$2:$E$23,4,FALSE),IF(AND(OR(S5="A-4a",S5="A-4b"),L5-5>=10),L5-5,IF(L5="NP", VLOOKUP(S5,CLASS!$B$2:$E$23,4,FALSE),IF(AND(S5="A-6a",L5-5>=14),L5-5,IF(L5="NP", VLOOKUP(S5,CLASS!$B$2:$E$23,4,FALSE),IF(AND(S5="A-6b",L5-5>=16),L5-5,IF(L5="NP", VLOOKUP(S5,CLASS!$B$2:$E$23,4,FALSE),IF(AND(S5="A-7-6",L5-3>=18),L5-3,VLOOKUP(S5,CLASS!$B$2:$E$23,4,FALSE))))))))))))),"") ->  | T5: =IFERROR(IF(ROUNDUP(F5,0)>=6,"",IF(OR(S5="",S5="R"),"",IF(P5=0,VLOOKUP(S5,CLASS!$B$2:$D$19,2,FALSE),IF(IF(S5="","",ROUND((0.2*IF(P5>75,40,IF(P5<35,0,P5-35)))+(0.005*IF(P5>75,40,IF(P5<35,0,P5-35))*IF(K5="np",0,IF(K5>60,20,IF(K5<40,0,K5-40))))+(0.01*IF(P5>55,40,IF(P5<15,0,P5-15))*IF(M5="np",0,IF(M5>30,20,IF(M5<10,0,M5-10)))),0))>VLOOKUP(S5,CLASS!$B$2:$D$19,3,FALSE),VLOOKUP(S5,CLASS!$B$2:$D$19,3,FALSE),IF(S5="","",ROUND((0.2*IF(P5>75,40,IF(P5<35,0,P5-35)))+(0.005*IF(P5>75,40,IF(P5<35,0,P5-35))*IF(K5="np",0,IF(K5>60,20,IF(K5<40,0,K5-40))))+(0.01*IF(P5>55,40,IF(P5<15,0,P5-15))*IF(M5="np",0,IF(M5>30,20,IF(M5<10,0,M5-10)))),0)))))),"") ->  | W5: =IFERROR(IF(AND(AA5<>"",ROW()<=AA5,AB5<>""),IF(OR(S5="A-1-a",S5="A-1-b",S5="A-3",S5="A-3a"),"",IF(OR(Q5="",R5=""),IF(AND(J5<>"",J5<=1.5)," HP",IF(H5<12,CONCATENATE("N","₆₀"),"")),IF(AND(J5<>"",J5<=1.875, Q5>=R5+3), "HP & " & "Mc", IF(AND(J5<>"",J5<=1.5), " HP", IF(AND(H5<15, Q5>=R5+3),CONCATENATE("N","₆₀", " & ", "M" & "c"),IF(H5<12,CONCATENATE("N","₆₀"), IF(Q5>=R5+3,"M" & "c",""))))))),""),"") ->  | X5: =IF(V5="","",IF(G5<0,"",IF(ROW()=AF3,12*G5,""))) ->  | Y5: =IF(F5>=1.09,"",IF(AM5>0,IF(AND(W5<>"Mc",W5<>""),MAX(IFERROR(IF(J5="",0,VLOOKUP(J5,CLASS!$AM$2:$AO$62,3)),0), IFERROR(IF(H5="",0,VLOOKUP(H5,CLASS!$AN$2:$AO$62,2)),0)),""),"")) ->  | AA5: =AA4 ->  | AB5: 5
F6: =IFERROR(IF(OR(D6="",E6=""),"",ROUND(D6-D5+F5,2)),"") ->  | G6: =IFERROR(IF(OR(D6="",E6=""),"",ROUND(E6-D6+F6,2)),"") ->  | I6: =IFERROR(IF(MIN(INDIRECT("H" & ROW()-4+IFERROR(MATCH(INDEX(G3:G6,MATCH(TRUE,INDEX(G3:G6>0,0),)),G3:G6,0),1)& ":H" & ROW()-4 + MATCH(6,F3:F6,1)))>30,30,MIN(INDIRECT("H" & ROW()-4+IFERROR(MATCH(INDEX(G3:G6,MATCH(TRUE,INDEX(G3:G6>0,0),)),G3:G6,0),1) & ":H" & ROW()-4 + MATCH(6,F3:F6,1)))),"") ->  | R6: =IFERROR(IF(S6="","",IF(OR(S6="A-1-a",S6="A-1-b",S6="A-3",S6="A-3a",S6="A-2-4",S6="A-2-5",S6="A-2-6",S6="A-2-7"),VLOOKUP(S6,CLASS!$B$2:$E$23,4,FALSE),IF(OR(S6="A-5",S6="A-7-5",S6="A-8a",S6="A-8b",S6="R",S6="S",S6="C"),"",IF(AND(OR(S6="A-4b",S6="A-4a"),M6="NP"),11,IF(L6="NP", VLOOKUP(S6,CLASS!$B$2:$E$23,4,FALSE),IF(AND(OR(S6="A-4a",S6="A-4b"),L6-5>=10),L6-5,IF(L6="NP", VLOOKUP(S6,CLASS!$B$2:$E$23,4,FALSE),IF(AND(S6="A-6a",L6-5>=14),L6-5,IF(L6="NP", VLOOKUP(S6,CLASS!$B$2:$E$23,4,FALSE),IF(AND(S6="A-6b",L6-5>=16),L6-5,IF(L6="NP", VLOOKUP(S6,CLASS!$B$2:$E$23,4,FALSE),IF(AND(S6="A-7-6",L6-3>=18),L6-3,VLOOKUP(S6,CLASS!$B$2:$E$23,4,FALSE))))))))))))),"") ->  | T6: =IFERROR(IF(ROUNDUP(F6,0)>=6,"",IF(OR(S6="",S6="R"),"",IF(P6=0,VLOOKUP(S6,CLASS!$B$2:$D$19,2,FALSE),IF(IF(S6="","",ROUND((0.2*IF(P6>75,40,IF(P6<35,0,P6-35)))+(0.005*IF(P6>75,40,IF(P6<35,0,P6-35))*IF(K6="np",0,IF(K6>60,20,IF(K6<40,0,K6-40))))+(0.01*IF(P6>55,40,IF(P6<15,0,P6-15))*IF(M6="np",0,IF(M6>30,20,IF(M6<10,0,M6-10)))),0))>VLOOKUP(S6,CLASS!$B$2:$D$19,3,FALSE),VLOOKUP(S6,CLASS!$B$2:$D$19,3,FALSE),IF(S6="","",ROUND((0.2*IF(P6>75,40,IF(P6<35,0,P6-35)))+(0.005*IF(P6>75,40,IF(P6<35,0,P6-35))*IF(K6="np",0,IF(K6>60,20,IF(K6<40,0,K6-40))))+(0.01*IF(P6>55,40,IF(P6<15,0,P6-15))*IF(M6="np",0,IF(M6>30,20,IF(M6<10,0,M6-10)))),0)))))),"") ->  | V6: =IFERROR(IF(AND(AA6<>"",ROW()<=AA6,AB6<>""), IF(AND(AND(K6>=65,K6<>"NP",K6<>""), OR(S6="A-4b", S6="A-2-5", S6="A-5",S6="A-7-5",S6="A-8a", S6="A-8b",AND(S6="Rock",F6<2))), S6 & " & High LL", IF(AND(K6>=65,K6<>"NP",K6<>""), "High LL", IF(OR(S6="A-4b", S6="A-2-5", S6="A-5",S6="A-7-5",S6="A-8a", S6="A-8b", AND(S6="Rock",F6<2)), S6,""))),""),"") ->  | X6: =IF(V6="","",IF(G6<0,"",IF(ROW()=AF3,12*G6,""))) ->  | Y6: =IF(F6>=1.09,"",IF(AM6>0,IF(AND(W6<>"Mc",W6<>""),MAX(IFERROR(IF(J6="",0,VLOOKUP(J6,CLASS!$AM$2:$AO$62,3)),0), IFERROR(IF(H6="",0,VLOOKUP(H6,CLASS!$AN$2:$AO$62,2)),0)),""),"")) ->  | AA6: =AA5 ->  | AB6: 6
A7: ='Boring Logs Entry'!A3 ->  | B7: =MID('Boring Logs Entry'!B3, 1, 1) ->  | F7: =IFERROR(IF(D7="","",D7 + 'Boring Logs Entry'!K3),"") ->  | G7: =IFERROR(IF(OR(D7="",E7=""),"",ROUND(F7-D7+E7,2)),"") ->  | P7: =IFERROR(IF(N7+O7=0,"",N7+O7),"") ->  | R7: =IFERROR(IF(S7="","",IF(OR(S7="A-1-a",S7="A-1-b",S7="A-3",S7="A-3a",S7="A-2-4",S7="A-2-5",S7="A-2-6",S7="A-2-7"),VLOOKUP(S7,CLASS!$B$2:$E$23,4,FALSE),IF(OR(S7="A-5",S7="A-7-5",S7="A-8a",S7="A-8b",S7="R",S7="S",S7="C"),"",IF(AND(OR(S7="A-4b",S7="A-4a"),M7="NP"),11,IF(L7="NP", VLOOKUP(S7,CLASS!$B$2:$E$23,4,FALSE),IF(AND(OR(S7="A-4a",S7="A-4b"),L7-5>=10),L7-5,IF(L7="NP", VLOOKUP(S7,CLASS!$B$2:$E$23,4,FALSE),IF(AND(S7="A-6a",L7-5>=14),L7-5,IF(L7="NP", VLOOKUP(S7,CLASS!$B$2:$E$23,4,FALSE),IF(AND(S7="A-6b",L7-5>=16),L7-5,IF(L7="NP", VLOOKUP(S7,CLASS!$B$2:$E$23,4,FALSE),IF(AND(S7="A-7-6",L7-3>=18),L7-3,VLOOKUP(S7,CLASS!$B$2:$E$23,4,FALSE))))))))))))),"") ->  | T7: =IFERROR(IF(ROUNDUP(F7,0)>=6,"",IF(OR(S7="",S7="R"),"",IF(P7=0,VLOOKUP(S7,CLASS!$B$2:$D$19,2,FALSE),IF(IF(S7="","",ROUND((0.2*IF(P7>75,40,IF(P7<35,0,P7-35)))+(0.005*IF(P7>75,40,IF(P7<35,0,P7-35))*IF(K7="np",0,IF(K7>60,20,IF(K7<40,0,K7-40))))+(0.01*IF(P7>55,40,IF(P7<15,0,P7-15))*IF(M7="np",0,IF(M7>30,20,IF(M7<10,0,M7-10)))),0))>VLOOKUP(S7,CLASS!$B$2:$D$19,3,FALSE),VLOOKUP(S7,CLASS!$B$2:$D$19,3,FALSE),IF(S7="","",ROUND((0.2*IF(P7>75,40,IF(P7<35,0,P7-35)))+(0.005*IF(P7>75,40,IF(P7<35,0,P7-35))*IF(K7="np",0,IF(K7>60,20,IF(K7<40,0,K7-40))))+(0.01*IF(P7>55,40,IF(P7<15,0,P7-15))*IF(M7="np",0,IF(M7>30,20,IF(M7<10,0,M7-10)))),0)))))),"") ->  | V7: =IFERROR(IF(AND(AA7<>"",ROW()<=AA7,AB7<>""), IF(AND(AND(K7>=65,K7<>"NP",K7<>""), OR(S7="A-4b", S7="A-2-5", S7="A-5",S7="A-7-5",S7="A-8a", S7="A-8b",AND(S7="Rock",F7<2))), S7 & " & High LL", IF(AND(K7>=65,K7<>"NP",K7<>""), "High LL", IF(OR(S7="A-4b", S7="A-2-5", S7="A-5",S7="A-7-5",S7="A-8a", S7="A-8b", AND(S7="Rock",F7<2)), S7,""))),""),"") ->  | X7: =IF(V7="","",IF(G7<0,"",IF(ROW()=AF7,12*G7,""))) ->  | Y7: =IF(F7>=1.09,"",IF(AM7>0,IF(AND(W7<>"Mc",W7<>""),MAX(IFERROR(IF(J7="",0,VLOOKUP(J7,CLASS!$AM$2:$AO$62,3)),0), IFERROR(IF(H7="",0,VLOOKUP(H7,CLASS!$AN$2:$AO$62,2)),0)),""),"")) ->  | AA7: =IF(OR(AC7=0,AC7=""),"",ROW()-1+AC7) ->  | AB7: =IFERROR(IF(G7<=0,"",ROW()),"") -> 7 | AC7: =IF(F7>=3,0,IF(MATCH(3.5,G7:G10)="NA",1,MATCH(3.5,G7:G10))) -> 0 | AD7: =ROW()+IFERROR(MATCH(0,F7:F10),1)-1 -> 7 | AE7: =IF(LEN(V7)<1,"",1) ->  | AF7: =IF(COUNTBLANK(AE7:AE10)<4,ROW()+IFERROR(MATCH(1,AE7:AE10),1)-1,"") ->  | AG7: =IF(LEN(W7)<1,"",1) ->  | AH7: =Z7 -> 0 | AI7: =IF(AD7="","",AD7) -> 7 | AJ7: =MAX(AM7:AM10) ->  | AL7: =ROW()+IFERROR(MATCH(3,G7:G10),1) -> 8 | AM7: =IF(3-F7<=0.2,"",ROW()) ->  | AN7: =IF(COUNTBLANK(AE7:AE10)=4,"",MAX(AE7:AE10)) ->  | AO7: =IF(COUNTBLANK(AG7:AG10)=4,"",MAX(AG7:AG10)) ->  | AP7: =IF(COUNTBLANK(AN7:AO10)=8,"",MAX(AN7:AO10)) -> 
B8: =MID('Boring Logs Entry'!B3, 3, 5) ->  | F8: =IFERROR(IF(OR(D8="",E8=""),"",ROUND(D8-D7+F7,2)),"") ->  | G8: =IFERROR(IF(OR(D8="",E8=""),"",ROUND(E8-D8+F8,2)),"") ->  | R8: =IFERROR(IF(S8="","",IF(OR(S8="A-1-a",S8="A-1-b",S8="A-3",S8="A-3a",S8="A-2-4",S8="A-2-5",S8="A-2-6",S8="A-2-7"),VLOOKUP(S8,CLASS!$B$2:$E$23,4,FALSE),IF(OR(S8="A-5",S8="A-7-5",S8="A-8a",S8="A-8b",S8="R",S8="S",S8="C"),"",IF(AND(OR(S8="A-4b",S8="A-4a"),M8="NP"),11,IF(L8="NP", VLOOKUP(S8,CLASS!$B$2:$E$23,4,FALSE),IF(AND(OR(S8="A-4a",S8="A-4b"),L8-5>=10),L8-5,IF(L8="NP", VLOOKUP(S8,CLASS!$B$2:$E$23,4,FALSE),IF(AND(S8="A-6a",L8-5>=14),L8-5,IF(L8="NP", VLOOKUP(S8,CLASS!$B$2:$E$23,4,FALSE),IF(AND(S8="A-6b",L8-5>=16),L8-5,IF(L8="NP", VLOOKUP(S8,CLASS!$B$2:$E$23,4,FALSE),IF(AND(S8="A-7-6",L8-3>=18),L8-3,VLOOKUP(S8,CLASS!$B$2:$E$23,4,FALSE))))))))))))),"") ->  | T8: =IFERROR(IF(ROUNDUP(F8,0)>=6,"",IF(OR(S8="",S8="R"),"",IF(P8=0,VLOOKUP(S8,CLASS!$B$2:$D$19,2,FALSE),IF(IF(S8="","",ROUND((0.2*IF(P8>75,40,IF(P8<35,0,P8-35)))+(0.005*IF(P8>75,40,IF(P8<35,0,P8-35))*IF(K8="np",0,IF(K8>60,20,IF(K8<40,0,K8-40))))+(0.01*IF(P8>55,40,IF(P8<15,0,P8-15))*IF(M8="np",0,IF(M8>30,20,IF(M8<10,0,M8-10)))),0))>VLOOKUP(S8,CLASS!$B$2:$D$19,3,FALSE),VLOOKUP(S8,CLASS!$B$2:$D$19,3,FALSE),IF(S8="","",ROUND((0.2*IF(P8>75,40,IF(P8<35,0,P8-35)))+(0.005*IF(P8>75,40,IF(P8<35,0,P8-35))*IF(K8="np",0,IF(K8>60,20,IF(K8<40,0,K8-40))))+(0.01*IF(P8>55,40,IF(P8<15,0,P8-15))*IF(M8="np",0,IF(M8>30,20,IF(M8<10,0,M8-10)))),0)))))),"") ->  | V8: =IFERROR(IF(AND(AA8<>"",ROW()<=AA8,AB8<>""), IF(AND(AND(K8>=65,K8<>"NP",K8<>""), OR(S8="A-4b", S8="A-2-5", S8="A-5",S8="A-7-5",S8="A-8a", S8="A-8b",AND(S8="Rock",F8<2))), S8 & " & High LL", IF(AND(K8>=65,K8<>"NP",K8<>""), "High LL", IF(OR(S8="A-4b", S8="A-2-5", S8="A-5",S8="A-7-5",S8="A-8a", S8="A-8b", AND(S8="Rock",F8<2)), S8,""))),""),"") ->  | W8: =IFERROR(IF(AND(AA8<>"",ROW()<=AA8,AB8<>""),IF(OR(S8="A-1-a",S8="A-1-b",S8="A-3",S8="A-3a"),"",IF(OR(Q8="",R8=""),IF(AND(J8<>"",J8<=1.5)," HP",IF(H8<12,CONCATENATE("N","₆₀"),"")),IF(AND(J8<>"",J8<=1.875, Q8>=R8+3), "HP & " & "Mc", IF(AND(J8<>"",J8<=1.5), " HP", IF(AND(H8<15, Q8>=R8+3),CONCATENATE("N","₆₀", " & ", "M" & "c"),IF(H8<12,CONCATENATE("N","₆₀"), IF(Q8>=R8+3,"M" & "c",""))))))),""),"") ->  | X8: =IF(V8="","",IF(AND(V7="",F8>1.09,SUM(Y7:Y10)=0),"",IF(G8<0,"",IF(ROW()=AF7,12*G8,"")))) ->  | Y8: =IF(F8>=1.09,"",IF(AM8>0,IF(AND(W8<>"Mc",W8<>""),MAX(IFERROR(IF(J8="",0,VLOOKUP(J8,CLASS!$AM$2:$AO$62,3)),0), IFERROR(IF(H8="",0,VLOOKUP(H8,CLASS!$AN$2:$AO$62,2)),0)),""),"")) ->  | AA8: =AA7 ->  | AB8: =IFERROR(IF(G8<=0,"",ROW()),"") -> 8 | AE8: =IF(LEN(V8)<1,"",1) ->  | AG8: =IF(LEN(W8)<1,"",1) ->  | AI8: =IF(AD8="","",AD8) ->  | AM8: =IF(3-F8<=0.2,"",ROW()) -> 
B9: =MID('Boring Logs Entry'!B3, 9, 2) ->  | F9: =IFERROR(IF(OR(D9="",E9=""),"",ROUND(D9-D8+F8,2)),"") ->  | G9: =IFERROR(IF(OR(D9="",E9=""),"",ROUND(E9-D9+F9,2)),"") ->  | R9: =IFERROR(IF(S9="","",IF(OR(S9="A-1-a",S9="A-1-b",S9="A-3",S9="A-3a",S9="A-2-4",S9="A-2-5",S9="A-2-6",S9="A-2-7"),VLOOKUP(S9,CLASS!$B$2:$E$23,4,FALSE),IF(OR(S9="A-5",S9="A-7-5",S9="A-8a",S9="A-8b",S9="R",S9="S",S9="C"),"",IF(AND(OR(S9="A-4b",S9="A-4a"),M9="NP"),11,IF(L9="NP", VLOOKUP(S9,CLASS!$B$2:$E$23,4,FALSE),IF(AND(OR(S9="A-4a",S9="A-4b"),L9-5>=10),L9-5,IF(L9="NP", VLOOKUP(S9,CLASS!$B$2:$E$23,4,FALSE),IF(AND(S9="A-6a",L9-5>=14),L9-5,IF(L9="NP", VLOOKUP(S9,CLASS!$B$2:$E$23,4,FALSE),IF(AND(S9="A-6b",L9-5>=16),L9-5,IF(L9="NP", VLOOKUP(S9,CLASS!$B$2:$E$23,4,FALSE),IF(AND(S9="A-7-6",L9-3>=18),L9-3,VLOOKUP(S9,CLASS!$B$2:$E$23,4,FALSE))))))))))))),"") ->  | T9: =IFERROR(IF(ROUNDUP(F9,0)>=6,"",IF(OR(S9="",S9="R"),"",IF(P9=0,VLOOKUP(S9,CLASS!$B$2:$D$19,2,FALSE),IF(IF(S9="","",ROUND((0.2*IF(P9>75,40,IF(P9<35,0,P9-35)))+(0.005*IF(P9>75,40,IF(P9<35,0,P9-35))*IF(K9="np",0,IF(K9>60,20,IF(K9<40,0,K9-40))))+(0.01*IF(P9>55,40,IF(P9<15,0,P9-15))*IF(M9="np",0,IF(M9>30,20,IF(M9<10,0,M9-10)))),0))>VLOOKUP(S9,CLASS!$B$2:$D$19,3,FALSE),VLOOKUP(S9,CLASS!$B$2:$D$19,3,FALSE),IF(S9="","",ROUND((0.2*IF(P9>75,40,IF(P9<35,0,P9-35)))+(0.005*IF(P9>75,40,IF(P9<35,0,P9-35))*IF(K9="np",0,IF(K9>60,20,IF(K9<40,0,K9-40))))+(0.01*IF(P9>55,40,IF(P9<15,0,P9-15))*IF(M9="np",0,IF(M9>30,20,IF(M9<10,0,M9-10)))),0)))))),"") ->  | W9: =IFERROR(IF(AND(AA9<>"",ROW()<=AA9,AB9<>""),IF(OR(S9="A-1-a",S9="A-1-b",S9="A-3",S9="A-3a"),"",IF(OR(Q9="",R9=""),IF(AND(J9<>"",J9<=1.5)," HP",IF(H9<12,CONCATENATE("N","₆₀"),"")),IF(AND(J9<>"",J9<=1.875, Q9>=R9+3), "HP & " & "Mc", IF(AND(J9<>"",J9<=1.5), " HP", IF(AND(H9<15, Q9>=R9+3),CONCATENATE("N","₆₀", " & ", "M" & "c"),IF(H9<12,CONCATENATE("N","₆₀"), IF(Q9>=R9+3,"M" & "c",""))))))),""),"") ->  | X9: =IF(V9="","",IF(G9<0,"",IF(ROW()=AF7,12*G9,""))) ->  | Y9: =IF(F9>=1.09,"",IF(AM9>0,IF(AND(W9<>"Mc",W9<>""),MAX(IFERROR(IF(J9="",0,VLOOKUP(J9,CLASS!$AM$2:$AO$62,3)),0), IFERROR(IF(H9="",0,VLOOKUP(H9,CLASS!$AN$2:$AO$62,2)),0)),""),"")) ->  | AA9: =AA8 ->  | AB9: 9
F10: =IFERROR(IF(OR(D10="",E10=""),"",ROUND(D10-D9+F9,2)),"") ->  | G10: =IFERROR(IF(OR(D10="",E10=""),"",ROUND(E10-D10+F10,2)),"") ->  | I10: =IFERROR(IF(MIN(INDIRECT("H" & ROW()-4+IFERROR(MATCH(INDEX(G7:G10,MATCH(TRUE,INDEX(G7:G10>0,0),)),G7:G10,0),1)& ":H" & ROW()-4 + MATCH(6,F7:F10,1)))>30,30,MIN(INDIRECT("H" & ROW()-4+IFERROR(MATCH(INDEX(G7:G10,MATCH(TRUE,INDEX(G7:G10>0,0),)),G7:G10,0),1) & ":H" & ROW()-4 + MATCH(6,F7:F10,1)))),"") ->  | R10: =IFERROR(IF(S10="","",IF(OR(S10="A-1-a",S10="A-1-b",S10="A-3",S10="A-3a",S10="A-2-4",S10="A-2-5",S10="A-2-6",S10="A-2-7"),VLOOKUP(S10,CLASS!$B$2:$E$23,4,FALSE),IF(OR(S10="A-5",S10="A-7-5",S10="A-8a",S10="A-8b",S10="R",S10="S",S10="C"),"",IF(AND(OR(S10="A-4b",S10="A-4a"),M10="NP"),11,IF(L10="NP", VLOOKUP(S10,CLASS!$B$2:$E$23,4,FALSE),IF(AND(OR(S10="A-4a",S10="A-4b"),L10-5>=10),L10-5,IF(L10="NP", VLOOKUP(S10,CLASS!$B$2:$E$23,4,FALSE),IF(AND(S10="A-6a",L10-5>=14),L10-5,IF(L10="NP", VLOOKUP(S10,CLASS!$B$2:$E$23,4,FALSE),IF(AND(S10="A-6b",L10-5>=16),L10-5,IF(L10="NP", VLOOKUP(S10,CLASS!$B$2:$E$23,4,FALSE),IF(AND(S10="A-7-6",L10-3>=18),L10-3,VLOOKUP(S10,CLASS!$B$2:$E$23,4,FALSE))))))))))))),"") ->  | T10: =IFERROR(IF(ROUNDUP(F10,0)>=6,"",IF(OR(S10="",S10="R"),"",IF(P10=0,VLOOKUP(S10,CLASS!$B$2:$D$19,2,FALSE),IF(IF(S10="","",ROUND((0.2*IF(P10>75,40,IF(P10<35,0,P10-35)))+(0.005*IF(P10>75,40,IF(P10<35,0,P10-35))*IF(K10="np",0,IF(K10>60,20,IF(K10<40,0,K10-40))))+(0.01*IF(P10>55,40,IF(P10<15,0,P10-15))*IF(M10="np",0,IF(M10>30,20,IF(M10<10,0,M10-10)))),0))>VLOOKUP(S10,CLASS!$B$2:$D$19,3,FALSE),VLOOKUP(S10,CLASS!$B$2:$D$19,3,FALSE),IF(S10="","",ROUND((0.2*IF(P10>75,40,IF(P10<35,0,P10-35)))+(0.005*IF(P10>75,40,IF(P10<35,0,P10-35))*IF(K10="np",0,IF(K10>60,20,IF(K10<40,0,K10-40))))+(0.01*IF(P10>55,40,IF(P10<15,0,P10-15))*IF(M10="np",0,IF(M10>30,20,IF(M10<10,0,M10-10)))),0)))))),"") ->  | X10: =IF(V10="","",IF(G10<0,"",IF(ROW()=AF7,12*G10,""))) ->  | Y10: =IF(F10>=1.09,"",IF(AM10>0,IF(AND(W10<>"Mc",W10<>""),MAX(IFERROR(IF(J10="",0,VLOOKUP(J10,CLASS!$AM$2:$AO$62,3)),0), IFERROR(IF(H10="",0,VLOOKUP(H10,CLASS!$AN$2:$AO$62,2)),0)),""),"")) ->  | AA10: =AA9 ->  | AB10: 10

Sheet Results Summary
A1: PID: | G1: ='Cover Sheet'!G4:Q4 -> <PID> | AA1: =COUNTIFS(INDIRECT("'Subgrade Analysis'!G3:G" & $G$4 * 4 +2),">0",INDIRECT("'Subgrade Analysis'!F3:F" & $G$4 *4 +2),"<6.1") -> 0
A3: County-Route-Section: | G3: ='Cover Sheet'!G3:Q3 -> <COUNTY-ROUTE-SECTION>
A4: No. of Borings: | G4: ='Cover Sheet'!G19:Q19 -> 1
A7: Geotechnical Consultant: | G7: ='Cover Sheet'!G7:Q7 -> <GEOTECHNICAL CONSULTANT>
A8: Prepared By: | G8: ='Cover Sheet'!G9:Q9 -> <NAME>
A9: Date prepared: | G9: ='Cover Sheet'!G10:Q10 -> <MM/DD/YYYY>
A15: Chemical Stabilization Options | L15: Excavate and Replace Stabilization Options | T15: Design CBR | X15: =IFERROR(IF((Y40-(M40+Q40+R40+U40+X40))<1,"?",VLOOKUP(Z33,CLASS!A29:B50,2)),"") -> ?
A16: 320 | C16: Rubblize & Roll | I16: =IFERROR(IF(F33<12,"No", "Option"),"") -> Option | L16: ="Global Geotextile" & CHAR(10) & IF(Graph!G36=FALSE,"Average(N60L):","Override(N60L):") & CHAR(10) & IF(Graph!G35=FALSE,"Average(HP):","Override(HP):") -> Global Geotextile Override(N60L): Override(HP): | Q16: =" " & CHAR(10) & IF(CLASS!$AR$5="","N/A",CLASS!$AR$5 & "''") & CHAR(10) & IF(CLASS!$AR$10="","N/A",CLASS!$AR$10 & "''") -> 18'' 24''
A17: 206 | C17: Cement Stabilization | I17: =IFERROR(IF(N33<20.1,IF(F33>3.9,"Option","No"),"No"),"") -> No
C18: Lime Stabilization | I18: =IFERROR(IF(N33>15.9,IF(F33>3.9,"Option","No"),"No"),"") -> Option | L18: ="Global Geogrid" & CHAR(10) & IF(Graph!G36=FALSE,"Average(N60L):","Override(N60L):") & CHAR(10) & IF(Graph!G35=FALSE,"Average(HP):","Override(HP):") -> Global Geogrid Override(N60L): Override(HP): | Q18: =" " & CHAR(10) &IF(CLASS!$AR$6="","N/A",CLASS!$AR$6 & "''") & CHAR(10) & IF(CLASS!$AR$11="","N/A",CLASS!$AR$11 & "''") -> 12'' 18''
A19: 206 | C19: Depth | I19: =IFERROR(IF(AND(F33>3,F33<16),HLOOKUP(F33,CLASS!F56:U59,4), "NA"),"") -> NA
A22: % Samples within 6 feet of subgrade | L22: Excavate and Replace at Surface | T22: % Proposed Subgrade Surface
A23: N60 ≤ 5 | D23: =IFERROR(ROUND(COUNTIFS(INDIRECT("'Subgrade Analysis'!G3:G" & $G$4 *4 +2),">0",INDIRECT("'Subgrade Analysis'!F3:F" & $G$4 *4 +2),"<6.1",INDIRECT("'Subgrade Analysis'!H3:H" & $G$4 *4 +2),"<=5")/$AA$1,3),"") ->  | F23: HP ≤ 0.5 | I23: =IFERROR(COUNTIFS(INDIRECT("'Subgrade Analysis'!G3:G" & $G$4 *4 +2),">0",INDIRECT("'Subgrade Analysis'!F3:F" & $G$4 *4 +2),"<6.1",INDIRECT("'Subgrade Analysis'!J3:J" & $G$4 *4 +2),"<=0.5")/$AA$1,"") -> 
A24: N60< 12 | D24: =IFERROR(ROUND(COUNTIFS(INDIRECT("'Subgrade Analysis'!G3:G" & $G$4 *4 +2),">0",INDIRECT("'Subgrade Analysis'!F3:F" & $G$4 *4 +2),"<6.1",INDIRECT("'Subgrade Analysis'!H3:H" & $G$4 *4 +2),"<12")/$AA$1,3),"") ->  | F24: 0.5 < HP ≤ 1 | I24: =IFERROR(COUNTIFS(INDIRECT("'Subgrade Analysis'!G3:G" & $G$4 *4 +2),">0", INDIRECT("'Subgrade Analysis'!F3:F" & $G$4 *4 +2),"<6.1",INDIRECT("'Subgrade Analysis'!J3:J" & $G$4 *4 +2),"<=1",INDIRECT("'Subgrade Analysis'!J3:J" & $G$4 *4 +2),">0.5")/$AA$1,"") ->  | L24: Average | Q24: =IFERROR(AVERAGE(INDIRECT("'Subgrade Analysis'!AH3:AH" & $G$4*4+2)),"") -> 0 | T24: Unstable & Unsuitable | Z24: =Z26+Z28 -> 
A25: 12 ≤ N60< 15 | D25: =IFERROR(ROUND(COUNTIFS(INDIRECT("'Subgrade Analysis'!G3:G" & $G$4 *4 +2),">0",INDIRECT("'Subgrade Analysis'!F3:F" & $G$4 *4 +2),"<6.1",INDIRECT("'Subgrade Analysis'!H3:H" & $G$4 *4 +2),"<15", INDIRECT("'Subgrade Analysis'!H3:H" & $G$4 *4 +2),">=12")/$AA$1,3),"") ->  | F25: 1 < HP ≤ 2 | I25: =IFERROR(COUNTIFS(INDIRECT("'Subgrade Analysis'!G3:G" & $G$4 *4 +2),">0",INDIRECT("'Subgrade Analysis'!F3:F" & $G$4 *4 +2),"<6.1",INDIRECT("'Subgrade Analysis'!J3:J" & $G$4 *4 +2),"<=2",INDIRECT("'Subgrade Analysis'!J3:J" & $G$4 *4 +2),">1")/$AA$1,"") -> 
A26: N60 ≥ 20 | D26: =IFERROR(ROUND(COUNTIFS(INDIRECT("'Subgrade Analysis'!G3:G" & $G$4 *4 +2),">0",INDIRECT("'Subgrade Analysis'!F3:F" & $G$4 *4 +2),"<6.1",INDIRECT("'Subgrade Analysis'!H3:H" & $G$4 *4 +2),">=20")/$AA$1,3),"") ->  | F26: HP > 2 | I26: =IFERROR(COUNTIFS(INDIRECT("'Subgrade Analysis'!G3:G"&$G$4*4+2),">0",INDIRECT("'Subgrade Analysis'!F3:F" & $G$4 *4 +2),"<6.1",INDIRECT("'Subgrade Analysis'!J3:J"&$G$4*4+2),">2")/$AA$1,"") ->  | L26: Maximum | Q26: =MAX(INDIRECT("'Subgrade Analysis'!AH3:AH" & $G$4*4+2)) -> 0 | T26: Unstable | Z26: =COUNTIF(INDIRECT("'Subgrade Analysis'!AG3:AG"&$G$4*4+2),"=1")/Y43 -> 
A27: M+ | D27: =IFERROR(COUNTIF(INDIRECT("'Subgrade Analysis'!W3:W" & $G$4 *4 +2),"*Mc*")/$AA$1,"") -> 
A28: Rock | D28: =G44 ->  | L28: Minimum | Q28: =MIN(INDIRECT("'Subgrade Analysis'!AH3:AH" & $G$4*4+2)) -> 0 | T28: Unsuitable | Z28: =COUNTIF(INDIRECT("'Subgrade Analysis'!AE3:AE"&$G$4*4+2),"=1")/Y43 -> 
A29: Unsuitable | D29: =IFERROR(G41+M41+Q41+R41+U41+W41+X41,"") -> 
D32: N60 | F32: N60L | H32: HP | J32: LL | K32: LL | L32: PL | N32: PI | P32: Silt | R32: Clay | T32: P 200 | V32: MC | X32: MOPT | Z32: GI
A33: Average | D33: =IFERROR(AVERAGEIF(INDIRECT("'Subgrade Analysis'!G3:G" & $G$4*4+2), ">0", INDIRECT("'Subgrade Analysis'!H3:H" & $G$4*4+2)),"") ->  | F33: =IFERROR(AVERAGE(INDIRECT("'Subgrade Analysis'!I3:I"&$G$4*4+2)),"") ->  | H33: =IFERROR(AVERAGEIF(INDIRECT("'Subgrade Analysis'!G3:G" & $G$4*4+2), ">0", INDIRECT("'Subgrade Analysis'!J3:J" & $G$4*4+2)),"") ->  | J33: =IFERROR(AVERAGEIF(INDIRECT("'Subgrade Analysis'!G3:G" & $G$4*4+2), ">0", INDIRECT("'Subgrade Analysis'!K3:K" & $G$4*4+2)),"") ->  | L33: =IFERROR(AVERAGEIF(INDIRECT("'Subgrade Analysis'!G3:G" & $G$4*4+2), ">0", INDIRECT("'Subgrade Analysis'!L3:L" & $G$4*4+2)),"") ->  | M33: =IF(SUM(#REF!)>0,AVERAGE(I45:I531),"") ->  | N33: =IFERROR(AVERAGEIF(INDIRECT("'Subgrade Analysis'!G3:G" & $G$4*4+2), ">0", INDIRECT("'Subgrade Analysis'!M3:M" & $G$4*4+2)),"") ->  | O33: =IF(SUM(#REF!)>0,AVERAGE(K45:K531),"") ->  | P33: =IFERROR(AVERAGEIF(INDIRECT("'Subgrade Analysis'!G3:G" & $G$4*4+2), ">0", INDIRECT("'Subgrade Analysis'!N3:N" & $G$4*4+2)),"") ->  | Q33: =IF(SUM(#REF!)>0,AVERAGE(M45:M530),"") ->  | R33: =IFERROR(AVERAGEIF(INDIRECT("'Subgrade Analysis'!G3:G" & $G$4*4+2), ">0", INDIRECT("'Subgrade Analysis'!O3:O" & $G$4*4+2)),"") ->  | T33: =IFERROR(AVERAGEIF(INDIRECT("'Subgrade Analysis'!G3:G" & $G$4*4+2), ">0", INDIRECT("'Subgrade Analysis'!P3:P" & $G$4*4+2)),"") ->  | V33: =IFERROR(AVERAGEIF(INDIRECT("'Subgrade Analysis'!G3:G" & $G$4*4+2), ">0", INDIRECT("'Subgrade Analysis'!Q3:Q" & $G$4*4+2)),"") ->  | X33: =IFERROR(AVERAGEIF(INDIRECT("'Subgrade Analysis'!G3:G" & $G$4*4+2), ">0", INDIRECT("'Subgrade Analysis'!R3:R" & $G$4*4+2)),"") ->  | Z33: =IFERROR(AVERAGEIF(INDIRECT("'Subgrade Analysis'!G3:G" & $G$4*4+2), ">0", INDIRECT("'Subgrade Analysis'!T3:T" & $G$4*4+2)),"") -> 
A34: Maximum | D34: =MAX(INDIRECT("'Subgrade Analysis'!H3:H"&$G$4*4+2)) -> 0 | F34: =MAX(INDIRECT("'Subgrade Analysis'!I3:I"&$G$4*4+2)) -> 0 | H34: =MAX(INDIRECT("'Subgrade Analysis'!J3:J"&$G$4*4+2)) -> 0 | J34: =MAX(INDIRECT("'Subgrade Analysis'!K3:K"&$G$4*4+2)) -> 0 | L34: =MAX(INDIRECT("'Subgrade Analysis'!L3:L"&$G$4*4+2)) -> 0 | M34: =IF(SUM(#REF!)>0,MAX(I45:I281),"") ->  | N34: =MAX(INDIRECT("'Subgrade Analysis'!M3:M"&$G$4*4+2)) -> 0 | O34: =IF(SUM(#REF!)>0,MAX(K45:K281),"") ->  | P34: =MAX(INDIRECT("'Subgrade Analysis'!N3:N"&$G$4*4+2)) -> 0 | Q34: =IF(SUM(#REF!)>0,MAX(M45:M280),"") ->  | R34: =MAX(INDIRECT("'Subgrade Analysis'!O3:O"&$G$4*4+2)) -> 0 | T34: =MAX(INDIRECT("'Subgrade Analysis'!P3:P"&$G$4*4+2)) -> 0 | V34: =MAX(INDIRECT("'Subgrade Analysis'!Q3:Q"&$G$4*4+2)) -> 0 | X34: =MAX(INDIRECT("'Subgrade Analysis'!R3:R"&$G$4*4+2)) -> 0 | Z34: =MAX(INDIRECT("'Subgrade Analysis'!T3:T"&$G$4*4+2)) -> 0
A35: Minimum | D35: =MIN(INDIRECT("'Subgrade Analysis'!H3:H"&$G$4*4+2)) -> 0 | F35: =MIN(INDIRECT("'Subgrade Analysis'!I3:I"&$G$4*4+2)) -> 0 | H35: =MIN(INDIRECT("'Subgrade Analysis'!J3:J"&$G$4*4+2)) -> 0 | J35: =MIN(INDIRECT("'Subgrade Analysis'!K3:K"&$G$4*4+2)) -> 0 | L35: =MIN(INDIRECT("'Subgrade Analysis'!L3:L"&$G$4*4+2)) -> 0 | M35: =IF(SUM(#REF!)>0,MAX(I45:I282),"") ->  | N35: =MIN(INDIRECT("'Subgrade Analysis'!M3:M"&$G$4*4+2)) -> 0 | O35: =IF(SUM(#REF!)>0,MAX(K45:K282),"") ->  | P35: =MIN(INDIRECT("'Subgrade Analysis'!N3:N"&$G$4*4+2)) -> 0 | Q35: =IF(SUM(#REF!)>0,MAX(M45:M281),"") ->  | R35: =MIN(INDIRECT("'Subgrade Analysis'!O3:O"&$G$4*4+2)) -> 0 | T35: =MIN(INDIRECT("'Subgrade Analysis'!P3:P"&$G$4*4+2)) -> 0 | V35: =MIN(INDIRECT("'Subgrade Analysis'!Q3:Q"&$G$4*4+2)) -> 0 | X35: =MIN(INDIRECT("'Subgrade Analysis'!R3:R"&$G$4*4+2)) -> 0 | Z35: =MIN(INDIRECT("'Subgrade Analysis'!T3:T"&$G$4*4+2)) -> 0
A38: Classification Counts by Sample
A39: ODOT Class | G39: Rock | H39: A-1-a | I39: A-1-b | J39: A-2-4 | K39: A-2-5 | L39: A-2-6 | M39: A-2-7 | N39: A-3 | O39: A-3a | P39: A-4a | Q39: A-4b | R39: A-5 | S39: A-6a | T39: A-6b | U39: A-7-5 | V39: A-7-6 | W39: A-8a | X39: A-8b | Y39: Totals
A40: Count | G40: =COUNTIFS(INDIRECT("'Subgrade Analysis'!G3:G" & $G$4*4+2),">0",INDIRECT("'Subgrade Analysis'!S3:S" & $G$4*4+2),"Rock") -> 0 | H40: =COUNTIFS(INDIRECT("'Subgrade Analysis'!G3:G" & $G$4*4+2),">0",INDIRECT("'Subgrade Analysis'!S3:S" & $G$4*4+2),"A-1-a") -> 0 | I40: =COUNTIFS(INDIRECT("'Subgrade Analysis'!G3:G" & $G$4*4+2),">0",INDIRECT("'Subgrade Analysis'!S3:S" & $G$4*4+2),"A-1-b") -> 0 | J40: =COUNTIFS(INDIRECT("'Subgrade Analysis'!G3:G" & $G$4*4+2),">0",INDIRECT("'Subgrade Analysis'!S3:S" & $G$4*4+2),"A-2-4") -> 0 | K40: =COUNTIFS(INDIRECT("'Subgrade Analysis'!G3:G" & $G$4*4+2),">0",INDIRECT("'Subgrade Analysis'!S3:S" & $G$4*4+2),"A-2-5") -> 0 | L40: =COUNTIFS(INDIRECT("'Subgrade Analysis'!G3:G" & $G$4*4+2),">0",INDIRECT("'Subgrade Analysis'!S3:S" & $G$4*4+2),"A-2-6") -> 0 | M40: =COUNTIFS(INDIRECT("'Subgrade Analysis'!G3:G" & $G$4*4+2),">0",INDIRECT("'Subgrade Analysis'!S3:S" & $G$4*4+2),"A-2-7") -> 0 | N40: =COUNTIFS(INDIRECT("'Subgrade Analysis'!G3:G" & $G$4*4+2),">0",INDIRECT("'Subgrade Analysis'!S3:S" & $G$4*4+2),"A-3") -> 0 | O40: =COUNTIFS(INDIRECT("'Subgrade Analysis'!G3:G" & $G$4*4+2),">0",INDIRECT("'Subgrade Analysis'!S3:S" & $G$4*4+2),"A-3a") -> 0 | P40: =COUNTIFS(INDIRECT("'Subgrade Analysis'!G3:G" & $G$4*4+2),">0",INDIRECT("'Subgrade Analysis'!S3:S" & $G$4*4+2),"A-4a") -> 0 | Q40: =COUNTIFS(INDIRECT("'Subgrade Analysis'!G3:G" & $G$4*4+2),">0",INDIRECT("'Subgrade Analysis'!S3:S" & $G$4*4+2),"A-4b") -> 0 | R40: =COUNTIFS(INDIRECT("'Subgrade Analysis'!G3:G" & $G$4*4+2),">0",INDIRECT("'Subgrade Analysis'!S3:S" & $G$4*4+2),"A-5") -> 0 | S40: =COUNTIFS(INDIRECT("'Subgrade Analysis'!G3:G" & $G$4*4+2),">0",INDIRECT("'Subgrade Analysis'!S3:S" & $G$4*4+2),"A-6a") -> 0 | T40: =COUNTIFS(INDIRECT("'Subgrade Analysis'!G3:G" & $G$4*4+2),">0",INDIRECT("'Subgrade Analysis'!S3:S" & $G$4*4+2),"A-6b") -> 0 | U40: =COUNTIFS(INDIRECT("'Subgrade Analysis'!G3:G" & $G$4*4+2),">0",INDIRECT("'Subgrade Analysis'!S3:S" & $G$4*4+2),"A-7-5") -> 0 | V40: =COUNTIFS(INDIRECT("'Subgrade Analysis'!G3:G" & $G$4*4+2),">0",INDIRECT("'Subgrade Analysis'!S3:S" & $G$4*4+2),"A-7-6") -> 0 | W40: =COUNTIFS(INDIRECT("'Subgrade Analysis'!G3:G" & $G$4*4+2),">0",INDIRECT("'Subgrade Analysis'!S3:S" & $G$4*4+2),"A-8a") -> 0 | X40: =COUNTIFS(INDIRECT("'Subgrade Analysis'!G3:G" & $G$4*4+2),">0",INDIRECT("'Subgrade Analysis'!S3:S" & $G$4*4+2),"A-8b") -> 0 | Y40: =SUM(G40:X40) -> 0
A41: Percent | G41: =IFERROR(G40/$Y$40,"") ->  | Y41: =IFERROR(SUM(G41:X41),"") -> 0
A42: % Rock|Granular|Cohesive | G42: =G41 ->  | H42: =IFERROR(SUM(H41:P41),"") -> 0 | Q42: =IFERROR(SUM(Q41:X41),"") -> 0 | Y42: =IFERROR(SUM(G42:X42),"") -> 0
A43: Surface Class Count | G43: =COUNTIFS(INDIRECT("'Subgrade Analysis'!AM3:AM" & $G$4*4+2),">0", INDIRECT("'Subgrade Analysis'!S3:S" & $G$4*4+2),G39) -> 0 | H43: 0 | I43: 0 | J43: 0 | K43: 0 | L43: 0 | M43: 0 | N43: 0 | O43: 0 | P43: 0 | Q43: 0 | R43: 0 | S43: 0 | T43: 0 | U43: 0 | V43: 0 | W43: 0 | X43: 0 | Y43: =SUM(G43:X43) -> 0
A44: Surface Class Percent | G44: =IFERROR(G43/$Y$43,"") ->  | Y44: =IFERROR(SUM(G44:X44),"") -> 0

Sheet Graph
C33: O V E R R I D E T A B L E
C34: Calculated Average | E34: New Values | G34: Check to Override
C35: ='Results Summary'!H33 ->  | E35: 0.5 | G35: TRUE
C36: ='Results Summary'!F33 ->  | E36: 6 | G36: TRUE

Sheet Help
A1: The subgrade analysis workbook consists of five worksheets. Each worksheet functions independently. In all of the worksheets the fields are color coded as follows:
A2: · Every yellow highlighted field indicates a field to be entered by the user.
A3: · Every salmon field is to indicate a problem/issue.
A4: · Every gray or green field is a heading/informational field.
A6: IMPORTANT: The sequence of filling out the data needs to be followed as outlined below:
A7: 1. Cover Sheet: this worksheet is designed for the purpose of entering the project information.
A8: Enter all the following fields:
A10: County-Route-Section | D10: This includes the county, route, section number assigned to the project.
A11: PID | D11: the Project Identification Number
A12: Project Description | D12: See Cover Sheet for list of example details
A13: Geotechnical Consultant | D13: The Geotechnical Consultant performing the analysis.
A14: Prepared By | D14: The preparer of the subgrade analysis
A15: Date prepared | D15: The date the analysis is performed.
A16: Contact Information | D16: Name, address, telephone #, and email address
A17: No. of Borings | D17: Enter the total number of borings within the alignment that is being analyzed. This field is a required field.
A19: 2. Boring Logs Entry Worksheet: this worksheet has a programming code that will run in the background every time the sheet is activated and will make the sheet unresponsive for less than a minute. The code is designed to read the total number of borings from the cover sheet and generate the needed number of fields.
A20: a. All yellow highlighted fields are user’s entry.
A21: b. ODOT has developed a text table export from gINT (GB 1 Borings Log Entry Tab) that will allow for copy and paste of all highlighted fields with the exception of proposed subgrade elevation. The designer must provide a proposed subgrade elevation in order for the spreadsheet to function properly.
A22: c. The Cut/Fill field is a calculated field that, based on the difference between the boring elevation and the proposed subgrade elevation, will highlight the cell either gray and adds the letter “C” to the end in a cut situation or highlights the cell in light purple and adds the letter “F” to the end in a fill situation.
A23: d. Every duplicate boring ID will be highlighted in salmon background and red text.
A24: e. IMPORTANT: After entering all the borings’ information, the user must click “Add Subgrade Analysis Entry Fields” button. This will generate all the required fields in the “Subgrade Analysis” Worksheet.
A26: 3. Subgrade Analysis Worksheet:
A27: a. The boring number and boring ID is read from the “Boring Logs Entry Worksheet” excluding every boring that has six feet or more of fill.
A28: b. All yellow highlighted fields are to be entered by the user and salmon highlighted fields indicates a problem or issue.
A29: c. Every sample that has a Sulfate Content greater than or equal to 3000 will be highlighted in light salmon background. Every sample that has a Sulfate Content greater than or equal to 8000 will be highlighted in darker salmon background. Note the revised sulfate criteria in GB1 issued July 20, 2018.
A30: d. Unsuitable/Unstable:
A31: i. Unsuitable samples that are within 3 feet of the top of subgrade will be highlighted with salmon background and the class will be showing in this field.
A32: ii. Unstable Samples that are within 3 feet of top of subgrade will be highlighted with salmon background and text to indicate the problem as follows:
A34: Criterion | E34: Stabilization Need Check | I34: Text displayed in the field
A35: A-1-a, A-1-b, A-3, or A-3a Soil Class | E35: No Stabilization is needed
A36: HP ≥ 1.875 | E36: No Stabilization is needed
A37: N60 ≥ 15 | E37: No Stabilization is needed
A38: 1.875 ≥ HP ≥ 1.5 and Mc≥ Opt. Mc+3 | E38: Unstable Subgrade | I38: HP & Mc
A39: 15 ≥ N60 ≥ 12 and Mc≥ Opt. Mc+3 | E39: Unstable Subgrade | I39: N₆₀ & Mc
A40: HP ≤ 1.5 | E40: Unstable Subgrade | I40: HP
A41: N60 ≤ 12 | E41: Unstable Subgrade | I41: N₆₀
A43: iii. The field is formulated to check for HP first and check for N60 second.
A44: e. Excavate and Replace (Item 204) is going to be calculated based on the subgrade depth for each sample indicating an unsuitable or unstable problem.
A45: f. Recommendation:
A46: i. Geotextile Option is calculated and rounded to a multiple of 3 inches based on the subgrade depth for every sample indicating an unsuitable or unstable problem.
A47: ii. GEOGRID Option is only offered in case of unstable subgrade problem and if the geotextile option indicates the need to excavate greater than 12 inches.
A48: PLEASE NOTE: The Problem, Excavate & Replace, and Recommendation Fields are the responsibility of the Designer. These fields are being enhanced to attempt to capture the ODOT philosophy regarding the GB1 stabilization chart, but are considered still under development. If there are discrepancies between the spreadsheet output and the GB1 chart - the chart governs in conjunction with engineering judgement. Please contact Steve Taliaferro at stephen.taliaferro@dot.ohio.gov if you have any questions.
A49: PLEASE NOTE: It is the Designer's responsibility to identify the most representative data when samples have been separated into multiple specimen (say 1.5 to 2.3 feet and 2.3 to 3.0 feet). The spreadsheet is not capable at this time of addressing this issue within a direct data export from gINT.
A51: 4. Results Summary:
B52: All fields in this sheet are password protected and are either calculated or read from the other worksheets.
A54: 5. Graph Worksheet:
B55: This worksheet is designed to read the average N60L and the average HP from the Cover Sheet and plot a blue line for Average HP and orange line for Average N60L on GB1 Figure B – Subgrade Stabilization. The Override Table can be used to enter HP and/or N60L values that are different than the calculated averages. The Override values will change the global undercut recommendation in the Results Summary.

Sheet Group Index (hidden)
A1: Class | B1: A | C1: B | D1: C | E1: D | F1: GI Equation | G1: GI | H1: PL | I1: Optimum Moisture Content
A2: =IFERROR(IF('Subgrade Analysis'!S3="","",'Subgrade Analysis'!S3),"") ->  | B2: =IF('Subgrade Analysis'!P3>75,40,IF('Subgrade Analysis'!P3<35,0,'Subgrade Analysis'!P3-35)) -> 40 | C2: =IFERROR(IF('Subgrade Analysis'!#REF!>55,40,IF('Subgrade Analysis'!#REF!<15,0,'Subgrade Analysis'!#REF!-15)),"") ->  | D2: =IF('Subgrade Analysis'!K3>60,20,IF('Subgrade Analysis'!K3<40,0,'Subgrade Analysis'!K3-40)) -> 0 | E2: =IF('Subgrade Analysis'!M3>30,20,IF('Subgrade Analysis'!M3<10,0,'Subgrade Analysis'!M3-10)) -> 20 | F2: =IFERROR(IF(A2="","",ROUND((0.2*B2)+(0.005*B2*D2)+(0.01*C2*E2),0)),"") ->  | G2: =IF(A2="","",IF(SUM('Subgrade Analysis'!N3:P3)=0,VLOOKUP('Group Index'!A2,CLASS!$B$2:$D$23,2,FALSE),IF(F2>VLOOKUP(A2,CLASS!$B$2:$D$23,3,FALSE),VLOOKUP(A2,CLASS!$B$2:$D$23,3,FALSE),F2))) ->  | H2: =IF(A2="","",'Subgrade Analysis'!L3) ->  | I2: =IF(A2="","",IF(OR(A2="1a",A2="1b",A2="3",A2="3a",A2="2-4",A2="2-5",A2="2-6",A2="2-7"),VLOOKUP(A2,CLASS!$A$2:$E$18,4,FALSE),IF(OR(A2="5",A2="7-5",A2="8a",A2="8b",A2="R",A2="S",A2="C"),"",IF(AND(OR(A2="4b",A2="4a"),'Subgrade Analysis'!M3="NP"),11,IF(H2="NP", VLOOKUP(A2,CLASS!$A$2:$E$18,4,FALSE),IF(AND(OR(A2="4a",A2="4b"),H2-5>=10),H2-5,IF(H2="NP", VLOOKUP(A2,CLASS!$A$2:$E$18,4,FALSE),IF(AND(A2="6a",H2-5>=14),H2-5,IF(H2="NP", VLOOKUP(A2,CLASS!$A$2:$E$18,4,FALSE),IF(AND(A2="6b",H2-5>=16),H2-5,IF(H2="NP", VLOOKUP(A2,CLASS!$A$2:$E$18,4,FALSE),IF(AND(A2="7-6",H2-3>=18),H2-3,VLOOKUP(A2,CLASS!$A$2:$E$18,4,FALSE))))))))))))) ->  | L2: =IF(A2="","",ROUND((0.2*IF('Subgrade Analysis'!P3>55,40,IF('Subgrade Analysis'!P3<15,0,'Subgrade Analysis'!P3-15)))+(0.005*B2*D2)+(0.01*C2*E2),0)) ->  | M2: =IF(A2="","",ROUND((0.2*IF('Subgrade Analysis'!P3>55,40,IF('Subgrade Analysis'!P3<15,0,'Subgrade Analysis'!P3-15)))+(0.005*IF('Subgrade Analysis'!P3>55,40,IF('Subgrade Analysis'!P3<15,0,'Subgrade Analysis'!P3-15))*D2)+(0.01*C2*E2),0)) ->  | N2: =IF(A2="","",ROUND((0.2*IF('Subgrade Analysis'!P3>75,40,IF('Subgrade Analysis'!P3<35,0,'Subgrade Analysis'!P3-35)))+(0.005*IF('Subgrade Analysis'!P3>75,40,IF('Subgrade Analysis'!P3<35,0,'Subgrade Analysis'!P3-35))*D2)+(0.01*C2*E2),0)) ->  | O2: =IF(A2="","",ROUND((0.2*IF('Subgrade Analysis'!P3>75,40,IF('Subgrade Analysis'!P3<35,0,'Subgrade Analysis'!P3-35)))+(0.005*IF('Subgrade Analysis'!P3>75,40,IF('Subgrade Analysis'!P3<35,0,'Subgrade Analysis'!P3-35))*D2)+(0.01*IF('Subgrade Analysis'!P3>55,40,IF('Subgrade Analysis'!P3<15,0,'Subgrade Analysis'!P3-15))*E2),0)) ->  | P2: =IF(A2="","",ROUND((0.2*IF('Subgrade Analysis'!P3>75,40,IF('Subgrade Analysis'!P3<35,0,'Subgrade Analysis'!P3-35)))+(0.005*IF('Subgrade Analysis'!P3>75,40,IF('Subgrade Analysis'!P3<35,0,'Subgrade Analysis'!P3-35))* IF('Subgrade Analysis'!K3>60,20,IF('Subgrade Analysis'!K3<40,0,'Subgrade Analysis'!K3-40)))+(0.01*IF('Subgrade Analysis'!P3>55,40,IF('Subgrade Analysis'!P3<15,0,'Subgrade Analysis'!P3-15))*E2),0)) ->  | Q2: =IF(A2="","",ROUND((0.2*IF('Subgrade Analysis'!P3>75,40,IF('Subgrade Analysis'!P3<35,0,'Subgrade Analysis'!P3-35)))+(0.005*IF('Subgrade Analysis'!P3>75,40,IF('Subgrade Analysis'!P3<35,0,'Subgrade Analysis'!P3-35))* IF('Subgrade Analysis'!K3>60,20,IF('Subgrade Analysis'!K3<40,0,'Subgrade Analysis'!K3-40)))+(0.01*IF('Subgrade Analysis'!P3>55,40,IF('Subgrade Analysis'!P3<15,0,'Subgrade Analysis'!P3-15))* IF('Subgrade Analysis'!M3>30,20,IF('Subgrade Analysis'!M3<10,0,'Subgrade Analysis'!M3-10))),0)) ->  | R2: =IF(A2="","",IF(SUM('Subgrade Analysis'!N3:P3)=0,VLOOKUP('Group Index'!A2,CLASS!$A$2:$D$18,2,FALSE),IF(IF(A2="","",ROUND((0.2*IF('Subgrade Analysis'!P3>75,40,IF('Subgrade Analysis'!P3<35,0,'Subgrade Analysis'!P3-35)))+(0.005*IF('Subgrade Analysis'!P3>75,40,IF('Subgrade Analysis'!P3<35,0,'Subgrade Analysis'!P3-35))* IF('Subgrade Analysis'!K3>60,20,IF('Subgrade Analysis'!K3<40,0,'Subgrade Analysis'!K3-40)))+(0.01*IF('Subgrade Analysis'!P3>55,40,IF('Subgrade Analysis'!P3<15,0,'Subgrade Analysis'!P3-15))* IF('Subgrade Analysis'!M3>30,20,IF('Subgrade Analysis'!M3<10,0,'Subgrade Analysis'!M3-10))),0))>VLOOKUP(A2,CLASS!$A$2:$D$18,3,FALSE),VLOOKUP(A2,CLASS!$A$2:$D$18,3,FALSE), IF(A2="","",ROUND((0.2*IF('Subgrade Analysis'!P3>75,40,IF('Subgrade Analysis'!P3<35,0,'Subgrade Analysis'!P3-35)))+(0.005*IF('Subgrade Analysis'!P3>75,40,IF('Subgrade Analysis'!P3<35,0,'Subgrade Analysis'!P3-35))* IF('Subgrade Analysis'!K3>60,20,IF('Subgrade Analysis'!K3<40,0,'Subgrade Analysis'!K3-40)))+(0.01*IF('Subgrade Analysis'!P3>55,40,IF('Subgrade Analysis'!P3<15,0,'Subgrade Analysis'!P3-15))* IF('Subgrade Analysis'!M3>30,20,IF('Subgrade Analysis'!M3<10,0,'Subgrade Analysis'!M3-10))),0))))) -> 
A3: =IFERROR(IF('Subgrade Analysis'!S4="","",'Subgrade Analysis'!S4),"") ->  | B3: =IF(A3="","",IF('Subgrade Analysis'!#REF!>75,40,IF('Subgrade Analysis'!#REF!<35,0,'Subgrade Analysis'!#REF!-35))) ->  | C3: =IFERROR(IF('Subgrade Analysis'!#REF!>55,40,IF('Subgrade Analysis'!#REF!<15,0,'Subgrade Analysis'!#REF!-15)),"") ->  | D3: =IF(A3="","",IF('Subgrade Analysis'!#REF!>60,20,IF('Subgrade Analysis'!#REF!<40,0,'Subgrade Analysis'!#REF!-40))) ->  | E3: =IF('Subgrade Analysis'!M4>30,20,IF('Subgrade Analysis'!M4<10,0,'Subgrade Analysis'!M4-10)) -> 20 | F3: =IFERROR(IF(A3="","",ROUND((0.2*B3)+(0.005*B3*D3)+(0.01*C3*E3),0)),"") ->  | G3: =IF(A3="","",IF(SUM('Subgrade Analysis'!N4:P4)=0,VLOOKUP('Group Index'!A3,CLASS!$B$2:$D$23,2,FALSE),IF(F3>VLOOKUP(A3,CLASS!$B$2:$D$23,3,FALSE),VLOOKUP(A3,CLASS!$B$2:$D$23,3,FALSE),F3))) ->  | H3: =IF(A3="","",'Subgrade Analysis'!#REF!) ->  | I3: =IF(A3="","",IF(OR(A3="1a",A3="1b",A3="3",A3="3a",A3="2-4",A3="2-5",A3="2-6",A3="2-7"),VLOOKUP(A3,CLASS!$A$2:$E$18,4,FALSE),IF(OR(A3="5",A3="7-5",A3="8a",A3="8b",A3="R",A3="S",A3="C"),"",IF(AND(OR(A3="4b",A3="4a"),'Subgrade Analysis'!#REF!="NP"),11,IF(H3="NP", VLOOKUP(A3,CLASS!$A$2:$E$18,4,FALSE),IF(AND(OR(A3="4a",A3="4b"),H3-5>=10),H3-5,IF(H3="NP", VLOOKUP(A3,CLASS!$A$2:$E$18,4,FALSE),IF(AND(A3="6a",H3-5>=14),H3-5,IF(H3="NP", VLOOKUP(A3,CLASS!$A$2:$E$18,4,FALSE),IF(AND(A3="6b",H3-5>=16),H3-5,IF(H3="NP", VLOOKUP(A3,CLASS!$A$2:$E$18,4,FALSE),IF(AND(A3="7-6",H3-3>=18),H3-3,VLOOKUP(A3,CLASS!$A$2:$E$18,4,FALSE))))))))))))) -> 
A4: =IFERROR(IF('Subgrade Analysis'!S5="","",'Subgrade Analysis'!S5),"") ->  | B4: =IF(A4="","",IF('Subgrade Analysis'!#REF!>75,40,IF('Subgrade Analysis'!#REF!<35,0,'Subgrade Analysis'!#REF!-35))) ->  | C4: =IFERROR(IF('Subgrade Analysis'!#REF!>55,40,IF('Subgrade Analysis'!#REF!<15,0,'Subgrade Analysis'!#REF!-15)),"") ->  | D4: =IF(A4="","",IF('Subgrade Analysis'!#REF!>60,20,IF('Subgrade Analysis'!#REF!<40,0,'Subgrade Analysis'!#REF!-40))) ->  | E4: =IF('Subgrade Analysis'!M5>30,20,IF('Subgrade Analysis'!M5<10,0,'Subgrade Analysis'!M5-10)) -> 20 | G4: =IF(A4="","",IF(SUM('Subgrade Analysis'!N5:P5)=0,VLOOKUP('Group Index'!A4,CLASS!$B$2:$D$23,2,FALSE),IF(F4>VLOOKUP(A4,CLASS!$B$2:$D$23,3,FALSE),VLOOKUP(A4,CLASS!$B$2:$D$23,3,FALSE),F4))) ->  | H4: =IF(A4="","",'Subgrade Analysis'!#REF!) ->  | I4: =IF(A4="","",IF(OR(A4="1a",A4="1b",A4="3",A4="3a",A4="2-4",A4="2-5",A4="2-6",A4="2-7"),VLOOKUP(A4,CLASS!$A$2:$E$18,4,FALSE),IF(OR(A4="5",A4="7-5",A4="8a",A4="8b",A4="R",A4="S",A4="C"),"",IF(AND(OR(A4="4b",A4="4a"),'Subgrade Analysis'!#REF!="NP"),11,IF(H4="NP", VLOOKUP(A4,CLASS!$A$2:$E$18,4,FALSE),IF(AND(OR(A4="4a",A4="4b"),H4-5>=10),H4-5,IF(H4="NP", VLOOKUP(A4,CLASS!$A$2:$E$18,4,FALSE),IF(AND(A4="6a",H4-5>=14),H4-5,IF(H4="NP", VLOOKUP(A4,CLASS!$A$2:$E$18,4,FALSE),IF(AND(A4="6b",H4-5>=16),H4-5,IF(H4="NP", VLOOKUP(A4,CLASS!$A$2:$E$18,4,FALSE),IF(AND(A4="7-6",H4-3>=18),H4-3,VLOOKUP(A4,CLASS!$A$2:$E$18,4,FALSE))))))))))))) -> 
A5: =IFERROR(IF('Subgrade Analysis'!#REF!="","",'Subgrade Analysis'!#REF!),"") ->  | B5: =IF(A5="","",IF('Subgrade Analysis'!#REF!>75,40,IF('Subgrade Analysis'!#REF!<35,0,'Subgrade Analysis'!#REF!-35))) ->  | C5: =IFERROR(IF('Subgrade Analysis'!#REF!>55,40,IF('Subgrade Analysis'!#REF!<15,0,'Subgrade Analysis'!#REF!-15)),"") ->  | D5: =IF(A5="","",IF('Subgrade Analysis'!#REF!>60,20,IF('Subgrade Analysis'!#REF!<40,0,'Subgrade Analysis'!#REF!-40))) ->  | E5: =IF('Subgrade Analysis'!#REF!>30,20,IF('Subgrade Analysis'!#REF!<10,0,'Subgrade Analysis'!#REF!-10)) ->  | G5: =IF(A5="","",IF(SUM('Subgrade Analysis'!#REF!)=0,VLOOKUP('Group Index'!A5,CLASS!$B$2:$D$23,2,FALSE),IF(F5>VLOOKUP(A5,CLASS!$B$2:$D$23,3,FALSE),VLOOKUP(A5,CLASS!$B$2:$D$23,3,FALSE),F5))) ->  | H5: =IF(A5="","",'Subgrade Analysis'!#REF!) ->  | I5: =IF(A5="","",IF(OR(A5="1a",A5="1b",A5="3",A5="3a",A5="2-4",A5="2-5",A5="2-6",A5="2-7"),VLOOKUP(A5,CLASS!$A$2:$E$18,4,FALSE),IF(OR(A5="5",A5="7-5",A5="8a",A5="8b",A5="R",A5="S",A5="C"),"",IF(AND(OR(A5="4b",A5="4a"),'Subgrade Analysis'!#REF!="NP"),11,IF(H5="NP", VLOOKUP(A5,CLASS!$A$2:$E$18,4,FALSE),IF(AND(OR(A5="4a",A5="4b"),H5-5>=10),H5-5,IF(H5="NP", VLOOKUP(A5,CLASS!$A$2:$E$18,4,FALSE),IF(AND(A5="6a",H5-5>=14),H5-5,IF(H5="NP", VLOOKUP(A5,CLASS!$A$2:$E$18,4,FALSE),IF(AND(A5="6b",H5-5>=16),H5-5,IF(H5="NP", VLOOKUP(A5,CLASS!$A$2:$E$18,4,FALSE),IF(AND(A5="7-6",H5-3>=18),H5-3,VLOOKUP(A5,CLASS!$A$2:$E$18,4,FALSE))))))))))))) -> 
A6: =IFERROR(IF('Subgrade Analysis'!#REF!="","",'Subgrade Analysis'!#REF!),"") ->  | B6: =IF(A6="","",IF('Subgrade Analysis'!#REF!>75,40,IF('Subgrade Analysis'!#REF!<35,0,'Subgrade Analysis'!#REF!-35))) ->  | C6: =IFERROR(IF('Subgrade Analysis'!#REF!>55,40,IF('Subgrade Analysis'!#REF!<15,0,'Subgrade Analysis'!#REF!-15)),"") ->  | D6: =IF(A6="","",IF('Subgrade Analysis'!#REF!>60,20,IF('Subgrade Analysis'!#REF!<40,0,'Subgrade Analysis'!#REF!-40))) ->  | E6: =IF('Subgrade Analysis'!#REF!>30,20,IF('Subgrade Analysis'!#REF!<10,0,'Subgrade Analysis'!#REF!-10)) ->  | G6: =IF(A6="","",IF(SUM('Subgrade Analysis'!#REF!)=0,VLOOKUP('Group Index'!A6,CLASS!$B$2:$D$23,2,FALSE),IF(F6>VLOOKUP(A6,CLASS!$B$2:$D$23,3,FALSE),VLOOKUP(A6,CLASS!$B$2:$D$23,3,FALSE),F6))) ->  | H6: =IF(A6="","",'Subgrade Analysis'!#REF!) ->  | I6: =IF(A6="","",IF(OR(A6="1a",A6="1b",A6="3",A6="3a",A6="2-4",A6="2-5",A6="2-6",A6="2-7"),VLOOKUP(A6,CLASS!$A$2:$E$18,4,FALSE),IF(OR(A6="5",A6="7-5",A6="8a",A6="8b",A6="R",A6="S",A6="C"),"",IF(AND(OR(A6="4b",A6="4a"),'Subgrade Analysis'!#REF!="NP"),11,IF(H6="NP", VLOOKUP(A6,CLASS!$A$2:$E$18,4,FALSE),IF(AND(OR(A6="4a",A6="4b"),H6-5>=10),H6-5,IF(H6="NP", VLOOKUP(A6,CLASS!$A$2:$E$18,4,FALSE),IF(AND(A6="6a",H6-5>=14),H6-5,IF(H6="NP", VLOOKUP(A6,CLASS!$A$2:$E$18,4,FALSE),IF(AND(A6="6b",H6-5>=16),H6-5,IF(H6="NP", VLOOKUP(A6,CLASS!$A$2:$E$18,4,FALSE),IF(AND(A6="7-6",H6-3>=18),H6-3,VLOOKUP(A6,CLASS!$A$2:$E$18,4,FALSE))))))))))))) -> 
A7: =IFERROR(IF('Subgrade Analysis'!#REF!="","",'Subgrade Analysis'!#REF!),"") ->  | B7: =IF(A7="","",IF('Subgrade Analysis'!#REF!>75,40,IF('Subgrade Analysis'!#REF!<35,0,'Subgrade Analysis'!#REF!-35))) ->  | C7: =IFERROR(IF('Subgrade Analysis'!#REF!>55,40,IF('Subgrade Analysis'!#REF!<15,0,'Subgrade Analysis'!#REF!-15)),"") ->  | D7: =IF(A7="","",IF('Subgrade Analysis'!#REF!>60,20,IF('Subgrade Analysis'!#REF!<40,0,'Subgrade Analysis'!#REF!-40))) ->  | E7: =IF('Subgrade Analysis'!#REF!>30,20,IF('Subgrade Analysis'!#REF!<10,0,'Subgrade Analysis'!#REF!-10)) ->  | G7: =IF(A7="","",IF(SUM('Subgrade Analysis'!#REF!)=0,VLOOKUP('Group Index'!A7,CLASS!$B$2:$D$23,2,FALSE),IF(F7>VLOOKUP(A7,CLASS!$B$2:$D$23,3,FALSE),VLOOKUP(A7,CLASS!$B$2:$D$23,3,FALSE),F7))) ->  | H7: =IF(A7="","",'Subgrade Analysis'!#REF!) ->  | I7: =IF(A7="","",IF(OR(A7="1a",A7="1b",A7="3",A7="3a",A7="2-4",A7="2-5",A7="2-6",A7="2-7"),VLOOKUP(A7,CLASS!$A$2:$E$18,4,FALSE),IF(OR(A7="5",A7="7-5",A7="8a",A7="8b",A7="R",A7="S",A7="C"),"",IF(AND(OR(A7="4b",A7="4a"),'Subgrade Analysis'!#REF!="NP"),11,IF(H7="NP", VLOOKUP(A7,CLASS!$A$2:$E$18,4,FALSE),IF(AND(OR(A7="4a",A7="4b"),H7-5>=10),H7-5,IF(H7="NP", VLOOKUP(A7,CLASS!$A$2:$E$18,4,FALSE),IF(AND(A7="6a",H7-5>=14),H7-5,IF(H7="NP", VLOOKUP(A7,CLASS!$A$2:$E$18,4,FALSE),IF(AND(A7="6b",H7-5>=16),H7-5,IF(H7="NP", VLOOKUP(A7,CLASS!$A$2:$E$18,4,FALSE),IF(AND(A7="7-6",H7-3>=18),H7-3,VLOOKUP(A7,CLASS!$A$2:$E$18,4,FALSE))))))))))))) ->  | M7: =IF(IF(AND(M8<=1, M8>0),12,IF(M8>18.5,3,VLOOKUP(M8,K15:L94,2)))>13,13,IF(M8<1,13,IF(M8>18.5,3,VLOOKUP(M8,K15:L94,2)))) -> 8 | N7: =VLOOKUP(M8,M15:N94,2) -> 8
A8: =IFERROR(IF('Subgrade Analysis'!#REF!="","",'Subgrade Analysis'!#REF!),"") ->  | B8: =IF(A8="","",IF('Subgrade Analysis'!#REF!>75,40,IF('Subgrade Analysis'!#REF!<35,0,'Subgrade Analysis'!#REF!-35))) ->  | C8: =IFERROR(IF('Subgrade Analysis'!#REF!>55,40,IF('Subgrade Analysis'!#REF!<15,0,'Subgrade Analysis'!#REF!-15)),"") ->  | D8: =IF(A8="","",IF('Subgrade Analysis'!#REF!>60,20,IF('Subgrade Analysis'!#REF!<40,0,'Subgrade Analysis'!#REF!-40))) ->  | E8: =IF('Subgrade Analysis'!#REF!>30,20,IF('Subgrade Analysis'!#REF!<10,0,'Subgrade Analysis'!#REF!-10)) ->  | G8: =IF(A8="","",IF(SUM('Subgrade Analysis'!#REF!)=0,VLOOKUP('Group Index'!A8,CLASS!$B$2:$D$23,2,FALSE),IF(F8>VLOOKUP(A8,CLASS!$B$2:$D$23,3,FALSE),VLOOKUP(A8,CLASS!$B$2:$D$23,3,FALSE),F8))) ->  | H8: =IF(A8="","",'Subgrade Analysis'!#REF!) ->  | I8: =IF(A8="","",IF(OR(A8="1a",A8="1b",A8="3",A8="3a",A8="2-4",A8="2-5",A8="2-6",A8="2-7"),VLOOKUP(A8,CLASS!$A$2:$E$18,4,FALSE),IF(OR(A8="5",A8="7-5",A8="8a",A8="8b",A8="R",A8="S",A8="C"),"",IF(AND(OR(A8="4b",A8="4a"),'Subgrade Analysis'!#REF!="NP"),11,IF(H8="NP", VLOOKUP(A8,CLASS!$A$2:$E$18,4,FALSE),IF(AND(OR(A8="4a",A8="4b"),H8-5>=10),H8-5,IF(H8="NP", VLOOKUP(A8,CLASS!$A$2:$E$18,4,FALSE),IF(AND(A8="6a",H8-5>=14),H8-5,IF(H8="NP", VLOOKUP(A8,CLASS!$A$2:$E$18,4,FALSE),IF(AND(A8="6b",H8-5>=16),H8-5,IF(H8="NP", VLOOKUP(A8,CLASS!$A$2:$E$18,4,FALSE),IF(AND(A8="7-6",H8-3>=18),H8-3,VLOOKUP(A8,CLASS!$A$2:$E$18,4,FALSE))))))))))))) ->  | M8: 5 | N8: =TREND(N21:N22,M21:M22,M8) -> 7.826600284 | R8: GI | S8: 0 | T8: 0.4 | U8: 0.41 | V8: 1.1 | W8: 1.11 | X8: 1.8 | Y8: 1.81 | Z8: 2.46 | AA8: 2.47 | AB8: 3.8 | AC8: 3.81 | AD8: 5.6 | AE8: 5.61 | AF8: 8.4 | AG8: 8.41 | AH8: 11.5 | AI8: 11.51 | AJ8: 14.2 | AK8: 14.21 | AL8: 17 | AM8: 17.01 | AN8: 40
A9: =IFERROR(IF('Subgrade Analysis'!#REF!="","",'Subgrade Analysis'!#REF!),"") ->  | B9: =IF(A9="","",IF('Subgrade Analysis'!#REF!>75,40,IF('Subgrade Analysis'!#REF!<35,0,'Subgrade Analysis'!#REF!-35))) ->  | C9: =IFERROR(IF('Subgrade Analysis'!#REF!>55,40,IF('Subgrade Analysis'!#REF!<15,0,'Subgrade Analysis'!#REF!-15)),"") ->  | D9: =IF(A9="","",IF('Subgrade Analysis'!#REF!>60,20,IF('Subgrade Analysis'!#REF!<40,0,'Subgrade Analysis'!#REF!-40))) ->  | E9: =IF('Subgrade Analysis'!#REF!>30,20,IF('Subgrade Analysis'!#REF!<10,0,'Subgrade Analysis'!#REF!-10)) ->  | G9: =IF(A9="","",IF(SUM('Subgrade Analysis'!#REF!)=0,VLOOKUP('Group Index'!A9,CLASS!$B$2:$D$23,2,FALSE),IF(F9>VLOOKUP(A9,CLASS!$B$2:$D$23,3,FALSE),VLOOKUP(A9,CLASS!$B$2:$D$23,3,FALSE),F9))) ->  | H9: =IF(A9="","",'Subgrade Analysis'!#REF!) ->  | I9: =IF(A9="","",IF(OR(A9="1a",A9="1b",A9="3",A9="3a",A9="2-4",A9="2-5",A9="2-6",A9="2-7"),VLOOKUP(A9,CLASS!$A$2:$E$18,4,FALSE),IF(OR(A9="5",A9="7-5",A9="8a",A9="8b",A9="R",A9="S",A9="C"),"",IF(AND(OR(A9="4b",A9="4a"),'Subgrade Analysis'!#REF!="NP"),11,IF(H9="NP", VLOOKUP(A9,CLASS!$A$2:$E$18,4,FALSE),IF(AND(OR(A9="4a",A9="4b"),H9-5>=10),H9-5,IF(H9="NP", VLOOKUP(A9,CLASS!$A$2:$E$18,4,FALSE),IF(AND(A9="6a",H9-5>=14),H9-5,IF(H9="NP", VLOOKUP(A9,CLASS!$A$2:$E$18,4,FALSE),IF(AND(A9="6b",H9-5>=16),H9-5,IF(H9="NP", VLOOKUP(A9,CLASS!$A$2:$E$18,4,FALSE),IF(AND(A9="7-6",H9-3>=18),H9-3,VLOOKUP(A9,CLASS!$A$2:$E$18,4,FALSE))))))))))))) ->  | R9: CBR | S9: 13 | T9: 13 | U9: 12 | V9: 12 | W9: 11 | X9: 11 | Y9: 10 | Z9: 10 | AA9: 9 | AB9: 9 | AC9: 8 | AD9: 8 | AE9: 7 | AF9: 7 | AG9: 6 | AH9: 6 | AI9: 5 | AJ9: 5 | AK9: 4 | AL9: 4 | AM9: 3 | AN9: 3
A10: =IFERROR(IF('Subgrade Analysis'!#REF!="","",'Subgrade Analysis'!#REF!),"") ->  | B10: =IF(A10="","",IF('Subgrade Analysis'!#REF!>75,40,IF('Subgrade Analysis'!#REF!<35,0,'Subgrade Analysis'!#REF!-35))) ->  | C10: =IFERROR(IF('Subgrade Analysis'!#REF!>55,40,IF('Subgrade Analysis'!#REF!<15,0,'Subgrade Analysis'!#REF!-15)),"") ->  | D10: =IF(A10="","",IF('Subgrade Analysis'!#REF!>60,20,IF('Subgrade Analysis'!#REF!<40,0,'Subgrade Analysis'!#REF!-40))) ->  | E10: =IF('Subgrade Analysis'!#REF!>30,20,IF('Subgrade Analysis'!#REF!<10,0,'Subgrade Analysis'!#REF!-10)) ->  | G10: =IF(A10="","",IF(SUM('Subgrade Analysis'!#REF!)=0,VLOOKUP('Group Index'!A10,CLASS!$B$2:$D$23,2,FALSE),IF(F10>VLOOKUP(A10,CLASS!$B$2:$D$23,3,FALSE),VLOOKUP(A10,CLASS!$B$2:$D$23,3,FALSE),F10))) ->  | H10: =IF(A10="","",'Subgrade Analysis'!#REF!) ->  | I10: =IF(A10="","",IF(OR(A10="1a",A10="1b",A10="3",A10="3a",A10="2-4",A10="2-5",A10="2-6",A10="2-7"),VLOOKUP(A10,CLASS!$A$2:$E$18,4,FALSE),IF(OR(A10="5",A10="7-5",A10="8a",A10="8b",A10="R",A10="S",A10="C"),"",IF(AND(OR(A10="4b",A10="4a"),'Subgrade Analysis'!#REF!="NP"),11,IF(H10="NP", VLOOKUP(A10,CLASS!$A$2:$E$18,4,FALSE),IF(AND(OR(A10="4a",A10="4b"),H10-5>=10),H10-5,IF(H10="NP", VLOOKUP(A10,CLASS!$A$2:$E$18,4,FALSE),IF(AND(A10="6a",H10-5>=14),H10-5,IF(H10="NP", VLOOKUP(A10,CLASS!$A$2:$E$18,4,FALSE),IF(AND(A10="6b",H10-5>=16),H10-5,IF(H10="NP", VLOOKUP(A10,CLASS!$A$2:$E$18,4,FALSE),IF(AND(A10="7-6",H10-3>=18),H10-3,VLOOKUP(A10,CLASS!$A$2:$E$18,4,FALSE))))))))))))) -> 
A11: =IFERROR(IF('Subgrade Analysis'!#REF!="","",'Subgrade Analysis'!#REF!),"") ->  | B11: =IF(A11="","",IF('Subgrade Analysis'!#REF!>75,40,IF('Subgrade Analysis'!#REF!<35,0,'Subgrade Analysis'!#REF!-35))) ->  | C11: =IFERROR(IF('Subgrade Analysis'!#REF!>55,40,IF('Subgrade Analysis'!#REF!<15,0,'Subgrade Analysis'!#REF!-15)),"") ->  | D11: =IF(A11="","",IF('Subgrade Analysis'!#REF!>60,20,IF('Subgrade Analysis'!#REF!<40,0,'Subgrade Analysis'!#REF!-40))) ->  | E11: =IF('Subgrade Analysis'!#REF!>30,20,IF('Subgrade Analysis'!#REF!<10,0,'Subgrade Analysis'!#REF!-10)) ->  | G11: =IF(A11="","",IF(SUM('Subgrade Analysis'!#REF!)=0,VLOOKUP('Group Index'!A11,CLASS!$B$2:$D$23,2,FALSE),IF(F11>VLOOKUP(A11,CLASS!$B$2:$D$23,3,FALSE),VLOOKUP(A11,CLASS!$B$2:$D$23,3,FALSE),F11))) ->  | H11: =IF(A11="","",'Subgrade Analysis'!#REF!) ->  | I11: =IF(A11="","",IF(OR(A11="1a",A11="1b",A11="3",A11="3a",A11="2-4",A11="2-5",A11="2-6",A11="2-7"),VLOOKUP(A11,CLASS!$A$2:$E$18,4,FALSE),IF(OR(A11="5",A11="7-5",A11="8a",A11="8b",A11="R",A11="S",A11="C"),"",IF(AND(OR(A11="4b",A11="4a"),'Subgrade Analysis'!#REF!="NP"),11,IF(H11="NP", VLOOKUP(A11,CLASS!$A$2:$E$18,4,FALSE),IF(AND(OR(A11="4a",A11="4b"),H11-5>=10),H11-5,IF(H11="NP", VLOOKUP(A11,CLASS!$A$2:$E$18,4,FALSE),IF(AND(A11="6a",H11-5>=14),H11-5,IF(H11="NP", VLOOKUP(A11,CLASS!$A$2:$E$18,4,FALSE),IF(AND(A11="6b",H11-5>=16),H11-5,IF(H11="NP", VLOOKUP(A11,CLASS!$A$2:$E$18,4,FALSE),IF(AND(A11="7-6",H11-3>=18),H11-3,VLOOKUP(A11,CLASS!$A$2:$E$18,4,FALSE))))))))))))) -> 
A12: =IFERROR(IF('Subgrade Analysis'!#REF!="","",'Subgrade Analysis'!#REF!),"") ->  | B12: =IF(A12="","",IF('Subgrade Analysis'!#REF!>75,40,IF('Subgrade Analysis'!#REF!<35,0,'Subgrade Analysis'!#REF!-35))) ->  | C12: =IFERROR(IF('Subgrade Analysis'!#REF!>55,40,IF('Subgrade Analysis'!#REF!<15,0,'Subgrade Analysis'!#REF!-15)),"") ->  | D12: =IF(A12="","",IF('Subgrade Analysis'!#REF!>60,20,IF('Subgrade Analysis'!#REF!<40,0,'Subgrade Analysis'!#REF!-40))) ->  | E12: =IF('Subgrade Analysis'!#REF!>30,20,IF('Subgrade Analysis'!#REF!<10,0,'Subgrade Analysis'!#REF!-10)) ->  | G12: =IF(A12="","",IF(SUM('Subgrade Analysis'!#REF!)=0,VLOOKUP('Group Index'!A12,CLASS!$B$2:$D$23,2,FALSE),IF(F12>VLOOKUP(A12,CLASS!$B$2:$D$23,3,FALSE),VLOOKUP(A12,CLASS!$B$2:$D$23,3,FALSE),F12))) ->  | H12: =IF(A12="","",'Subgrade Analysis'!#REF!) ->  | I12: =IF(A12="","",IF(OR(A12="1a",A12="1b",A12="3",A12="3a",A12="2-4",A12="2-5",A12="2-6",A12="2-7"),VLOOKUP(A12,CLASS!$A$2:$E$18,4,FALSE),IF(OR(A12="5",A12="7-5",A12="8a",A12="8b",A12="R",A12="S",A12="C"),"",IF(AND(OR(A12="4b",A12="4a"),'Subgrade Analysis'!#REF!="NP"),11,IF(H12="NP", VLOOKUP(A12,CLASS!$A$2:$E$18,4,FALSE),IF(AND(OR(A12="4a",A12="4b"),H12-5>=10),H12-5,IF(H12="NP", VLOOKUP(A12,CLASS!$A$2:$E$18,4,FALSE),IF(AND(A12="6a",H12-5>=14),H12-5,IF(H12="NP", VLOOKUP(A12,CLASS!$A$2:$E$18,4,FALSE),IF(AND(A12="6b",H12-5>=16),H12-5,IF(H12="NP", VLOOKUP(A12,CLASS!$A$2:$E$18,4,FALSE),IF(AND(A12="7-6",H12-3>=18),H12-3,VLOOKUP(A12,CLASS!$A$2:$E$18,4,FALSE))))))))))))) -> 
A13: =IFERROR(IF('Subgrade Analysis'!#REF!="","",'Subgrade Analysis'!#REF!),"") ->  | B13: =IF(A13="","",IF('Subgrade Analysis'!#REF!>75,40,IF('Subgrade Analysis'!#REF!<35,0,'Subgrade Analysis'!#REF!-35))) ->  | C13: =IFERROR(IF('Subgrade Analysis'!#REF!>55,40,IF('Subgrade Analysis'!#REF!<15,0,'Subgrade Analysis'!#REF!-15)),"") ->  | D13: =IF(A13="","",IF('Subgrade Analysis'!#REF!>60,20,IF('Subgrade Analysis'!#REF!<40,0,'Subgrade Analysis'!#REF!-40))) ->  | E13: =IF('Subgrade Analysis'!#REF!>30,20,IF('Subgrade Analysis'!#REF!<10,0,'Subgrade Analysis'!#REF!-10)) ->  | G13: =IF(A13="","",IF(SUM('Subgrade Analysis'!#REF!)=0,VLOOKUP('Group Index'!A13,CLASS!$B$2:$D$23,2,FALSE),IF(F13>VLOOKUP(A13,CLASS!$B$2:$D$23,3,FALSE),VLOOKUP(A13,CLASS!$B$2:$D$23,3,FALSE),F13))) ->  | H13: =IF(A13="","",'Subgrade Analysis'!#REF!) ->  | I13: =IF(A13="","",IF(OR(A13="1a",A13="1b",A13="3",A13="3a",A13="2-4",A13="2-5",A13="2-6",A13="2-7"),VLOOKUP(A13,CLASS!$A$2:$E$18,4,FALSE),IF(OR(A13="5",A13="7-5",A13="8a",A13="8b",A13="R",A13="S",A13="C"),"",IF(AND(OR(A13="4b",A13="4a"),'Subgrade Analysis'!#REF!="NP"),11,IF(H13="NP", VLOOKUP(A13,CLASS!$A$2:$E$18,4,FALSE),IF(AND(OR(A13="4a",A13="4b"),H13-5>=10),H13-5,IF(H13="NP", VLOOKUP(A13,CLASS!$A$2:$E$18,4,FALSE),IF(AND(A13="6a",H13-5>=14),H13-5,IF(H13="NP", VLOOKUP(A13,CLASS!$A$2:$E$18,4,FALSE),IF(AND(A13="6b",H13-5>=16),H13-5,IF(H13="NP", VLOOKUP(A13,CLASS!$A$2:$E$18,4,FALSE),IF(AND(A13="7-6",H13-3>=18),H13-3,VLOOKUP(A13,CLASS!$A$2:$E$18,4,FALSE))))))))))))) -> 
A14: =IFERROR(IF('Subgrade Analysis'!#REF!="","",'Subgrade Analysis'!#REF!),"") ->  | B14: =IF(A14="","",IF('Subgrade Analysis'!#REF!>75,40,IF('Subgrade Analysis'!#REF!<35,0,'Subgrade Analysis'!#REF!-35))) ->  | C14: =IFERROR(IF('Subgrade Analysis'!#REF!>55,40,IF('Subgrade Analysis'!#REF!<15,0,'Subgrade Analysis'!#REF!-15)),"") ->  | D14: =IF(A14="","",IF('Subgrade Analysis'!#REF!>60,20,IF('Subgrade Analysis'!#REF!<40,0,'Subgrade Analysis'!#REF!-40))) ->  | E14: =IF('Subgrade Analysis'!#REF!>30,20,IF('Subgrade Analysis'!#REF!<10,0,'Subgrade Analysis'!#REF!-10)) ->  | G14: =IF(A14="","",IF(SUM('Subgrade Analysis'!#REF!)=0,VLOOKUP('Group Index'!A14,CLASS!$B$2:$D$23,2,FALSE),IF(F14>VLOOKUP(A14,CLASS!$B$2:$D$23,3,FALSE),VLOOKUP(A14,CLASS!$B$2:$D$23,3,FALSE),F14))) ->  | H14: =IF(A14="","",'Subgrade Analysis'!#REF!) ->  | I14: =IF(A14="","",IF(OR(A14="1a",A14="1b",A14="3",A14="3a",A14="2-4",A14="2-5",A14="2-6",A14="2-7"),VLOOKUP(A14,CLASS!$A$2:$E$18,4,FALSE),IF(OR(A14="5",A14="7-5",A14="8a",A14="8b",A14="R",A14="S",A14="C"),"",IF(AND(OR(A14="4b",A14="4a"),'Subgrade Analysis'!#REF!="NP"),11,IF(H14="NP", VLOOKUP(A14,CLASS!$A$2:$E$18,4,FALSE),IF(AND(OR(A14="4a",A14="4b"),H14-5>=10),H14-5,IF(H14="NP", VLOOKUP(A14,CLASS!$A$2:$E$18,4,FALSE),IF(AND(A14="6a",H14-5>=14),H14-5,IF(H14="NP", VLOOKUP(A14,CLASS!$A$2:$E$18,4,FALSE),IF(AND(A14="6b",H14-5>=16),H14-5,IF(H14="NP", VLOOKUP(A14,CLASS!$A$2:$E$18,4,FALSE),IF(AND(A14="7-6",H14-3>=18),H14-3,VLOOKUP(A14,CLASS!$A$2:$E$18,4,FALSE))))))))))))) ->  | M14: GI | N14: CBR | R14: GI | S14: CBR
A15: =IFERROR(IF('Subgrade Analysis'!#REF!="","",'Subgrade Analysis'!#REF!),"") ->  | B15: =IF(A15="","",IF('Subgrade Analysis'!#REF!>75,40,IF('Subgrade Analysis'!#REF!<35,0,'Subgrade Analysis'!#REF!-35))) ->  | C15: =IFERROR(IF('Subgrade Analysis'!#REF!>55,40,IF('Subgrade Analysis'!#REF!<15,0,'Subgrade Analysis'!#REF!-15)),"") ->  | D15: =IF(A15="","",IF('Subgrade Analysis'!#REF!>60,20,IF('Subgrade Analysis'!#REF!<40,0,'Subgrade Analysis'!#REF!-40))) ->  | E15: =IF('Subgrade Analysis'!#REF!>30,20,IF('Subgrade Analysis'!#REF!<10,0,'Subgrade Analysis'!#REF!-10)) ->  | G15: =IF(A15="","",IF(SUM('Subgrade Analysis'!#REF!)=0,VLOOKUP('Group Index'!A15,CLASS!$B$2:$D$23,2,FALSE),IF(F15>VLOOKUP(A15,CLASS!$B$2:$D$23,3,FALSE),VLOOKUP(A15,CLASS!$B$2:$D$23,3,FALSE),F15))) ->  | H15: =IF(A15="","",'Subgrade Analysis'!#REF!) ->  | I15: =IF(A15="","",IF(OR(A15="1a",A15="1b",A15="3",A15="3a",A15="2-4",A15="2-5",A15="2-6",A15="2-7"),VLOOKUP(A15,CLASS!$A$2:$E$18,4,FALSE),IF(OR(A15="5",A15="7-5",A15="8a",A15="8b",A15="R",A15="S",A15="C"),"",IF(AND(OR(A15="4b",A15="4a"),'Subgrade Analysis'!#REF!="NP"),11,IF(H15="NP", VLOOKUP(A15,CLASS!$A$2:$E$18,4,FALSE),IF(AND(OR(A15="4a",A15="4b"),H15-5>=10),H15-5,IF(H15="NP", VLOOKUP(A15,CLASS!$A$2:$E$18,4,FALSE),IF(AND(A15="6a",H15-5>=14),H15-5,IF(H15="NP", VLOOKUP(A15,CLASS!$A$2:$E$18,4,FALSE),IF(AND(A15="6b",H15-5>=16),H15-5,IF(H15="NP", VLOOKUP(A15,CLASS!$A$2:$E$18,4,FALSE),IF(AND(A15="7-6",H15-3>=18),H15-3,VLOOKUP(A15,CLASS!$A$2:$E$18,4,FALSE))))))))))))) ->  | K15: 0.25 | L15: =ROUND(0.0197*K15^2 - 0.8279*K15 + 11.915,0) -> 12 | M15: 0 | N15: 13 | O15: =0.000002*M15^6 - 0.0001*M15^5 + 0.0032*M15^4 - 0.0459*M15^3 + 0.4035*M15^2 - 2.3579*M15 + 13.573 -> 13.573 | P15: =0.0197*M15^2 - 0.8279*M15 + 11.915 -> 11.915 | Q15: =ROUND(P15,0) -> 12 | R15: 0 | S15: 13 | T15: =0.0197*R15^2 - 0.8279*R15 + 11.915 -> 11.915 | U15: =ROUND(T15,0) -> 12 | V15: =IF(S15-T15=0,"",S15-T15) -> 1.085 | W15: =-2.757*LN(R15) + 11.874 ->  | Y15: =-2.757*LN(M15) + 11.874 -> 
A16: =IFERROR(IF('Subgrade Analysis'!#REF!="","",'Subgrade Analysis'!#REF!),"") ->  | B16: =IF(A16="","",IF('Subgrade Analysis'!#REF!>75,40,IF('Subgrade Analysis'!#REF!<35,0,'Subgrade Analysis'!#REF!-35))) ->  | C16: =IFERROR(IF('Subgrade Analysis'!#REF!>55,40,IF('Subgrade Analysis'!#REF!<15,0,'Subgrade Analysis'!#REF!-15)),"") ->  | D16: =IF(A16="","",IF('Subgrade Analysis'!#REF!>60,20,IF('Subgrade Analysis'!#REF!<40,0,'Subgrade Analysis'!#REF!-40))) ->  | E16: =IF('Subgrade Analysis'!#REF!>30,20,IF('Subgrade Analysis'!#REF!<10,0,'Subgrade Analysis'!#REF!-10)) ->  | G16: =IF(A16="","",IF(SUM('Subgrade Analysis'!#REF!)=0,VLOOKUP('Group Index'!A16,CLASS!$B$2:$D$23,2,FALSE),IF(F16>VLOOKUP(A16,CLASS!$B$2:$D$23,3,FALSE),VLOOKUP(A16,CLASS!$B$2:$D$23,3,FALSE),F16))) ->  | H16: =IF(A16="","",'Subgrade Analysis'!#REF!) ->  | I16: =IF(A16="","",IF(OR(A16="1a",A16="1b",A16="3",A16="3a",A16="2-4",A16="2-5",A16="2-6",A16="2-7"),VLOOKUP(A16,CLASS!$A$2:$E$18,4,FALSE),IF(OR(A16="5",A16="7-5",A16="8a",A16="8b",A16="R",A16="S",A16="C"),"",IF(AND(OR(A16="4b",A16="4a"),'Subgrade Analysis'!#REF!="NP"),11,IF(H16="NP", VLOOKUP(A16,CLASS!$A$2:$E$18,4,FALSE),IF(AND(OR(A16="4a",A16="4b"),H16-5>=10),H16-5,IF(H16="NP", VLOOKUP(A16,CLASS!$A$2:$E$18,4,FALSE),IF(AND(A16="6a",H16-5>=14),H16-5,IF(H16="NP", VLOOKUP(A16,CLASS!$A$2:$E$18,4,FALSE),IF(AND(A16="6b",H16-5>=16),H16-5,IF(H16="NP", VLOOKUP(A16,CLASS!$A$2:$E$18,4,FALSE),IF(AND(A16="7-6",H16-3>=18),H16-3,VLOOKUP(A16,CLASS!$A$2:$E$18,4,FALSE))))))))))))) ->  | K16: 0.5 | L16: =ROUND(0.0197*K16^2 - 0.8279*K16 + 11.915,0) -> 12 | M16: 0.7553 | N16: 12 | O16: =0.000002*M16^6 - 0.0001*M16^5 + 0.0032*M16^4 - 0.0459*M16^3 + 0.4035*M16^2 - 2.3579*M16 + 13.573 -> 12.00350577 | P16: =0.0197*M16^2 - 0.8279*M16 + 11.915 -> 11.30092555 | Q16: =ROUND(P16,0) -> 11 | R16: 0.41 | S16: 12 | T16: =0.0197*R16^2 - 0.8279*R16 + 11.915 -> 11.57887257 | U16: =ROUND(T16,0) -> 12 | V16: =IF(S16-T16=0,"",S16-T16) -> 0.42112743 | W16: =-2.757*LN(R16) + 11.874 -> 14.33213601 | X16: =S16-Y16 -> -1 | Y16: =ROUND(-2.757*LN(M16) + 11.874,0) -> 13 | Z16: =Y16-N16 -> 1 | AA16: 0.25 | AB16: =ROUND(-2.757*LN(AA16) + 11.874,0) -> 16
A17: =IFERROR(IF('Subgrade Analysis'!#REF!="","",'Subgrade Analysis'!#REF!),"") ->  | B17: =IF(A17="","",IF('Subgrade Analysis'!#REF!>75,40,IF('Subgrade Analysis'!#REF!<35,0,'Subgrade Analysis'!#REF!-35))) ->  | C17: =IFERROR(IF('Subgrade Analysis'!#REF!>55,40,IF('Subgrade Analysis'!#REF!<15,0,'Subgrade Analysis'!#REF!-15)),"") ->  | D17: =IF(A17="","",IF('Subgrade Analysis'!#REF!>60,20,IF('Subgrade Analysis'!#REF!<40,0,'Subgrade Analysis'!#REF!-40))) ->  | E17: =IF('Subgrade Analysis'!#REF!>30,20,IF('Subgrade Analysis'!#REF!<10,0,'Subgrade Analysis'!#REF!-10)) ->  | G17: =IF(A17="","",IF(SUM('Subgrade Analysis'!#REF!)=0,VLOOKUP('Group Index'!A17,CLASS!$B$2:$D$23,2,FALSE),IF(F17>VLOOKUP(A17,CLASS!$B$2:$D$23,3,FALSE),VLOOKUP(A17,CLASS!$B$2:$D$23,3,FALSE),F17))) ->  | H17: =IF(A17="","",'Subgrade Analysis'!#REF!) ->  | I17: =IF(A17="","",IF(OR(A17="1a",A17="1b",A17="3",A17="3a",A17="2-4",A17="2-5",A17="2-6",A17="2-7"),VLOOKUP(A17,CLASS!$A$2:$E$18,4,FALSE),IF(OR(A17="5",A17="7-5",A17="8a",A17="8b",A17="R",A17="S",A17="C"),"",IF(AND(OR(A17="4b",A17="4a"),'Subgrade Analysis'!#REF!="NP"),11,IF(H17="NP", VLOOKUP(A17,CLASS!$A$2:$E$18,4,FALSE),IF(AND(OR(A17="4a",A17="4b"),H17-5>=10),H17-5,IF(H17="NP", VLOOKUP(A17,CLASS!$A$2:$E$18,4,FALSE),IF(AND(A17="6a",H17-5>=14),H17-5,IF(H17="NP", VLOOKUP(A17,CLASS!$A$2:$E$18,4,FALSE),IF(AND(A17="6b",H17-5>=16),H17-5,IF(H17="NP", VLOOKUP(A17,CLASS!$A$2:$E$18,4,FALSE),IF(AND(A17="7-6",H17-3>=18),H17-3,VLOOKUP(A17,CLASS!$A$2:$E$18,4,FALSE))))))))))))) ->  | K17: 0.75 | L17: 11 | M17: 1.372 | N17: 11 | O17: 10.98982636 | P17: 10.81620416 | Q17: 11 | R17: 1.11 | S17: 11 | T17: 11.02030337 | U17: 11 | V17: -0.02030337 | W17: =-2.757*LN(M17) + 11.874 -> 11.00204491 | X17: =S17-W17 -> -0.00204490771 | Y17: =ROUND(-2.757*LN(M17) + 11.874,0) -> 11 | Z17: =Y17-N17 -> 0 | AA17: 0.5 | AB17: =ROUND(-2.757*LN(AA17) + 11.874,0) -> 14
A18: =IFERROR(IF('Subgrade Analysis'!#REF!="","",'Subgrade Analysis'!#REF!),"") ->  | B18: =IF(A18="","",IF('Subgrade Analysis'!#REF!>75,40,IF('Subgrade Analysis'!#REF!<35,0,'Subgrade Analysis'!#REF!-35))) ->  | C18: =IFERROR(IF('Subgrade Analysis'!#REF!>55,40,IF('Subgrade Analysis'!#REF!<15,0,'Subgrade Analysis'!#REF!-15)),"") ->  | D18: =IF(A18="","",IF('Subgrade Analysis'!#REF!>60,20,IF('Subgrade Analysis'!#REF!<40,0,'Subgrade Analysis'!#REF!-40))) ->  | E18: =IF('Subgrade Analysis'!#REF!>30,20,IF('Subgrade Analysis'!#REF!<10,0,'Subgrade Analysis'!#REF!-10)) ->  | G18: =IF(A18="","",IF(SUM('Subgrade Analysis'!#REF!)=0,VLOOKUP('Group Index'!A18,CLASS!$B$2:$D$23,2,FALSE),IF(F18>VLOOKUP(A18,CLASS!$B$2:$D$23,3,FALSE),VLOOKUP(A18,CLASS!$B$2:$D$23,3,FALSE),F18))) ->  | H18: =IF(A18="","",'Subgrade Analysis'!#REF!) ->  | I18: =IF(A18="","",IF(OR(A18="1a",A18="1b",A18="3",A18="3a",A18="2-4",A18="2-5",A18="2-6",A18="2-7"),VLOOKUP(A18,CLASS!$A$2:$E$18,4,FALSE),IF(OR(A18="5",A18="7-5",A18="8a",A18="8b",A18="R",A18="S",A18="C"),"",IF(AND(OR(A18="4b",A18="4a"),'Subgrade Analysis'!#REF!="NP"),11,IF(H18="NP", VLOOKUP(A18,CLASS!$A$2:$E$18,4,FALSE),IF(AND(OR(A18="4a",A18="4b"),H18-5>=10),H18-5,IF(H18="NP", VLOOKUP(A18,CLASS!$A$2:$E$18,4,FALSE),IF(AND(A18="6a",H18-5>=14),H18-5,IF(H18="NP", VLOOKUP(A18,CLASS!$A$2:$E$18,4,FALSE),IF(AND(A18="6b",H18-5>=16),H18-5,IF(H18="NP", VLOOKUP(A18,CLASS!$A$2:$E$18,4,FALSE),IF(AND(A18="7-6",H18-3>=18),H18-3,VLOOKUP(A18,CLASS!$A$2:$E$18,4,FALSE))))))))))))) ->  | K18: 1 | L18: 11 | M18: 2.1235 | N18: 10 | O18: 10.00690423 | P18: 10.24578662 | Q18: 10 | R18: 2.46 | S18: 10 | T18: 9.99758252 | U18: 10 | V18: 0.00241748 | W18: 9.797797946 | X18: 0.2022020543 | Y18: 10 | Z18: 0 | AA18: 0.75 | AB18: 13
A19: =IFERROR(IF('Subgrade Analysis'!#REF!="","",'Subgrade Analysis'!#REF!),"") ->  | B19: =IF(A19="","",IF('Subgrade Analysis'!#REF!>75,40,IF('Subgrade Analysis'!#REF!<35,0,'Subgrade Analysis'!#REF!-35))) ->  | C19: =IFERROR(IF('Subgrade Analysis'!#REF!>55,40,IF('Subgrade Analysis'!#REF!<15,0,'Subgrade Analysis'!#REF!-15)),"") ->  | D19: =IF(A19="","",IF('Subgrade Analysis'!#REF!>60,20,IF('Subgrade Analysis'!#REF!<40,0,'Subgrade Analysis'!#REF!-40))) ->  | E19: =IF('Subgrade Analysis'!#REF!>30,20,IF('Subgrade Analysis'!#REF!<10,0,'Subgrade Analysis'!#REF!-10)) ->  | G19: =IF(A19="","",IF(SUM('Subgrade Analysis'!#REF!)=0,VLOOKUP('Group Index'!A19,CLASS!$B$2:$D$23,2,FALSE),IF(F19>VLOOKUP(A19,CLASS!$B$2:$D$23,3,FALSE),VLOOKUP(A19,CLASS!$B$2:$D$23,3,FALSE),F19))) ->  | H19: =IF(A19="","",'Subgrade Analysis'!#REF!) ->  | I19: =IF(A19="","",IF(OR(A19="1a",A19="1b",A19="3",A19="3a",A19="2-4",A19="2-5",A19="2-6",A19="2-7"),VLOOKUP(A19,CLASS!$A$2:$E$18,4,FALSE),IF(OR(A19="5",A19="7-5",A19="8a",A19="8b",A19="R",A19="S",A19="C"),"",IF(AND(OR(A19="4b",A19="4a"),'Subgrade Analysis'!#REF!="NP"),11,IF(H19="NP", VLOOKUP(A19,CLASS!$A$2:$E$18,4,FALSE),IF(AND(OR(A19="4a",A19="4b"),H19-5>=10),H19-5,IF(H19="NP", VLOOKUP(A19,CLASS!$A$2:$E$18,4,FALSE),IF(AND(A19="6a",H19-5>=14),H19-5,IF(H19="NP", VLOOKUP(A19,CLASS!$A$2:$E$18,4,FALSE),IF(AND(A19="6b",H19-5>=16),H19-5,IF(H19="NP", VLOOKUP(A19,CLASS!$A$2:$E$18,4,FALSE),IF(AND(A19="7-6",H19-3>=18),H19-3,VLOOKUP(A19,CLASS!$A$2:$E$18,4,FALSE))))))))))))) ->  | K19: 1.25 | L19: 11 | M19: 3.1288 | N19: 9 | O19: 9.018303287 | P19: 9.517517452 | Q19: 10 | R19: 3.8 | S19: 9 | T19: 9.053448 | U19: 9 | V19: -0.053448 | W19: 8.729229206 | X19: 0.2707707941 | Y19: 9 | Z19: 0 | AA19: 1 | AB19: 12
A20: =IFERROR(IF('Subgrade Analysis'!#REF!="","",'Subgrade Analysis'!#REF!),"") ->  | B20: =IF(A20="","",IF('Subgrade Analysis'!#REF!>75,40,IF('Subgrade Analysis'!#REF!<35,0,'Subgrade Analysis'!#REF!-35))) ->  | C20: =IFERROR(IF('Subgrade Analysis'!#REF!>55,40,IF('Subgrade Analysis'!#REF!<15,0,'Subgrade Analysis'!#REF!-15)),"") ->  | D20: =IF(A20="","",IF('Subgrade Analysis'!#REF!>60,20,IF('Subgrade Analysis'!#REF!<40,0,'Subgrade Analysis'!#REF!-40))) ->  | E20: =IF('Subgrade Analysis'!#REF!>30,20,IF('Subgrade Analysis'!#REF!<10,0,'Subgrade Analysis'!#REF!-10)) ->  | G20: =IF(A20="","",IF(SUM('Subgrade Analysis'!#REF!)=0,VLOOKUP('Group Index'!A20,CLASS!$B$2:$D$23,2,FALSE),IF(F20>VLOOKUP(A20,CLASS!$B$2:$D$23,3,FALSE),VLOOKUP(A20,CLASS!$B$2:$D$23,3,FALSE),F20))) ->  | H20: =IF(A20="","",'Subgrade Analysis'!#REF!) ->  | I20: =IF(A20="","",IF(OR(A20="1a",A20="1b",A20="3",A20="3a",A20="2-4",A20="2-5",A20="2-6",A20="2-7"),VLOOKUP(A20,CLASS!$A$2:$E$18,4,FALSE),IF(OR(A20="5",A20="7-5",A20="8a",A20="8b",A20="R",A20="S",A20="C"),"",IF(AND(OR(A20="4b",A20="4a"),'Subgrade Analysis'!#REF!="NP"),11,IF(H20="NP", VLOOKUP(A20,CLASS!$A$2:$E$18,4,FALSE),IF(AND(OR(A20="4a",A20="4b"),H20-5>=10),H20-5,IF(H20="NP", VLOOKUP(A20,CLASS!$A$2:$E$18,4,FALSE),IF(AND(A20="6a",H20-5>=14),H20-5,IF(H20="NP", VLOOKUP(A20,CLASS!$A$2:$E$18,4,FALSE),IF(AND(A20="6b",H20-5>=16),H20-5,IF(H20="NP", VLOOKUP(A20,CLASS!$A$2:$E$18,4,FALSE),IF(AND(A20="7-6",H20-3>=18),H20-3,VLOOKUP(A20,CLASS!$A$2:$E$18,4,FALSE))))))))))))) ->  | K20: 1.5 | L20: 11 | M20: 4.5 | N20: 8 | O20: =0.000002*M21^6 - 0.0001*M21^5 + 0.0032*M21^4 - 0.0459*M21^3 + 0.4035*M21^2 - 2.3579*M21 + 13.573 -> 8.025292518 | P20: =0.0197*M21^2 - 0.8279*M21 + 11.915 -> 8.501354739 | Q20: 9 | R20: 5.6 | S20: 8 | T20: 7.896552 | U20: 8 | V20: 0.103448 | W20: =-2.757*LN(M21) + 11.874 -> 7.646181406 | X20: 0.3538185938 | Y20: =ROUND(-2.757*LN(M21) + 11.874,0) -> 8 | Z20: =Y20-N21 -> 0 | AA20: 1.25 | AB20: 11
A21: =IFERROR(IF('Subgrade Analysis'!#REF!="","",'Subgrade Analysis'!#REF!),"") ->  | B21: =IF(A21="","",IF('Subgrade Analysis'!#REF!>75,40,IF('Subgrade Analysis'!#REF!<35,0,'Subgrade Analysis'!#REF!-35))) ->  | C21: =IFERROR(IF('Subgrade Analysis'!#REF!>55,40,IF('Subgrade Analysis'!#REF!<15,0,'Subgrade Analysis'!#REF!-15)),"") ->  | D21: =IF(A21="","",IF('Subgrade Analysis'!#REF!>60,20,IF('Subgrade Analysis'!#REF!<40,0,'Subgrade Analysis'!#REF!-40))) ->  | E21: =IF('Subgrade Analysis'!#REF!>30,20,IF('Subgrade Analysis'!#REF!<10,0,'Subgrade Analysis'!#REF!-10)) ->  | G21: =IF(A21="","",IF(SUM('Subgrade Analysis'!#REF!)=0,VLOOKUP('Group Index'!A21,CLASS!$B$2:$D$23,2,FALSE),IF(F21>VLOOKUP(A21,CLASS!$B$2:$D$23,3,FALSE),VLOOKUP(A21,CLASS!$B$2:$D$23,3,FALSE),F21))) ->  | H21: =IF(A21="","",'Subgrade Analysis'!#REF!) ->  | I21: =IF(A21="","",IF(OR(A21="1a",A21="1b",A21="3",A21="3a",A21="2-4",A21="2-5",A21="2-6",A21="2-7"),VLOOKUP(A21,CLASS!$A$2:$E$18,4,FALSE),IF(OR(A21="5",A21="7-5",A21="8a",A21="8b",A21="R",A21="S",A21="C"),"",IF(AND(OR(A21="4b",A21="4a"),'Subgrade Analysis'!#REF!="NP"),11,IF(H21="NP", VLOOKUP(A21,CLASS!$A$2:$E$18,4,FALSE),IF(AND(OR(A21="4a",A21="4b"),H21-5>=10),H21-5,IF(H21="NP", VLOOKUP(A21,CLASS!$A$2:$E$18,4,FALSE),IF(AND(A21="6a",H21-5>=14),H21-5,IF(H21="NP", VLOOKUP(A21,CLASS!$A$2:$E$18,4,FALSE),IF(AND(A21="6b",H21-5>=16),H21-5,IF(H21="NP", VLOOKUP(A21,CLASS!$A$2:$E$18,4,FALSE),IF(AND(A21="7-6",H21-3>=18),H21-3,VLOOKUP(A21,CLASS!$A$2:$E$18,4,FALSE))))))))))))) ->  | K21: 1.75 | L21: 11 | M21: 4.6343 | N21: 8 | O21: 7.356958478 | P21: 7.228022199 | Q21: 7 | R21: 8.4 | S21: 7 | T21: 6.350672 | U21: 6 | V21: 0.649328 | W21: 6.612129251 | X21: 0.3878707491 | Y21: 7 | Z21: 0 | AA21: 1.5 | AB21: 11
A22: =IFERROR(IF('Subgrade Analysis'!#REF!="","",'Subgrade Analysis'!#REF!),"") ->  | B22: =IF(A22="","",IF('Subgrade Analysis'!#REF!>75,40,IF('Subgrade Analysis'!#REF!<35,0,'Subgrade Analysis'!#REF!-35))) ->  | C22: =IFERROR(IF('Subgrade Analysis'!#REF!>55,40,IF('Subgrade Analysis'!#REF!<15,0,'Subgrade Analysis'!#REF!-15)),"") ->  | D22: =IF(A22="","",IF('Subgrade Analysis'!#REF!>60,20,IF('Subgrade Analysis'!#REF!<40,0,'Subgrade Analysis'!#REF!-40))) ->  | E22: =IF('Subgrade Analysis'!#REF!>30,20,IF('Subgrade Analysis'!#REF!<10,0,'Subgrade Analysis'!#REF!-10)) ->  | G22: =IF(A22="","",IF(SUM('Subgrade Analysis'!#REF!)=0,VLOOKUP('Group Index'!A22,CLASS!$B$2:$D$23,2,FALSE),IF(F22>VLOOKUP(A22,CLASS!$B$2:$D$23,3,FALSE),VLOOKUP(A22,CLASS!$B$2:$D$23,3,FALSE),F22))) ->  | H22: =IF(A22="","",'Subgrade Analysis'!#REF!) ->  | I22: =IF(A22="","",IF(OR(A22="1a",A22="1b",A22="3",A22="3a",A22="2-4",A22="2-5",A22="2-6",A22="2-7"),VLOOKUP(A22,CLASS!$A$2:$E$18,4,FALSE),IF(OR(A22="5",A22="7-5",A22="8a",A22="8b",A22="R",A22="S",A22="C"),"",IF(AND(OR(A22="4b",A22="4a"),'Subgrade Analysis'!#REF!="NP"),11,IF(H22="NP", VLOOKUP(A22,CLASS!$A$2:$E$18,4,FALSE),IF(AND(OR(A22="4a",A22="4b"),H22-5>=10),H22-5,IF(H22="NP", VLOOKUP(A22,CLASS!$A$2:$E$18,4,FALSE),IF(AND(A22="6a",H22-5>=14),H22-5,IF(H22="NP", VLOOKUP(A22,CLASS!$A$2:$E$18,4,FALSE),IF(AND(A22="6b",H22-5>=16),H22-5,IF(H22="NP", VLOOKUP(A22,CLASS!$A$2:$E$18,4,FALSE),IF(AND(A22="7-6",H22-3>=18),H22-3,VLOOKUP(A22,CLASS!$A$2:$E$18,4,FALSE))))))))))))) ->  | K22: 2 | L22: 10 | M22: 6.7433 | N22: 7 | O22: 8.337910448 | P22: 5.65664133 | Q22: 6 | R22: 11.5 | S22: 6 | T22: 4.999475 | U22: 5 | V22: 1.000525 | W22: 5.55796893 | X22: 0.4420310697 | Y22: 6 | Z22: 0 | AA22: 1.75 | AB22: 10
A23: =IFERROR(IF('Subgrade Analysis'!#REF!="","",'Subgrade Analysis'!#REF!),"") ->  | B23: =IF(A23="","",IF('Subgrade Analysis'!#REF!>75,40,IF('Subgrade Analysis'!#REF!<35,0,'Subgrade Analysis'!#REF!-35))) ->  | C23: =IFERROR(IF('Subgrade Analysis'!#REF!>55,40,IF('Subgrade Analysis'!#REF!<15,0,'Subgrade Analysis'!#REF!-15)),"") ->  | D23: =IF(A23="","",IF('Subgrade Analysis'!#REF!>60,20,IF('Subgrade Analysis'!#REF!<40,0,'Subgrade Analysis'!#REF!-40))) ->  | E23: =IF('Subgrade Analysis'!#REF!>30,20,IF('Subgrade Analysis'!#REF!<10,0,'Subgrade Analysis'!#REF!-10)) ->  | G23: =IF(A23="","",IF(SUM('Subgrade Analysis'!#REF!)=0,VLOOKUP('Group Index'!A23,CLASS!$B$2:$D$23,2,FALSE),IF(F23>VLOOKUP(A23,CLASS!$B$2:$D$23,3,FALSE),VLOOKUP(A23,CLASS!$B$2:$D$23,3,FALSE),F23))) ->  | H23: =IF(A23="","",'Subgrade Analysis'!#REF!) ->  | I23: =IF(A23="","",IF(OR(A23="1a",A23="1b",A23="3",A23="3a",A23="2-4",A23="2-5",A23="2-6",A23="2-7"),VLOOKUP(A23,CLASS!$A$2:$E$18,4,FALSE),IF(OR(A23="5",A23="7-5",A23="8a",A23="8b",A23="R",A23="S",A23="C"),"",IF(AND(OR(A23="4b",A23="4a"),'Subgrade Analysis'!#REF!="NP"),11,IF(H23="NP", VLOOKUP(A23,CLASS!$A$2:$E$18,4,FALSE),IF(AND(OR(A23="4a",A23="4b"),H23-5>=10),H23-5,IF(H23="NP", VLOOKUP(A23,CLASS!$A$2:$E$18,4,FALSE),IF(AND(A23="6a",H23-5>=14),H23-5,IF(H23="NP", VLOOKUP(A23,CLASS!$A$2:$E$18,4,FALSE),IF(AND(A23="6b",H23-5>=16),H23-5,IF(H23="NP", VLOOKUP(A23,CLASS!$A$2:$E$18,4,FALSE),IF(AND(A23="7-6",H23-3>=18),H23-3,VLOOKUP(A23,CLASS!$A$2:$E$18,4,FALSE))))))))))))) ->  | K23: 2.25 | L23: 10 | M23: 9.8839 | N23: 6 | O23: 13.80738745 | P23: 4.520825307 | Q23: 5 | R23: 11.51 | S23: 5 | T23: 4.99572897 | U23: 5 | V23: 0.00427103 | W23: 4.828708503 | X23: 0.1712914972 | Y23: 5 | Z23: 0 | AA23: 2 | AB23: 10
A24: =IFERROR(IF('Subgrade Analysis'!#REF!="","",'Subgrade Analysis'!#REF!),"") ->  | B24: =IF(A24="","",IF('Subgrade Analysis'!#REF!>75,40,IF('Subgrade Analysis'!#REF!<35,0,'Subgrade Analysis'!#REF!-35))) ->  | C24: =IFERROR(IF('Subgrade Analysis'!#REF!>55,40,IF('Subgrade Analysis'!#REF!<15,0,'Subgrade Analysis'!#REF!-15)),"") ->  | D24: =IF(A24="","",IF('Subgrade Analysis'!#REF!>60,20,IF('Subgrade Analysis'!#REF!<40,0,'Subgrade Analysis'!#REF!-40))) ->  | E24: =IF('Subgrade Analysis'!#REF!>30,20,IF('Subgrade Analysis'!#REF!<10,0,'Subgrade Analysis'!#REF!-10)) ->  | G24: =IF(A24="","",IF(SUM('Subgrade Analysis'!#REF!)=0,VLOOKUP('Group Index'!A24,CLASS!$B$2:$D$23,2,FALSE),IF(F24>VLOOKUP(A24,CLASS!$B$2:$D$23,3,FALSE),VLOOKUP(A24,CLASS!$B$2:$D$23,3,FALSE),F24))) ->  | H24: =IF(A24="","",'Subgrade Analysis'!#REF!) ->  | I24: =IF(A24="","",IF(OR(A24="1a",A24="1b",A24="3",A24="3a",A24="2-4",A24="2-5",A24="2-6",A24="2-7"),VLOOKUP(A24,CLASS!$A$2:$E$18,4,FALSE),IF(OR(A24="5",A24="7-5",A24="8a",A24="8b",A24="R",A24="S",A24="C"),"",IF(AND(OR(A24="4b",A24="4a"),'Subgrade Analysis'!#REF!="NP"),11,IF(H24="NP", VLOOKUP(A24,CLASS!$A$2:$E$18,4,FALSE),IF(AND(OR(A24="4a",A24="4b"),H24-5>=10),H24-5,IF(H24="NP", VLOOKUP(A24,CLASS!$A$2:$E$18,4,FALSE),IF(AND(A24="6a",H24-5>=14),H24-5,IF(H24="NP", VLOOKUP(A24,CLASS!$A$2:$E$18,4,FALSE),IF(AND(A24="6b",H24-5>=16),H24-5,IF(H24="NP", VLOOKUP(A24,CLASS!$A$2:$E$18,4,FALSE),IF(AND(A24="7-6",H24-3>=18),H24-3,VLOOKUP(A24,CLASS!$A$2:$E$18,4,FALSE))))))))))))) ->  | K24: 2.5 | L24: 10 | M24: 12.8767 | N24: 5 | O24: 25.23078119 | P24: 3.84188926 | Q24: 4 | R24: 14.21 | S24: 4 | T24: 4.12844577 | U24: 4 | V24: -0.12844577 | W24: 4.338985401 | X24: -0.3389854012 | Y24: 4 | Z24: 0 | AA24: 2.25 | AB24: 10
A25: =IFERROR(IF('Subgrade Analysis'!#REF!="","",'Subgrade Analysis'!#REF!),"") ->  | B25: =IF(A25="","",IF('Subgrade Analysis'!#REF!>75,40,IF('Subgrade Analysis'!#REF!<35,0,'Subgrade Analysis'!#REF!-35))) ->  | C25: =IFERROR(IF('Subgrade Analysis'!#REF!>55,40,IF('Subgrade Analysis'!#REF!<15,0,'Subgrade Analysis'!#REF!-15)),"") ->  | D25: =IF(A25="","",IF('Subgrade Analysis'!#REF!>60,20,IF('Subgrade Analysis'!#REF!<40,0,'Subgrade Analysis'!#REF!-40))) ->  | E25: =IF('Subgrade Analysis'!#REF!>30,20,IF('Subgrade Analysis'!#REF!<10,0,'Subgrade Analysis'!#REF!-10)) ->  | G25: =IF(A25="","",IF(SUM('Subgrade Analysis'!#REF!)=0,VLOOKUP('Group Index'!A25,CLASS!$B$2:$D$23,2,FALSE),IF(F25>VLOOKUP(A25,CLASS!$B$2:$D$23,3,FALSE),VLOOKUP(A25,CLASS!$B$2:$D$23,3,FALSE),F25))) ->  | H25: =IF(A25="","",'Subgrade Analysis'!#REF!) ->  | I25: =IF(A25="","",IF(OR(A25="1a",A25="1b",A25="3",A25="3a",A25="2-4",A25="2-5",A25="2-6",A25="2-7"),VLOOKUP(A25,CLASS!$A$2:$E$18,4,FALSE),IF(OR(A25="5",A25="7-5",A25="8a",A25="8b",A25="R",A25="S",A25="C"),"",IF(AND(OR(A25="4b",A25="4a"),'Subgrade Analysis'!#REF!="NP"),11,IF(H25="NP", VLOOKUP(A25,CLASS!$A$2:$E$18,4,FALSE),IF(AND(OR(A25="4a",A25="4b"),H25-5>=10),H25-5,IF(H25="NP", VLOOKUP(A25,CLASS!$A$2:$E$18,4,FALSE),IF(AND(A25="6a",H25-5>=14),H25-5,IF(H25="NP", VLOOKUP(A25,CLASS!$A$2:$E$18,4,FALSE),IF(AND(A25="6b",H25-5>=16),H25-5,IF(H25="NP", VLOOKUP(A25,CLASS!$A$2:$E$18,4,FALSE),IF(AND(A25="7-6",H25-3>=18),H25-3,VLOOKUP(A25,CLASS!$A$2:$E$18,4,FALSE))))))))))))) ->  | K25: 2.75 | L25: 10 | M25: 15.3797 | N25: 4 | O25: 54.15239868 | P25: 3.352872303 | Q25: 3 | R25: 17.01 | S25: 3 | T25: 3.53242097 | U25: 4 | V25: -0.53242097 | W25: 3.846972669 | X25: -0.8469726692 | Y25: 4 | Z25: 1 | AA25: 2.5 | AB25: 9
A26: =IFERROR(IF('Subgrade Analysis'!#REF!="","",'Subgrade Analysis'!#REF!),"") ->  | B26: =IF(A26="","",IF('Subgrade Analysis'!#REF!>75,40,IF('Subgrade Analysis'!#REF!<35,0,'Subgrade Analysis'!#REF!-35))) ->  | C26: =IFERROR(IF('Subgrade Analysis'!#REF!>55,40,IF('Subgrade Analysis'!#REF!<15,0,'Subgrade Analysis'!#REF!-15)),"") ->  | D26: =IF(A26="","",IF('Subgrade Analysis'!#REF!>60,20,IF('Subgrade Analysis'!#REF!<40,0,'Subgrade Analysis'!#REF!-40))) ->  | E26: =IF('Subgrade Analysis'!#REF!>30,20,IF('Subgrade Analysis'!#REF!<10,0,'Subgrade Analysis'!#REF!-10)) ->  | G26: =IF(A26="","",IF(SUM('Subgrade Analysis'!#REF!)=0,VLOOKUP('Group Index'!A26,CLASS!$B$2:$D$23,2,FALSE),IF(F26>VLOOKUP(A26,CLASS!$B$2:$D$23,3,FALSE),VLOOKUP(A26,CLASS!$B$2:$D$23,3,FALSE),F26))) ->  | H26: =IF(A26="","",'Subgrade Analysis'!#REF!) ->  | I26: =IF(A26="","",IF(OR(A26="1a",A26="1b",A26="3",A26="3a",A26="2-4",A26="2-5",A26="2-6",A26="2-7"),VLOOKUP(A26,CLASS!$A$2:$E$18,4,FALSE),IF(OR(A26="5",A26="7-5",A26="8a",A26="8b",A26="R",A26="S",A26="C"),"",IF(AND(OR(A26="4b",A26="4a"),'Subgrade Analysis'!#REF!="NP"),11,IF(H26="NP", VLOOKUP(A26,CLASS!$A$2:$E$18,4,FALSE),IF(AND(OR(A26="4a",A26="4b"),H26-5>=10),H26-5,IF(H26="NP", VLOOKUP(A26,CLASS!$A$2:$E$18,4,FALSE),IF(AND(A26="6a",H26-5>=14),H26-5,IF(H26="NP", VLOOKUP(A26,CLASS!$A$2:$E$18,4,FALSE),IF(AND(A26="6b",H26-5>=16),H26-5,IF(H26="NP", VLOOKUP(A26,CLASS!$A$2:$E$18,4,FALSE),IF(AND(A26="7-6",H26-3>=18),H26-3,VLOOKUP(A26,CLASS!$A$2:$E$18,4,FALSE))))))))))))) ->  | K26: 3 | L26: 10 | M26: 18.3845 | N26: 3 | O26: 63.117362 | P26: 3.2966 | Q26: 3 | R26: 20 | S26: 3 | T26: 3.237 | U26: 3 | V26: -0.237 | W26: 3.756181734 | X26: -0.7561817344 | Y26: 4 | Z26: 1 | AA26: 2.75 | AB26: 9
A27: =IFERROR(IF('Subgrade Analysis'!#REF!="","",'Subgrade Analysis'!#REF!),"") ->  | B27: =IF(A27="","",IF('Subgrade Analysis'!#REF!>75,40,IF('Subgrade Analysis'!#REF!<35,0,'Subgrade Analysis'!#REF!-35))) ->  | C27: =IFERROR(IF('Subgrade Analysis'!#REF!>55,40,IF('Subgrade Analysis'!#REF!<15,0,'Subgrade Analysis'!#REF!-15)),"") ->  | D27: =IF(A27="","",IF('Subgrade Analysis'!#REF!>60,20,IF('Subgrade Analysis'!#REF!<40,0,'Subgrade Analysis'!#REF!-40))) ->  | E27: =IF('Subgrade Analysis'!#REF!>30,20,IF('Subgrade Analysis'!#REF!<10,0,'Subgrade Analysis'!#REF!-10)) ->  | G27: =IF(A27="","",IF(SUM('Subgrade Analysis'!#REF!)=0,VLOOKUP('Group Index'!A27,CLASS!$B$2:$D$23,2,FALSE),IF(F27>VLOOKUP(A27,CLASS!$B$2:$D$23,3,FALSE),VLOOKUP(A27,CLASS!$B$2:$D$23,3,FALSE),F27))) ->  | H27: =IF(A27="","",'Subgrade Analysis'!#REF!) ->  | I27: =IF(A27="","",IF(OR(A27="1a",A27="1b",A27="3",A27="3a",A27="2-4",A27="2-5",A27="2-6",A27="2-7"),VLOOKUP(A27,CLASS!$A$2:$E$18,4,FALSE),IF(OR(A27="5",A27="7-5",A27="8a",A27="8b",A27="R",A27="S",A27="C"),"",IF(AND(OR(A27="4b",A27="4a"),'Subgrade Analysis'!#REF!="NP"),11,IF(H27="NP", VLOOKUP(A27,CLASS!$A$2:$E$18,4,FALSE),IF(AND(OR(A27="4a",A27="4b"),H27-5>=10),H27-5,IF(H27="NP", VLOOKUP(A27,CLASS!$A$2:$E$18,4,FALSE),IF(AND(A27="6a",H27-5>=14),H27-5,IF(H27="NP", VLOOKUP(A27,CLASS!$A$2:$E$18,4,FALSE),IF(AND(A27="6b",H27-5>=16),H27-5,IF(H27="NP", VLOOKUP(A27,CLASS!$A$2:$E$18,4,FALSE),IF(AND(A27="7-6",H27-3>=18),H27-3,VLOOKUP(A27,CLASS!$A$2:$E$18,4,FALSE))))))))))))) ->  | K27: 3.25 | L27: 9 | M27: 19 | N27: 3 | P27: 3.237 | Q27: 3 | T27: 11.915 | U27: 12 | V27: -11.915 | W27: 3.614766122 | X27: -3.614766122 | Y27: 4 | Z27: 1 | AA27: 3 | AB27: 9
A28: =IFERROR(IF('Subgrade Analysis'!#REF!="","",'Subgrade Analysis'!#REF!),"") ->  | B28: =IF(A28="","",IF('Subgrade Analysis'!#REF!>75,40,IF('Subgrade Analysis'!#REF!<35,0,'Subgrade Analysis'!#REF!-35))) ->  | C28: =IFERROR(IF('Subgrade Analysis'!#REF!>55,40,IF('Subgrade Analysis'!#REF!<15,0,'Subgrade Analysis'!#REF!-15)),"") ->  | D28: =IF(A28="","",IF('Subgrade Analysis'!#REF!>60,20,IF('Subgrade Analysis'!#REF!<40,0,'Subgrade Analysis'!#REF!-40))) ->  | E28: =IF('Subgrade Analysis'!#REF!>30,20,IF('Subgrade Analysis'!#REF!<10,0,'Subgrade Analysis'!#REF!-10)) ->  | G28: =IF(A28="","",IF(SUM('Subgrade Analysis'!#REF!)=0,VLOOKUP('Group Index'!A28,CLASS!$B$2:$D$23,2,FALSE),IF(F28>VLOOKUP(A28,CLASS!$B$2:$D$23,3,FALSE),VLOOKUP(A28,CLASS!$B$2:$D$23,3,FALSE),F28))) ->  | H28: =IF(A28="","",'Subgrade Analysis'!#REF!) ->  | I28: =IF(A28="","",IF(OR(A28="1a",A28="1b",A28="3",A28="3a",A28="2-4",A28="2-5",A28="2-6",A28="2-7"),VLOOKUP(A28,CLASS!$A$2:$E$18,4,FALSE),IF(OR(A28="5",A28="7-5",A28="8a",A28="8b",A28="R",A28="S",A28="C"),"",IF(AND(OR(A28="4b",A28="4a"),'Subgrade Analysis'!#REF!="NP"),11,IF(H28="NP", VLOOKUP(A28,CLASS!$A$2:$E$18,4,FALSE),IF(AND(OR(A28="4a",A28="4b"),H28-5>=10),H28-5,IF(H28="NP", VLOOKUP(A28,CLASS!$A$2:$E$18,4,FALSE),IF(AND(A28="6a",H28-5>=14),H28-5,IF(H28="NP", VLOOKUP(A28,CLASS!$A$2:$E$18,4,FALSE),IF(AND(A28="6b",H28-5>=16),H28-5,IF(H28="NP", VLOOKUP(A28,CLASS!$A$2:$E$18,4,FALSE),IF(AND(A28="7-6",H28-3>=18),H28-3,VLOOKUP(A28,CLASS!$A$2:$E$18,4,FALSE))))))))))))) ->  | K28: 3.5 | L28: 9 | M28: 20 | N28: 3 | P28: =0.0197*#REF!^2 - 0.8279*#REF! + 11.915 ->  | T28: 11.915 | U28: 12 | V28: -11.915 | W28: =-2.757*LN(#REF!) + 11.874 ->  | Y28: =ROUND(-2.757*LN(#REF!) + 11.874,0) ->  | Z28: =Y28-#REF! ->  | AA28: 3.25 | AB28: 9
A29: =IFERROR(IF('Subgrade Analysis'!#REF!="","",'Subgrade Analysis'!#REF!),"") ->  | B29: =IF(A29="","",IF('Subgrade Analysis'!#REF!>75,40,IF('Subgrade Analysis'!#REF!<35,0,'Subgrade Analysis'!#REF!-35))) ->  | C29: =IFERROR(IF('Subgrade Analysis'!#REF!>55,40,IF('Subgrade Analysis'!#REF!<15,0,'Subgrade Analysis'!#REF!-15)),"") ->  | D29: =IF(A29="","",IF('Subgrade Analysis'!#REF!>60,20,IF('Subgrade Analysis'!#REF!<40,0,'Subgrade Analysis'!#REF!-40))) ->  | E29: =IF('Subgrade Analysis'!#REF!>30,20,IF('Subgrade Analysis'!#REF!<10,0,'Subgrade Analysis'!#REF!-10)) ->  | G29: =IF(A29="","",IF(SUM('Subgrade Analysis'!#REF!)=0,VLOOKUP('Group Index'!A29,CLASS!$B$2:$D$23,2,FALSE),IF(F29>VLOOKUP(A29,CLASS!$B$2:$D$23,3,FALSE),VLOOKUP(A29,CLASS!$B$2:$D$23,3,FALSE),F29))) ->  | H29: =IF(A29="","",'Subgrade Analysis'!#REF!) ->  | I29: =IF(A29="","",IF(OR(A29="1a",A29="1b",A29="3",A29="3a",A29="2-4",A29="2-5",A29="2-6",A29="2-7"),VLOOKUP(A29,CLASS!$A$2:$E$18,4,FALSE),IF(OR(A29="5",A29="7-5",A29="8a",A29="8b",A29="R",A29="S",A29="C"),"",IF(AND(OR(A29="4b",A29="4a"),'Subgrade Analysis'!#REF!="NP"),11,IF(H29="NP", VLOOKUP(A29,CLASS!$A$2:$E$18,4,FALSE),IF(AND(OR(A29="4a",A29="4b"),H29-5>=10),H29-5,IF(H29="NP", VLOOKUP(A29,CLASS!$A$2:$E$18,4,FALSE),IF(AND(A29="6a",H29-5>=14),H29-5,IF(H29="NP", VLOOKUP(A29,CLASS!$A$2:$E$18,4,FALSE),IF(AND(A29="6b",H29-5>=16),H29-5,IF(H29="NP", VLOOKUP(A29,CLASS!$A$2:$E$18,4,FALSE),IF(AND(A29="7-6",H29-3>=18),H29-3,VLOOKUP(A29,CLASS!$A$2:$E$18,4,FALSE))))))))))))) ->  | K29: 3.75 | L29: 9 | P29: 11.915 | Q29: 12 | T29: 11.915 | U29: 12 | V29: -11.915 | AA29: 3.5 | AB29: 8
A30: =IFERROR(IF('Subgrade Analysis'!#REF!="","",'Subgrade Analysis'!#REF!),"") ->  | B30: =IF(A30="","",IF('Subgrade Analysis'!#REF!>75,40,IF('Subgrade Analysis'!#REF!<35,0,'Subgrade Analysis'!#REF!-35))) ->  | C30: =IFERROR(IF('Subgrade Analysis'!#REF!>55,40,IF('Subgrade Analysis'!#REF!<15,0,'Subgrade Analysis'!#REF!-15)),"") ->  | D30: =IF(A30="","",IF('Subgrade Analysis'!#REF!>60,20,IF('Subgrade Analysis'!#REF!<40,0,'Subgrade Analysis'!#REF!-40))) ->  | E30: =IF('Subgrade Analysis'!#REF!>30,20,IF('Subgrade Analysis'!#REF!<10,0,'Subgrade Analysis'!#REF!-10)) ->  | G30: =IF(A30="","",IF(SUM('Subgrade Analysis'!#REF!)=0,VLOOKUP('Group Index'!A30,CLASS!$B$2:$D$23,2,FALSE),IF(F30>VLOOKUP(A30,CLASS!$B$2:$D$23,3,FALSE),VLOOKUP(A30,CLASS!$B$2:$D$23,3,FALSE),F30))) ->  | H30: =IF(A30="","",'Subgrade Analysis'!#REF!) ->  | I30: =IF(A30="","",IF(OR(A30="1a",A30="1b",A30="3",A30="3a",A30="2-4",A30="2-5",A30="2-6",A30="2-7"),VLOOKUP(A30,CLASS!$A$2:$E$18,4,FALSE),IF(OR(A30="5",A30="7-5",A30="8a",A30="8b",A30="R",A30="S",A30="C"),"",IF(AND(OR(A30="4b",A30="4a"),'Subgrade Analysis'!#REF!="NP"),11,IF(H30="NP", VLOOKUP(A30,CLASS!$A$2:$E$18,4,FALSE),IF(AND(OR(A30="4a",A30="4b"),H30-5>=10),H30-5,IF(H30="NP", VLOOKUP(A30,CLASS!$A$2:$E$18,4,FALSE),IF(AND(A30="6a",H30-5>=14),H30-5,IF(H30="NP", VLOOKUP(A30,CLASS!$A$2:$E$18,4,FALSE),IF(AND(A30="6b",H30-5>=16),H30-5,IF(H30="NP", VLOOKUP(A30,CLASS!$A$2:$E$18,4,FALSE),IF(AND(A30="7-6",H30-3>=18),H30-3,VLOOKUP(A30,CLASS!$A$2:$E$18,4,FALSE))))))))))))) ->  | K30: 4 | L30: 9 | P30: 11.915 | Q30: 12 | T30: 11.915 | U30: 12 | V30: -11.915 | AA30: 3.75 | AB30: 8
A31: =IFERROR(IF('Subgrade Analysis'!#REF!="","",'Subgrade Analysis'!#REF!),"") ->  | B31: =IF(A31="","",IF('Subgrade Analysis'!#REF!>75,40,IF('Subgrade Analysis'!#REF!<35,0,'Subgrade Analysis'!#REF!-35))) ->  | C31: =IFERROR(IF('Subgrade Analysis'!#REF!>55,40,IF('Subgrade Analysis'!#REF!<15,0,'Subgrade Analysis'!#REF!-15)),"") ->  | D31: =IF(A31="","",IF('Subgrade Analysis'!#REF!>60,20,IF('Subgrade Analysis'!#REF!<40,0,'Subgrade Analysis'!#REF!-40))) ->  | E31: =IF('Subgrade Analysis'!#REF!>30,20,IF('Subgrade Analysis'!#REF!<10,0,'Subgrade Analysis'!#REF!-10)) ->  | G31: =IF(A31="","",IF(SUM('Subgrade Analysis'!#REF!)=0,VLOOKUP('Group Index'!A31,CLASS!$B$2:$D$23,2,FALSE),IF(F31>VLOOKUP(A31,CLASS!$B$2:$D$23,3,FALSE),VLOOKUP(A31,CLASS!$B$2:$D$23,3,FALSE),F31))) ->  | H31: =IF(A31="","",'Subgrade Analysis'!#REF!) ->  | I31: =IF(A31="","",IF(OR(A31="1a",A31="1b",A31="3",A31="3a",A31="2-4",A31="2-5",A31="2-6",A31="2-7"),VLOOKUP(A31,CLASS!$A$2:$E$18,4,FALSE),IF(OR(A31="5",A31="7-5",A31="8a",A31="8b",A31="R",A31="S",A31="C"),"",IF(AND(OR(A31="4b",A31="4a"),'Subgrade Analysis'!#REF!="NP"),11,IF(H31="NP", VLOOKUP(A31,CLASS!$A$2:$E$18,4,FALSE),IF(AND(OR(A31="4a",A31="4b"),H31-5>=10),H31-5,IF(H31="NP", VLOOKUP(A31,CLASS!$A$2:$E$18,4,FALSE),IF(AND(A31="6a",H31-5>=14),H31-5,IF(H31="NP", VLOOKUP(A31,CLASS!$A$2:$E$18,4,FALSE),IF(AND(A31="6b",H31-5>=16),H31-5,IF(H31="NP", VLOOKUP(A31,CLASS!$A$2:$E$18,4,FALSE),IF(AND(A31="7-6",H31-3>=18),H31-3,VLOOKUP(A31,CLASS!$A$2:$E$18,4,FALSE))))))))))))) ->  | K31: 4.25 | L31: 9 | P31: 11.915 | Q31: 12 | T31: 11.915 | U31: 12 | V31: -11.915 | AA31: 4 | AB31: 8
A32: =IFERROR(IF('Subgrade Analysis'!#REF!="","",'Subgrade Analysis'!#REF!),"") ->  | B32: =IF(A32="","",IF('Subgrade Analysis'!#REF!>75,40,IF('Subgrade Analysis'!#REF!<35,0,'Subgrade Analysis'!#REF!-35))) ->  | C32: =IFERROR(IF('Subgrade Analysis'!#REF!>55,40,IF('Subgrade Analysis'!#REF!<15,0,'Subgrade Analysis'!#REF!-15)),"") ->  | D32: =IF(A32="","",IF('Subgrade Analysis'!#REF!>60,20,IF('Subgrade Analysis'!#REF!<40,0,'Subgrade Analysis'!#REF!-40))) ->  | E32: =IF('Subgrade Analysis'!#REF!>30,20,IF('Subgrade Analysis'!#REF!<10,0,'Subgrade Analysis'!#REF!-10)) ->  | G32: =IF(A32="","",IF(SUM('Subgrade Analysis'!#REF!)=0,VLOOKUP('Group Index'!A32,CLASS!$B$2:$D$23,2,FALSE),IF(F32>VLOOKUP(A32,CLASS!$B$2:$D$23,3,FALSE),VLOOKUP(A32,CLASS!$B$2:$D$23,3,FALSE),F32))) ->  | H32: =IF(A32="","",'Subgrade Analysis'!#REF!) ->  | I32: =IF(A32="","",IF(OR(A32="1a",A32="1b",A32="3",A32="3a",A32="2-4",A32="2-5",A32="2-6",A32="2-7"),VLOOKUP(A32,CLASS!$A$2:$E$18,4,FALSE),IF(OR(A32="5",A32="7-5",A32="8a",A32="8b",A32="R",A32="S",A32="C"),"",IF(AND(OR(A32="4b",A32="4a"),'Subgrade Analysis'!#REF!="NP"),11,IF(H32="NP", VLOOKUP(A32,CLASS!$A$2:$E$18,4,FALSE),IF(AND(OR(A32="4a",A32="4b"),H32-5>=10),H32-5,IF(H32="NP", VLOOKUP(A32,CLASS!$A$2:$E$18,4,FALSE),IF(AND(A32="6a",H32-5>=14),H32-5,IF(H32="NP", VLOOKUP(A32,CLASS!$A$2:$E$18,4,FALSE),IF(AND(A32="6b",H32-5>=16),H32-5,IF(H32="NP", VLOOKUP(A32,CLASS!$A$2:$E$18,4,FALSE),IF(AND(A32="7-6",H32-3>=18),H32-3,VLOOKUP(A32,CLASS!$A$2:$E$18,4,FALSE))))))))))))) ->  | K32: 4.5 | L32: 9 | T32: 11.915 | U32: 12 | V32: -11.915 | AA32: 4.25 | AB32: 8
A33: =IFERROR(IF('Subgrade Analysis'!#REF!="","",'Subgrade Analysis'!#REF!),"") ->  | B33: =IF(A33="","",IF('Subgrade Analysis'!#REF!>75,40,IF('Subgrade Analysis'!#REF!<35,0,'Subgrade Analysis'!#REF!-35))) ->  | C33: =IFERROR(IF('Subgrade Analysis'!#REF!>55,40,IF('Subgrade Analysis'!#REF!<15,0,'Subgrade Analysis'!#REF!-15)),"") ->  | D33: =IF(A33="","",IF('Subgrade Analysis'!#REF!>60,20,IF('Subgrade Analysis'!#REF!<40,0,'Subgrade Analysis'!#REF!-40))) ->  | E33: =IF('Subgrade Analysis'!#REF!>30,20,IF('Subgrade Analysis'!#REF!<10,0,'Subgrade Analysis'!#REF!-10)) ->  | G33: =IF(A33="","",IF(SUM('Subgrade Analysis'!#REF!)=0,VLOOKUP('Group Index'!A33,CLASS!$B$2:$D$23,2,FALSE),IF(F33>VLOOKUP(A33,CLASS!$B$2:$D$23,3,FALSE),VLOOKUP(A33,CLASS!$B$2:$D$23,3,FALSE),F33))) ->  | H33: =IF(A33="","",'Subgrade Analysis'!#REF!) ->  | I33: =IF(A33="","",IF(OR(A33="1a",A33="1b",A33="3",A33="3a",A33="2-4",A33="2-5",A33="2-6",A33="2-7"),VLOOKUP(A33,CLASS!$A$2:$E$18,4,FALSE),IF(OR(A33="5",A33="7-5",A33="8a",A33="8b",A33="R",A33="S",A33="C"),"",IF(AND(OR(A33="4b",A33="4a"),'Subgrade Analysis'!#REF!="NP"),11,IF(H33="NP", VLOOKUP(A33,CLASS!$A$2:$E$18,4,FALSE),IF(AND(OR(A33="4a",A33="4b"),H33-5>=10),H33-5,IF(H33="NP", VLOOKUP(A33,CLASS!$A$2:$E$18,4,FALSE),IF(AND(A33="6a",H33-5>=14),H33-5,IF(H33="NP", VLOOKUP(A33,CLASS!$A$2:$E$18,4,FALSE),IF(AND(A33="6b",H33-5>=16),H33-5,IF(H33="NP", VLOOKUP(A33,CLASS!$A$2:$E$18,4,FALSE),IF(AND(A33="7-6",H33-3>=18),H33-3,VLOOKUP(A33,CLASS!$A$2:$E$18,4,FALSE))))))))))))) ->  | K33: 4.75 | L33: 8 | T33: 11.915 | U33: 12 | V33: -11.915 | AA33: 4.5 | AB33: 8
A34: =IFERROR(IF('Subgrade Analysis'!#REF!="","",'Subgrade Analysis'!#REF!),"") ->  | B34: =IF(A34="","",IF('Subgrade Analysis'!#REF!>75,40,IF('Subgrade Analysis'!#REF!<35,0,'Subgrade Analysis'!#REF!-35))) ->  | C34: =IFERROR(IF('Subgrade Analysis'!#REF!>55,40,IF('Subgrade Analysis'!#REF!<15,0,'Subgrade Analysis'!#REF!-15)),"") ->  | D34: =IF(A34="","",IF('Subgrade Analysis'!#REF!>60,20,IF('Subgrade Analysis'!#REF!<40,0,'Subgrade Analysis'!#REF!-40))) ->  | E34: =IF('Subgrade Analysis'!#REF!>30,20,IF('Subgrade Analysis'!#REF!<10,0,'Subgrade Analysis'!#REF!-10)) ->  | G34: =IF(A34="","",IF(SUM('Subgrade Analysis'!#REF!)=0,VLOOKUP('Group Index'!A34,CLASS!$B$2:$D$23,2,FALSE),IF(F34>VLOOKUP(A34,CLASS!$B$2:$D$23,3,FALSE),VLOOKUP(A34,CLASS!$B$2:$D$23,3,FALSE),F34))) ->  | H34: =IF(A34="","",'Subgrade Analysis'!#REF!) ->  | I34: =IF(A34="","",IF(OR(A34="1a",A34="1b",A34="3",A34="3a",A34="2-4",A34="2-5",A34="2-6",A34="2-7"),VLOOKUP(A34,CLASS!$A$2:$E$18,4,FALSE),IF(OR(A34="5",A34="7-5",A34="8a",A34="8b",A34="R",A34="S",A34="C"),"",IF(AND(OR(A34="4b",A34="4a"),'Subgrade Analysis'!#REF!="NP"),11,IF(H34="NP", VLOOKUP(A34,CLASS!$A$2:$E$18,4,FALSE),IF(AND(OR(A34="4a",A34="4b"),H34-5>=10),H34-5,IF(H34="NP", VLOOKUP(A34,CLASS!$A$2:$E$18,4,FALSE),IF(AND(A34="6a",H34-5>=14),H34-5,IF(H34="NP", VLOOKUP(A34,CLASS!$A$2:$E$18,4,FALSE),IF(AND(A34="6b",H34-5>=16),H34-5,IF(H34="NP", VLOOKUP(A34,CLASS!$A$2:$E$18,4,FALSE),IF(AND(A34="7-6",H34-3>=18),H34-3,VLOOKUP(A34,CLASS!$A$2:$E$18,4,FALSE))))))))))))) ->  | K34: 5 | L34: 8 | T34: 11.915 | U34: 12 | V34: -11.915 | AA34: 4.75 | AB34: 8
A35: =IFERROR(IF('Subgrade Analysis'!#REF!="","",'Subgrade Analysis'!#REF!),"") ->  | B35: =IF(A35="","",IF('Subgrade Analysis'!#REF!>75,40,IF('Subgrade Analysis'!#REF!<35,0,'Subgrade Analysis'!#REF!-35))) ->  | C35: =IFERROR(IF('Subgrade Analysis'!#REF!>55,40,IF('Subgrade Analysis'!#REF!<15,0,'Subgrade Analysis'!#REF!-15)),"") ->  | D35: =IF(A35="","",IF('Subgrade Analysis'!#REF!>60,20,IF('Subgrade Analysis'!#REF!<40,0,'Subgrade Analysis'!#REF!-40))) ->  | E35: =IF('Subgrade Analysis'!#REF!>30,20,IF('Subgrade Analysis'!#REF!<10,0,'Subgrade Analysis'!#REF!-10)) ->  | G35: =IF(A35="","",IF(SUM('Subgrade Analysis'!#REF!)=0,VLOOKUP('Group Index'!A35,CLASS!$B$2:$D$23,2,FALSE),IF(F35>VLOOKUP(A35,CLASS!$B$2:$D$23,3,FALSE),VLOOKUP(A35,CLASS!$B$2:$D$23,3,FALSE),F35))) ->  | H35: =IF(A35="","",'Subgrade Analysis'!#REF!) ->  | I35: =IF(A35="","",IF(OR(A35="1a",A35="1b",A35="3",A35="3a",A35="2-4",A35="2-5",A35="2-6",A35="2-7"),VLOOKUP(A35,CLASS!$A$2:$E$18,4,FALSE),IF(OR(A35="5",A35="7-5",A35="8a",A35="8b",A35="R",A35="S",A35="C"),"",IF(AND(OR(A35="4b",A35="4a"),'Subgrade Analysis'!#REF!="NP"),11,IF(H35="NP", VLOOKUP(A35,CLASS!$A$2:$E$18,4,FALSE),IF(AND(OR(A35="4a",A35="4b"),H35-5>=10),H35-5,IF(H35="NP", VLOOKUP(A35,CLASS!$A$2:$E$18,4,FALSE),IF(AND(A35="6a",H35-5>=14),H35-5,IF(H35="NP", VLOOKUP(A35,CLASS!$A$2:$E$18,4,FALSE),IF(AND(A35="6b",H35-5>=16),H35-5,IF(H35="NP", VLOOKUP(A35,CLASS!$A$2:$E$18,4,FALSE),IF(AND(A35="7-6",H35-3>=18),H35-3,VLOOKUP(A35,CLASS!$A$2:$E$18,4,FALSE))))))))))))) ->  | K35: 5.25 | L35: 8 | T35: 11.915 | U35: 12 | V35: -11.915 | AA35: 5 | AB35: 7
A36: =IFERROR(IF('Subgrade Analysis'!#REF!="","",'Subgrade Analysis'!#REF!),"") ->  | B36: =IF(A36="","",IF('Subgrade Analysis'!#REF!>75,40,IF('Subgrade Analysis'!#REF!<35,0,'Subgrade Analysis'!#REF!-35))) ->  | C36: =IFERROR(IF('Subgrade Analysis'!#REF!>55,40,IF('Subgrade Analysis'!#REF!<15,0,'Subgrade Analysis'!#REF!-15)),"") ->  | D36: =IF(A36="","",IF('Subgrade Analysis'!#REF!>60,20,IF('Subgrade Analysis'!#REF!<40,0,'Subgrade Analysis'!#REF!-40))) ->  | E36: =IF('Subgrade Analysis'!#REF!>30,20,IF('Subgrade Analysis'!#REF!<10,0,'Subgrade Analysis'!#REF!-10)) ->  | G36: =IF(A36="","",IF(SUM('Subgrade Analysis'!#REF!)=0,VLOOKUP('Group Index'!A36,CLASS!$B$2:$D$23,2,FALSE),IF(F36>VLOOKUP(A36,CLASS!$B$2:$D$23,3,FALSE),VLOOKUP(A36,CLASS!$B$2:$D$23,3,FALSE),F36))) ->  | H36: =IF(A36="","",'Subgrade Analysis'!#REF!) ->  | I36: =IF(A36="","",IF(OR(A36="1a",A36="1b",A36="3",A36="3a",A36="2-4",A36="2-5",A36="2-6",A36="2-7"),VLOOKUP(A36,CLASS!$A$2:$E$18,4,FALSE),IF(OR(A36="5",A36="7-5",A36="8a",A36="8b",A36="R",A36="S",A36="C"),"",IF(AND(OR(A36="4b",A36="4a"),'Subgrade Analysis'!#REF!="NP"),11,IF(H36="NP", VLOOKUP(A36,CLASS!$A$2:$E$18,4,FALSE),IF(AND(OR(A36="4a",A36="4b"),H36-5>=10),H36-5,IF(H36="NP", VLOOKUP(A36,CLASS!$A$2:$E$18,4,FALSE),IF(AND(A36="6a",H36-5>=14),H36-5,IF(H36="NP", VLOOKUP(A36,CLASS!$A$2:$E$18,4,FALSE),IF(AND(A36="6b",H36-5>=16),H36-5,IF(H36="NP", VLOOKUP(A36,CLASS!$A$2:$E$18,4,FALSE),IF(AND(A36="7-6",H36-3>=18),H36-3,VLOOKUP(A36,CLASS!$A$2:$E$18,4,FALSE))))))))))))) ->  | K36: 5.5 | L36: 8 | M36: GI | N36: CBR | T36: 11.915 | U36: 12 | V36: -11.915 | AA36: 5.25 | AB36: 7
A37: =IFERROR(IF('Subgrade Analysis'!#REF!="","",'Subgrade Analysis'!#REF!),"") ->  | B37: =IF(A37="","",IF('Subgrade Analysis'!#REF!>75,40,IF('Subgrade Analysis'!#REF!<35,0,'Subgrade Analysis'!#REF!-35))) ->  | C37: =IFERROR(IF('Subgrade Analysis'!#REF!>55,40,IF('Subgrade Analysis'!#REF!<15,0,'Subgrade Analysis'!#REF!-15)),"") ->  | D37: =IF(A37="","",IF('Subgrade Analysis'!#REF!>60,20,IF('Subgrade Analysis'!#REF!<40,0,'Subgrade Analysis'!#REF!-40))) ->  | E37: =IF('Subgrade Analysis'!#REF!>30,20,IF('Subgrade Analysis'!#REF!<10,0,'Subgrade Analysis'!#REF!-10)) ->  | G37: =IF(A37="","",IF(SUM('Subgrade Analysis'!#REF!)=0,VLOOKUP('Group Index'!A37,CLASS!$B$2:$D$23,2,FALSE),IF(F37>VLOOKUP(A37,CLASS!$B$2:$D$23,3,FALSE),VLOOKUP(A37,CLASS!$B$2:$D$23,3,FALSE),F37))) ->  | H37: =IF(A37="","",'Subgrade Analysis'!#REF!) ->  | I37: =IF(A37="","",IF(OR(A37="1a",A37="1b",A37="3",A37="3a",A37="2-4",A37="2-5",A37="2-6",A37="2-7"),VLOOKUP(A37,CLASS!$A$2:$E$18,4,FALSE),IF(OR(A37="5",A37="7-5",A37="8a",A37="8b",A37="R",A37="S",A37="C"),"",IF(AND(OR(A37="4b",A37="4a"),'Subgrade Analysis'!#REF!="NP"),11,IF(H37="NP", VLOOKUP(A37,CLASS!$A$2:$E$18,4,FALSE),IF(AND(OR(A37="4a",A37="4b"),H37-5>=10),H37-5,IF(H37="NP", VLOOKUP(A37,CLASS!$A$2:$E$18,4,FALSE),IF(AND(A37="6a",H37-5>=14),H37-5,IF(H37="NP", VLOOKUP(A37,CLASS!$A$2:$E$18,4,FALSE),IF(AND(A37="6b",H37-5>=16),H37-5,IF(H37="NP", VLOOKUP(A37,CLASS!$A$2:$E$18,4,FALSE),IF(AND(A37="7-6",H37-3>=18),H37-3,VLOOKUP(A37,CLASS!$A$2:$E$18,4,FALSE))))))))))))) ->  | K37: 5.75 | L37: 8 | M37: 0 | N37: 13 | AA37: 5.5 | AB37: 7
A38: =IFERROR(IF('Subgrade Analysis'!#REF!="","",'Subgrade Analysis'!#REF!),"") ->  | B38: =IF(A38="","",IF('Subgrade Analysis'!#REF!>75,40,IF('Subgrade Analysis'!#REF!<35,0,'Subgrade Analysis'!#REF!-35))) ->  | C38: =IFERROR(IF('Subgrade Analysis'!#REF!>55,40,IF('Subgrade Analysis'!#REF!<15,0,'Subgrade Analysis'!#REF!-15)),"") ->  | D38: =IF(A38="","",IF('Subgrade Analysis'!#REF!>60,20,IF('Subgrade Analysis'!#REF!<40,0,'Subgrade Analysis'!#REF!-40))) ->  | E38: =IF('Subgrade Analysis'!#REF!>30,20,IF('Subgrade Analysis'!#REF!<10,0,'Subgrade Analysis'!#REF!-10)) ->  | G38: =IF(A38="","",IF(SUM('Subgrade Analysis'!#REF!)=0,VLOOKUP('Group Index'!A38,CLASS!$B$2:$D$23,2,FALSE),IF(F38>VLOOKUP(A38,CLASS!$B$2:$D$23,3,FALSE),VLOOKUP(A38,CLASS!$B$2:$D$23,3,FALSE),F38))) ->  | H38: =IF(A38="","",'Subgrade Analysis'!#REF!) ->  | I38: =IF(A38="","",IF(OR(A38="1a",A38="1b",A38="3",A38="3a",A38="2-4",A38="2-5",A38="2-6",A38="2-7"),VLOOKUP(A38,CLASS!$A$2:$E$18,4,FALSE),IF(OR(A38="5",A38="7-5",A38="8a",A38="8b",A38="R",A38="S",A38="C"),"",IF(AND(OR(A38="4b",A38="4a"),'Subgrade Analysis'!#REF!="NP"),11,IF(H38="NP", VLOOKUP(A38,CLASS!$A$2:$E$18,4,FALSE),IF(AND(OR(A38="4a",A38="4b"),H38-5>=10),H38-5,IF(H38="NP", VLOOKUP(A38,CLASS!$A$2:$E$18,4,FALSE),IF(AND(A38="6a",H38-5>=14),H38-5,IF(H38="NP", VLOOKUP(A38,CLASS!$A$2:$E$18,4,FALSE),IF(AND(A38="6b",H38-5>=16),H38-5,IF(H38="NP", VLOOKUP(A38,CLASS!$A$2:$E$18,4,FALSE),IF(AND(A38="7-6",H38-3>=18),H38-3,VLOOKUP(A38,CLASS!$A$2:$E$18,4,FALSE))))))))))))) ->  | K38: 6 | L38: 8 | M38: 0.4 | N38: 13 | AA38: 5.75 | AB38: 7
A39: =IFERROR(IF('Subgrade Analysis'!#REF!="","",'Subgrade Analysis'!#REF!),"") ->  | B39: =IF(A39="","",IF('Subgrade Analysis'!#REF!>75,40,IF('Subgrade Analysis'!#REF!<35,0,'Subgrade Analysis'!#REF!-35))) ->  | C39: =IFERROR(IF('Subgrade Analysis'!#REF!>55,40,IF('Subgrade Analysis'!#REF!<15,0,'Subgrade Analysis'!#REF!-15)),"") ->  | D39: =IF(A39="","",IF('Subgrade Analysis'!#REF!>60,20,IF('Subgrade Analysis'!#REF!<40,0,'Subgrade Analysis'!#REF!-40))) ->  | E39: =IF('Subgrade Analysis'!#REF!>30,20,IF('Subgrade Analysis'!#REF!<10,0,'Subgrade Analysis'!#REF!-10)) ->  | G39: =IF(A39="","",IF(SUM('Subgrade Analysis'!#REF!)=0,VLOOKUP('Group Index'!A39,CLASS!$B$2:$D$23,2,FALSE),IF(F39>VLOOKUP(A39,CLASS!$B$2:$D$23,3,FALSE),VLOOKUP(A39,CLASS!$B$2:$D$23,3,FALSE),F39))) ->  | H39: =IF(A39="","",'Subgrade Analysis'!#REF!) ->  | I39: =IF(A39="","",IF(OR(A39="1a",A39="1b",A39="3",A39="3a",A39="2-4",A39="2-5",A39="2-6",A39="2-7"),VLOOKUP(A39,CLASS!$A$2:$E$18,4,FALSE),IF(OR(A39="5",A39="7-5",A39="8a",A39="8b",A39="R",A39="S",A39="C"),"",IF(AND(OR(A39="4b",A39="4a"),'Subgrade Analysis'!#REF!="NP"),11,IF(H39="NP", VLOOKUP(A39,CLASS!$A$2:$E$18,4,FALSE),IF(AND(OR(A39="4a",A39="4b"),H39-5>=10),H39-5,IF(H39="NP", VLOOKUP(A39,CLASS!$A$2:$E$18,4,FALSE),IF(AND(A39="6a",H39-5>=14),H39-5,IF(H39="NP", VLOOKUP(A39,CLASS!$A$2:$E$18,4,FALSE),IF(AND(A39="6b",H39-5>=16),H39-5,IF(H39="NP", VLOOKUP(A39,CLASS!$A$2:$E$18,4,FALSE),IF(AND(A39="7-6",H39-3>=18),H39-3,VLOOKUP(A39,CLASS!$A$2:$E$18,4,FALSE))))))))))))) ->  | K39: 6.25 | L39: 8 | M39: 0.41 | N39: 12 | AA39: 6 | AB39: 7
A40: =IFERROR(IF('Subgrade Analysis'!#REF!="","",'Subgrade Analysis'!#REF!),"") ->  | B40: =IF(A40="","",IF('Subgrade Analysis'!#REF!>75,40,IF('Subgrade Analysis'!#REF!<35,0,'Subgrade Analysis'!#REF!-35))) ->  | C40: =IFERROR(IF('Subgrade Analysis'!#REF!>55,40,IF('Subgrade Analysis'!#REF!<15,0,'Subgrade Analysis'!#REF!-15)),"") ->  | D40: =IF(A40="","",IF('Subgrade Analysis'!#REF!>60,20,IF('Subgrade Analysis'!#REF!<40,0,'Subgrade Analysis'!#REF!-40))) ->  | E40: =IF('Subgrade Analysis'!#REF!>30,20,IF('Subgrade Analysis'!#REF!<10,0,'Subgrade Analysis'!#REF!-10)) ->  | G40: =IF(A40="","",IF(SUM('Subgrade Analysis'!#REF!)=0,VLOOKUP('Group Index'!A40,CLASS!$B$2:$D$23,2,FALSE),IF(F40>VLOOKUP(A40,CLASS!$B$2:$D$23,3,FALSE),VLOOKUP(A40,CLASS!$B$2:$D$23,3,FALSE),F40))) ->  | H40: =IF(A40="","",'Subgrade Analysis'!#REF!) ->  | I40: =IF(A40="","",IF(OR(A40="1a",A40="1b",A40="3",A40="3a",A40="2-4",A40="2-5",A40="2-6",A40="2-7"),VLOOKUP(A40,CLASS!$A$2:$E$18,4,FALSE),IF(OR(A40="5",A40="7-5",A40="8a",A40="8b",A40="R",A40="S",A40="C"),"",IF(AND(OR(A40="4b",A40="4a"),'Subgrade Analysis'!#REF!="NP"),11,IF(H40="NP", VLOOKUP(A40,CLASS!$A$2:$E$18,4,FALSE),IF(AND(OR(A40="4a",A40="4b"),H40-5>=10),H40-5,IF(H40="NP", VLOOKUP(A40,CLASS!$A$2:$E$18,4,FALSE),IF(AND(A40="6a",H40-5>=14),H40-5,IF(H40="NP", VLOOKUP(A40,CLASS!$A$2:$E$18,4,FALSE),IF(AND(A40="6b",H40-5>=16),H40-5,IF(H40="NP", VLOOKUP(A40,CLASS!$A$2:$E$18,4,FALSE),IF(AND(A40="7-6",H40-3>=18),H40-3,VLOOKUP(A40,CLASS!$A$2:$E$18,4,FALSE))))))))))))) ->  | K40: 6.5 | L40: 7 | M40: 1.1 | N40: 12 | AA40: 6.25 | AB40: 7
A41: =IFERROR(IF('Subgrade Analysis'!#REF!="","",'Subgrade Analysis'!#REF!),"") ->  | B41: =IF(A41="","",IF('Subgrade Analysis'!#REF!>75,40,IF('Subgrade Analysis'!#REF!<35,0,'Subgrade Analysis'!#REF!-35))) ->  | C41: =IFERROR(IF('Subgrade Analysis'!#REF!>55,40,IF('Subgrade Analysis'!#REF!<15,0,'Subgrade Analysis'!#REF!-15)),"") ->  | D41: =IF(A41="","",IF('Subgrade Analysis'!#REF!>60,20,IF('Subgrade Analysis'!#REF!<40,0,'Subgrade Analysis'!#REF!-40))) ->  | E41: =IF('Subgrade Analysis'!#REF!>30,20,IF('Subgrade Analysis'!#REF!<10,0,'Subgrade Analysis'!#REF!-10)) ->  | G41: =IF(A41="","",IF(SUM('Subgrade Analysis'!#REF!)=0,VLOOKUP('Group Index'!A41,CLASS!$B$2:$D$23,2,FALSE),IF(F41>VLOOKUP(A41,CLASS!$B$2:$D$23,3,FALSE),VLOOKUP(A41,CLASS!$B$2:$D$23,3,FALSE),F41))) ->  | H41: =IF(A41="","",'Subgrade Analysis'!#REF!) ->  | I41: =IF(A41="","",IF(OR(A41="1a",A41="1b",A41="3",A41="3a",A41="2-4",A41="2-5",A41="2-6",A41="2-7"),VLOOKUP(A41,CLASS!$A$2:$E$18,4,FALSE),IF(OR(A41="5",A41="7-5",A41="8a",A41="8b",A41="R",A41="S",A41="C"),"",IF(AND(OR(A41="4b",A41="4a"),'Subgrade Analysis'!#REF!="NP"),11,IF(H41="NP", VLOOKUP(A41,CLASS!$A$2:$E$18,4,FALSE),IF(AND(OR(A41="4a",A41="4b"),H41-5>=10),H41-5,IF(H41="NP", VLOOKUP(A41,CLASS!$A$2:$E$18,4,FALSE),IF(AND(A41="6a",H41-5>=14),H41-5,IF(H41="NP", VLOOKUP(A41,CLASS!$A$2:$E$18,4,FALSE),IF(AND(A41="6b",H41-5>=16),H41-5,IF(H41="NP", VLOOKUP(A41,CLASS!$A$2:$E$18,4,FALSE),IF(AND(A41="7-6",H41-3>=18),H41-3,VLOOKUP(A41,CLASS!$A$2:$E$18,4,FALSE))))))))))))) ->  | K41: 6.75 | L41: 7 | M41: 1.11 | N41: 11 | AA41: 6.5 | AB41: 7
A42: =IFERROR(IF('Subgrade Analysis'!#REF!="","",'Subgrade Analysis'!#REF!),"") ->  | B42: =IF(A42="","",IF('Subgrade Analysis'!#REF!>75,40,IF('Subgrade Analysis'!#REF!<35,0,'Subgrade Analysis'!#REF!-35))) ->  | C42: =IFERROR(IF('Subgrade Analysis'!#REF!>55,40,IF('Subgrade Analysis'!#REF!<15,0,'Subgrade Analysis'!#REF!-15)),"") ->  | D42: =IF(A42="","",IF('Subgrade Analysis'!#REF!>60,20,IF('Subgrade Analysis'!#REF!<40,0,'Subgrade Analysis'!#REF!-40))) ->  | E42: =IF('Subgrade Analysis'!#REF!>30,20,IF('Subgrade Analysis'!#REF!<10,0,'Subgrade Analysis'!#REF!-10)) ->  | G42: =IF(A42="","",IF(SUM('Subgrade Analysis'!#REF!)=0,VLOOKUP('Group Index'!A42,CLASS!$B$2:$D$23,2,FALSE),IF(F42>VLOOKUP(A42,CLASS!$B$2:$D$23,3,FALSE),VLOOKUP(A42,CLASS!$B$2:$D$23,3,FALSE),F42))) ->  | H42: =IF(A42="","",'Subgrade Analysis'!#REF!) ->  | I42: =IF(A42="","",IF(OR(A42="1a",A42="1b",A42="3",A42="3a",A42="2-4",A42="2-5",A42="2-6",A42="2-7"),VLOOKUP(A42,CLASS!$A$2:$E$18,4,FALSE),IF(OR(A42="5",A42="7-5",A42="8a",A42="8b",A42="R",A42="S",A42="C"),"",IF(AND(OR(A42="4b",A42="4a"),'Subgrade Analysis'!#REF!="NP"),11,IF(H42="NP", VLOOKUP(A42,CLASS!$A$2:$E$18,4,FALSE),IF(AND(OR(A42="4a",A42="4b"),H42-5>=10),H42-5,IF(H42="NP", VLOOKUP(A42,CLASS!$A$2:$E$18,4,FALSE),IF(AND(A42="6a",H42-5>=14),H42-5,IF(H42="NP", VLOOKUP(A42,CLASS!$A$2:$E$18,4,FALSE),IF(AND(A42="6b",H42-5>=16),H42-5,IF(H42="NP", VLOOKUP(A42,CLASS!$A$2:$E$18,4,FALSE),IF(AND(A42="7-6",H42-3>=18),H42-3,VLOOKUP(A42,CLASS!$A$2:$E$18,4,FALSE))))))))))))) ->  | K42: 7 | L42: 7 | M42: 1.8 | N42: 11 | AA42: 6.75 | AB42: 7
A43: =IFERROR(IF('Subgrade Analysis'!#REF!="","",'Subgrade Analysis'!#REF!),"") ->  | B43: =IF(A43="","",IF('Subgrade Analysis'!#REF!>75,40,IF('Subgrade Analysis'!#REF!<35,0,'Subgrade Analysis'!#REF!-35))) ->  | C43: =IFERROR(IF('Subgrade Analysis'!#REF!>55,40,IF('Subgrade Analysis'!#REF!<15,0,'Subgrade Analysis'!#REF!-15)),"") ->  | D43: =IF(A43="","",IF('Subgrade Analysis'!#REF!>60,20,IF('Subgrade Analysis'!#REF!<40,0,'Subgrade Analysis'!#REF!-40))) ->  | E43: =IF('Subgrade Analysis'!#REF!>30,20,IF('Subgrade Analysis'!#REF!<10,0,'Subgrade Analysis'!#REF!-10)) ->  | G43: =IF(A43="","",IF(SUM('Subgrade Analysis'!#REF!)=0,VLOOKUP('Group Index'!A43,CLASS!$B$2:$D$23,2,FALSE),IF(F43>VLOOKUP(A43,CLASS!$B$2:$D$23,3,FALSE),VLOOKUP(A43,CLASS!$B$2:$D$23,3,FALSE),F43))) ->  | H43: =IF(A43="","",'Subgrade Analysis'!#REF!) ->  | I43: =IF(A43="","",IF(OR(A43="1a",A43="1b",A43="3",A43="3a",A43="2-4",A43="2-5",A43="2-6",A43="2-7"),VLOOKUP(A43,CLASS!$A$2:$E$18,4,FALSE),IF(OR(A43="5",A43="7-5",A43="8a",A43="8b",A43="R",A43="S",A43="C"),"",IF(AND(OR(A43="4b",A43="4a"),'Subgrade Analysis'!#REF!="NP"),11,IF(H43="NP", VLOOKUP(A43,CLASS!$A$2:$E$18,4,FALSE),IF(AND(OR(A43="4a",A43="4b"),H43-5>=10),H43-5,IF(H43="NP", VLOOKUP(A43,CLASS!$A$2:$E$18,4,FALSE),IF(AND(A43="6a",H43-5>=14),H43-5,IF(H43="NP", VLOOKUP(A43,CLASS!$A$2:$E$18,4,FALSE),IF(AND(A43="6b",H43-5>=16),H43-5,IF(H43="NP", VLOOKUP(A43,CLASS!$A$2:$E$18,4,FALSE),IF(AND(A43="7-6",H43-3>=18),H43-3,VLOOKUP(A43,CLASS!$A$2:$E$18,4,FALSE))))))))))))) ->  | K43: 7.25 | L43: 7 | M43: 1.81 | N43: 10 | AA43: 7 | AB43: 7
A44: =IFERROR(IF('Subgrade Analysis'!#REF!="","",'Subgrade Analysis'!#REF!),"") ->  | B44: =IF(A44="","",IF('Subgrade Analysis'!#REF!>75,40,IF('Subgrade Analysis'!#REF!<35,0,'Subgrade Analysis'!#REF!-35))) ->  | C44: =IFERROR(IF('Subgrade Analysis'!#REF!>55,40,IF('Subgrade Analysis'!#REF!<15,0,'Subgrade Analysis'!#REF!-15)),"") ->  | D44: =IF(A44="","",IF('Subgrade Analysis'!#REF!>60,20,IF('Subgrade Analysis'!#REF!<40,0,'Subgrade Analysis'!#REF!-40))) ->  | E44: =IF('Subgrade Analysis'!#REF!>30,20,IF('Subgrade Analysis'!#REF!<10,0,'Subgrade Analysis'!#REF!-10)) ->  | G44: =IF(A44="","",IF(SUM('Subgrade Analysis'!#REF!)=0,VLOOKUP('Group Index'!A44,CLASS!$B$2:$D$23,2,FALSE),IF(F44>VLOOKUP(A44,CLASS!$B$2:$D$23,3,FALSE),VLOOKUP(A44,CLASS!$B$2:$D$23,3,FALSE),F44))) ->  | H44: =IF(A44="","",'Subgrade Analysis'!#REF!) ->  | I44: =IF(A44="","",IF(OR(A44="1a",A44="1b",A44="3",A44="3a",A44="2-4",A44="2-5",A44="2-6",A44="2-7"),VLOOKUP(A44,CLASS!$A$2:$E$18,4,FALSE),IF(OR(A44="5",A44="7-5",A44="8a",A44="8b",A44="R",A44="S",A44="C"),"",IF(AND(OR(A44="4b",A44="4a"),'Subgrade Analysis'!#REF!="NP"),11,IF(H44="NP", VLOOKUP(A44,CLASS!$A$2:$E$18,4,FALSE),IF(AND(OR(A44="4a",A44="4b"),H44-5>=10),H44-5,IF(H44="NP", VLOOKUP(A44,CLASS!$A$2:$E$18,4,FALSE),IF(AND(A44="6a",H44-5>=14),H44-5,IF(H44="NP", VLOOKUP(A44,CLASS!$A$2:$E$18,4,FALSE),IF(AND(A44="6b",H44-5>=16),H44-5,IF(H44="NP", VLOOKUP(A44,CLASS!$A$2:$E$18,4,FALSE),IF(AND(A44="7-6",H44-3>=18),H44-3,VLOOKUP(A44,CLASS!$A$2:$E$18,4,FALSE))))))))))))) ->  | K44: 7.5 | L44: 7 | M44: 2.46 | N44: 10 | AA44: 7.25 | AB44: 6
A45: =IFERROR(IF('Subgrade Analysis'!#REF!="","",'Subgrade Analysis'!#REF!),"") ->  | B45: =IF(A45="","",IF('Subgrade Analysis'!#REF!>75,40,IF('Subgrade Analysis'!#REF!<35,0,'Subgrade Analysis'!#REF!-35))) ->  | C45: =IFERROR(IF('Subgrade Analysis'!#REF!>55,40,IF('Subgrade Analysis'!#REF!<15,0,'Subgrade Analysis'!#REF!-15)),"") ->  | D45: =IF(A45="","",IF('Subgrade Analysis'!#REF!>60,20,IF('Subgrade Analysis'!#REF!<40,0,'Subgrade Analysis'!#REF!-40))) ->  | E45: =IF('Subgrade Analysis'!#REF!>30,20,IF('Subgrade Analysis'!#REF!<10,0,'Subgrade Analysis'!#REF!-10)) ->  | G45: =IF(A45="","",IF(SUM('Subgrade Analysis'!#REF!)=0,VLOOKUP('Group Index'!A45,CLASS!$B$2:$D$23,2,FALSE),IF(F45>VLOOKUP(A45,CLASS!$B$2:$D$23,3,FALSE),VLOOKUP(A45,CLASS!$B$2:$D$23,3,FALSE),F45))) ->  | H45: =IF(A45="","",'Subgrade Analysis'!#REF!) ->  | I45: =IF(A45="","",IF(OR(A45="1a",A45="1b",A45="3",A45="3a",A45="2-4",A45="2-5",A45="2-6",A45="2-7"),VLOOKUP(A45,CLASS!$A$2:$E$18,4,FALSE),IF(OR(A45="5",A45="7-5",A45="8a",A45="8b",A45="R",A45="S",A45="C"),"",IF(AND(OR(A45="4b",A45="4a"),'Subgrade Analysis'!#REF!="NP"),11,IF(H45="NP", VLOOKUP(A45,CLASS!$A$2:$E$18,4,FALSE),IF(AND(OR(A45="4a",A45="4b"),H45-5>=10),H45-5,IF(H45="NP", VLOOKUP(A45,CLASS!$A$2:$E$18,4,FALSE),IF(AND(A45="6a",H45-5>=14),H45-5,IF(H45="NP", VLOOKUP(A45,CLASS!$A$2:$E$18,4,FALSE),IF(AND(A45="6b",H45-5>=16),H45-5,IF(H45="NP", VLOOKUP(A45,CLASS!$A$2:$E$18,4,FALSE),IF(AND(A45="7-6",H45-3>=18),H45-3,VLOOKUP(A45,CLASS!$A$2:$E$18,4,FALSE))))))))))))) ->  | K45: 7.75 | L45: 7 | M45: 2.47 | N45: 9 | AA45: 7.5 | AB45: 6
A46: =IFERROR(IF('Subgrade Analysis'!#REF!="","",'Subgrade Analysis'!#REF!),"") ->  | B46: =IF(A46="","",IF('Subgrade Analysis'!#REF!>75,40,IF('Subgrade Analysis'!#REF!<35,0,'Subgrade Analysis'!#REF!-35))) ->  | C46: =IFERROR(IF('Subgrade Analysis'!#REF!>55,40,IF('Subgrade Analysis'!#REF!<15,0,'Subgrade Analysis'!#REF!-15)),"") ->  | D46: =IF(A46="","",IF('Subgrade Analysis'!#REF!>60,20,IF('Subgrade Analysis'!#REF!<40,0,'Subgrade Analysis'!#REF!-40))) ->  | E46: =IF('Subgrade Analysis'!#REF!>30,20,IF('Subgrade Analysis'!#REF!<10,0,'Subgrade Analysis'!#REF!-10)) ->  | G46: =IF(A46="","",IF(SUM('Subgrade Analysis'!#REF!)=0,VLOOKUP('Group Index'!A46,CLASS!$B$2:$D$23,2,FALSE),IF(F46>VLOOKUP(A46,CLASS!$B$2:$D$23,3,FALSE),VLOOKUP(A46,CLASS!$B$2:$D$23,3,FALSE),F46))) ->  | H46: =IF(A46="","",'Subgrade Analysis'!#REF!) ->  | I46: =IF(A46="","",IF(OR(A46="1a",A46="1b",A46="3",A46="3a",A46="2-4",A46="2-5",A46="2-6",A46="2-7"),VLOOKUP(A46,CLASS!$A$2:$E$18,4,FALSE),IF(OR(A46="5",A46="7-5",A46="8a",A46="8b",A46="R",A46="S",A46="C"),"",IF(AND(OR(A46="4b",A46="4a"),'Subgrade Analysis'!#REF!="NP"),11,IF(H46="NP", VLOOKUP(A46,CLASS!$A$2:$E$18,4,FALSE),IF(AND(OR(A46="4a",A46="4b"),H46-5>=10),H46-5,IF(H46="NP", VLOOKUP(A46,CLASS!$A$2:$E$18,4,FALSE),IF(AND(A46="6a",H46-5>=14),H46-5,IF(H46="NP", VLOOKUP(A46,CLASS!$A$2:$E$18,4,FALSE),IF(AND(A46="6b",H46-5>=16),H46-5,IF(H46="NP", VLOOKUP(A46,CLASS!$A$2:$E$18,4,FALSE),IF(AND(A46="7-6",H46-3>=18),H46-3,VLOOKUP(A46,CLASS!$A$2:$E$18,4,FALSE))))))))))))) ->  | K46: 8 | L46: 7 | M46: 3.8 | N46: 9 | AA46: 7.75 | AB46: 6
A47: =IFERROR(IF('Subgrade Analysis'!#REF!="","",'Subgrade Analysis'!#REF!),"") ->  | B47: =IF(A47="","",IF('Subgrade Analysis'!#REF!>75,40,IF('Subgrade Analysis'!#REF!<35,0,'Subgrade Analysis'!#REF!-35))) ->  | C47: =IFERROR(IF('Subgrade Analysis'!#REF!>55,40,IF('Subgrade Analysis'!#REF!<15,0,'Subgrade Analysis'!#REF!-15)),"") ->  | D47: =IF(A47="","",IF('Subgrade Analysis'!#REF!>60,20,IF('Subgrade Analysis'!#REF!<40,0,'Subgrade Analysis'!#REF!-40))) ->  | E47: =IF('Subgrade Analysis'!#REF!>30,20,IF('Subgrade Analysis'!#REF!<10,0,'Subgrade Analysis'!#REF!-10)) ->  | G47: =IF(A47="","",IF(SUM('Subgrade Analysis'!#REF!)=0,VLOOKUP('Group Index'!A47,CLASS!$B$2:$D$23,2,FALSE),IF(F47>VLOOKUP(A47,CLASS!$B$2:$D$23,3,FALSE),VLOOKUP(A47,CLASS!$B$2:$D$23,3,FALSE),F47))) ->  | H47: =IF(A47="","",'Subgrade Analysis'!#REF!) ->  | I47: =IF(A47="","",IF(OR(A47="1a",A47="1b",A47="3",A47="3a",A47="2-4",A47="2-5",A47="2-6",A47="2-7"),VLOOKUP(A47,CLASS!$A$2:$E$18,4,FALSE),IF(OR(A47="5",A47="7-5",A47="8a",A47="8b",A47="R",A47="S",A47="C"),"",IF(AND(OR(A47="4b",A47="4a"),'Subgrade Analysis'!#REF!="NP"),11,IF(H47="NP", VLOOKUP(A47,CLASS!$A$2:$E$18,4,FALSE),IF(AND(OR(A47="4a",A47="4b"),H47-5>=10),H47-5,IF(H47="NP", VLOOKUP(A47,CLASS!$A$2:$E$18,4,FALSE),IF(AND(A47="6a",H47-5>=14),H47-5,IF(H47="NP", VLOOKUP(A47,CLASS!$A$2:$E$18,4,FALSE),IF(AND(A47="6b",H47-5>=16),H47-5,IF(H47="NP", VLOOKUP(A47,CLASS!$A$2:$E$18,4,FALSE),IF(AND(A47="7-6",H47-3>=18),H47-3,VLOOKUP(A47,CLASS!$A$2:$E$18,4,FALSE))))))))))))) ->  | K47: 8.25 | L47: 6 | M47: 3.81 | N47: 8 | AA47: 8 | AB47: 6
A48: =IFERROR(IF('Subgrade Analysis'!#REF!="","",'Subgrade Analysis'!#REF!),"") ->  | B48: =IF(A48="","",IF('Subgrade Analysis'!#REF!>75,40,IF('Subgrade Analysis'!#REF!<35,0,'Subgrade Analysis'!#REF!-35))) ->  | C48: =IFERROR(IF('Subgrade Analysis'!#REF!>55,40,IF('Subgrade Analysis'!#REF!<15,0,'Subgrade Analysis'!#REF!-15)),"") ->  | D48: =IF(A48="","",IF('Subgrade Analysis'!#REF!>60,20,IF('Subgrade Analysis'!#REF!<40,0,'Subgrade Analysis'!#REF!-40))) ->  | E48: =IF('Subgrade Analysis'!#REF!>30,20,IF('Subgrade Analysis'!#REF!<10,0,'Subgrade Analysis'!#REF!-10)) ->  | G48: =IF(A48="","",IF(SUM('Subgrade Analysis'!#REF!)=0,VLOOKUP('Group Index'!A48,CLASS!$B$2:$D$23,2,FALSE),IF(F48>VLOOKUP(A48,CLASS!$B$2:$D$23,3,FALSE),VLOOKUP(A48,CLASS!$B$2:$D$23,3,FALSE),F48))) ->  | H48: =IF(A48="","",'Subgrade Analysis'!#REF!) ->  | I48: =IF(A48="","",IF(OR(A48="1a",A48="1b",A48="3",A48="3a",A48="2-4",A48="2-5",A48="2-6",A48="2-7"),VLOOKUP(A48,CLASS!$A$2:$E$18,4,FALSE),IF(OR(A48="5",A48="7-5",A48="8a",A48="8b",A48="R",A48="S",A48="C"),"",IF(AND(OR(A48="4b",A48="4a"),'Subgrade Analysis'!#REF!="NP"),11,IF(H48="NP", VLOOKUP(A48,CLASS!$A$2:$E$18,4,FALSE),IF(AND(OR(A48="4a",A48="4b"),H48-5>=10),H48-5,IF(H48="NP", VLOOKUP(A48,CLASS!$A$2:$E$18,4,FALSE),IF(AND(A48="6a",H48-5>=14),H48-5,IF(H48="NP", VLOOKUP(A48,CLASS!$A$2:$E$18,4,FALSE),IF(AND(A48="6b",H48-5>=16),H48-5,IF(H48="NP", VLOOKUP(A48,CLASS!$A$2:$E$18,4,FALSE),IF(AND(A48="7-6",H48-3>=18),H48-3,VLOOKUP(A48,CLASS!$A$2:$E$18,4,FALSE))))))))))))) ->  | K48: 8.5 | L48: 6 | M48: 5.6 | N48: 8 | AA48: 8.25 | AB48: 6
A49: =IFERROR(IF('Subgrade Analysis'!#REF!="","",'Subgrade Analysis'!#REF!),"") ->  | B49: =IF(A49="","",IF('Subgrade Analysis'!#REF!>75,40,IF('Subgrade Analysis'!#REF!<35,0,'Subgrade Analysis'!#REF!-35))) ->  | C49: =IFERROR(IF('Subgrade Analysis'!#REF!>55,40,IF('Subgrade Analysis'!#REF!<15,0,'Subgrade Analysis'!#REF!-15)),"") ->  | D49: =IF(A49="","",IF('Subgrade Analysis'!#REF!>60,20,IF('Subgrade Analysis'!#REF!<40,0,'Subgrade Analysis'!#REF!-40))) ->  | E49: =IF('Subgrade Analysis'!#REF!>30,20,IF('Subgrade Analysis'!#REF!<10,0,'Subgrade Analysis'!#REF!-10)) ->  | G49: =IF(A49="","",IF(SUM('Subgrade Analysis'!#REF!)=0,VLOOKUP('Group Index'!A49,CLASS!$B$2:$D$23,2,FALSE),IF(F49>VLOOKUP(A49,CLASS!$B$2:$D$23,3,FALSE),VLOOKUP(A49,CLASS!$B$2:$D$23,3,FALSE),F49))) ->  | H49: =IF(A49="","",'Subgrade Analysis'!#REF!) ->  | I49: =IF(A49="","",IF(OR(A49="1a",A49="1b",A49="3",A49="3a",A49="2-4",A49="2-5",A49="2-6",A49="2-7"),VLOOKUP(A49,CLASS!$A$2:$E$18,4,FALSE),IF(OR(A49="5",A49="7-5",A49="8a",A49="8b",A49="R",A49="S",A49="C"),"",IF(AND(OR(A49="4b",A49="4a"),'Subgrade Analysis'!#REF!="NP"),11,IF(H49="NP", VLOOKUP(A49,CLASS!$A$2:$E$18,4,FALSE),IF(AND(OR(A49="4a",A49="4b"),H49-5>=10),H49-5,IF(H49="NP", VLOOKUP(A49,CLASS!$A$2:$E$18,4,FALSE),IF(AND(A49="6a",H49-5>=14),H49-5,IF(H49="NP", VLOOKUP(A49,CLASS!$A$2:$E$18,4,FALSE),IF(AND(A49="6b",H49-5>=16),H49-5,IF(H49="NP", VLOOKUP(A49,CLASS!$A$2:$E$18,4,FALSE),IF(AND(A49="7-6",H49-3>=18),H49-3,VLOOKUP(A49,CLASS!$A$2:$E$18,4,FALSE))))))))))))) ->  | K49: 8.75 | L49: 6 | M49: 5.61 | N49: 7 | AA49: 8.5 | AB49: 6
A50: =IFERROR(IF('Subgrade Analysis'!#REF!="","",'Subgrade Analysis'!#REF!),"") ->  | B50: =IF(A50="","",IF('Subgrade Analysis'!#REF!>75,40,IF('Subgrade Analysis'!#REF!<35,0,'Subgrade Analysis'!#REF!-35))) ->  | C50: =IFERROR(IF('Subgrade Analysis'!#REF!>55,40,IF('Subgrade Analysis'!#REF!<15,0,'Subgrade Analysis'!#REF!-15)),"") ->  | D50: =IF(A50="","",IF('Subgrade Analysis'!#REF!>60,20,IF('Subgrade Analysis'!#REF!<40,0,'Subgrade Analysis'!#REF!-40))) ->  | E50: =IF('Subgrade Analysis'!#REF!>30,20,IF('Subgrade Analysis'!#REF!<10,0,'Subgrade Analysis'!#REF!-10)) ->  | G50: =IF(A50="","",IF(SUM('Subgrade Analysis'!#REF!)=0,VLOOKUP('Group Index'!A50,CLASS!$B$2:$D$23,2,FALSE),IF(F50>VLOOKUP(A50,CLASS!$B$2:$D$23,3,FALSE),VLOOKUP(A50,CLASS!$B$2:$D$23,3,FALSE),F50))) ->  | H50: =IF(A50="","",'Subgrade Analysis'!#REF!) ->  | I50: =IF(A50="","",IF(OR(A50="1a",A50="1b",A50="3",A50="3a",A50="2-4",A50="2-5",A50="2-6",A50="2-7"),VLOOKUP(A50,CLASS!$A$2:$E$18,4,FALSE),IF(OR(A50="5",A50="7-5",A50="8a",A50="8b",A50="R",A50="S",A50="C"),"",IF(AND(OR(A50="4b",A50="4a"),'Subgrade Analysis'!#REF!="NP"),11,IF(H50="NP", VLOOKUP(A50,CLASS!$A$2:$E$18,4,FALSE),IF(AND(OR(A50="4a",A50="4b"),H50-5>=10),H50-5,IF(H50="NP", VLOOKUP(A50,CLASS!$A$2:$E$18,4,FALSE),IF(AND(A50="6a",H50-5>=14),H50-5,IF(H50="NP", VLOOKUP(A50,CLASS!$A$2:$E$18,4,FALSE),IF(AND(A50="6b",H50-5>=16),H50-5,IF(H50="NP", VLOOKUP(A50,CLASS!$A$2:$E$18,4,FALSE),IF(AND(A50="7-6",H50-3>=18),H50-3,VLOOKUP(A50,CLASS!$A$2:$E$18,4,FALSE))))))))))))) ->  | K50: 9 | L50: 6 | M50: 8.4 | N50: 7 | AA50: 8.75 | AB50: 6
A51: =IFERROR(IF('Subgrade Analysis'!#REF!="","",'Subgrade Analysis'!#REF!),"") ->  | B51: =IF(A51="","",IF('Subgrade Analysis'!#REF!>75,40,IF('Subgrade Analysis'!#REF!<35,0,'Subgrade Analysis'!#REF!-35))) ->  | C51: =IFERROR(IF('Subgrade Analysis'!#REF!>55,40,IF('Subgrade Analysis'!#REF!<15,0,'Subgrade Analysis'!#REF!-15)),"") ->  | D51: =IF(A51="","",IF('Subgrade Analysis'!#REF!>60,20,IF('Subgrade Analysis'!#REF!<40,0,'Subgrade Analysis'!#REF!-40))) ->  | E51: =IF('Subgrade Analysis'!#REF!>30,20,IF('Subgrade Analysis'!#REF!<10,0,'Subgrade Analysis'!#REF!-10)) ->  | G51: =IF(A51="","",IF(SUM('Subgrade Analysis'!#REF!)=0,VLOOKUP('Group Index'!A51,CLASS!$B$2:$D$23,2,FALSE),IF(F51>VLOOKUP(A51,CLASS!$B$2:$D$23,3,FALSE),VLOOKUP(A51,CLASS!$B$2:$D$23,3,FALSE),F51))) ->  | H51: =IF(A51="","",'Subgrade Analysis'!#REF!) ->  | I51: =IF(A51="","",IF(OR(A51="1a",A51="1b",A51="3",A51="3a",A51="2-4",A51="2-5",A51="2-6",A51="2-7"),VLOOKUP(A51,CLASS!$A$2:$E$18,4,FALSE),IF(OR(A51="5",A51="7-5",A51="8a",A51="8b",A51="R",A51="S",A51="C"),"",IF(AND(OR(A51="4b",A51="4a"),'Subgrade Analysis'!#REF!="NP"),11,IF(H51="NP", VLOOKUP(A51,CLASS!$A$2:$E$18,4,FALSE),IF(AND(OR(A51="4a",A51="4b"),H51-5>=10),H51-5,IF(H51="NP", VLOOKUP(A51,CLASS!$A$2:$E$18,4,FALSE),IF(AND(A51="6a",H51-5>=14),H51-5,IF(H51="NP", VLOOKUP(A51,CLASS!$A$2:$E$18,4,FALSE),IF(AND(A51="6b",H51-5>=16),H51-5,IF(H51="NP", VLOOKUP(A51,CLASS!$A$2:$E$18,4,FALSE),IF(AND(A51="7-6",H51-3>=18),H51-3,VLOOKUP(A51,CLASS!$A$2:$E$18,4,FALSE))))))))))))) ->  | K51: 9.25 | L51: 6 | M51: 8.41 | N51: 6 | AA51: 9 | AB51: 6
A52: =IFERROR(IF('Subgrade Analysis'!#REF!="","",'Subgrade Analysis'!#REF!),"") ->  | B52: =IF(A52="","",IF('Subgrade Analysis'!#REF!>75,40,IF('Subgrade Analysis'!#REF!<35,0,'Subgrade Analysis'!#REF!-35))) ->  | C52: =IFERROR(IF('Subgrade Analysis'!#REF!>55,40,IF('Subgrade Analysis'!#REF!<15,0,'Subgrade Analysis'!#REF!-15)),"") ->  | D52: =IF(A52="","",IF('Subgrade Analysis'!#REF!>60,20,IF('Subgrade Analysis'!#REF!<40,0,'Subgrade Analysis'!#REF!-40))) ->  | E52: =IF('Subgrade Analysis'!#REF!>30,20,IF('Subgrade Analysis'!#REF!<10,0,'Subgrade Analysis'!#REF!-10)) ->  | G52: =IF(A52="","",IF(SUM('Subgrade Analysis'!#REF!)=0,VLOOKUP('Group Index'!A52,CLASS!$B$2:$D$23,2,FALSE),IF(F52>VLOOKUP(A52,CLASS!$B$2:$D$23,3,FALSE),VLOOKUP(A52,CLASS!$B$2:$D$23,3,FALSE),F52))) ->  | H52: =IF(A52="","",'Subgrade Analysis'!#REF!) ->  | I52: =IF(A52="","",IF(OR(A52="1a",A52="1b",A52="3",A52="3a",A52="2-4",A52="2-5",A52="2-6",A52="2-7"),VLOOKUP(A52,CLASS!$A$2:$E$18,4,FALSE),IF(OR(A52="5",A52="7-5",A52="8a",A52="8b",A52="R",A52="S",A52="C"),"",IF(AND(OR(A52="4b",A52="4a"),'Subgrade Analysis'!#REF!="NP"),11,IF(H52="NP", VLOOKUP(A52,CLASS!$A$2:$E$18,4,FALSE),IF(AND(OR(A52="4a",A52="4b"),H52-5>=10),H52-5,IF(H52="NP", VLOOKUP(A52,CLASS!$A$2:$E$18,4,FALSE),IF(AND(A52="6a",H52-5>=14),H52-5,IF(H52="NP", VLOOKUP(A52,CLASS!$A$2:$E$18,4,FALSE),IF(AND(A52="6b",H52-5>=16),H52-5,IF(H52="NP", VLOOKUP(A52,CLASS!$A$2:$E$18,4,FALSE),IF(AND(A52="7-6",H52-3>=18),H52-3,VLOOKUP(A52,CLASS!$A$2:$E$18,4,FALSE))))))))))))) ->  | K52: 9.5 | L52: 6 | M52: 11.5 | N52: 6 | AA52: 9.25 | AB52: 6
A53: =IFERROR(IF('Subgrade Analysis'!#REF!="","",'Subgrade Analysis'!#REF!),"") ->  | B53: =IF(A53="","",IF('Subgrade Analysis'!#REF!>75,40,IF('Subgrade Analysis'!#REF!<35,0,'Subgrade Analysis'!#REF!-35))) ->  | C53: =IFERROR(IF('Subgrade Analysis'!#REF!>55,40,IF('Subgrade Analysis'!#REF!<15,0,'Subgrade Analysis'!#REF!-15)),"") ->  | D53: =IF(A53="","",IF('Subgrade Analysis'!#REF!>60,20,IF('Subgrade Analysis'!#REF!<40,0,'Subgrade Analysis'!#REF!-40))) ->  | E53: =IF('Subgrade Analysis'!#REF!>30,20,IF('Subgrade Analysis'!#REF!<10,0,'Subgrade Analysis'!#REF!-10)) ->  | G53: =IF(A53="","",IF(SUM('Subgrade Analysis'!#REF!)=0,VLOOKUP('Group Index'!A53,CLASS!$B$2:$D$23,2,FALSE),IF(F53>VLOOKUP(A53,CLASS!$B$2:$D$23,3,FALSE),VLOOKUP(A53,CLASS!$B$2:$D$23,3,FALSE),F53))) ->  | H53: =IF(A53="","",'Subgrade Analysis'!#REF!) ->  | I53: =IF(A53="","",IF(OR(A53="1a",A53="1b",A53="3",A53="3a",A53="2-4",A53="2-5",A53="2-6",A53="2-7"),VLOOKUP(A53,CLASS!$A$2:$E$18,4,FALSE),IF(OR(A53="5",A53="7-5",A53="8a",A53="8b",A53="R",A53="S",A53="C"),"",IF(AND(OR(A53="4b",A53="4a"),'Subgrade Analysis'!#REF!="NP"),11,IF(H53="NP", VLOOKUP(A53,CLASS!$A$2:$E$18,4,FALSE),IF(AND(OR(A53="4a",A53="4b"),H53-5>=10),H53-5,IF(H53="NP", VLOOKUP(A53,CLASS!$A$2:$E$18,4,FALSE),IF(AND(A53="6a",H53-5>=14),H53-5,IF(H53="NP", VLOOKUP(A53,CLASS!$A$2:$E$18,4,FALSE),IF(AND(A53="6b",H53-5>=16),H53-5,IF(H53="NP", VLOOKUP(A53,CLASS!$A$2:$E$18,4,FALSE),IF(AND(A53="7-6",H53-3>=18),H53-3,VLOOKUP(A53,CLASS!$A$2:$E$18,4,FALSE))))))))))))) ->  | K53: 9.75 | L53: 6 | M53: 11.51 | N53: 5 | AA53: 9.5 | AB53: 6
A54: =IFERROR(IF('Subgrade Analysis'!#REF!="","",'Subgrade Analysis'!#REF!),"") ->  | B54: =IF(A54="","",IF('Subgrade Analysis'!#REF!>75,40,IF('Subgrade Analysis'!#REF!<35,0,'Subgrade Analysis'!#REF!-35))) ->  | C54: =IFERROR(IF('Subgrade Analysis'!#REF!>55,40,IF('Subgrade Analysis'!#REF!<15,0,'Subgrade Analysis'!#REF!-15)),"") ->  | D54: =IF(A54="","",IF('Subgrade Analysis'!#REF!>60,20,IF('Subgrade Analysis'!#REF!<40,0,'Subgrade Analysis'!#REF!-40))) ->  | E54: =IF('Subgrade Analysis'!#REF!>30,20,IF('Subgrade Analysis'!#REF!<10,0,'Subgrade Analysis'!#REF!-10)) ->  | G54: =IF(A54="","",IF(SUM('Subgrade Analysis'!#REF!)=0,VLOOKUP('Group Index'!A54,CLASS!$B$2:$D$23,2,FALSE),IF(F54>VLOOKUP(A54,CLASS!$B$2:$D$23,3,FALSE),VLOOKUP(A54,CLASS!$B$2:$D$23,3,FALSE),F54))) ->  | H54: =IF(A54="","",'Subgrade Analysis'!#REF!) ->  | I54: =IF(A54="","",IF(OR(A54="1a",A54="1b",A54="3",A54="3a",A54="2-4",A54="2-5",A54="2-6",A54="2-7"),VLOOKUP(A54,CLASS!$A$2:$E$18,4,FALSE),IF(OR(A54="5",A54="7-5",A54="8a",A54="8b",A54="R",A54="S",A54="C"),"",IF(AND(OR(A54="4b",A54="4a"),'Subgrade Analysis'!#REF!="NP"),11,IF(H54="NP", VLOOKUP(A54,CLASS!$A$2:$E$18,4,FALSE),IF(AND(OR(A54="4a",A54="4b"),H54-5>=10),H54-5,IF(H54="NP", VLOOKUP(A54,CLASS!$A$2:$E$18,4,FALSE),IF(AND(A54="6a",H54-5>=14),H54-5,IF(H54="NP", VLOOKUP(A54,CLASS!$A$2:$E$18,4,FALSE),IF(AND(A54="6b",H54-5>=16),H54-5,IF(H54="NP", VLOOKUP(A54,CLASS!$A$2:$E$18,4,FALSE),IF(AND(A54="7-6",H54-3>=18),H54-3,VLOOKUP(A54,CLASS!$A$2:$E$18,4,FALSE))))))))))))) ->  | K54: 10 | L54: 6 | M54: 14.2 | N54: 5 | AA54: 9.75 | AB54: 6
A55: =IFERROR(IF('Subgrade Analysis'!#REF!="","",'Subgrade Analysis'!#REF!),"") ->  | B55: =IF(A55="","",IF('Subgrade Analysis'!#REF!>75,40,IF('Subgrade Analysis'!#REF!<35,0,'Subgrade Analysis'!#REF!-35))) ->  | C55: =IFERROR(IF('Subgrade Analysis'!#REF!>55,40,IF('Subgrade Analysis'!#REF!<15,0,'Subgrade Analysis'!#REF!-15)),"") ->  | D55: =IF(A55="","",IF('Subgrade Analysis'!#REF!>60,20,IF('Subgrade Analysis'!#REF!<40,0,'Subgrade Analysis'!#REF!-40))) ->  | E55: =IF('Subgrade Analysis'!#REF!>30,20,IF('Subgrade Analysis'!#REF!<10,0,'Subgrade Analysis'!#REF!-10)) ->  | G55: =IF(A55="","",IF(SUM('Subgrade Analysis'!#REF!)=0,VLOOKUP('Group Index'!A55,CLASS!$B$2:$D$23,2,FALSE),IF(F55>VLOOKUP(A55,CLASS!$B$2:$D$23,3,FALSE),VLOOKUP(A55,CLASS!$B$2:$D$23,3,FALSE),F55))) ->  | H55: =IF(A55="","",'Subgrade Analysis'!#REF!) ->  | I55: =IF(A55="","",IF(OR(A55="1a",A55="1b",A55="3",A55="3a",A55="2-4",A55="2-5",A55="2-6",A55="2-7"),VLOOKUP(A55,CLASS!$A$2:$E$18,4,FALSE),IF(OR(A55="5",A55="7-5",A55="8a",A55="8b",A55="R",A55="S",A55="C"),"",IF(AND(OR(A55="4b",A55="4a"),'Subgrade Analysis'!#REF!="NP"),11,IF(H55="NP", VLOOKUP(A55,CLASS!$A$2:$E$18,4,FALSE),IF(AND(OR(A55="4a",A55="4b"),H55-5>=10),H55-5,IF(H55="NP", VLOOKUP(A55,CLASS!$A$2:$E$18,4,FALSE),IF(AND(A55="6a",H55-5>=14),H55-5,IF(H55="NP", VLOOKUP(A55,CLASS!$A$2:$E$18,4,FALSE),IF(AND(A55="6b",H55-5>=16),H55-5,IF(H55="NP", VLOOKUP(A55,CLASS!$A$2:$E$18,4,FALSE),IF(AND(A55="7-6",H55-3>=18),H55-3,VLOOKUP(A55,CLASS!$A$2:$E$18,4,FALSE))))))))))))) ->  | K55: 10.25 | L55: 5 | M55: 14.21 | N55: 4 | AA55: 10 | AB55: 6
A56: =IFERROR(IF('Subgrade Analysis'!#REF!="","",'Subgrade Analysis'!#REF!),"") ->  | B56: =IF(A56="","",IF('Subgrade Analysis'!#REF!>75,40,IF('Subgrade Analysis'!#REF!<35,0,'Subgrade Analysis'!#REF!-35))) ->  | C56: =IFERROR(IF('Subgrade Analysis'!#REF!>55,40,IF('Subgrade Analysis'!#REF!<15,0,'Subgrade Analysis'!#REF!-15)),"") ->  | D56: =IF(A56="","",IF('Subgrade Analysis'!#REF!>60,20,IF('Subgrade Analysis'!#REF!<40,0,'Subgrade Analysis'!#REF!-40))) ->  | E56: =IF('Subgrade Analysis'!#REF!>30,20,IF('Subgrade Analysis'!#REF!<10,0,'Subgrade Analysis'!#REF!-10)) ->  | G56: =IF(A56="","",IF(SUM('Subgrade Analysis'!#REF!)=0,VLOOKUP('Group Index'!A56,CLASS!$B$2:$D$23,2,FALSE),IF(F56>VLOOKUP(A56,CLASS!$B$2:$D$23,3,FALSE),VLOOKUP(A56,CLASS!$B$2:$D$23,3,FALSE),F56))) ->  | H56: =IF(A56="","",'Subgrade Analysis'!#REF!) ->  | I56: =IF(A56="","",IF(OR(A56="1a",A56="1b",A56="3",A56="3a",A56="2-4",A56="2-5",A56="2-6",A56="2-7"),VLOOKUP(A56,CLASS!$A$2:$E$18,4,FALSE),IF(OR(A56="5",A56="7-5",A56="8a",A56="8b",A56="R",A56="S",A56="C"),"",IF(AND(OR(A56="4b",A56="4a"),'Subgrade Analysis'!#REF!="NP"),11,IF(H56="NP", VLOOKUP(A56,CLASS!$A$2:$E$18,4,FALSE),IF(AND(OR(A56="4a",A56="4b"),H56-5>=10),H56-5,IF(H56="NP", VLOOKUP(A56,CLASS!$A$2:$E$18,4,FALSE),IF(AND(A56="6a",H56-5>=14),H56-5,IF(H56="NP", VLOOKUP(A56,CLASS!$A$2:$E$18,4,FALSE),IF(AND(A56="6b",H56-5>=16),H56-5,IF(H56="NP", VLOOKUP(A56,CLASS!$A$2:$E$18,4,FALSE),IF(AND(A56="7-6",H56-3>=18),H56-3,VLOOKUP(A56,CLASS!$A$2:$E$18,4,FALSE))))))))))))) ->  | K56: 10.5 | L56: 5 | M56: 17 | N56: 4 | AA56: 10.25 | AB56: 5
A57: =IFERROR(IF('Subgrade Analysis'!#REF!="","",'Subgrade Analysis'!#REF!),"") ->  | B57: =IF(A57="","",IF('Subgrade Analysis'!#REF!>75,40,IF('Subgrade Analysis'!#REF!<35,0,'Subgrade Analysis'!#REF!-35))) ->  | C57: =IFERROR(IF('Subgrade Analysis'!#REF!>55,40,IF('Subgrade Analysis'!#REF!<15,0,'Subgrade Analysis'!#REF!-15)),"") ->  | D57: =IF(A57="","",IF('Subgrade Analysis'!#REF!>60,20,IF('Subgrade Analysis'!#REF!<40,0,'Subgrade Analysis'!#REF!-40))) ->  | E57: =IF('Subgrade Analysis'!#REF!>30,20,IF('Subgrade Analysis'!#REF!<10,0,'Subgrade Analysis'!#REF!-10)) ->  | G57: =IF(A57="","",IF(SUM('Subgrade Analysis'!#REF!)=0,VLOOKUP('Group Index'!A57,CLASS!$B$2:$D$23,2,FALSE),IF(F57>VLOOKUP(A57,CLASS!$B$2:$D$23,3,FALSE),VLOOKUP(A57,CLASS!$B$2:$D$23,3,FALSE),F57))) ->  | H57: =IF(A57="","",'Subgrade Analysis'!#REF!) ->  | I57: =IF(A57="","",IF(OR(A57="1a",A57="1b",A57="3",A57="3a",A57="2-4",A57="2-5",A57="2-6",A57="2-7"),VLOOKUP(A57,CLASS!$A$2:$E$18,4,FALSE),IF(OR(A57="5",A57="7-5",A57="8a",A57="8b",A57="R",A57="S",A57="C"),"",IF(AND(OR(A57="4b",A57="4a"),'Subgrade Analysis'!#REF!="NP"),11,IF(H57="NP", VLOOKUP(A57,CLASS!$A$2:$E$18,4,FALSE),IF(AND(OR(A57="4a",A57="4b"),H57-5>=10),H57-5,IF(H57="NP", VLOOKUP(A57,CLASS!$A$2:$E$18,4,FALSE),IF(AND(A57="6a",H57-5>=14),H57-5,IF(H57="NP", VLOOKUP(A57,CLASS!$A$2:$E$18,4,FALSE),IF(AND(A57="6b",H57-5>=16),H57-5,IF(H57="NP", VLOOKUP(A57,CLASS!$A$2:$E$18,4,FALSE),IF(AND(A57="7-6",H57-3>=18),H57-3,VLOOKUP(A57,CLASS!$A$2:$E$18,4,FALSE))))))))))))) ->  | K57: 10.75 | L57: 5 | M57: 17.01 | N57: 3 | AA57: 10.5 | AB57: 5
A58: =IFERROR(IF('Subgrade Analysis'!#REF!="","",'Subgrade Analysis'!#REF!),"") ->  | B58: =IF(A58="","",IF('Subgrade Analysis'!#REF!>75,40,IF('Subgrade Analysis'!#REF!<35,0,'Subgrade Analysis'!#REF!-35))) ->  | C58: =IFERROR(IF('Subgrade Analysis'!#REF!>55,40,IF('Subgrade Analysis'!#REF!<15,0,'Subgrade Analysis'!#REF!-15)),"") ->  | D58: =IF(A58="","",IF('Subgrade Analysis'!#REF!>60,20,IF('Subgrade Analysis'!#REF!<40,0,'Subgrade Analysis'!#REF!-40))) ->  | E58: =IF('Subgrade Analysis'!#REF!>30,20,IF('Subgrade Analysis'!#REF!<10,0,'Subgrade Analysis'!#REF!-10)) ->  | G58: =IF(A58="","",IF(SUM('Subgrade Analysis'!#REF!)=0,VLOOKUP('Group Index'!A58,CLASS!$B$2:$D$23,2,FALSE),IF(F58>VLOOKUP(A58,CLASS!$B$2:$D$23,3,FALSE),VLOOKUP(A58,CLASS!$B$2:$D$23,3,FALSE),F58))) ->  | H58: =IF(A58="","",'Subgrade Analysis'!#REF!) ->  | I58: =IF(A58="","",IF(OR(A58="1a",A58="1b",A58="3",A58="3a",A58="2-4",A58="2-5",A58="2-6",A58="2-7"),VLOOKUP(A58,CLASS!$A$2:$E$18,4,FALSE),IF(OR(A58="5",A58="7-5",A58="8a",A58="8b",A58="R",A58="S",A58="C"),"",IF(AND(OR(A58="4b",A58="4a"),'Subgrade Analysis'!#REF!="NP"),11,IF(H58="NP", VLOOKUP(A58,CLASS!$A$2:$E$18,4,FALSE),IF(AND(OR(A58="4a",A58="4b"),H58-5>=10),H58-5,IF(H58="NP", VLOOKUP(A58,CLASS!$A$2:$E$18,4,FALSE),IF(AND(A58="6a",H58-5>=14),H58-5,IF(H58="NP", VLOOKUP(A58,CLASS!$A$2:$E$18,4,FALSE),IF(AND(A58="6b",H58-5>=16),H58-5,IF(H58="NP", VLOOKUP(A58,CLASS!$A$2:$E$18,4,FALSE),IF(AND(A58="7-6",H58-3>=18),H58-3,VLOOKUP(A58,CLASS!$A$2:$E$18,4,FALSE))))))))))))) ->  | K58: 11 | L58: 5 | M58: 40 | N58: 3 | AA58: 10.75 | AB58: 5
A59: =IFERROR(IF('Subgrade Analysis'!#REF!="","",'Subgrade Analysis'!#REF!),"") ->  | B59: =IF(A59="","",IF('Subgrade Analysis'!#REF!>75,40,IF('Subgrade Analysis'!#REF!<35,0,'Subgrade Analysis'!#REF!-35))) ->  | C59: =IFERROR(IF('Subgrade Analysis'!#REF!>55,40,IF('Subgrade Analysis'!#REF!<15,0,'Subgrade Analysis'!#REF!-15)),"") ->  | D59: =IF(A59="","",IF('Subgrade Analysis'!#REF!>60,20,IF('Subgrade Analysis'!#REF!<40,0,'Subgrade Analysis'!#REF!-40))) ->  | E59: =IF('Subgrade Analysis'!#REF!>30,20,IF('Subgrade Analysis'!#REF!<10,0,'Subgrade Analysis'!#REF!-10)) ->  | G59: =IF(A59="","",IF(SUM('Subgrade Analysis'!#REF!)=0,VLOOKUP('Group Index'!A59,CLASS!$B$2:$D$23,2,FALSE),IF(F59>VLOOKUP(A59,CLASS!$B$2:$D$23,3,FALSE),VLOOKUP(A59,CLASS!$B$2:$D$23,3,FALSE),F59))) ->  | H59: =IF(A59="","",'Subgrade Analysis'!#REF!) ->  | I59: =IF(A59="","",IF(OR(A59="1a",A59="1b",A59="3",A59="3a",A59="2-4",A59="2-5",A59="2-6",A59="2-7"),VLOOKUP(A59,CLASS!$A$2:$E$18,4,FALSE),IF(OR(A59="5",A59="7-5",A59="8a",A59="8b",A59="R",A59="S",A59="C"),"",IF(AND(OR(A59="4b",A59="4a"),'Subgrade Analysis'!#REF!="NP"),11,IF(H59="NP", VLOOKUP(A59,CLASS!$A$2:$E$18,4,FALSE),IF(AND(OR(A59="4a",A59="4b"),H59-5>=10),H59-5,IF(H59="NP", VLOOKUP(A59,CLASS!$A$2:$E$18,4,FALSE),IF(AND(A59="6a",H59-5>=14),H59-5,IF(H59="NP", VLOOKUP(A59,CLASS!$A$2:$E$18,4,FALSE),IF(AND(A59="6b",H59-5>=16),H59-5,IF(H59="NP", VLOOKUP(A59,CLASS!$A$2:$E$18,4,FALSE),IF(AND(A59="7-6",H59-3>=18),H59-3,VLOOKUP(A59,CLASS!$A$2:$E$18,4,FALSE))))))))))))) ->  | K59: 11.25 | L59: 5 | AA59: 11 | AB59: 5
A60: =IFERROR(IF('Subgrade Analysis'!#REF!="","",'Subgrade Analysis'!#REF!),"") ->  | B60: =IF(A60="","",IF('Subgrade Analysis'!#REF!>75,40,IF('Subgrade Analysis'!#REF!<35,0,'Subgrade Analysis'!#REF!-35))) ->  | C60: =IFERROR(IF('Subgrade Analysis'!#REF!>55,40,IF('Subgrade Analysis'!#REF!<15,0,'Subgrade Analysis'!#REF!-15)),"") ->  | D60: =IF(A60="","",IF('Subgrade Analysis'!#REF!>60,20,IF('Subgrade Analysis'!#REF!<40,0,'Subgrade Analysis'!#REF!-40))) ->  | E60: =IF('Subgrade Analysis'!#REF!>30,20,IF('Subgrade Analysis'!#REF!<10,0,'Subgrade Analysis'!#REF!-10)) ->  | G60: =IF(A60="","",IF(SUM('Subgrade Analysis'!#REF!)=0,VLOOKUP('Group Index'!A60,CLASS!$B$2:$D$23,2,FALSE),IF(F60>VLOOKUP(A60,CLASS!$B$2:$D$23,3,FALSE),VLOOKUP(A60,CLASS!$B$2:$D$23,3,FALSE),F60))) ->  | H60: =IF(A60="","",'Subgrade Analysis'!#REF!) ->  | I60: =IF(A60="","",IF(OR(A60="1a",A60="1b",A60="3",A60="3a",A60="2-4",A60="2-5",A60="2-6",A60="2-7"),VLOOKUP(A60,CLASS!$A$2:$E$18,4,FALSE),IF(OR(A60="5",A60="7-5",A60="8a",A60="8b",A60="R",A60="S",A60="C"),"",IF(AND(OR(A60="4b",A60="4a"),'Subgrade Analysis'!#REF!="NP"),11,IF(H60="NP", VLOOKUP(A60,CLASS!$A$2:$E$18,4,FALSE),IF(AND(OR(A60="4a",A60="4b"),H60-5>=10),H60-5,IF(H60="NP", VLOOKUP(A60,CLASS!$A$2:$E$18,4,FALSE),IF(AND(A60="6a",H60-5>=14),H60-5,IF(H60="NP", VLOOKUP(A60,CLASS!$A$2:$E$18,4,FALSE),IF(AND(A60="6b",H60-5>=16),H60-5,IF(H60="NP", VLOOKUP(A60,CLASS!$A$2:$E$18,4,FALSE),IF(AND(A60="7-6",H60-3>=18),H60-3,VLOOKUP(A60,CLASS!$A$2:$E$18,4,FALSE))))))))))))) ->  | K60: 11.5 | L60: 5 | AA60: 11.25 | AB60: 5
A61: =IFERROR(IF('Subgrade Analysis'!#REF!="","",'Subgrade Analysis'!#REF!),"") ->  | B61: =IF(A61="","",IF('Subgrade Analysis'!#REF!>75,40,IF('Subgrade Analysis'!#REF!<35,0,'Subgrade Analysis'!#REF!-35))) ->  | C61: =IFERROR(IF('Subgrade Analysis'!#REF!>55,40,IF('Subgrade Analysis'!#REF!<15,0,'Subgrade Analysis'!#REF!-15)),"") ->  | D61: =IF(A61="","",IF('Subgrade Analysis'!#REF!>60,20,IF('Subgrade Analysis'!#REF!<40,0,'Subgrade Analysis'!#REF!-40))) ->  | E61: =IF('Subgrade Analysis'!#REF!>30,20,IF('Subgrade Analysis'!#REF!<10,0,'Subgrade Analysis'!#REF!-10)) ->  | G61: =IF(A61="","",IF(SUM('Subgrade Analysis'!#REF!)=0,VLOOKUP('Group Index'!A61,CLASS!$B$2:$D$23,2,FALSE),IF(F61>VLOOKUP(A61,CLASS!$B$2:$D$23,3,FALSE),VLOOKUP(A61,CLASS!$B$2:$D$23,3,FALSE),F61))) ->  | H61: =IF(A61="","",'Subgrade Analysis'!#REF!) ->  | I61: =IF(A61="","",IF(OR(A61="1a",A61="1b",A61="3",A61="3a",A61="2-4",A61="2-5",A61="2-6",A61="2-7"),VLOOKUP(A61,CLASS!$A$2:$E$18,4,FALSE),IF(OR(A61="5",A61="7-5",A61="8a",A61="8b",A61="R",A61="S",A61="C"),"",IF(AND(OR(A61="4b",A61="4a"),'Subgrade Analysis'!#REF!="NP"),11,IF(H61="NP", VLOOKUP(A61,CLASS!$A$2:$E$18,4,FALSE),IF(AND(OR(A61="4a",A61="4b"),H61-5>=10),H61-5,IF(H61="NP", VLOOKUP(A61,CLASS!$A$2:$E$18,4,FALSE),IF(AND(A61="6a",H61-5>=14),H61-5,IF(H61="NP", VLOOKUP(A61,CLASS!$A$2:$E$18,4,FALSE),IF(AND(A61="6b",H61-5>=16),H61-5,IF(H61="NP", VLOOKUP(A61,CLASS!$A$2:$E$18,4,FALSE),IF(AND(A61="7-6",H61-3>=18),H61-3,VLOOKUP(A61,CLASS!$A$2:$E$18,4,FALSE))))))))))))) ->  | K61: 11.75 | L61: 5 | AA61: 11.5 | AB61: 5
A62: =IFERROR(IF('Subgrade Analysis'!#REF!="","",'Subgrade Analysis'!#REF!),"") ->  | B62: =IF(A62="","",IF('Subgrade Analysis'!#REF!>75,40,IF('Subgrade Analysis'!#REF!<35,0,'Subgrade Analysis'!#REF!-35))) ->  | C62: =IFERROR(IF('Subgrade Analysis'!#REF!>55,40,IF('Subgrade Analysis'!#REF!<15,0,'Subgrade Analysis'!#REF!-15)),"") ->  | D62: =IF(A62="","",IF('Subgrade Analysis'!#REF!>60,20,IF('Subgrade Analysis'!#REF!<40,0,'Subgrade Analysis'!#REF!-40))) ->  | E62: =IF('Subgrade Analysis'!#REF!>30,20,IF('Subgrade Analysis'!#REF!<10,0,'Subgrade Analysis'!#REF!-10)) ->  | G62: =IF(A62="","",IF(SUM('Subgrade Analysis'!#REF!)=0,VLOOKUP('Group Index'!A62,CLASS!$B$2:$D$23,2,FALSE),IF(F62>VLOOKUP(A62,CLASS!$B$2:$D$23,3,FALSE),VLOOKUP(A62,CLASS!$B$2:$D$23,3,FALSE),F62))) ->  | H62: =IF(A62="","",'Subgrade Analysis'!#REF!) ->  | I62: =IF(A62="","",IF(OR(A62="1a",A62="1b",A62="3",A62="3a",A62="2-4",A62="2-5",A62="2-6",A62="2-7"),VLOOKUP(A62,CLASS!$A$2:$E$18,4,FALSE),IF(OR(A62="5",A62="7-5",A62="8a",A62="8b",A62="R",A62="S",A62="C"),"",IF(AND(OR(A62="4b",A62="4a"),'Subgrade Analysis'!#REF!="NP"),11,IF(H62="NP", VLOOKUP(A62,CLASS!$A$2:$E$18,4,FALSE),IF(AND(OR(A62="4a",A62="4b"),H62-5>=10),H62-5,IF(H62="NP", VLOOKUP(A62,CLASS!$A$2:$E$18,4,FALSE),IF(AND(A62="6a",H62-5>=14),H62-5,IF(H62="NP", VLOOKUP(A62,CLASS!$A$2:$E$18,4,FALSE),IF(AND(A62="6b",H62-5>=16),H62-5,IF(H62="NP", VLOOKUP(A62,CLASS!$A$2:$E$18,4,FALSE),IF(AND(A62="7-6",H62-3>=18),H62-3,VLOOKUP(A62,CLASS!$A$2:$E$18,4,FALSE))))))))))))) ->  | K62: 12 | L62: 5 | AA62: 11.75 | AB62: 5
A63: =IFERROR(IF('Subgrade Analysis'!#REF!="","",'Subgrade Analysis'!#REF!),"") ->  | B63: =IF(A63="","",IF('Subgrade Analysis'!#REF!>75,40,IF('Subgrade Analysis'!#REF!<35,0,'Subgrade Analysis'!#REF!-35))) ->  | C63: =IFERROR(IF('Subgrade Analysis'!#REF!>55,40,IF('Subgrade Analysis'!#REF!<15,0,'Subgrade Analysis'!#REF!-15)),"") ->  | D63: =IF(A63="","",IF('Subgrade Analysis'!#REF!>60,20,IF('Subgrade Analysis'!#REF!<40,0,'Subgrade Analysis'!#REF!-40))) ->  | E63: =IF('Subgrade Analysis'!#REF!>30,20,IF('Subgrade Analysis'!#REF!<10,0,'Subgrade Analysis'!#REF!-10)) ->  | G63: =IF(A63="","",IF(SUM('Subgrade Analysis'!#REF!)=0,VLOOKUP('Group Index'!A63,CLASS!$B$2:$D$23,2,FALSE),IF(F63>VLOOKUP(A63,CLASS!$B$2:$D$23,3,FALSE),VLOOKUP(A63,CLASS!$B$2:$D$23,3,FALSE),F63))) ->  | H63: =IF(A63="","",'Subgrade Analysis'!#REF!) ->  | I63: =IF(A63="","",IF(OR(A63="1a",A63="1b",A63="3",A63="3a",A63="2-4",A63="2-5",A63="2-6",A63="2-7"),VLOOKUP(A63,CLASS!$A$2:$E$18,4,FALSE),IF(OR(A63="5",A63="7-5",A63="8a",A63="8b",A63="R",A63="S",A63="C"),"",IF(AND(OR(A63="4b",A63="4a"),'Subgrade Analysis'!#REF!="NP"),11,IF(H63="NP", VLOOKUP(A63,CLASS!$A$2:$E$18,4,FALSE),IF(AND(OR(A63="4a",A63="4b"),H63-5>=10),H63-5,IF(H63="NP", VLOOKUP(A63,CLASS!$A$2:$E$18,4,FALSE),IF(AND(A63="6a",H63-5>=14),H63-5,IF(H63="NP", VLOOKUP(A63,CLASS!$A$2:$E$18,4,FALSE),IF(AND(A63="6b",H63-5>=16),H63-5,IF(H63="NP", VLOOKUP(A63,CLASS!$A$2:$E$18,4,FALSE),IF(AND(A63="7-6",H63-3>=18),H63-3,VLOOKUP(A63,CLASS!$A$2:$E$18,4,FALSE))))))))))))) ->  | K63: 12.25 | L63: 5 | AA63: 12 | AB63: 5
A64: =IFERROR(IF('Subgrade Analysis'!#REF!="","",'Subgrade Analysis'!#REF!),"") ->  | B64: =IF(A64="","",IF('Subgrade Analysis'!#REF!>75,40,IF('Subgrade Analysis'!#REF!<35,0,'Subgrade Analysis'!#REF!-35))) ->  | C64: =IFERROR(IF('Subgrade Analysis'!#REF!>55,40,IF('Subgrade Analysis'!#REF!<15,0,'Subgrade Analysis'!#REF!-15)),"") ->  | D64: =IF(A64="","",IF('Subgrade Analysis'!#REF!>60,20,IF('Subgrade Analysis'!#REF!<40,0,'Subgrade Analysis'!#REF!-40))) ->  | E64: =IF('Subgrade Analysis'!#REF!>30,20,IF('Subgrade Analysis'!#REF!<10,0,'Subgrade Analysis'!#REF!-10)) ->  | G64: =IF(A64="","",IF(SUM('Subgrade Analysis'!#REF!)=0,VLOOKUP('Group Index'!A64,CLASS!$B$2:$D$23,2,FALSE),IF(F64>VLOOKUP(A64,CLASS!$B$2:$D$23,3,FALSE),VLOOKUP(A64,CLASS!$B$2:$D$23,3,FALSE),F64))) ->  | H64: =IF(A64="","",'Subgrade Analysis'!#REF!) ->  | I64: =IF(A64="","",IF(OR(A64="1a",A64="1b",A64="3",A64="3a",A64="2-4",A64="2-5",A64="2-6",A64="2-7"),VLOOKUP(A64,CLASS!$A$2:$E$18,4,FALSE),IF(OR(A64="5",A64="7-5",A64="8a",A64="8b",A64="R",A64="S",A64="C"),"",IF(AND(OR(A64="4b",A64="4a"),'Subgrade Analysis'!#REF!="NP"),11,IF(H64="NP", VLOOKUP(A64,CLASS!$A$2:$E$18,4,FALSE),IF(AND(OR(A64="4a",A64="4b"),H64-5>=10),H64-5,IF(H64="NP", VLOOKUP(A64,CLASS!$A$2:$E$18,4,FALSE),IF(AND(A64="6a",H64-5>=14),H64-5,IF(H64="NP", VLOOKUP(A64,CLASS!$A$2:$E$18,4,FALSE),IF(AND(A64="6b",H64-5>=16),H64-5,IF(H64="NP", VLOOKUP(A64,CLASS!$A$2:$E$18,4,FALSE),IF(AND(A64="7-6",H64-3>=18),H64-3,VLOOKUP(A64,CLASS!$A$2:$E$18,4,FALSE))))))))))))) ->  | K64: 12.5 | L64: 5 | AA64: 12.25 | AB64: 5
A65: =IFERROR(IF('Subgrade Analysis'!#REF!="","",'Subgrade Analysis'!#REF!),"") ->  | B65: =IF(A65="","",IF('Subgrade Analysis'!#REF!>75,40,IF('Subgrade Analysis'!#REF!<35,0,'Subgrade Analysis'!#REF!-35))) ->  | C65: =IFERROR(IF('Subgrade Analysis'!#REF!>55,40,IF('Subgrade Analysis'!#REF!<15,0,'Subgrade Analysis'!#REF!-15)),"") ->  | D65: =IF(A65="","",IF('Subgrade Analysis'!#REF!>60,20,IF('Subgrade Analysis'!#REF!<40,0,'Subgrade Analysis'!#REF!-40))) ->  | E65: =IF('Subgrade Analysis'!#REF!>30,20,IF('Subgrade Analysis'!#REF!<10,0,'Subgrade Analysis'!#REF!-10)) ->  | G65: =IF(A65="","",IF(SUM('Subgrade Analysis'!#REF!)=0,VLOOKUP('Group Index'!A65,CLASS!$B$2:$D$23,2,FALSE),IF(F65>VLOOKUP(A65,CLASS!$B$2:$D$23,3,FALSE),VLOOKUP(A65,CLASS!$B$2:$D$23,3,FALSE),F65))) ->  | H65: =IF(A65="","",'Subgrade Analysis'!#REF!) ->  | I65: =IF(A65="","",IF(OR(A65="1a",A65="1b",A65="3",A65="3a",A65="2-4",A65="2-5",A65="2-6",A65="2-7"),VLOOKUP(A65,CLASS!$A$2:$E$18,4,FALSE),IF(OR(A65="5",A65="7-5",A65="8a",A65="8b",A65="R",A65="S",A65="C"),"",IF(AND(OR(A65="4b",A65="4a"),'Subgrade Analysis'!#REF!="NP"),11,IF(H65="NP", VLOOKUP(A65,CLASS!$A$2:$E$18,4,FALSE),IF(AND(OR(A65="4a",A65="4b"),H65-5>=10),H65-5,IF(H65="NP", VLOOKUP(A65,CLASS!$A$2:$E$18,4,FALSE),IF(AND(A65="6a",H65-5>=14),H65-5,IF(H65="NP", VLOOKUP(A65,CLASS!$A$2:$E$18,4,FALSE),IF(AND(A65="6b",H65-5>=16),H65-5,IF(H65="NP", VLOOKUP(A65,CLASS!$A$2:$E$18,4,FALSE),IF(AND(A65="7-6",H65-3>=18),H65-3,VLOOKUP(A65,CLASS!$A$2:$E$18,4,FALSE))))))))))))) ->  | K65: 12.75 | L65: 5 | AA65: 12.5 | AB65: 5
A66: =IFERROR(IF('Subgrade Analysis'!#REF!="","",'Subgrade Analysis'!#REF!),"") ->  | B66: =IF(A66="","",IF('Subgrade Analysis'!#REF!>75,40,IF('Subgrade Analysis'!#REF!<35,0,'Subgrade Analysis'!#REF!-35))) ->  | C66: =IFERROR(IF('Subgrade Analysis'!#REF!>55,40,IF('Subgrade Analysis'!#REF!<15,0,'Subgrade Analysis'!#REF!-15)),"") ->  | D66: =IF(A66="","",IF('Subgrade Analysis'!#REF!>60,20,IF('Subgrade Analysis'!#REF!<40,0,'Subgrade Analysis'!#REF!-40))) ->  | E66: =IF('Subgrade Analysis'!#REF!>30,20,IF('Subgrade Analysis'!#REF!<10,0,'Subgrade Analysis'!#REF!-10)) ->  | G66: =IF(A66="","",IF(SUM('Subgrade Analysis'!#REF!)=0,VLOOKUP('Group Index'!A66,CLASS!$B$2:$D$23,2,FALSE),IF(F66>VLOOKUP(A66,CLASS!$B$2:$D$23,3,FALSE),VLOOKUP(A66,CLASS!$B$2:$D$23,3,FALSE),F66))) ->  | H66: =IF(A66="","",'Subgrade Analysis'!#REF!) ->  | I66: =IF(A66="","",IF(OR(A66="1a",A66="1b",A66="3",A66="3a",A66="2-4",A66="2-5",A66="2-6",A66="2-7"),VLOOKUP(A66,CLASS!$A$2:$E$18,4,FALSE),IF(OR(A66="5",A66="7-5",A66="8a",A66="8b",A66="R",A66="S",A66="C"),"",IF(AND(OR(A66="4b",A66="4a"),'Subgrade Analysis'!#REF!="NP"),11,IF(H66="NP", VLOOKUP(A66,CLASS!$A$2:$E$18,4,FALSE),IF(AND(OR(A66="4a",A66="4b"),H66-5>=10),H66-5,IF(H66="NP", VLOOKUP(A66,CLASS!$A$2:$E$18,4,FALSE),IF(AND(A66="6a",H66-5>=14),H66-5,IF(H66="NP", VLOOKUP(A66,CLASS!$A$2:$E$18,4,FALSE),IF(AND(A66="6b",H66-5>=16),H66-5,IF(H66="NP", VLOOKUP(A66,CLASS!$A$2:$E$18,4,FALSE),IF(AND(A66="7-6",H66-3>=18),H66-3,VLOOKUP(A66,CLASS!$A$2:$E$18,4,FALSE))))))))))))) ->  | K66: 13 | L66: 4 | AA66: 12.75 | AB66: 5
A67: =IFERROR(IF('Subgrade Analysis'!#REF!="","",'Subgrade Analysis'!#REF!),"") ->  | B67: =IF(A67="","",IF('Subgrade Analysis'!#REF!>75,40,IF('Subgrade Analysis'!#REF!<35,0,'Subgrade Analysis'!#REF!-35))) ->  | C67: =IFERROR(IF('Subgrade Analysis'!#REF!>55,40,IF('Subgrade Analysis'!#REF!<15,0,'Subgrade Analysis'!#REF!-15)),"") ->  | D67: =IF(A67="","",IF('Subgrade Analysis'!#REF!>60,20,IF('Subgrade Analysis'!#REF!<40,0,'Subgrade Analysis'!#REF!-40))) ->  | E67: =IF('Subgrade Analysis'!#REF!>30,20,IF('Subgrade Analysis'!#REF!<10,0,'Subgrade Analysis'!#REF!-10)) ->  | F67: =IFERROR(IF(A67="","",ROUND((0.2*B67)+(0.005*B67*D67)+(0.01*C67*E67),0)),"") ->  | G67: =IF(A67="","",IF(SUM('Subgrade Analysis'!#REF!)=0,VLOOKUP('Group Index'!A67,CLASS!$B$2:$D$23,2,FALSE),IF(F67>VLOOKUP(A67,CLASS!$B$2:$D$23,3,FALSE),VLOOKUP(A67,CLASS!$B$2:$D$23,3,FALSE),F67))) ->  | H67: =IF(A67="","",'Subgrade Analysis'!#REF!) ->  | I67: =IF(A67="","",IF(OR(A67="1a",A67="1b",A67="3",A67="3a",A67="2-4",A67="2-5",A67="2-6",A67="2-7"),VLOOKUP(A67,CLASS!$A$2:$E$18,4,FALSE),IF(OR(A67="5",A67="7-5",A67="8a",A67="8b",A67="R",A67="S",A67="C"),"",IF(AND(OR(A67="4b",A67="4a"),'Subgrade Analysis'!#REF!="NP"),11,IF(H67="NP", VLOOKUP(A67,CLASS!$A$2:$E$18,4,FALSE),IF(AND(OR(A67="4a",A67="4b"),H67-5>=10),H67-5,IF(H67="NP", VLOOKUP(A67,CLASS!$A$2:$E$18,4,FALSE),IF(AND(A67="6a",H67-5>=14),H67-5,IF(H67="NP", VLOOKUP(A67,CLASS!$A$2:$E$18,4,FALSE),IF(AND(A67="6b",H67-5>=16),H67-5,IF(H67="NP", VLOOKUP(A67,CLASS!$A$2:$E$18,4,FALSE),IF(AND(A67="7-6",H67-3>=18),H67-3,VLOOKUP(A67,CLASS!$A$2:$E$18,4,FALSE))))))))))))) ->  | K67: 13.25 | L67: 4 | AA67: 13 | AB67: 5
A68: =IFERROR(IF('Subgrade Analysis'!#REF!="","",'Subgrade Analysis'!#REF!),"") ->  | B68: =IF(A68="","",IF('Subgrade Analysis'!#REF!>75,40,IF('Subgrade Analysis'!#REF!<35,0,'Subgrade Analysis'!#REF!-35))) ->  | C68: =IFERROR(IF('Subgrade Analysis'!#REF!>55,40,IF('Subgrade Analysis'!#REF!<15,0,'Subgrade Analysis'!#REF!-15)),"") ->  | D68: =IF(A68="","",IF('Subgrade Analysis'!#REF!>60,20,IF('Subgrade Analysis'!#REF!<40,0,'Subgrade Analysis'!#REF!-40))) ->  | E68: =IF('Subgrade Analysis'!#REF!>30,20,IF('Subgrade Analysis'!#REF!<10,0,'Subgrade Analysis'!#REF!-10)) ->  | G68: =IF(A68="","",IF(SUM('Subgrade Analysis'!#REF!)=0,VLOOKUP('Group Index'!A68,CLASS!$B$2:$D$23,2,FALSE),IF(F68>VLOOKUP(A68,CLASS!$B$2:$D$23,3,FALSE),VLOOKUP(A68,CLASS!$B$2:$D$23,3,FALSE),F68))) ->  | H68: =IF(A68="","",'Subgrade Analysis'!#REF!) ->  | I68: =IF(A68="","",IF(OR(A68="1a",A68="1b",A68="3",A68="3a",A68="2-4",A68="2-5",A68="2-6",A68="2-7"),VLOOKUP(A68,CLASS!$A$2:$E$18,4,FALSE),IF(OR(A68="5",A68="7-5",A68="8a",A68="8b",A68="R",A68="S",A68="C"),"",IF(AND(OR(A68="4b",A68="4a"),'Subgrade Analysis'!#REF!="NP"),11,IF(H68="NP", VLOOKUP(A68,CLASS!$A$2:$E$18,4,FALSE),IF(AND(OR(A68="4a",A68="4b"),H68-5>=10),H68-5,IF(H68="NP", VLOOKUP(A68,CLASS!$A$2:$E$18,4,FALSE),IF(AND(A68="6a",H68-5>=14),H68-5,IF(H68="NP", VLOOKUP(A68,CLASS!$A$2:$E$18,4,FALSE),IF(AND(A68="6b",H68-5>=16),H68-5,IF(H68="NP", VLOOKUP(A68,CLASS!$A$2:$E$18,4,FALSE),IF(AND(A68="7-6",H68-3>=18),H68-3,VLOOKUP(A68,CLASS!$A$2:$E$18,4,FALSE))))))))))))) ->  | K68: 13.5 | L68: 4 | AA68: 13.25 | AB68: 5
A69: =IFERROR(IF('Subgrade Analysis'!#REF!="","",'Subgrade Analysis'!#REF!),"") ->  | B69: =IF(A69="","",IF('Subgrade Analysis'!#REF!>75,40,IF('Subgrade Analysis'!#REF!<35,0,'Subgrade Analysis'!#REF!-35))) ->  | C69: =IFERROR(IF('Subgrade Analysis'!#REF!>55,40,IF('Subgrade Analysis'!#REF!<15,0,'Subgrade Analysis'!#REF!-15)),"") ->  | D69: =IF(A69="","",IF('Subgrade Analysis'!#REF!>60,20,IF('Subgrade Analysis'!#REF!<40,0,'Subgrade Analysis'!#REF!-40))) ->  | E69: =IF('Subgrade Analysis'!#REF!>30,20,IF('Subgrade Analysis'!#REF!<10,0,'Subgrade Analysis'!#REF!-10)) ->  | G69: =IF(A69="","",IF(SUM('Subgrade Analysis'!#REF!)=0,VLOOKUP('Group Index'!A69,CLASS!$B$2:$D$23,2,FALSE),IF(F69>VLOOKUP(A69,CLASS!$B$2:$D$23,3,FALSE),VLOOKUP(A69,CLASS!$B$2:$D$23,3,FALSE),F69))) ->  | H69: =IF(A69="","",'Subgrade Analysis'!#REF!) ->  | I69: =IF(A69="","",IF(OR(A69="1a",A69="1b",A69="3",A69="3a",A69="2-4",A69="2-5",A69="2-6",A69="2-7"),VLOOKUP(A69,CLASS!$A$2:$E$18,4,FALSE),IF(OR(A69="5",A69="7-5",A69="8a",A69="8b",A69="R",A69="S",A69="C"),"",IF(AND(OR(A69="4b",A69="4a"),'Subgrade Analysis'!#REF!="NP"),11,IF(H69="NP", VLOOKUP(A69,CLASS!$A$2:$E$18,4,FALSE),IF(AND(OR(A69="4a",A69="4b"),H69-5>=10),H69-5,IF(H69="NP", VLOOKUP(A69,CLASS!$A$2:$E$18,4,FALSE),IF(AND(A69="6a",H69-5>=14),H69-5,IF(H69="NP", VLOOKUP(A69,CLASS!$A$2:$E$18,4,FALSE),IF(AND(A69="6b",H69-5>=16),H69-5,IF(H69="NP", VLOOKUP(A69,CLASS!$A$2:$E$18,4,FALSE),IF(AND(A69="7-6",H69-3>=18),H69-3,VLOOKUP(A69,CLASS!$A$2:$E$18,4,FALSE))))))))))))) ->  | K69: 13.75 | L69: 4 | AA69: 13.5 | AB69: 5
A70: =IFERROR(IF('Subgrade Analysis'!#REF!="","",'Subgrade Analysis'!#REF!),"") ->  | B70: =IF(A70="","",IF('Subgrade Analysis'!#REF!>75,40,IF('Subgrade Analysis'!#REF!<35,0,'Subgrade Analysis'!#REF!-35))) ->  | C70: =IFERROR(IF('Subgrade Analysis'!#REF!>55,40,IF('Subgrade Analysis'!#REF!<15,0,'Subgrade Analysis'!#REF!-15)),"") ->  | D70: =IF(A70="","",IF('Subgrade Analysis'!#REF!>60,20,IF('Subgrade Analysis'!#REF!<40,0,'Subgrade Analysis'!#REF!-40))) ->  | E70: =IF('Subgrade Analysis'!#REF!>30,20,IF('Subgrade Analysis'!#REF!<10,0,'Subgrade Analysis'!#REF!-10)) ->  | G70: =IF(A70="","",IF(SUM('Subgrade Analysis'!#REF!)=0,VLOOKUP('Group Index'!A70,CLASS!$B$2:$D$23,2,FALSE),IF(F70>VLOOKUP(A70,CLASS!$B$2:$D$23,3,FALSE),VLOOKUP(A70,CLASS!$B$2:$D$23,3,FALSE),F70))) ->  | H70: =IF(A70="","",'Subgrade Analysis'!#REF!) ->  | I70: =IF(A70="","",IF(OR(A70="1a",A70="1b",A70="3",A70="3a",A70="2-4",A70="2-5",A70="2-6",A70="2-7"),VLOOKUP(A70,CLASS!$A$2:$E$18,4,FALSE),IF(OR(A70="5",A70="7-5",A70="8a",A70="8b",A70="R",A70="S",A70="C"),"",IF(AND(OR(A70="4b",A70="4a"),'Subgrade Analysis'!#REF!="NP"),11,IF(H70="NP", VLOOKUP(A70,CLASS!$A$2:$E$18,4,FALSE),IF(AND(OR(A70="4a",A70="4b"),H70-5>=10),H70-5,IF(H70="NP", VLOOKUP(A70,CLASS!$A$2:$E$18,4,FALSE),IF(AND(A70="6a",H70-5>=14),H70-5,IF(H70="NP", VLOOKUP(A70,CLASS!$A$2:$E$18,4,FALSE),IF(AND(A70="6b",H70-5>=16),H70-5,IF(H70="NP", VLOOKUP(A70,CLASS!$A$2:$E$18,4,FALSE),IF(AND(A70="7-6",H70-3>=18),H70-3,VLOOKUP(A70,CLASS!$A$2:$E$18,4,FALSE))))))))))))) ->  | K70: 14 | L70: 4 | AA70: 13.75 | AB70: 5
A71: =IFERROR(IF('Subgrade Analysis'!#REF!="","",'Subgrade Analysis'!#REF!),"") ->  | B71: =IF(A71="","",IF('Subgrade Analysis'!#REF!>75,40,IF('Subgrade Analysis'!#REF!<35,0,'Subgrade Analysis'!#REF!-35))) ->  | C71: =IFERROR(IF('Subgrade Analysis'!#REF!>55,40,IF('Subgrade Analysis'!#REF!<15,0,'Subgrade Analysis'!#REF!-15)),"") ->  | D71: =IF(A71="","",IF('Subgrade Analysis'!#REF!>60,20,IF('Subgrade Analysis'!#REF!<40,0,'Subgrade Analysis'!#REF!-40))) ->  | E71: =IF('Subgrade Analysis'!#REF!>30,20,IF('Subgrade Analysis'!#REF!<10,0,'Subgrade Analysis'!#REF!-10)) ->  | G71: =IF(A71="","",IF(SUM('Subgrade Analysis'!#REF!)=0,VLOOKUP('Group Index'!A71,CLASS!$B$2:$D$23,2,FALSE),IF(F71>VLOOKUP(A71,CLASS!$B$2:$D$23,3,FALSE),VLOOKUP(A71,CLASS!$B$2:$D$23,3,FALSE),F71))) ->  | H71: =IF(A71="","",'Subgrade Analysis'!#REF!) ->  | I71: =IF(A71="","",IF(OR(A71="1a",A71="1b",A71="3",A71="3a",A71="2-4",A71="2-5",A71="2-6",A71="2-7"),VLOOKUP(A71,CLASS!$A$2:$E$18,4,FALSE),IF(OR(A71="5",A71="7-5",A71="8a",A71="8b",A71="R",A71="S",A71="C"),"",IF(AND(OR(A71="4b",A71="4a"),'Subgrade Analysis'!#REF!="NP"),11,IF(H71="NP", VLOOKUP(A71,CLASS!$A$2:$E$18,4,FALSE),IF(AND(OR(A71="4a",A71="4b"),H71-5>=10),H71-5,IF(H71="NP", VLOOKUP(A71,CLASS!$A$2:$E$18,4,FALSE),IF(AND(A71="6a",H71-5>=14),H71-5,IF(H71="NP", VLOOKUP(A71,CLASS!$A$2:$E$18,4,FALSE),IF(AND(A71="6b",H71-5>=16),H71-5,IF(H71="NP", VLOOKUP(A71,CLASS!$A$2:$E$18,4,FALSE),IF(AND(A71="7-6",H71-3>=18),H71-3,VLOOKUP(A71,CLASS!$A$2:$E$18,4,FALSE))))))))))))) ->  | K71: 14.25 | L71: 4 | AA71: 14 | AB71: 5
A72: =IFERROR(IF('Subgrade Analysis'!#REF!="","",'Subgrade Analysis'!#REF!),"") ->  | B72: =IF(A72="","",IF('Subgrade Analysis'!#REF!>75,40,IF('Subgrade Analysis'!#REF!<35,0,'Subgrade Analysis'!#REF!-35))) ->  | C72: =IFERROR(IF('Subgrade Analysis'!#REF!>55,40,IF('Subgrade Analysis'!#REF!<15,0,'Subgrade Analysis'!#REF!-15)),"") ->  | D72: =IF(A72="","",IF('Subgrade Analysis'!#REF!>60,20,IF('Subgrade Analysis'!#REF!<40,0,'Subgrade Analysis'!#REF!-40))) ->  | E72: =IF('Subgrade Analysis'!#REF!>30,20,IF('Subgrade Analysis'!#REF!<10,0,'Subgrade Analysis'!#REF!-10)) ->  | G72: =IF(A72="","",IF(SUM('Subgrade Analysis'!#REF!)=0,VLOOKUP('Group Index'!A72,CLASS!$B$2:$D$23,2,FALSE),IF(F72>VLOOKUP(A72,CLASS!$B$2:$D$23,3,FALSE),VLOOKUP(A72,CLASS!$B$2:$D$23,3,FALSE),F72))) ->  | H72: =IF(A72="","",'Subgrade Analysis'!#REF!) ->  | I72: =IF(A72="","",IF(OR(A72="1a",A72="1b",A72="3",A72="3a",A72="2-4",A72="2-5",A72="2-6",A72="2-7"),VLOOKUP(A72,CLASS!$A$2:$E$18,4,FALSE),IF(OR(A72="5",A72="7-5",A72="8a",A72="8b",A72="R",A72="S",A72="C"),"",IF(AND(OR(A72="4b",A72="4a"),'Subgrade Analysis'!#REF!="NP"),11,IF(H72="NP", VLOOKUP(A72,CLASS!$A$2:$E$18,4,FALSE),IF(AND(OR(A72="4a",A72="4b"),H72-5>=10),H72-5,IF(H72="NP", VLOOKUP(A72,CLASS!$A$2:$E$18,4,FALSE),IF(AND(A72="6a",H72-5>=14),H72-5,IF(H72="NP", VLOOKUP(A72,CLASS!$A$2:$E$18,4,FALSE),IF(AND(A72="6b",H72-5>=16),H72-5,IF(H72="NP", VLOOKUP(A72,CLASS!$A$2:$E$18,4,FALSE),IF(AND(A72="7-6",H72-3>=18),H72-3,VLOOKUP(A72,CLASS!$A$2:$E$18,4,FALSE))))))))))))) ->  | K72: 14.5 | L72: 4 | AA72: 14.25 | AB72: 5
A73: =IFERROR(IF('Subgrade Analysis'!#REF!="","",'Subgrade Analysis'!#REF!),"") ->  | B73: =IF(A73="","",IF('Subgrade Analysis'!#REF!>75,40,IF('Subgrade Analysis'!#REF!<35,0,'Subgrade Analysis'!#REF!-35))) ->  | C73: =IFERROR(IF('Subgrade Analysis'!#REF!>55,40,IF('Subgrade Analysis'!#REF!<15,0,'Subgrade Analysis'!#REF!-15)),"") ->  | D73: =IF(A73="","",IF('Subgrade Analysis'!#REF!>60,20,IF('Subgrade Analysis'!#REF!<40,0,'Subgrade Analysis'!#REF!-40))) ->  | E73: =IF('Subgrade Analysis'!#REF!>30,20,IF('Subgrade Analysis'!#REF!<10,0,'Subgrade Analysis'!#REF!-10)) ->  | G73: =IF(A73="","",IF(SUM('Subgrade Analysis'!#REF!)=0,VLOOKUP('Group Index'!A73,CLASS!$B$2:$D$23,2,FALSE),IF(F73>VLOOKUP(A73,CLASS!$B$2:$D$23,3,FALSE),VLOOKUP(A73,CLASS!$B$2:$D$23,3,FALSE),F73))) ->  | H73: =IF(A73="","",'Subgrade Analysis'!#REF!) ->  | I73: =IF(A73="","",IF(OR(A73="1a",A73="1b",A73="3",A73="3a",A73="2-4",A73="2-5",A73="2-6",A73="2-7"),VLOOKUP(A73,CLASS!$A$2:$E$18,4,FALSE),IF(OR(A73="5",A73="7-5",A73="8a",A73="8b",A73="R",A73="S",A73="C"),"",IF(AND(OR(A73="4b",A73="4a"),'Subgrade Analysis'!#REF!="NP"),11,IF(H73="NP", VLOOKUP(A73,CLASS!$A$2:$E$18,4,FALSE),IF(AND(OR(A73="4a",A73="4b"),H73-5>=10),H73-5,IF(H73="NP", VLOOKUP(A73,CLASS!$A$2:$E$18,4,FALSE),IF(AND(A73="6a",H73-5>=14),H73-5,IF(H73="NP", VLOOKUP(A73,CLASS!$A$2:$E$18,4,FALSE),IF(AND(A73="6b",H73-5>=16),H73-5,IF(H73="NP", VLOOKUP(A73,CLASS!$A$2:$E$18,4,FALSE),IF(AND(A73="7-6",H73-3>=18),H73-3,VLOOKUP(A73,CLASS!$A$2:$E$18,4,FALSE))))))))))))) ->  | K73: 14.75 | L73: 4 | AA73: 14.5 | AB73: 5
A74: =IFERROR(IF('Subgrade Analysis'!#REF!="","",'Subgrade Analysis'!#REF!),"") ->  | B74: =IF(A74="","",IF('Subgrade Analysis'!#REF!>75,40,IF('Subgrade Analysis'!#REF!<35,0,'Subgrade Analysis'!#REF!-35))) ->  | C74: =IFERROR(IF('Subgrade Analysis'!#REF!>55,40,IF('Subgrade Analysis'!#REF!<15,0,'Subgrade Analysis'!#REF!-15)),"") ->  | D74: =IF(A74="","",IF('Subgrade Analysis'!#REF!>60,20,IF('Subgrade Analysis'!#REF!<40,0,'Subgrade Analysis'!#REF!-40))) ->  | E74: =IF('Subgrade Analysis'!#REF!>30,20,IF('Subgrade Analysis'!#REF!<10,0,'Subgrade Analysis'!#REF!-10)) ->  | G74: =IF(A74="","",IF(SUM('Subgrade Analysis'!#REF!)=0,VLOOKUP('Group Index'!A74,CLASS!$B$2:$D$23,2,FALSE),IF(F74>VLOOKUP(A74,CLASS!$B$2:$D$23,3,FALSE),VLOOKUP(A74,CLASS!$B$2:$D$23,3,FALSE),F74))) ->  | H74: =IF(A74="","",'Subgrade Analysis'!#REF!) ->  | I74: =IF(A74="","",IF(OR(A74="1a",A74="1b",A74="3",A74="3a",A74="2-4",A74="2-5",A74="2-6",A74="2-7"),VLOOKUP(A74,CLASS!$A$2:$E$18,4,FALSE),IF(OR(A74="5",A74="7-5",A74="8a",A74="8b",A74="R",A74="S",A74="C"),"",IF(AND(OR(A74="4b",A74="4a"),'Subgrade Analysis'!#REF!="NP"),11,IF(H74="NP", VLOOKUP(A74,CLASS!$A$2:$E$18,4,FALSE),IF(AND(OR(A74="4a",A74="4b"),H74-5>=10),H74-5,IF(H74="NP", VLOOKUP(A74,CLASS!$A$2:$E$18,4,FALSE),IF(AND(A74="6a",H74-5>=14),H74-5,IF(H74="NP", VLOOKUP(A74,CLASS!$A$2:$E$18,4,FALSE),IF(AND(A74="6b",H74-5>=16),H74-5,IF(H74="NP", VLOOKUP(A74,CLASS!$A$2:$E$18,4,FALSE),IF(AND(A74="7-6",H74-3>=18),H74-3,VLOOKUP(A74,CLASS!$A$2:$E$18,4,FALSE))))))))))))) ->  | K74: 15 | L74: 4 | AA74: 14.75 | AB74: 4
A75: =IFERROR(IF('Subgrade Analysis'!#REF!="","",'Subgrade Analysis'!#REF!),"") ->  | B75: =IF(A75="","",IF('Subgrade Analysis'!#REF!>75,40,IF('Subgrade Analysis'!#REF!<35,0,'Subgrade Analysis'!#REF!-35))) ->  | C75: =IFERROR(IF('Subgrade Analysis'!#REF!>55,40,IF('Subgrade Analysis'!#REF!<15,0,'Subgrade Analysis'!#REF!-15)),"") ->  | D75: =IF(A75="","",IF('Subgrade Analysis'!#REF!>60,20,IF('Subgrade Analysis'!#REF!<40,0,'Subgrade Analysis'!#REF!-40))) ->  | E75: =IF('Subgrade Analysis'!#REF!>30,20,IF('Subgrade Analysis'!#REF!<10,0,'Subgrade Analysis'!#REF!-10)) ->  | G75: =IF(A75="","",IF(SUM('Subgrade Analysis'!#REF!)=0,VLOOKUP('Group Index'!A75,CLASS!$B$2:$D$23,2,FALSE),IF(F75>VLOOKUP(A75,CLASS!$B$2:$D$23,3,FALSE),VLOOKUP(A75,CLASS!$B$2:$D$23,3,FALSE),F75))) ->  | H75: =IF(A75="","",'Subgrade Analysis'!#REF!) ->  | I75: =IF(A75="","",IF(OR(A75="1a",A75="1b",A75="3",A75="3a",A75="2-4",A75="2-5",A75="2-6",A75="2-7"),VLOOKUP(A75,CLASS!$A$2:$E$18,4,FALSE),IF(OR(A75="5",A75="7-5",A75="8a",A75="8b",A75="R",A75="S",A75="C"),"",IF(AND(OR(A75="4b",A75="4a"),'Subgrade Analysis'!#REF!="NP"),11,IF(H75="NP", VLOOKUP(A75,CLASS!$A$2:$E$18,4,FALSE),IF(AND(OR(A75="4a",A75="4b"),H75-5>=10),H75-5,IF(H75="NP", VLOOKUP(A75,CLASS!$A$2:$E$18,4,FALSE),IF(AND(A75="6a",H75-5>=14),H75-5,IF(H75="NP", VLOOKUP(A75,CLASS!$A$2:$E$18,4,FALSE),IF(AND(A75="6b",H75-5>=16),H75-5,IF(H75="NP", VLOOKUP(A75,CLASS!$A$2:$E$18,4,FALSE),IF(AND(A75="7-6",H75-3>=18),H75-3,VLOOKUP(A75,CLASS!$A$2:$E$18,4,FALSE))))))))))))) ->  | K75: 15.25 | L75: 4 | AA75: 15 | AB75: 4
A76: =IFERROR(IF('Subgrade Analysis'!#REF!="","",'Subgrade Analysis'!#REF!),"") ->  | B76: =IF(A76="","",IF('Subgrade Analysis'!#REF!>75,40,IF('Subgrade Analysis'!#REF!<35,0,'Subgrade Analysis'!#REF!-35))) ->  | C76: =IFERROR(IF('Subgrade Analysis'!#REF!>55,40,IF('Subgrade Analysis'!#REF!<15,0,'Subgrade Analysis'!#REF!-15)),"") ->  | D76: =IF(A76="","",IF('Subgrade Analysis'!#REF!>60,20,IF('Subgrade Analysis'!#REF!<40,0,'Subgrade Analysis'!#REF!-40))) ->  | E76: =IF('Subgrade Analysis'!#REF!>30,20,IF('Subgrade Analysis'!#REF!<10,0,'Subgrade Analysis'!#REF!-10)) ->  | G76: =IF(A76="","",IF(SUM('Subgrade Analysis'!#REF!)=0,VLOOKUP('Group Index'!A76,CLASS!$B$2:$D$23,2,FALSE),IF(F76>VLOOKUP(A76,CLASS!$B$2:$D$23,3,FALSE),VLOOKUP(A76,CLASS!$B$2:$D$23,3,FALSE),F76))) ->  | H76: =IF(A76="","",'Subgrade Analysis'!#REF!) ->  | I76: =IF(A76="","",IF(OR(A76="1a",A76="1b",A76="3",A76="3a",A76="2-4",A76="2-5",A76="2-6",A76="2-7"),VLOOKUP(A76,CLASS!$A$2:$E$18,4,FALSE),IF(OR(A76="5",A76="7-5",A76="8a",A76="8b",A76="R",A76="S",A76="C"),"",IF(AND(OR(A76="4b",A76="4a"),'Subgrade Analysis'!#REF!="NP"),11,IF(H76="NP", VLOOKUP(A76,CLASS!$A$2:$E$18,4,FALSE),IF(AND(OR(A76="4a",A76="4b"),H76-5>=10),H76-5,IF(H76="NP", VLOOKUP(A76,CLASS!$A$2:$E$18,4,FALSE),IF(AND(A76="6a",H76-5>=14),H76-5,IF(H76="NP", VLOOKUP(A76,CLASS!$A$2:$E$18,4,FALSE),IF(AND(A76="6b",H76-5>=16),H76-5,IF(H76="NP", VLOOKUP(A76,CLASS!$A$2:$E$18,4,FALSE),IF(AND(A76="7-6",H76-3>=18),H76-3,VLOOKUP(A76,CLASS!$A$2:$E$18,4,FALSE))))))))))))) ->  | K76: 15.5 | L76: 4 | AA76: 15.25 | AB76: 4
A77: =IFERROR(IF('Subgrade Analysis'!#REF!="","",'Subgrade Analysis'!#REF!),"") ->  | B77: =IF(A77="","",IF('Subgrade Analysis'!#REF!>75,40,IF('Subgrade Analysis'!#REF!<35,0,'Subgrade Analysis'!#REF!-35))) ->  | C77: =IFERROR(IF('Subgrade Analysis'!#REF!>55,40,IF('Subgrade Analysis'!#REF!<15,0,'Subgrade Analysis'!#REF!-15)),"") ->  | D77: =IF(A77="","",IF('Subgrade Analysis'!#REF!>60,20,IF('Subgrade Analysis'!#REF!<40,0,'Subgrade Analysis'!#REF!-40))) ->  | E77: =IF('Subgrade Analysis'!#REF!>30,20,IF('Subgrade Analysis'!#REF!<10,0,'Subgrade Analysis'!#REF!-10)) ->  | G77: =IF(A77="","",IF(SUM('Subgrade Analysis'!#REF!)=0,VLOOKUP('Group Index'!A77,CLASS!$B$2:$D$23,2,FALSE),IF(F77>VLOOKUP(A77,CLASS!$B$2:$D$23,3,FALSE),VLOOKUP(A77,CLASS!$B$2:$D$23,3,FALSE),F77))) ->  | H77: =IF(A77="","",'Subgrade Analysis'!#REF!) ->  | I77: =IF(A77="","",IF(OR(A77="1a",A77="1b",A77="3",A77="3a",A77="2-4",A77="2-5",A77="2-6",A77="2-7"),VLOOKUP(A77,CLASS!$A$2:$E$18,4,FALSE),IF(OR(A77="5",A77="7-5",A77="8a",A77="8b",A77="R",A77="S",A77="C"),"",IF(AND(OR(A77="4b",A77="4a"),'Subgrade Analysis'!#REF!="NP"),11,IF(H77="NP", VLOOKUP(A77,CLASS!$A$2:$E$18,4,FALSE),IF(AND(OR(A77="4a",A77="4b"),H77-5>=10),H77-5,IF(H77="NP", VLOOKUP(A77,CLASS!$A$2:$E$18,4,FALSE),IF(AND(A77="6a",H77-5>=14),H77-5,IF(H77="NP", VLOOKUP(A77,CLASS!$A$2:$E$18,4,FALSE),IF(AND(A77="6b",H77-5>=16),H77-5,IF(H77="NP", VLOOKUP(A77,CLASS!$A$2:$E$18,4,FALSE),IF(AND(A77="7-6",H77-3>=18),H77-3,VLOOKUP(A77,CLASS!$A$2:$E$18,4,FALSE))))))))))))) ->  | K77: 15.75 | L77: 4 | AA77: 15.5 | AB77: 4
A78: =IFERROR(IF('Subgrade Analysis'!#REF!="","",'Subgrade Analysis'!#REF!),"") ->  | B78: =IF(A78="","",IF('Subgrade Analysis'!#REF!>75,40,IF('Subgrade Analysis'!#REF!<35,0,'Subgrade Analysis'!#REF!-35))) ->  | C78: =IFERROR(IF('Subgrade Analysis'!#REF!>55,40,IF('Subgrade Analysis'!#REF!<15,0,'Subgrade Analysis'!#REF!-15)),"") ->  | D78: =IF(A78="","",IF('Subgrade Analysis'!#REF!>60,20,IF('Subgrade Analysis'!#REF!<40,0,'Subgrade Analysis'!#REF!-40))) ->  | E78: =IF('Subgrade Analysis'!#REF!>30,20,IF('Subgrade Analysis'!#REF!<10,0,'Subgrade Analysis'!#REF!-10)) ->  | G78: =IF(A78="","",IF(SUM('Subgrade Analysis'!#REF!)=0,VLOOKUP('Group Index'!A78,CLASS!$B$2:$D$23,2,FALSE),IF(F78>VLOOKUP(A78,CLASS!$B$2:$D$23,3,FALSE),VLOOKUP(A78,CLASS!$B$2:$D$23,3,FALSE),F78))) ->  | H78: =IF(A78="","",'Subgrade Analysis'!#REF!) ->  | I78: =IF(A78="","",IF(OR(A78="1a",A78="1b",A78="3",A78="3a",A78="2-4",A78="2-5",A78="2-6",A78="2-7"),VLOOKUP(A78,CLASS!$A$2:$E$18,4,FALSE),IF(OR(A78="5",A78="7-5",A78="8a",A78="8b",A78="R",A78="S",A78="C"),"",IF(AND(OR(A78="4b",A78="4a"),'Subgrade Analysis'!#REF!="NP"),11,IF(H78="NP", VLOOKUP(A78,CLASS!$A$2:$E$18,4,FALSE),IF(AND(OR(A78="4a",A78="4b"),H78-5>=10),H78-5,IF(H78="NP", VLOOKUP(A78,CLASS!$A$2:$E$18,4,FALSE),IF(AND(A78="6a",H78-5>=14),H78-5,IF(H78="NP", VLOOKUP(A78,CLASS!$A$2:$E$18,4,FALSE),IF(AND(A78="6b",H78-5>=16),H78-5,IF(H78="NP", VLOOKUP(A78,CLASS!$A$2:$E$18,4,FALSE),IF(AND(A78="7-6",H78-3>=18),H78-3,VLOOKUP(A78,CLASS!$A$2:$E$18,4,FALSE))))))))))))) ->  | K78: 16 | L78: 4 | AA78: 15.75 | AB78: 4
A79: =IFERROR(IF('Subgrade Analysis'!#REF!="","",'Subgrade Analysis'!#REF!),"") ->  | B79: =IF(A79="","",IF('Subgrade Analysis'!#REF!>75,40,IF('Subgrade Analysis'!#REF!<35,0,'Subgrade Analysis'!#REF!-35))) ->  | C79: =IFERROR(IF('Subgrade Analysis'!#REF!>55,40,IF('Subgrade Analysis'!#REF!<15,0,'Subgrade Analysis'!#REF!-15)),"") ->  | D79: =IF(A79="","",IF('Subgrade Analysis'!#REF!>60,20,IF('Subgrade Analysis'!#REF!<40,0,'Subgrade Analysis'!#REF!-40))) ->  | E79: =IF('Subgrade Analysis'!#REF!>30,20,IF('Subgrade Analysis'!#REF!<10,0,'Subgrade Analysis'!#REF!-10)) ->  | G79: =IF(A79="","",IF(SUM('Subgrade Analysis'!#REF!)=0,VLOOKUP('Group Index'!A79,CLASS!$B$2:$D$23,2,FALSE),IF(F79>VLOOKUP(A79,CLASS!$B$2:$D$23,3,FALSE),VLOOKUP(A79,CLASS!$B$2:$D$23,3,FALSE),F79))) ->  | H79: =IF(A79="","",'Subgrade Analysis'!#REF!) ->  | I79: =IF(A79="","",IF(OR(A79="1a",A79="1b",A79="3",A79="3a",A79="2-4",A79="2-5",A79="2-6",A79="2-7"),VLOOKUP(A79,CLASS!$A$2:$E$18,4,FALSE),IF(OR(A79="5",A79="7-5",A79="8a",A79="8b",A79="R",A79="S",A79="C"),"",IF(AND(OR(A79="4b",A79="4a"),'Subgrade Analysis'!#REF!="NP"),11,IF(H79="NP", VLOOKUP(A79,CLASS!$A$2:$E$18,4,FALSE),IF(AND(OR(A79="4a",A79="4b"),H79-5>=10),H79-5,IF(H79="NP", VLOOKUP(A79,CLASS!$A$2:$E$18,4,FALSE),IF(AND(A79="6a",H79-5>=14),H79-5,IF(H79="NP", VLOOKUP(A79,CLASS!$A$2:$E$18,4,FALSE),IF(AND(A79="6b",H79-5>=16),H79-5,IF(H79="NP", VLOOKUP(A79,CLASS!$A$2:$E$18,4,FALSE),IF(AND(A79="7-6",H79-3>=18),H79-3,VLOOKUP(A79,CLASS!$A$2:$E$18,4,FALSE))))))))))))) ->  | K79: 16.25 | L79: 4 | AA79: 16 | AB79: 4
A80: =IFERROR(IF('Subgrade Analysis'!#REF!="","",'Subgrade Analysis'!#REF!),"") ->  | B80: =IF(A80="","",IF('Subgrade Analysis'!#REF!>75,40,IF('Subgrade Analysis'!#REF!<35,0,'Subgrade Analysis'!#REF!-35))) ->  | C80: =IFERROR(IF('Subgrade Analysis'!#REF!>55,40,IF('Subgrade Analysis'!#REF!<15,0,'Subgrade Analysis'!#REF!-15)),"") ->  | D80: =IF(A80="","",IF('Subgrade Analysis'!#REF!>60,20,IF('Subgrade Analysis'!#REF!<40,0,'Subgrade Analysis'!#REF!-40))) ->  | E80: =IF('Subgrade Analysis'!#REF!>30,20,IF('Subgrade Analysis'!#REF!<10,0,'Subgrade Analysis'!#REF!-10)) ->  | G80: =IF(A80="","",IF(SUM('Subgrade Analysis'!#REF!)=0,VLOOKUP('Group Index'!A80,CLASS!$B$2:$D$23,2,FALSE),IF(F80>VLOOKUP(A80,CLASS!$B$2:$D$23,3,FALSE),VLOOKUP(A80,CLASS!$B$2:$D$23,3,FALSE),F80))) ->  | H80: =IF(A80="","",'Subgrade Analysis'!#REF!) ->  | I80: =IF(A80="","",IF(OR(A80="1a",A80="1b",A80="3",A80="3a",A80="2-4",A80="2-5",A80="2-6",A80="2-7"),VLOOKUP(A80,CLASS!$A$2:$E$18,4,FALSE),IF(OR(A80="5",A80="7-5",A80="8a",A80="8b",A80="R",A80="S",A80="C"),"",IF(AND(OR(A80="4b",A80="4a"),'Subgrade Analysis'!#REF!="NP"),11,IF(H80="NP", VLOOKUP(A80,CLASS!$A$2:$E$18,4,FALSE),IF(AND(OR(A80="4a",A80="4b"),H80-5>=10),H80-5,IF(H80="NP", VLOOKUP(A80,CLASS!$A$2:$E$18,4,FALSE),IF(AND(A80="6a",H80-5>=14),H80-5,IF(H80="NP", VLOOKUP(A80,CLASS!$A$2:$E$18,4,FALSE),IF(AND(A80="6b",H80-5>=16),H80-5,IF(H80="NP", VLOOKUP(A80,CLASS!$A$2:$E$18,4,FALSE),IF(AND(A80="7-6",H80-3>=18),H80-3,VLOOKUP(A80,CLASS!$A$2:$E$18,4,FALSE))))))))))))) ->  | K80: 16.5 | L80: =ROUND(0.0197*K80^2 - 0.8279*K80 + 11.915,0) -> 4 | AA80: 16.25 | AB80: 4
A81: =IFERROR(IF('Subgrade Analysis'!#REF!="","",'Subgrade Analysis'!#REF!),"") ->  | B81: =IF(A81="","",IF('Subgrade Analysis'!#REF!>75,40,IF('Subgrade Analysis'!#REF!<35,0,'Subgrade Analysis'!#REF!-35))) ->  | C81: =IFERROR(IF('Subgrade Analysis'!#REF!>55,40,IF('Subgrade Analysis'!#REF!<15,0,'Subgrade Analysis'!#REF!-15)),"") ->  | D81: =IF(A81="","",IF('Subgrade Analysis'!#REF!>60,20,IF('Subgrade Analysis'!#REF!<40,0,'Subgrade Analysis'!#REF!-40))) ->  | E81: =IF('Subgrade Analysis'!#REF!>30,20,IF('Subgrade Analysis'!#REF!<10,0,'Subgrade Analysis'!#REF!-10)) ->  | G81: =IF(A81="","",IF(SUM('Subgrade Analysis'!#REF!)=0,VLOOKUP('Group Index'!A81,CLASS!$B$2:$D$23,2,FALSE),IF(F81>VLOOKUP(A81,CLASS!$B$2:$D$23,3,FALSE),VLOOKUP(A81,CLASS!$B$2:$D$23,3,FALSE),F81))) ->  | H81: =IF(A81="","",'Subgrade Analysis'!#REF!) ->  | I81: =IF(A81="","",IF(OR(A81="1a",A81="1b",A81="3",A81="3a",A81="2-4",A81="2-5",A81="2-6",A81="2-7"),VLOOKUP(A81,CLASS!$A$2:$E$18,4,FALSE),IF(OR(A81="5",A81="7-5",A81="8a",A81="8b",A81="R",A81="S",A81="C"),"",IF(AND(OR(A81="4b",A81="4a"),'Subgrade Analysis'!#REF!="NP"),11,IF(H81="NP", VLOOKUP(A81,CLASS!$A$2:$E$18,4,FALSE),IF(AND(OR(A81="4a",A81="4b"),H81-5>=10),H81-5,IF(H81="NP", VLOOKUP(A81,CLASS!$A$2:$E$18,4,FALSE),IF(AND(A81="6a",H81-5>=14),H81-5,IF(H81="NP", VLOOKUP(A81,CLASS!$A$2:$E$18,4,FALSE),IF(AND(A81="6b",H81-5>=16),H81-5,IF(H81="NP", VLOOKUP(A81,CLASS!$A$2:$E$18,4,FALSE),IF(AND(A81="7-6",H81-3>=18),H81-3,VLOOKUP(A81,CLASS!$A$2:$E$18,4,FALSE))))))))))))) ->  | K81: 16.75 | L81: 4 | AA81: 16.5 | AB81: =ROUND(-2.757*LN(AA81) + 11.874,0) -> 4
A82: =IFERROR(IF('Subgrade Analysis'!#REF!="","",'Subgrade Analysis'!#REF!),"") ->  | B82: =IF(A82="","",IF('Subgrade Analysis'!#REF!>75,40,IF('Subgrade Analysis'!#REF!<35,0,'Subgrade Analysis'!#REF!-35))) ->  | C82: =IFERROR(IF('Subgrade Analysis'!#REF!>55,40,IF('Subgrade Analysis'!#REF!<15,0,'Subgrade Analysis'!#REF!-15)),"") ->  | D82: =IF(A82="","",IF('Subgrade Analysis'!#REF!>60,20,IF('Subgrade Analysis'!#REF!<40,0,'Subgrade Analysis'!#REF!-40))) ->  | E82: =IF('Subgrade Analysis'!#REF!>30,20,IF('Subgrade Analysis'!#REF!<10,0,'Subgrade Analysis'!#REF!-10)) ->  | G82: =IF(A82="","",IF(SUM('Subgrade Analysis'!#REF!)=0,VLOOKUP('Group Index'!A82,CLASS!$B$2:$D$23,2,FALSE),IF(F82>VLOOKUP(A82,CLASS!$B$2:$D$23,3,FALSE),VLOOKUP(A82,CLASS!$B$2:$D$23,3,FALSE),F82))) ->  | H82: =IF(A82="","",'Subgrade Analysis'!#REF!) ->  | I82: =IF(A82="","",IF(OR(A82="1a",A82="1b",A82="3",A82="3a",A82="2-4",A82="2-5",A82="2-6",A82="2-7"),VLOOKUP(A82,CLASS!$A$2:$E$18,4,FALSE),IF(OR(A82="5",A82="7-5",A82="8a",A82="8b",A82="R",A82="S",A82="C"),"",IF(AND(OR(A82="4b",A82="4a"),'Subgrade Analysis'!#REF!="NP"),11,IF(H82="NP", VLOOKUP(A82,CLASS!$A$2:$E$18,4,FALSE),IF(AND(OR(A82="4a",A82="4b"),H82-5>=10),H82-5,IF(H82="NP", VLOOKUP(A82,CLASS!$A$2:$E$18,4,FALSE),IF(AND(A82="6a",H82-5>=14),H82-5,IF(H82="NP", VLOOKUP(A82,CLASS!$A$2:$E$18,4,FALSE),IF(AND(A82="6b",H82-5>=16),H82-5,IF(H82="NP", VLOOKUP(A82,CLASS!$A$2:$E$18,4,FALSE),IF(AND(A82="7-6",H82-3>=18),H82-3,VLOOKUP(A82,CLASS!$A$2:$E$18,4,FALSE))))))))))))) ->  | K82: 17 | L82: 4 | AA82: 16.75 | AB82: 4
A83: =IFERROR(IF('Subgrade Analysis'!#REF!="","",'Subgrade Analysis'!#REF!),"") ->  | B83: =IF(A83="","",IF('Subgrade Analysis'!#REF!>75,40,IF('Subgrade Analysis'!#REF!<35,0,'Subgrade Analysis'!#REF!-35))) ->  | C83: =IFERROR(IF('Subgrade Analysis'!#REF!>55,40,IF('Subgrade Analysis'!#REF!<15,0,'Subgrade Analysis'!#REF!-15)),"") ->  | D83: =IF(A83="","",IF('Subgrade Analysis'!#REF!>60,20,IF('Subgrade Analysis'!#REF!<40,0,'Subgrade Analysis'!#REF!-40))) ->  | E83: =IF('Subgrade Analysis'!#REF!>30,20,IF('Subgrade Analysis'!#REF!<10,0,'Subgrade Analysis'!#REF!-10)) ->  | G83: =IF(A83="","",IF(SUM('Subgrade Analysis'!#REF!)=0,VLOOKUP('Group Index'!A83,CLASS!$B$2:$D$23,2,FALSE),IF(F83>VLOOKUP(A83,CLASS!$B$2:$D$23,3,FALSE),VLOOKUP(A83,CLASS!$B$2:$D$23,3,FALSE),F83))) ->  | H83: =IF(A83="","",'Subgrade Analysis'!#REF!) ->  | I83: =IF(A83="","",IF(OR(A83="1a",A83="1b",A83="3",A83="3a",A83="2-4",A83="2-5",A83="2-6",A83="2-7"),VLOOKUP(A83,CLASS!$A$2:$E$18,4,FALSE),IF(OR(A83="5",A83="7-5",A83="8a",A83="8b",A83="R",A83="S",A83="C"),"",IF(AND(OR(A83="4b",A83="4a"),'Subgrade Analysis'!#REF!="NP"),11,IF(H83="NP", VLOOKUP(A83,CLASS!$A$2:$E$18,4,FALSE),IF(AND(OR(A83="4a",A83="4b"),H83-5>=10),H83-5,IF(H83="NP", VLOOKUP(A83,CLASS!$A$2:$E$18,4,FALSE),IF(AND(A83="6a",H83-5>=14),H83-5,IF(H83="NP", VLOOKUP(A83,CLASS!$A$2:$E$18,4,FALSE),IF(AND(A83="6b",H83-5>=16),H83-5,IF(H83="NP", VLOOKUP(A83,CLASS!$A$2:$E$18,4,FALSE),IF(AND(A83="7-6",H83-3>=18),H83-3,VLOOKUP(A83,CLASS!$A$2:$E$18,4,FALSE))))))))))))) ->  | K83: 17.25 | L83: 3 | AA83: 17 | AB83: 4
A84: =IFERROR(IF('Subgrade Analysis'!#REF!="","",'Subgrade Analysis'!#REF!),"") ->  | B84: =IF(A84="","",IF('Subgrade Analysis'!#REF!>75,40,IF('Subgrade Analysis'!#REF!<35,0,'Subgrade Analysis'!#REF!-35))) ->  | C84: =IFERROR(IF('Subgrade Analysis'!#REF!>55,40,IF('Subgrade Analysis'!#REF!<15,0,'Subgrade Analysis'!#REF!-15)),"") ->  | D84: =IF(A84="","",IF('Subgrade Analysis'!#REF!>60,20,IF('Subgrade Analysis'!#REF!<40,0,'Subgrade Analysis'!#REF!-40))) ->  | E84: =IF('Subgrade Analysis'!#REF!>30,20,IF('Subgrade Analysis'!#REF!<10,0,'Subgrade Analysis'!#REF!-10)) ->  | G84: =IF(A84="","",IF(SUM('Subgrade Analysis'!#REF!)=0,VLOOKUP('Group Index'!A84,CLASS!$B$2:$D$23,2,FALSE),IF(F84>VLOOKUP(A84,CLASS!$B$2:$D$23,3,FALSE),VLOOKUP(A84,CLASS!$B$2:$D$23,3,FALSE),F84))) ->  | H84: =IF(A84="","",'Subgrade Analysis'!#REF!) ->  | I84: =IF(A84="","",IF(OR(A84="1a",A84="1b",A84="3",A84="3a",A84="2-4",A84="2-5",A84="2-6",A84="2-7"),VLOOKUP(A84,CLASS!$A$2:$E$18,4,FALSE),IF(OR(A84="5",A84="7-5",A84="8a",A84="8b",A84="R",A84="S",A84="C"),"",IF(AND(OR(A84="4b",A84="4a"),'Subgrade Analysis'!#REF!="NP"),11,IF(H84="NP", VLOOKUP(A84,CLASS!$A$2:$E$18,4,FALSE),IF(AND(OR(A84="4a",A84="4b"),H84-5>=10),H84-5,IF(H84="NP", VLOOKUP(A84,CLASS!$A$2:$E$18,4,FALSE),IF(AND(A84="6a",H84-5>=14),H84-5,IF(H84="NP", VLOOKUP(A84,CLASS!$A$2:$E$18,4,FALSE),IF(AND(A84="6b",H84-5>=16),H84-5,IF(H84="NP", VLOOKUP(A84,CLASS!$A$2:$E$18,4,FALSE),IF(AND(A84="7-6",H84-3>=18),H84-3,VLOOKUP(A84,CLASS!$A$2:$E$18,4,FALSE))))))))))))) ->  | K84: 17.5 | L84: 3 | AA84: 17.25 | AB84: 4
A85: =IFERROR(IF('Subgrade Analysis'!#REF!="","",'Subgrade Analysis'!#REF!),"") ->  | B85: =IF(A85="","",IF('Subgrade Analysis'!#REF!>75,40,IF('Subgrade Analysis'!#REF!<35,0,'Subgrade Analysis'!#REF!-35))) ->  | C85: =IFERROR(IF('Subgrade Analysis'!#REF!>55,40,IF('Subgrade Analysis'!#REF!<15,0,'Subgrade Analysis'!#REF!-15)),"") ->  | D85: =IF(A85="","",IF('Subgrade Analysis'!#REF!>60,20,IF('Subgrade Analysis'!#REF!<40,0,'Subgrade Analysis'!#REF!-40))) ->  | E85: =IF('Subgrade Analysis'!#REF!>30,20,IF('Subgrade Analysis'!#REF!<10,0,'Subgrade Analysis'!#REF!-10)) ->  | G85: =IF(A85="","",IF(SUM('Subgrade Analysis'!#REF!)=0,VLOOKUP('Group Index'!A85,CLASS!$B$2:$D$23,2,FALSE),IF(F85>VLOOKUP(A85,CLASS!$B$2:$D$23,3,FALSE),VLOOKUP(A85,CLASS!$B$2:$D$23,3,FALSE),F85))) ->  | H85: =IF(A85="","",'Subgrade Analysis'!#REF!) ->  | I85: =IF(A85="","",IF(OR(A85="1a",A85="1b",A85="3",A85="3a",A85="2-4",A85="2-5",A85="2-6",A85="2-7"),VLOOKUP(A85,CLASS!$A$2:$E$18,4,FALSE),IF(OR(A85="5",A85="7-5",A85="8a",A85="8b",A85="R",A85="S",A85="C"),"",IF(AND(OR(A85="4b",A85="4a"),'Subgrade Analysis'!#REF!="NP"),11,IF(H85="NP", VLOOKUP(A85,CLASS!$A$2:$E$18,4,FALSE),IF(AND(OR(A85="4a",A85="4b"),H85-5>=10),H85-5,IF(H85="NP", VLOOKUP(A85,CLASS!$A$2:$E$18,4,FALSE),IF(AND(A85="6a",H85-5>=14),H85-5,IF(H85="NP", VLOOKUP(A85,CLASS!$A$2:$E$18,4,FALSE),IF(AND(A85="6b",H85-5>=16),H85-5,IF(H85="NP", VLOOKUP(A85,CLASS!$A$2:$E$18,4,FALSE),IF(AND(A85="7-6",H85-3>=18),H85-3,VLOOKUP(A85,CLASS!$A$2:$E$18,4,FALSE))))))))))))) ->  | K85: 17.75 | L85: 3 | AA85: 17.5 | AB85: 4
A86: =IFERROR(IF('Subgrade Analysis'!#REF!="","",'Subgrade Analysis'!#REF!),"") ->  | B86: =IF(A86="","",IF('Subgrade Analysis'!#REF!>75,40,IF('Subgrade Analysis'!#REF!<35,0,'Subgrade Analysis'!#REF!-35))) ->  | C86: =IFERROR(IF('Subgrade Analysis'!#REF!>55,40,IF('Subgrade Analysis'!#REF!<15,0,'Subgrade Analysis'!#REF!-15)),"") ->  | D86: =IF(A86="","",IF('Subgrade Analysis'!#REF!>60,20,IF('Subgrade Analysis'!#REF!<40,0,'Subgrade Analysis'!#REF!-40))) ->  | E86: =IF('Subgrade Analysis'!#REF!>30,20,IF('Subgrade Analysis'!#REF!<10,0,'Subgrade Analysis'!#REF!-10)) ->  | G86: =IF(A86="","",IF(SUM('Subgrade Analysis'!#REF!)=0,VLOOKUP('Group Index'!A86,CLASS!$B$2:$D$23,2,FALSE),IF(F86>VLOOKUP(A86,CLASS!$B$2:$D$23,3,FALSE),VLOOKUP(A86,CLASS!$B$2:$D$23,3,FALSE),F86))) ->  | H86: =IF(A86="","",'Subgrade Analysis'!#REF!) ->  | I86: =IF(A86="","",IF(OR(A86="1a",A86="1b",A86="3",A86="3a",A86="2-4",A86="2-5",A86="2-6",A86="2-7"),VLOOKUP(A86,CLASS!$A$2:$E$18,4,FALSE),IF(OR(A86="5",A86="7-5",A86="8a",A86="8b",A86="R",A86="S",A86="C"),"",IF(AND(OR(A86="4b",A86="4a"),'Subgrade Analysis'!#REF!="NP"),11,IF(H86="NP", VLOOKUP(A86,CLASS!$A$2:$E$18,4,FALSE),IF(AND(OR(A86="4a",A86="4b"),H86-5>=10),H86-5,IF(H86="NP", VLOOKUP(A86,CLASS!$A$2:$E$18,4,FALSE),IF(AND(A86="6a",H86-5>=14),H86-5,IF(H86="NP", VLOOKUP(A86,CLASS!$A$2:$E$18,4,FALSE),IF(AND(A86="6b",H86-5>=16),H86-5,IF(H86="NP", VLOOKUP(A86,CLASS!$A$2:$E$18,4,FALSE),IF(AND(A86="7-6",H86-3>=18),H86-3,VLOOKUP(A86,CLASS!$A$2:$E$18,4,FALSE))))))))))))) ->  | K86: 18 | L86: 3 | AA86: 17.75 | AB86: 4
A87: =IFERROR(IF('Subgrade Analysis'!#REF!="","",'Subgrade Analysis'!#REF!),"") ->  | B87: =IF(A87="","",IF('Subgrade Analysis'!#REF!>75,40,IF('Subgrade Analysis'!#REF!<35,0,'Subgrade Analysis'!#REF!-35))) ->  | C87: =IFERROR(IF('Subgrade Analysis'!#REF!>55,40,IF('Subgrade Analysis'!#REF!<15,0,'Subgrade Analysis'!#REF!-15)),"") ->  | D87: =IF(A87="","",IF('Subgrade Analysis'!#REF!>60,20,IF('Subgrade Analysis'!#REF!<40,0,'Subgrade Analysis'!#REF!-40))) ->  | E87: =IF('Subgrade Analysis'!#REF!>30,20,IF('Subgrade Analysis'!#REF!<10,0,'Subgrade Analysis'!#REF!-10)) ->  | G87: =IF(A87="","",IF(SUM('Subgrade Analysis'!#REF!)=0,VLOOKUP('Group Index'!A87,CLASS!$B$2:$D$23,2,FALSE),IF(F87>VLOOKUP(A87,CLASS!$B$2:$D$23,3,FALSE),VLOOKUP(A87,CLASS!$B$2:$D$23,3,FALSE),F87))) ->  | H87: =IF(A87="","",'Subgrade Analysis'!#REF!) ->  | I87: =IF(A87="","",IF(OR(A87="1a",A87="1b",A87="3",A87="3a",A87="2-4",A87="2-5",A87="2-6",A87="2-7"),VLOOKUP(A87,CLASS!$A$2:$E$18,4,FALSE),IF(OR(A87="5",A87="7-5",A87="8a",A87="8b",A87="R",A87="S",A87="C"),"",IF(AND(OR(A87="4b",A87="4a"),'Subgrade Analysis'!#REF!="NP"),11,IF(H87="NP", VLOOKUP(A87,CLASS!$A$2:$E$18,4,FALSE),IF(AND(OR(A87="4a",A87="4b"),H87-5>=10),H87-5,IF(H87="NP", VLOOKUP(A87,CLASS!$A$2:$E$18,4,FALSE),IF(AND(A87="6a",H87-5>=14),H87-5,IF(H87="NP", VLOOKUP(A87,CLASS!$A$2:$E$18,4,FALSE),IF(AND(A87="6b",H87-5>=16),H87-5,IF(H87="NP", VLOOKUP(A87,CLASS!$A$2:$E$18,4,FALSE),IF(AND(A87="7-6",H87-3>=18),H87-3,VLOOKUP(A87,CLASS!$A$2:$E$18,4,FALSE))))))))))))) ->  | K87: 18.25 | L87: 3 | AA87: 18 | AB87: 4
A88: =IFERROR(IF('Subgrade Analysis'!#REF!="","",'Subgrade Analysis'!#REF!),"") ->  | B88: =IF(A88="","",IF('Subgrade Analysis'!#REF!>75,40,IF('Subgrade Analysis'!#REF!<35,0,'Subgrade Analysis'!#REF!-35))) ->  | C88: =IFERROR(IF('Subgrade Analysis'!#REF!>55,40,IF('Subgrade Analysis'!#REF!<15,0,'Subgrade Analysis'!#REF!-15)),"") ->  | D88: =IF(A88="","",IF('Subgrade Analysis'!#REF!>60,20,IF('Subgrade Analysis'!#REF!<40,0,'Subgrade Analysis'!#REF!-40))) ->  | E88: =IF('Subgrade Analysis'!#REF!>30,20,IF('Subgrade Analysis'!#REF!<10,0,'Subgrade Analysis'!#REF!-10)) ->  | G88: =IF(A88="","",IF(SUM('Subgrade Analysis'!#REF!)=0,VLOOKUP('Group Index'!A88,CLASS!$B$2:$D$23,2,FALSE),IF(F88>VLOOKUP(A88,CLASS!$B$2:$D$23,3,FALSE),VLOOKUP(A88,CLASS!$B$2:$D$23,3,FALSE),F88))) ->  | H88: =IF(A88="","",'Subgrade Analysis'!#REF!) ->  | I88: =IF(A88="","",IF(OR(A88="1a",A88="1b",A88="3",A88="3a",A88="2-4",A88="2-5",A88="2-6",A88="2-7"),VLOOKUP(A88,CLASS!$A$2:$E$18,4,FALSE),IF(OR(A88="5",A88="7-5",A88="8a",A88="8b",A88="R",A88="S",A88="C"),"",IF(AND(OR(A88="4b",A88="4a"),'Subgrade Analysis'!#REF!="NP"),11,IF(H88="NP", VLOOKUP(A88,CLASS!$A$2:$E$18,4,FALSE),IF(AND(OR(A88="4a",A88="4b"),H88-5>=10),H88-5,IF(H88="NP", VLOOKUP(A88,CLASS!$A$2:$E$18,4,FALSE),IF(AND(A88="6a",H88-5>=14),H88-5,IF(H88="NP", VLOOKUP(A88,CLASS!$A$2:$E$18,4,FALSE),IF(AND(A88="6b",H88-5>=16),H88-5,IF(H88="NP", VLOOKUP(A88,CLASS!$A$2:$E$18,4,FALSE),IF(AND(A88="7-6",H88-3>=18),H88-3,VLOOKUP(A88,CLASS!$A$2:$E$18,4,FALSE))))))))))))) ->  | K88: 18.5 | L88: 3 | AA88: 18.25 | AB88: 4
A89: =IFERROR(IF('Subgrade Analysis'!#REF!="","",'Subgrade Analysis'!#REF!),"") ->  | B89: =IF(A89="","",IF('Subgrade Analysis'!#REF!>75,40,IF('Subgrade Analysis'!#REF!<35,0,'Subgrade Analysis'!#REF!-35))) ->  | C89: =IFERROR(IF('Subgrade Analysis'!#REF!>55,40,IF('Subgrade Analysis'!#REF!<15,0,'Subgrade Analysis'!#REF!-15)),"") ->  | D89: =IF(A89="","",IF('Subgrade Analysis'!#REF!>60,20,IF('Subgrade Analysis'!#REF!<40,0,'Subgrade Analysis'!#REF!-40))) ->  | E89: =IF('Subgrade Analysis'!#REF!>30,20,IF('Subgrade Analysis'!#REF!<10,0,'Subgrade Analysis'!#REF!-10)) ->  | G89: =IF(A89="","",IF(SUM('Subgrade Analysis'!#REF!)=0,VLOOKUP('Group Index'!A89,CLASS!$B$2:$D$23,2,FALSE),IF(F89>VLOOKUP(A89,CLASS!$B$2:$D$23,3,FALSE),VLOOKUP(A89,CLASS!$B$2:$D$23,3,FALSE),F89))) ->  | H89: =IF(A89="","",'Subgrade Analysis'!#REF!) ->  | I89: =IF(A89="","",IF(OR(A89="1a",A89="1b",A89="3",A89="3a",A89="2-4",A89="2-5",A89="2-6",A89="2-7"),VLOOKUP(A89,CLASS!$A$2:$E$18,4,FALSE),IF(OR(A89="5",A89="7-5",A89="8a",A89="8b",A89="R",A89="S",A89="C"),"",IF(AND(OR(A89="4b",A89="4a"),'Subgrade Analysis'!#REF!="NP"),11,IF(H89="NP", VLOOKUP(A89,CLASS!$A$2:$E$18,4,FALSE),IF(AND(OR(A89="4a",A89="4b"),H89-5>=10),H89-5,IF(H89="NP", VLOOKUP(A89,CLASS!$A$2:$E$18,4,FALSE),IF(AND(A89="6a",H89-5>=14),H89-5,IF(H89="NP", VLOOKUP(A89,CLASS!$A$2:$E$18,4,FALSE),IF(AND(A89="6b",H89-5>=16),H89-5,IF(H89="NP", VLOOKUP(A89,CLASS!$A$2:$E$18,4,FALSE),IF(AND(A89="7-6",H89-3>=18),H89-3,VLOOKUP(A89,CLASS!$A$2:$E$18,4,FALSE))))))))))))) ->  | K89: 18.75 | L89: 3 | AA89: 18.5 | AB89: 4
A90: =IFERROR(IF('Subgrade Analysis'!#REF!="","",'Subgrade Analysis'!#REF!),"") ->  | B90: =IF(A90="","",IF('Subgrade Analysis'!#REF!>75,40,IF('Subgrade Analysis'!#REF!<35,0,'Subgrade Analysis'!#REF!-35))) ->  | C90: =IFERROR(IF('Subgrade Analysis'!#REF!>55,40,IF('Subgrade Analysis'!#REF!<15,0,'Subgrade Analysis'!#REF!-15)),"") ->  | D90: =IF(A90="","",IF('Subgrade Analysis'!#REF!>60,20,IF('Subgrade Analysis'!#REF!<40,0,'Subgrade Analysis'!#REF!-40))) ->  | E90: =IF('Subgrade Analysis'!#REF!>30,20,IF('Subgrade Analysis'!#REF!<10,0,'Subgrade Analysis'!#REF!-10)) ->  | G90: =IF(A90="","",IF(SUM('Subgrade Analysis'!#REF!)=0,VLOOKUP('Group Index'!A90,CLASS!$B$2:$D$23,2,FALSE),IF(F90>VLOOKUP(A90,CLASS!$B$2:$D$23,3,FALSE),VLOOKUP(A90,CLASS!$B$2:$D$23,3,FALSE),F90))) ->  | H90: =IF(A90="","",'Subgrade Analysis'!#REF!) ->  | I90: =IF(A90="","",IF(OR(A90="1a",A90="1b",A90="3",A90="3a",A90="2-4",A90="2-5",A90="2-6",A90="2-7"),VLOOKUP(A90,CLASS!$A$2:$E$18,4,FALSE),IF(OR(A90="5",A90="7-5",A90="8a",A90="8b",A90="R",A90="S",A90="C"),"",IF(AND(OR(A90="4b",A90="4a"),'Subgrade Analysis'!#REF!="NP"),11,IF(H90="NP", VLOOKUP(A90,CLASS!$A$2:$E$18,4,FALSE),IF(AND(OR(A90="4a",A90="4b"),H90-5>=10),H90-5,IF(H90="NP", VLOOKUP(A90,CLASS!$A$2:$E$18,4,FALSE),IF(AND(A90="6a",H90-5>=14),H90-5,IF(H90="NP", VLOOKUP(A90,CLASS!$A$2:$E$18,4,FALSE),IF(AND(A90="6b",H90-5>=16),H90-5,IF(H90="NP", VLOOKUP(A90,CLASS!$A$2:$E$18,4,FALSE),IF(AND(A90="7-6",H90-3>=18),H90-3,VLOOKUP(A90,CLASS!$A$2:$E$18,4,FALSE))))))))))))) ->  | K90: 19 | L90: 3 | AA90: 18.75 | AB90: 4
A91: =IFERROR(IF('Subgrade Analysis'!#REF!="","",'Subgrade Analysis'!#REF!),"") ->  | B91: =IF(A91="","",IF('Subgrade Analysis'!#REF!>75,40,IF('Subgrade Analysis'!#REF!<35,0,'Subgrade Analysis'!#REF!-35))) ->  | C91: =IFERROR(IF('Subgrade Analysis'!#REF!>55,40,IF('Subgrade Analysis'!#REF!<15,0,'Subgrade Analysis'!#REF!-15)),"") ->  | D91: =IF(A91="","",IF('Subgrade Analysis'!#REF!>60,20,IF('Subgrade Analysis'!#REF!<40,0,'Subgrade Analysis'!#REF!-40))) ->  | E91: =IF('Subgrade Analysis'!#REF!>30,20,IF('Subgrade Analysis'!#REF!<10,0,'Subgrade Analysis'!#REF!-10)) ->  | G91: =IF(A91="","",IF(SUM('Subgrade Analysis'!#REF!)=0,VLOOKUP('Group Index'!A91,CLASS!$B$2:$D$23,2,FALSE),IF(F91>VLOOKUP(A91,CLASS!$B$2:$D$23,3,FALSE),VLOOKUP(A91,CLASS!$B$2:$D$23,3,FALSE),F91))) ->  | H91: =IF(A91="","",'Subgrade Analysis'!#REF!) ->  | I91: =IF(A91="","",IF(OR(A91="1a",A91="1b",A91="3",A91="3a",A91="2-4",A91="2-5",A91="2-6",A91="2-7"),VLOOKUP(A91,CLASS!$A$2:$E$18,4,FALSE),IF(OR(A91="5",A91="7-5",A91="8a",A91="8b",A91="R",A91="S",A91="C"),"",IF(AND(OR(A91="4b",A91="4a"),'Subgrade Analysis'!#REF!="NP"),11,IF(H91="NP", VLOOKUP(A91,CLASS!$A$2:$E$18,4,FALSE),IF(AND(OR(A91="4a",A91="4b"),H91-5>=10),H91-5,IF(H91="NP", VLOOKUP(A91,CLASS!$A$2:$E$18,4,FALSE),IF(AND(A91="6a",H91-5>=14),H91-5,IF(H91="NP", VLOOKUP(A91,CLASS!$A$2:$E$18,4,FALSE),IF(AND(A91="6b",H91-5>=16),H91-5,IF(H91="NP", VLOOKUP(A91,CLASS!$A$2:$E$18,4,FALSE),IF(AND(A91="7-6",H91-3>=18),H91-3,VLOOKUP(A91,CLASS!$A$2:$E$18,4,FALSE))))))))))))) ->  | K91: 19.25 | L91: 3 | AA91: 19 | AB91: 4
A92: =IFERROR(IF('Subgrade Analysis'!#REF!="","",'Subgrade Analysis'!#REF!),"") ->  | B92: =IF(A92="","",IF('Subgrade Analysis'!#REF!>75,40,IF('Subgrade Analysis'!#REF!<35,0,'Subgrade Analysis'!#REF!-35))) ->  | C92: =IFERROR(IF('Subgrade Analysis'!#REF!>55,40,IF('Subgrade Analysis'!#REF!<15,0,'Subgrade Analysis'!#REF!-15)),"") ->  | D92: =IF(A92="","",IF('Subgrade Analysis'!#REF!>60,20,IF('Subgrade Analysis'!#REF!<40,0,'Subgrade Analysis'!#REF!-40))) ->  | E92: =IF('Subgrade Analysis'!#REF!>30,20,IF('Subgrade Analysis'!#REF!<10,0,'Subgrade Analysis'!#REF!-10)) ->  | G92: =IF(A92="","",IF(SUM('Subgrade Analysis'!#REF!)=0,VLOOKUP('Group Index'!A92,CLASS!$B$2:$D$23,2,FALSE),IF(F92>VLOOKUP(A92,CLASS!$B$2:$D$23,3,FALSE),VLOOKUP(A92,CLASS!$B$2:$D$23,3,FALSE),F92))) ->  | H92: =IF(A92="","",'Subgrade Analysis'!#REF!) ->  | I92: =IF(A92="","",IF(OR(A92="1a",A92="1b",A92="3",A92="3a",A92="2-4",A92="2-5",A92="2-6",A92="2-7"),VLOOKUP(A92,CLASS!$A$2:$E$18,4,FALSE),IF(OR(A92="5",A92="7-5",A92="8a",A92="8b",A92="R",A92="S",A92="C"),"",IF(AND(OR(A92="4b",A92="4a"),'Subgrade Analysis'!#REF!="NP"),11,IF(H92="NP", VLOOKUP(A92,CLASS!$A$2:$E$18,4,FALSE),IF(AND(OR(A92="4a",A92="4b"),H92-5>=10),H92-5,IF(H92="NP", VLOOKUP(A92,CLASS!$A$2:$E$18,4,FALSE),IF(AND(A92="6a",H92-5>=14),H92-5,IF(H92="NP", VLOOKUP(A92,CLASS!$A$2:$E$18,4,FALSE),IF(AND(A92="6b",H92-5>=16),H92-5,IF(H92="NP", VLOOKUP(A92,CLASS!$A$2:$E$18,4,FALSE),IF(AND(A92="7-6",H92-3>=18),H92-3,VLOOKUP(A92,CLASS!$A$2:$E$18,4,FALSE))))))))))))) ->  | K92: 19.5 | L92: 3 | AA92: 19.25 | AB92: 4
A93: =IFERROR(IF('Subgrade Analysis'!#REF!="","",'Subgrade Analysis'!#REF!),"") ->  | B93: =IF(A93="","",IF('Subgrade Analysis'!#REF!>75,40,IF('Subgrade Analysis'!#REF!<35,0,'Subgrade Analysis'!#REF!-35))) ->  | C93: =IFERROR(IF('Subgrade Analysis'!#REF!>55,40,IF('Subgrade Analysis'!#REF!<15,0,'Subgrade Analysis'!#REF!-15)),"") ->  | D93: =IF(A93="","",IF('Subgrade Analysis'!#REF!>60,20,IF('Subgrade Analysis'!#REF!<40,0,'Subgrade Analysis'!#REF!-40))) ->  | E93: =IF('Subgrade Analysis'!#REF!>30,20,IF('Subgrade Analysis'!#REF!<10,0,'Subgrade Analysis'!#REF!-10)) ->  | G93: =IF(A93="","",IF(SUM('Subgrade Analysis'!#REF!)=0,VLOOKUP('Group Index'!A93,CLASS!$B$2:$D$23,2,FALSE),IF(F93>VLOOKUP(A93,CLASS!$B$2:$D$23,3,FALSE),VLOOKUP(A93,CLASS!$B$2:$D$23,3,FALSE),F93))) ->  | H93: =IF(A93="","",'Subgrade Analysis'!#REF!) ->  | I93: =IF(A93="","",IF(OR(A93="1a",A93="1b",A93="3",A93="3a",A93="2-4",A93="2-5",A93="2-6",A93="2-7"),VLOOKUP(A93,CLASS!$A$2:$E$18,4,FALSE),IF(OR(A93="5",A93="7-5",A93="8a",A93="8b",A93="R",A93="S",A93="C"),"",IF(AND(OR(A93="4b",A93="4a"),'Subgrade Analysis'!#REF!="NP"),11,IF(H93="NP", VLOOKUP(A93,CLASS!$A$2:$E$18,4,FALSE),IF(AND(OR(A93="4a",A93="4b"),H93-5>=10),H93-5,IF(H93="NP", VLOOKUP(A93,CLASS!$A$2:$E$18,4,FALSE),IF(AND(A93="6a",H93-5>=14),H93-5,IF(H93="NP", VLOOKUP(A93,CLASS!$A$2:$E$18,4,FALSE),IF(AND(A93="6b",H93-5>=16),H93-5,IF(H93="NP", VLOOKUP(A93,CLASS!$A$2:$E$18,4,FALSE),IF(AND(A93="7-6",H93-3>=18),H93-3,VLOOKUP(A93,CLASS!$A$2:$E$18,4,FALSE))))))))))))) ->  | K93: 19.75 | L93: 3 | AA93: 19.5 | AB93: 4
A94: =IFERROR(IF('Subgrade Analysis'!#REF!="","",'Subgrade Analysis'!#REF!),"") ->  | B94: =IF(A94="","",IF('Subgrade Analysis'!#REF!>75,40,IF('Subgrade Analysis'!#REF!<35,0,'Subgrade Analysis'!#REF!-35))) ->  | C94: =IFERROR(IF('Subgrade Analysis'!#REF!>55,40,IF('Subgrade Analysis'!#REF!<15,0,'Subgrade Analysis'!#REF!-15)),"") ->  | D94: =IF(A94="","",IF('Subgrade Analysis'!#REF!>60,20,IF('Subgrade Analysis'!#REF!<40,0,'Subgrade Analysis'!#REF!-40))) ->  | E94: =IF('Subgrade Analysis'!#REF!>30,20,IF('Subgrade Analysis'!#REF!<10,0,'Subgrade Analysis'!#REF!-10)) ->  | G94: =IF(A94="","",IF(SUM('Subgrade Analysis'!#REF!)=0,VLOOKUP('Group Index'!A94,CLASS!$B$2:$D$23,2,FALSE),IF(F94>VLOOKUP(A94,CLASS!$B$2:$D$23,3,FALSE),VLOOKUP(A94,CLASS!$B$2:$D$23,3,FALSE),F94))) ->  | H94: =IF(A94="","",'Subgrade Analysis'!#REF!) ->  | I94: =IF(A94="","",IF(OR(A94="1a",A94="1b",A94="3",A94="3a",A94="2-4",A94="2-5",A94="2-6",A94="2-7"),VLOOKUP(A94,CLASS!$A$2:$E$18,4,FALSE),IF(OR(A94="5",A94="7-5",A94="8a",A94="8b",A94="R",A94="S",A94="C"),"",IF(AND(OR(A94="4b",A94="4a"),'Subgrade Analysis'!#REF!="NP"),11,IF(H94="NP", VLOOKUP(A94,CLASS!$A$2:$E$18,4,FALSE),IF(AND(OR(A94="4a",A94="4b"),H94-5>=10),H94-5,IF(H94="NP", VLOOKUP(A94,CLASS!$A$2:$E$18,4,FALSE),IF(AND(A94="6a",H94-5>=14),H94-5,IF(H94="NP", VLOOKUP(A94,CLASS!$A$2:$E$18,4,FALSE),IF(AND(A94="6b",H94-5>=16),H94-5,IF(H94="NP", VLOOKUP(A94,CLASS!$A$2:$E$18,4,FALSE),IF(AND(A94="7-6",H94-3>=18),H94-3,VLOOKUP(A94,CLASS!$A$2:$E$18,4,FALSE))))))))))))) ->  | K94: 20 | L94: 3 | AA94: 19.75 | AB94: 4
A95: =IFERROR(IF('Subgrade Analysis'!#REF!="","",'Subgrade Analysis'!#REF!),"") ->  | B95: =IF(A95="","",IF('Subgrade Analysis'!#REF!>75,40,IF('Subgrade Analysis'!#REF!<35,0,'Subgrade Analysis'!#REF!-35))) ->  | C95: =IFERROR(IF('Subgrade Analysis'!#REF!>55,40,IF('Subgrade Analysis'!#REF!<15,0,'Subgrade Analysis'!#REF!-15)),"") ->  | D95: =IF(A95="","",IF('Subgrade Analysis'!#REF!>60,20,IF('Subgrade Analysis'!#REF!<40,0,'Subgrade Analysis'!#REF!-40))) ->  | E95: =IF('Subgrade Analysis'!#REF!>30,20,IF('Subgrade Analysis'!#REF!<10,0,'Subgrade Analysis'!#REF!-10)) ->  | G95: =IF(A95="","",IF(SUM('Subgrade Analysis'!#REF!)=0,VLOOKUP('Group Index'!A95,CLASS!$B$2:$D$23,2,FALSE),IF(F95>VLOOKUP(A95,CLASS!$B$2:$D$23,3,FALSE),VLOOKUP(A95,CLASS!$B$2:$D$23,3,FALSE),F95))) ->  | H95: =IF(A95="","",'Subgrade Analysis'!#REF!) ->  | I95: =IF(A95="","",IF(OR(A95="1a",A95="1b",A95="3",A95="3a",A95="2-4",A95="2-5",A95="2-6",A95="2-7"),VLOOKUP(A95,CLASS!$A$2:$E$18,4,FALSE),IF(OR(A95="5",A95="7-5",A95="8a",A95="8b",A95="R",A95="S",A95="C"),"",IF(AND(OR(A95="4b",A95="4a"),'Subgrade Analysis'!#REF!="NP"),11,IF(H95="NP", VLOOKUP(A95,CLASS!$A$2:$E$18,4,FALSE),IF(AND(OR(A95="4a",A95="4b"),H95-5>=10),H95-5,IF(H95="NP", VLOOKUP(A95,CLASS!$A$2:$E$18,4,FALSE),IF(AND(A95="6a",H95-5>=14),H95-5,IF(H95="NP", VLOOKUP(A95,CLASS!$A$2:$E$18,4,FALSE),IF(AND(A95="6b",H95-5>=16),H95-5,IF(H95="NP", VLOOKUP(A95,CLASS!$A$2:$E$18,4,FALSE),IF(AND(A95="7-6",H95-3>=18),H95-3,VLOOKUP(A95,CLASS!$A$2:$E$18,4,FALSE))))))))))))) ->  | AA95: 20 | AB95: 4
A96: =IFERROR(IF('Subgrade Analysis'!#REF!="","",'Subgrade Analysis'!#REF!),"") ->  | B96: =IF(A96="","",IF('Subgrade Analysis'!#REF!>75,40,IF('Subgrade Analysis'!#REF!<35,0,'Subgrade Analysis'!#REF!-35))) ->  | C96: =IFERROR(IF('Subgrade Analysis'!#REF!>55,40,IF('Subgrade Analysis'!#REF!<15,0,'Subgrade Analysis'!#REF!-15)),"") ->  | D96: =IF(A96="","",IF('Subgrade Analysis'!#REF!>60,20,IF('Subgrade Analysis'!#REF!<40,0,'Subgrade Analysis'!#REF!-40))) ->  | E96: =IF('Subgrade Analysis'!#REF!>30,20,IF('Subgrade Analysis'!#REF!<10,0,'Subgrade Analysis'!#REF!-10)) ->  | G96: =IF(A96="","",IF(SUM('Subgrade Analysis'!#REF!)=0,VLOOKUP('Group Index'!A96,CLASS!$B$2:$D$23,2,FALSE),IF(F96>VLOOKUP(A96,CLASS!$B$2:$D$23,3,FALSE),VLOOKUP(A96,CLASS!$B$2:$D$23,3,FALSE),F96))) ->  | H96: =IF(A96="","",'Subgrade Analysis'!#REF!) ->  | I96: =IF(A96="","",IF(OR(A96="1a",A96="1b",A96="3",A96="3a",A96="2-4",A96="2-5",A96="2-6",A96="2-7"),VLOOKUP(A96,CLASS!$A$2:$E$18,4,FALSE),IF(OR(A96="5",A96="7-5",A96="8a",A96="8b",A96="R",A96="S",A96="C"),"",IF(AND(OR(A96="4b",A96="4a"),'Subgrade Analysis'!#REF!="NP"),11,IF(H96="NP", VLOOKUP(A96,CLASS!$A$2:$E$18,4,FALSE),IF(AND(OR(A96="4a",A96="4b"),H96-5>=10),H96-5,IF(H96="NP", VLOOKUP(A96,CLASS!$A$2:$E$18,4,FALSE),IF(AND(A96="6a",H96-5>=14),H96-5,IF(H96="NP", VLOOKUP(A96,CLASS!$A$2:$E$18,4,FALSE),IF(AND(A96="6b",H96-5>=16),H96-5,IF(H96="NP", VLOOKUP(A96,CLASS!$A$2:$E$18,4,FALSE),IF(AND(A96="7-6",H96-3>=18),H96-3,VLOOKUP(A96,CLASS!$A$2:$E$18,4,FALSE))))))))))))) -> 
A97: =IFERROR(IF('Subgrade Analysis'!#REF!="","",'Subgrade Analysis'!#REF!),"") ->  | B97: =IF(A97="","",IF('Subgrade Analysis'!#REF!>75,40,IF('Subgrade Analysis'!#REF!<35,0,'Subgrade Analysis'!#REF!-35))) ->  | C97: =IFERROR(IF('Subgrade Analysis'!#REF!>55,40,IF('Subgrade Analysis'!#REF!<15,0,'Subgrade Analysis'!#REF!-15)),"") ->  | D97: =IF(A97="","",IF('Subgrade Analysis'!#REF!>60,20,IF('Subgrade Analysis'!#REF!<40,0,'Subgrade Analysis'!#REF!-40))) ->  | E97: =IF('Subgrade Analysis'!#REF!>30,20,IF('Subgrade Analysis'!#REF!<10,0,'Subgrade Analysis'!#REF!-10)) ->  | G97: =IF(A97="","",IF(SUM('Subgrade Analysis'!#REF!)=0,VLOOKUP('Group Index'!A97,CLASS!$B$2:$D$23,2,FALSE),IF(F97>VLOOKUP(A97,CLASS!$B$2:$D$23,3,FALSE),VLOOKUP(A97,CLASS!$B$2:$D$23,3,FALSE),F97))) ->  | H97: =IF(A97="","",'Subgrade Analysis'!#REF!) ->  | I97: =IF(A97="","",IF(OR(A97="1a",A97="1b",A97="3",A97="3a",A97="2-4",A97="2-5",A97="2-6",A97="2-7"),VLOOKUP(A97,CLASS!$A$2:$E$18,4,FALSE),IF(OR(A97="5",A97="7-5",A97="8a",A97="8b",A97="R",A97="S",A97="C"),"",IF(AND(OR(A97="4b",A97="4a"),'Subgrade Analysis'!#REF!="NP"),11,IF(H97="NP", VLOOKUP(A97,CLASS!$A$2:$E$18,4,FALSE),IF(AND(OR(A97="4a",A97="4b"),H97-5>=10),H97-5,IF(H97="NP", VLOOKUP(A97,CLASS!$A$2:$E$18,4,FALSE),IF(AND(A97="6a",H97-5>=14),H97-5,IF(H97="NP", VLOOKUP(A97,CLASS!$A$2:$E$18,4,FALSE),IF(AND(A97="6b",H97-5>=16),H97-5,IF(H97="NP", VLOOKUP(A97,CLASS!$A$2:$E$18,4,FALSE),IF(AND(A97="7-6",H97-3>=18),H97-3,VLOOKUP(A97,CLASS!$A$2:$E$18,4,FALSE))))))))))))) -> 
A98: =IFERROR(IF('Subgrade Analysis'!#REF!="","",'Subgrade Analysis'!#REF!),"") ->  | B98: =IF(A98="","",IF('Subgrade Analysis'!#REF!>75,40,IF('Subgrade Analysis'!#REF!<35,0,'Subgrade Analysis'!#REF!-35))) ->  | C98: =IFERROR(IF('Subgrade Analysis'!#REF!>55,40,IF('Subgrade Analysis'!#REF!<15,0,'Subgrade Analysis'!#REF!-15)),"") ->  | D98: =IF(A98="","",IF('Subgrade Analysis'!#REF!>60,20,IF('Subgrade Analysis'!#REF!<40,0,'Subgrade Analysis'!#REF!-40))) ->  | E98: =IF('Subgrade Analysis'!#REF!>30,20,IF('Subgrade Analysis'!#REF!<10,0,'Subgrade Analysis'!#REF!-10)) ->  | G98: =IF(A98="","",IF(SUM('Subgrade Analysis'!#REF!)=0,VLOOKUP('Group Index'!A98,CLASS!$B$2:$D$23,2,FALSE),IF(F98>VLOOKUP(A98,CLASS!$B$2:$D$23,3,FALSE),VLOOKUP(A98,CLASS!$B$2:$D$23,3,FALSE),F98))) ->  | H98: =IF(A98="","",'Subgrade Analysis'!#REF!) ->  | I98: =IF(A98="","",IF(OR(A98="1a",A98="1b",A98="3",A98="3a",A98="2-4",A98="2-5",A98="2-6",A98="2-7"),VLOOKUP(A98,CLASS!$A$2:$E$18,4,FALSE),IF(OR(A98="5",A98="7-5",A98="8a",A98="8b",A98="R",A98="S",A98="C"),"",IF(AND(OR(A98="4b",A98="4a"),'Subgrade Analysis'!#REF!="NP"),11,IF(H98="NP", VLOOKUP(A98,CLASS!$A$2:$E$18,4,FALSE),IF(AND(OR(A98="4a",A98="4b"),H98-5>=10),H98-5,IF(H98="NP", VLOOKUP(A98,CLASS!$A$2:$E$18,4,FALSE),IF(AND(A98="6a",H98-5>=14),H98-5,IF(H98="NP", VLOOKUP(A98,CLASS!$A$2:$E$18,4,FALSE),IF(AND(A98="6b",H98-5>=16),H98-5,IF(H98="NP", VLOOKUP(A98,CLASS!$A$2:$E$18,4,FALSE),IF(AND(A98="7-6",H98-3>=18),H98-3,VLOOKUP(A98,CLASS!$A$2:$E$18,4,FALSE))))))))))))) -> 
A99: =IFERROR(IF('Subgrade Analysis'!#REF!="","",'Subgrade Analysis'!#REF!),"") ->  | B99: =IF(A99="","",IF('Subgrade Analysis'!#REF!>75,40,IF('Subgrade Analysis'!#REF!<35,0,'Subgrade Analysis'!#REF!-35))) ->  | C99: =IFERROR(IF('Subgrade Analysis'!#REF!>55,40,IF('Subgrade Analysis'!#REF!<15,0,'Subgrade Analysis'!#REF!-15)),"") ->  | D99: =IF(A99="","",IF('Subgrade Analysis'!#REF!>60,20,IF('Subgrade Analysis'!#REF!<40,0,'Subgrade Analysis'!#REF!-40))) ->  | E99: =IF('Subgrade Analysis'!#REF!>30,20,IF('Subgrade Analysis'!#REF!<10,0,'Subgrade Analysis'!#REF!-10)) ->  | G99: =IF(A99="","",IF(SUM('Subgrade Analysis'!#REF!)=0,VLOOKUP('Group Index'!A99,CLASS!$B$2:$D$23,2,FALSE),IF(F99>VLOOKUP(A99,CLASS!$B$2:$D$23,3,FALSE),VLOOKUP(A99,CLASS!$B$2:$D$23,3,FALSE),F99))) ->  | H99: =IF(A99="","",'Subgrade Analysis'!#REF!) ->  | I99: =IF(A99="","",IF(OR(A99="1a",A99="1b",A99="3",A99="3a",A99="2-4",A99="2-5",A99="2-6",A99="2-7"),VLOOKUP(A99,CLASS!$A$2:$E$18,4,FALSE),IF(OR(A99="5",A99="7-5",A99="8a",A99="8b",A99="R",A99="S",A99="C"),"",IF(AND(OR(A99="4b",A99="4a"),'Subgrade Analysis'!#REF!="NP"),11,IF(H99="NP", VLOOKUP(A99,CLASS!$A$2:$E$18,4,FALSE),IF(AND(OR(A99="4a",A99="4b"),H99-5>=10),H99-5,IF(H99="NP", VLOOKUP(A99,CLASS!$A$2:$E$18,4,FALSE),IF(AND(A99="6a",H99-5>=14),H99-5,IF(H99="NP", VLOOKUP(A99,CLASS!$A$2:$E$18,4,FALSE),IF(AND(A99="6b",H99-5>=16),H99-5,IF(H99="NP", VLOOKUP(A99,CLASS!$A$2:$E$18,4,FALSE),IF(AND(A99="7-6",H99-3>=18),H99-3,VLOOKUP(A99,CLASS!$A$2:$E$18,4,FALSE))))))))))))) -> 
A100: =IFERROR(IF('Subgrade Analysis'!#REF!="","",'Subgrade Analysis'!#REF!),"") ->  | B100: =IF(A100="","",IF('Subgrade Analysis'!#REF!>75,40,IF('Subgrade Analysis'!#REF!<35,0,'Subgrade Analysis'!#REF!-35))) ->  | C100: =IFERROR(IF('Subgrade Analysis'!#REF!>55,40,IF('Subgrade Analysis'!#REF!<15,0,'Subgrade Analysis'!#REF!-15)),"") ->  | D100: =IF(A100="","",IF('Subgrade Analysis'!#REF!>60,20,IF('Subgrade Analysis'!#REF!<40,0,'Subgrade Analysis'!#REF!-40))) ->  | E100: =IF('Subgrade Analysis'!#REF!>30,20,IF('Subgrade Analysis'!#REF!<10,0,'Subgrade Analysis'!#REF!-10)) ->  | G100: =IF(A100="","",IF(SUM('Subgrade Analysis'!#REF!)=0,VLOOKUP('Group Index'!A100,CLASS!$B$2:$D$23,2,FALSE),IF(F100>VLOOKUP(A100,CLASS!$B$2:$D$23,3,FALSE),VLOOKUP(A100,CLASS!$B$2:$D$23,3,FALSE),F100))) ->  | H100: =IF(A100="","",'Subgrade Analysis'!#REF!) ->  | I100: =IF(A100="","",IF(OR(A100="1a",A100="1b",A100="3",A100="3a",A100="2-4",A100="2-5",A100="2-6",A100="2-7"),VLOOKUP(A100,CLASS!$A$2:$E$18,4,FALSE),IF(OR(A100="5",A100="7-5",A100="8a",A100="8b",A100="R",A100="S",A100="C"),"",IF(AND(OR(A100="4b",A100="4a"),'Subgrade Analysis'!#REF!="NP"),11,IF(H100="NP", VLOOKUP(A100,CLASS!$A$2:$E$18,4,FALSE),IF(AND(OR(A100="4a",A100="4b"),H100-5>=10),H100-5,IF(H100="NP", VLOOKUP(A100,CLASS!$A$2:$E$18,4,FALSE),IF(AND(A100="6a",H100-5>=14),H100-5,IF(H100="NP", VLOOKUP(A100,CLASS!$A$2:$E$18,4,FALSE),IF(AND(A100="6b",H100-5>=16),H100-5,IF(H100="NP", VLOOKUP(A100,CLASS!$A$2:$E$18,4,FALSE),IF(AND(A100="7-6",H100-3>=18),H100-3,VLOOKUP(A100,CLASS!$A$2:$E$18,4,FALSE))))))))))))) -> 
A101: =IFERROR(IF('Subgrade Analysis'!#REF!="","",'Subgrade Analysis'!#REF!),"") ->  | B101: =IF(A101="","",IF('Subgrade Analysis'!#REF!>75,40,IF('Subgrade Analysis'!#REF!<35,0,'Subgrade Analysis'!#REF!-35))) ->  | C101: =IFERROR(IF('Subgrade Analysis'!#REF!>55,40,IF('Subgrade Analysis'!#REF!<15,0,'Subgrade Analysis'!#REF!-15)),"") ->  | D101: =IF(A101="","",IF('Subgrade Analysis'!#REF!>60,20,IF('Subgrade Analysis'!#REF!<40,0,'Subgrade Analysis'!#REF!-40))) ->  | E101: =IF('Subgrade Analysis'!#REF!>30,20,IF('Subgrade Analysis'!#REF!<10,0,'Subgrade Analysis'!#REF!-10)) ->  | G101: =IF(A101="","",IF(SUM('Subgrade Analysis'!#REF!)=0,VLOOKUP('Group Index'!A101,CLASS!$B$2:$D$23,2,FALSE),IF(F101>VLOOKUP(A101,CLASS!$B$2:$D$23,3,FALSE),VLOOKUP(A101,CLASS!$B$2:$D$23,3,FALSE),F101))) ->  | H101: =IF(A101="","",'Subgrade Analysis'!#REF!) ->  | I101: =IF(A101="","",IF(OR(A101="1a",A101="1b",A101="3",A101="3a",A101="2-4",A101="2-5",A101="2-6",A101="2-7"),VLOOKUP(A101,CLASS!$A$2:$E$18,4,FALSE),IF(OR(A101="5",A101="7-5",A101="8a",A101="8b",A101="R",A101="S",A101="C"),"",IF(AND(OR(A101="4b",A101="4a"),'Subgrade Analysis'!#REF!="NP"),11,IF(H101="NP", VLOOKUP(A101,CLASS!$A$2:$E$18,4,FALSE),IF(AND(OR(A101="4a",A101="4b"),H101-5>=10),H101-5,IF(H101="NP", VLOOKUP(A101,CLASS!$A$2:$E$18,4,FALSE),IF(AND(A101="6a",H101-5>=14),H101-5,IF(H101="NP", VLOOKUP(A101,CLASS!$A$2:$E$18,4,FALSE),IF(AND(A101="6b",H101-5>=16),H101-5,IF(H101="NP", VLOOKUP(A101,CLASS!$A$2:$E$18,4,FALSE),IF(AND(A101="7-6",H101-3>=18),H101-3,VLOOKUP(A101,CLASS!$A$2:$E$18,4,FALSE))))))))))))) -> 
A102: =IFERROR(IF('Subgrade Analysis'!#REF!="","",'Subgrade Analysis'!#REF!),"") ->  | B102: =IF(A102="","",IF('Subgrade Analysis'!#REF!>75,40,IF('Subgrade Analysis'!#REF!<35,0,'Subgrade Analysis'!#REF!-35))) ->  | C102: =IFERROR(IF('Subgrade Analysis'!#REF!>55,40,IF('Subgrade Analysis'!#REF!<15,0,'Subgrade Analysis'!#REF!-15)),"") ->  | D102: =IF(A102="","",IF('Subgrade Analysis'!#REF!>60,20,IF('Subgrade Analysis'!#REF!<40,0,'Subgrade Analysis'!#REF!-40))) ->  | E102: =IF('Subgrade Analysis'!#REF!>30,20,IF('Subgrade Analysis'!#REF!<10,0,'Subgrade Analysis'!#REF!-10)) ->  | G102: =IF(A102="","",IF(SUM('Subgrade Analysis'!#REF!)=0,VLOOKUP('Group Index'!A102,CLASS!$B$2:$D$23,2,FALSE),IF(F102>VLOOKUP(A102,CLASS!$B$2:$D$23,3,FALSE),VLOOKUP(A102,CLASS!$B$2:$D$23,3,FALSE),F102))) ->  | H102: =IF(A102="","",'Subgrade Analysis'!#REF!) ->  | I102: =IF(A102="","",IF(OR(A102="1a",A102="1b",A102="3",A102="3a",A102="2-4",A102="2-5",A102="2-6",A102="2-7"),VLOOKUP(A102,CLASS!$A$2:$E$18,4,FALSE),IF(OR(A102="5",A102="7-5",A102="8a",A102="8b",A102="R",A102="S",A102="C"),"",IF(AND(OR(A102="4b",A102="4a"),'Subgrade Analysis'!#REF!="NP"),11,IF(H102="NP", VLOOKUP(A102,CLASS!$A$2:$E$18,4,FALSE),IF(AND(OR(A102="4a",A102="4b"),H102-5>=10),H102-5,IF(H102="NP", VLOOKUP(A102,CLASS!$A$2:$E$18,4,FALSE),IF(AND(A102="6a",H102-5>=14),H102-5,IF(H102="NP", VLOOKUP(A102,CLASS!$A$2:$E$18,4,FALSE),IF(AND(A102="6b",H102-5>=16),H102-5,IF(H102="NP", VLOOKUP(A102,CLASS!$A$2:$E$18,4,FALSE),IF(AND(A102="7-6",H102-3>=18),H102-3,VLOOKUP(A102,CLASS!$A$2:$E$18,4,FALSE))))))))))))) -> 
A103: =IFERROR(IF('Subgrade Analysis'!#REF!="","",'Subgrade Analysis'!#REF!),"") ->  | B103: =IF(A103="","",IF('Subgrade Analysis'!#REF!>75,40,IF('Subgrade Analysis'!#REF!<35,0,'Subgrade Analysis'!#REF!-35))) ->  | C103: =IFERROR(IF('Subgrade Analysis'!#REF!>55,40,IF('Subgrade Analysis'!#REF!<15,0,'Subgrade Analysis'!#REF!-15)),"") ->  | D103: =IF(A103="","",IF('Subgrade Analysis'!#REF!>60,20,IF('Subgrade Analysis'!#REF!<40,0,'Subgrade Analysis'!#REF!-40))) ->  | E103: =IF('Subgrade Analysis'!#REF!>30,20,IF('Subgrade Analysis'!#REF!<10,0,'Subgrade Analysis'!#REF!-10)) ->  | G103: =IF(A103="","",IF(SUM('Subgrade Analysis'!#REF!)=0,VLOOKUP('Group Index'!A103,CLASS!$B$2:$D$23,2,FALSE),IF(F103>VLOOKUP(A103,CLASS!$B$2:$D$23,3,FALSE),VLOOKUP(A103,CLASS!$B$2:$D$23,3,FALSE),F103))) ->  | H103: =IF(A103="","",'Subgrade Analysis'!#REF!) ->  | I103: =IF(A103="","",IF(OR(A103="1a",A103="1b",A103="3",A103="3a",A103="2-4",A103="2-5",A103="2-6",A103="2-7"),VLOOKUP(A103,CLASS!$A$2:$E$18,4,FALSE),IF(OR(A103="5",A103="7-5",A103="8a",A103="8b",A103="R",A103="S",A103="C"),"",IF(AND(OR(A103="4b",A103="4a"),'Subgrade Analysis'!#REF!="NP"),11,IF(H103="NP", VLOOKUP(A103,CLASS!$A$2:$E$18,4,FALSE),IF(AND(OR(A103="4a",A103="4b"),H103-5>=10),H103-5,IF(H103="NP", VLOOKUP(A103,CLASS!$A$2:$E$18,4,FALSE),IF(AND(A103="6a",H103-5>=14),H103-5,IF(H103="NP", VLOOKUP(A103,CLASS!$A$2:$E$18,4,FALSE),IF(AND(A103="6b",H103-5>=16),H103-5,IF(H103="NP", VLOOKUP(A103,CLASS!$A$2:$E$18,4,FALSE),IF(AND(A103="7-6",H103-3>=18),H103-3,VLOOKUP(A103,CLASS!$A$2:$E$18,4,FALSE))))))))))))) -> 
A104: =IFERROR(IF('Subgrade Analysis'!#REF!="","",'Subgrade Analysis'!#REF!),"") ->  | B104: =IF(A104="","",IF('Subgrade Analysis'!#REF!>75,40,IF('Subgrade Analysis'!#REF!<35,0,'Subgrade Analysis'!#REF!-35))) ->  | C104: =IFERROR(IF('Subgrade Analysis'!#REF!>55,40,IF('Subgrade Analysis'!#REF!<15,0,'Subgrade Analysis'!#REF!-15)),"") ->  | D104: =IF(A104="","",IF('Subgrade Analysis'!#REF!>60,20,IF('Subgrade Analysis'!#REF!<40,0,'Subgrade Analysis'!#REF!-40))) ->  | E104: =IF('Subgrade Analysis'!#REF!>30,20,IF('Subgrade Analysis'!#REF!<10,0,'Subgrade Analysis'!#REF!-10)) ->  | G104: =IF(A104="","",IF(SUM('Subgrade Analysis'!#REF!)=0,VLOOKUP('Group Index'!A104,CLASS!$B$2:$D$23,2,FALSE),IF(F104>VLOOKUP(A104,CLASS!$B$2:$D$23,3,FALSE),VLOOKUP(A104,CLASS!$B$2:$D$23,3,FALSE),F104))) ->  | H104: =IF(A104="","",'Subgrade Analysis'!#REF!) ->  | I104: =IF(A104="","",IF(OR(A104="1a",A104="1b",A104="3",A104="3a",A104="2-4",A104="2-5",A104="2-6",A104="2-7"),VLOOKUP(A104,CLASS!$A$2:$E$18,4,FALSE),IF(OR(A104="5",A104="7-5",A104="8a",A104="8b",A104="R",A104="S",A104="C"),"",IF(AND(OR(A104="4b",A104="4a"),'Subgrade Analysis'!#REF!="NP"),11,IF(H104="NP", VLOOKUP(A104,CLASS!$A$2:$E$18,4,FALSE),IF(AND(OR(A104="4a",A104="4b"),H104-5>=10),H104-5,IF(H104="NP", VLOOKUP(A104,CLASS!$A$2:$E$18,4,FALSE),IF(AND(A104="6a",H104-5>=14),H104-5,IF(H104="NP", VLOOKUP(A104,CLASS!$A$2:$E$18,4,FALSE),IF(AND(A104="6b",H104-5>=16),H104-5,IF(H104="NP", VLOOKUP(A104,CLASS!$A$2:$E$18,4,FALSE),IF(AND(A104="7-6",H104-3>=18),H104-3,VLOOKUP(A104,CLASS!$A$2:$E$18,4,FALSE))))))))))))) -> 
A105: =IFERROR(IF('Subgrade Analysis'!#REF!="","",'Subgrade Analysis'!#REF!),"") ->  | B105: =IF(A105="","",IF('Subgrade Analysis'!#REF!>75,40,IF('Subgrade Analysis'!#REF!<35,0,'Subgrade Analysis'!#REF!-35))) ->  | C105: =IFERROR(IF('Subgrade Analysis'!#REF!>55,40,IF('Subgrade Analysis'!#REF!<15,0,'Subgrade Analysis'!#REF!-15)),"") ->  | D105: =IF(A105="","",IF('Subgrade Analysis'!#REF!>60,20,IF('Subgrade Analysis'!#REF!<40,0,'Subgrade Analysis'!#REF!-40))) ->  | E105: =IF('Subgrade Analysis'!#REF!>30,20,IF('Subgrade Analysis'!#REF!<10,0,'Subgrade Analysis'!#REF!-10)) ->  | G105: =IF(A105="","",IF(SUM('Subgrade Analysis'!#REF!)=0,VLOOKUP('Group Index'!A105,CLASS!$B$2:$D$23,2,FALSE),IF(F105>VLOOKUP(A105,CLASS!$B$2:$D$23,3,FALSE),VLOOKUP(A105,CLASS!$B$2:$D$23,3,FALSE),F105))) ->  | H105: =IF(A105="","",'Subgrade Analysis'!#REF!) ->  | I105: =IF(A105="","",IF(OR(A105="1a",A105="1b",A105="3",A105="3a",A105="2-4",A105="2-5",A105="2-6",A105="2-7"),VLOOKUP(A105,CLASS!$A$2:$E$18,4,FALSE),IF(OR(A105="5",A105="7-5",A105="8a",A105="8b",A105="R",A105="S",A105="C"),"",IF(AND(OR(A105="4b",A105="4a"),'Subgrade Analysis'!#REF!="NP"),11,IF(H105="NP", VLOOKUP(A105,CLASS!$A$2:$E$18,4,FALSE),IF(AND(OR(A105="4a",A105="4b"),H105-5>=10),H105-5,IF(H105="NP", VLOOKUP(A105,CLASS!$A$2:$E$18,4,FALSE),IF(AND(A105="6a",H105-5>=14),H105-5,IF(H105="NP", VLOOKUP(A105,CLASS!$A$2:$E$18,4,FALSE),IF(AND(A105="6b",H105-5>=16),H105-5,IF(H105="NP", VLOOKUP(A105,CLASS!$A$2:$E$18,4,FALSE),IF(AND(A105="7-6",H105-3>=18),H105-3,VLOOKUP(A105,CLASS!$A$2:$E$18,4,FALSE))))))))))))) -> 
A106: =IFERROR(IF('Subgrade Analysis'!#REF!="","",'Subgrade Analysis'!#REF!),"") ->  | B106: =IF(A106="","",IF('Subgrade Analysis'!#REF!>75,40,IF('Subgrade Analysis'!#REF!<35,0,'Subgrade Analysis'!#REF!-35))) ->  | C106: =IFERROR(IF('Subgrade Analysis'!#REF!>55,40,IF('Subgrade Analysis'!#REF!<15,0,'Subgrade Analysis'!#REF!-15)),"") ->  | D106: =IF(A106="","",IF('Subgrade Analysis'!#REF!>60,20,IF('Subgrade Analysis'!#REF!<40,0,'Subgrade Analysis'!#REF!-40))) ->  | E106: =IF('Subgrade Analysis'!#REF!>30,20,IF('Subgrade Analysis'!#REF!<10,0,'Subgrade Analysis'!#REF!-10)) ->  | G106: =IF(A106="","",IF(SUM('Subgrade Analysis'!#REF!)=0,VLOOKUP('Group Index'!A106,CLASS!$B$2:$D$23,2,FALSE),IF(F106>VLOOKUP(A106,CLASS!$B$2:$D$23,3,FALSE),VLOOKUP(A106,CLASS!$B$2:$D$23,3,FALSE),F106))) ->  | H106: =IF(A106="","",'Subgrade Analysis'!#REF!) ->  | I106: =IF(A106="","",IF(OR(A106="1a",A106="1b",A106="3",A106="3a",A106="2-4",A106="2-5",A106="2-6",A106="2-7"),VLOOKUP(A106,CLASS!$A$2:$E$18,4,FALSE),IF(OR(A106="5",A106="7-5",A106="8a",A106="8b",A106="R",A106="S",A106="C"),"",IF(AND(OR(A106="4b",A106="4a"),'Subgrade Analysis'!#REF!="NP"),11,IF(H106="NP", VLOOKUP(A106,CLASS!$A$2:$E$18,4,FALSE),IF(AND(OR(A106="4a",A106="4b"),H106-5>=10),H106-5,IF(H106="NP", VLOOKUP(A106,CLASS!$A$2:$E$18,4,FALSE),IF(AND(A106="6a",H106-5>=14),H106-5,IF(H106="NP", VLOOKUP(A106,CLASS!$A$2:$E$18,4,FALSE),IF(AND(A106="6b",H106-5>=16),H106-5,IF(H106="NP", VLOOKUP(A106,CLASS!$A$2:$E$18,4,FALSE),IF(AND(A106="7-6",H106-3>=18),H106-3,VLOOKUP(A106,CLASS!$A$2:$E$18,4,FALSE))))))))))))) -> 
A107: =IFERROR(IF('Subgrade Analysis'!#REF!="","",'Subgrade Analysis'!#REF!),"") ->  | B107: =IF(A107="","",IF('Subgrade Analysis'!#REF!>75,40,IF('Subgrade Analysis'!#REF!<35,0,'Subgrade Analysis'!#REF!-35))) ->  | C107: =IFERROR(IF('Subgrade Analysis'!#REF!>55,40,IF('Subgrade Analysis'!#REF!<15,0,'Subgrade Analysis'!#REF!-15)),"") ->  | D107: =IF(A107="","",IF('Subgrade Analysis'!#REF!>60,20,IF('Subgrade Analysis'!#REF!<40,0,'Subgrade Analysis'!#REF!-40))) ->  | E107: =IF('Subgrade Analysis'!#REF!>30,20,IF('Subgrade Analysis'!#REF!<10,0,'Subgrade Analysis'!#REF!-10)) ->  | G107: =IF(A107="","",IF(SUM('Subgrade Analysis'!#REF!)=0,VLOOKUP('Group Index'!A107,CLASS!$B$2:$D$23,2,FALSE),IF(F107>VLOOKUP(A107,CLASS!$B$2:$D$23,3,FALSE),VLOOKUP(A107,CLASS!$B$2:$D$23,3,FALSE),F107))) ->  | H107: =IF(A107="","",'Subgrade Analysis'!#REF!) ->  | I107: =IF(A107="","",IF(OR(A107="1a",A107="1b",A107="3",A107="3a",A107="2-4",A107="2-5",A107="2-6",A107="2-7"),VLOOKUP(A107,CLASS!$A$2:$E$18,4,FALSE),IF(OR(A107="5",A107="7-5",A107="8a",A107="8b",A107="R",A107="S",A107="C"),"",IF(AND(OR(A107="4b",A107="4a"),'Subgrade Analysis'!#REF!="NP"),11,IF(H107="NP", VLOOKUP(A107,CLASS!$A$2:$E$18,4,FALSE),IF(AND(OR(A107="4a",A107="4b"),H107-5>=10),H107-5,IF(H107="NP", VLOOKUP(A107,CLASS!$A$2:$E$18,4,FALSE),IF(AND(A107="6a",H107-5>=14),H107-5,IF(H107="NP", VLOOKUP(A107,CLASS!$A$2:$E$18,4,FALSE),IF(AND(A107="6b",H107-5>=16),H107-5,IF(H107="NP", VLOOKUP(A107,CLASS!$A$2:$E$18,4,FALSE),IF(AND(A107="7-6",H107-3>=18),H107-3,VLOOKUP(A107,CLASS!$A$2:$E$18,4,FALSE))))))))))))) -> 
A108: =IFERROR(IF('Subgrade Analysis'!#REF!="","",'Subgrade Analysis'!#REF!),"") ->  | B108: =IF(A108="","",IF('Subgrade Analysis'!#REF!>75,40,IF('Subgrade Analysis'!#REF!<35,0,'Subgrade Analysis'!#REF!-35))) ->  | C108: =IFERROR(IF('Subgrade Analysis'!#REF!>55,40,IF('Subgrade Analysis'!#REF!<15,0,'Subgrade Analysis'!#REF!-15)),"") ->  | D108: =IF(A108="","",IF('Subgrade Analysis'!#REF!>60,20,IF('Subgrade Analysis'!#REF!<40,0,'Subgrade Analysis'!#REF!-40))) ->  | E108: =IF('Subgrade Analysis'!#REF!>30,20,IF('Subgrade Analysis'!#REF!<10,0,'Subgrade Analysis'!#REF!-10)) ->  | G108: =IF(A108="","",IF(SUM('Subgrade Analysis'!#REF!)=0,VLOOKUP('Group Index'!A108,CLASS!$B$2:$D$23,2,FALSE),IF(F108>VLOOKUP(A108,CLASS!$B$2:$D$23,3,FALSE),VLOOKUP(A108,CLASS!$B$2:$D$23,3,FALSE),F108))) ->  | H108: =IF(A108="","",'Subgrade Analysis'!#REF!) ->  | I108: =IF(A108="","",IF(OR(A108="1a",A108="1b",A108="3",A108="3a",A108="2-4",A108="2-5",A108="2-6",A108="2-7"),VLOOKUP(A108,CLASS!$A$2:$E$18,4,FALSE),IF(OR(A108="5",A108="7-5",A108="8a",A108="8b",A108="R",A108="S",A108="C"),"",IF(AND(OR(A108="4b",A108="4a"),'Subgrade Analysis'!#REF!="NP"),11,IF(H108="NP", VLOOKUP(A108,CLASS!$A$2:$E$18,4,FALSE),IF(AND(OR(A108="4a",A108="4b"),H108-5>=10),H108-5,IF(H108="NP", VLOOKUP(A108,CLASS!$A$2:$E$18,4,FALSE),IF(AND(A108="6a",H108-5>=14),H108-5,IF(H108="NP", VLOOKUP(A108,CLASS!$A$2:$E$18,4,FALSE),IF(AND(A108="6b",H108-5>=16),H108-5,IF(H108="NP", VLOOKUP(A108,CLASS!$A$2:$E$18,4,FALSE),IF(AND(A108="7-6",H108-3>=18),H108-3,VLOOKUP(A108,CLASS!$A$2:$E$18,4,FALSE))))))))))))) -> 
A109: =IFERROR(IF('Subgrade Analysis'!#REF!="","",'Subgrade Analysis'!#REF!),"") ->  | B109: =IF(A109="","",IF('Subgrade Analysis'!#REF!>75,40,IF('Subgrade Analysis'!#REF!<35,0,'Subgrade Analysis'!#REF!-35))) ->  | C109: =IFERROR(IF('Subgrade Analysis'!#REF!>55,40,IF('Subgrade Analysis'!#REF!<15,0,'Subgrade Analysis'!#REF!-15)),"") ->  | D109: =IF(A109="","",IF('Subgrade Analysis'!#REF!>60,20,IF('Subgrade Analysis'!#REF!<40,0,'Subgrade Analysis'!#REF!-40))) ->  | E109: =IF('Subgrade Analysis'!#REF!>30,20,IF('Subgrade Analysis'!#REF!<10,0,'Subgrade Analysis'!#REF!-10)) ->  | G109: =IF(A109="","",IF(SUM('Subgrade Analysis'!#REF!)=0,VLOOKUP('Group Index'!A109,CLASS!$B$2:$D$23,2,FALSE),IF(F109>VLOOKUP(A109,CLASS!$B$2:$D$23,3,FALSE),VLOOKUP(A109,CLASS!$B$2:$D$23,3,FALSE),F109))) ->  | H109: =IF(A109="","",'Subgrade Analysis'!#REF!) ->  | I109: =IF(A109="","",IF(OR(A109="1a",A109="1b",A109="3",A109="3a",A109="2-4",A109="2-5",A109="2-6",A109="2-7"),VLOOKUP(A109,CLASS!$A$2:$E$18,4,FALSE),IF(OR(A109="5",A109="7-5",A109="8a",A109="8b",A109="R",A109="S",A109="C"),"",IF(AND(OR(A109="4b",A109="4a"),'Subgrade Analysis'!#REF!="NP"),11,IF(H109="NP", VLOOKUP(A109,CLASS!$A$2:$E$18,4,FALSE),IF(AND(OR(A109="4a",A109="4b"),H109-5>=10),H109-5,IF(H109="NP", VLOOKUP(A109,CLASS!$A$2:$E$18,4,FALSE),IF(AND(A109="6a",H109-5>=14),H109-5,IF(H109="NP", VLOOKUP(A109,CLASS!$A$2:$E$18,4,FALSE),IF(AND(A109="6b",H109-5>=16),H109-5,IF(H109="NP", VLOOKUP(A109,CLASS!$A$2:$E$18,4,FALSE),IF(AND(A109="7-6",H109-3>=18),H109-3,VLOOKUP(A109,CLASS!$A$2:$E$18,4,FALSE))))))))))))) -> 
A110: =IFERROR(IF('Subgrade Analysis'!#REF!="","",'Subgrade Analysis'!#REF!),"") ->  | B110: =IF(A110="","",IF('Subgrade Analysis'!#REF!>75,40,IF('Subgrade Analysis'!#REF!<35,0,'Subgrade Analysis'!#REF!-35))) ->  | C110: =IFERROR(IF('Subgrade Analysis'!#REF!>55,40,IF('Subgrade Analysis'!#REF!<15,0,'Subgrade Analysis'!#REF!-15)),"") ->  | D110: =IF(A110="","",IF('Subgrade Analysis'!#REF!>60,20,IF('Subgrade Analysis'!#REF!<40,0,'Subgrade Analysis'!#REF!-40))) ->  | E110: =IF('Subgrade Analysis'!#REF!>30,20,IF('Subgrade Analysis'!#REF!<10,0,'Subgrade Analysis'!#REF!-10)) ->  | G110: =IF(A110="","",IF(SUM('Subgrade Analysis'!#REF!)=0,VLOOKUP('Group Index'!A110,CLASS!$B$2:$D$23,2,FALSE),IF(F110>VLOOKUP(A110,CLASS!$B$2:$D$23,3,FALSE),VLOOKUP(A110,CLASS!$B$2:$D$23,3,FALSE),F110))) ->  | H110: =IF(A110="","",'Subgrade Analysis'!#REF!) ->  | I110: =IF(A110="","",IF(OR(A110="1a",A110="1b",A110="3",A110="3a",A110="2-4",A110="2-5",A110="2-6",A110="2-7"),VLOOKUP(A110,CLASS!$A$2:$E$18,4,FALSE),IF(OR(A110="5",A110="7-5",A110="8a",A110="8b",A110="R",A110="S",A110="C"),"",IF(AND(OR(A110="4b",A110="4a"),'Subgrade Analysis'!#REF!="NP"),11,IF(H110="NP", VLOOKUP(A110,CLASS!$A$2:$E$18,4,FALSE),IF(AND(OR(A110="4a",A110="4b"),H110-5>=10),H110-5,IF(H110="NP", VLOOKUP(A110,CLASS!$A$2:$E$18,4,FALSE),IF(AND(A110="6a",H110-5>=14),H110-5,IF(H110="NP", VLOOKUP(A110,CLASS!$A$2:$E$18,4,FALSE),IF(AND(A110="6b",H110-5>=16),H110-5,IF(H110="NP", VLOOKUP(A110,CLASS!$A$2:$E$18,4,FALSE),IF(AND(A110="7-6",H110-3>=18),H110-3,VLOOKUP(A110,CLASS!$A$2:$E$18,4,FALSE))))))))))))) -> 
A111: =IFERROR(IF('Subgrade Analysis'!#REF!="","",'Subgrade Analysis'!#REF!),"") ->  | B111: =IF(A111="","",IF('Subgrade Analysis'!#REF!>75,40,IF('Subgrade Analysis'!#REF!<35,0,'Subgrade Analysis'!#REF!-35))) ->  | C111: =IFERROR(IF('Subgrade Analysis'!#REF!>55,40,IF('Subgrade Analysis'!#REF!<15,0,'Subgrade Analysis'!#REF!-15)),"") ->  | D111: =IF(A111="","",IF('Subgrade Analysis'!#REF!>60,20,IF('Subgrade Analysis'!#REF!<40,0,'Subgrade Analysis'!#REF!-40))) ->  | E111: =IF('Subgrade Analysis'!#REF!>30,20,IF('Subgrade Analysis'!#REF!<10,0,'Subgrade Analysis'!#REF!-10)) ->  | G111: =IF(A111="","",IF(SUM('Subgrade Analysis'!#REF!)=0,VLOOKUP('Group Index'!A111,CLASS!$B$2:$D$23,2,FALSE),IF(F111>VLOOKUP(A111,CLASS!$B$2:$D$23,3,FALSE),VLOOKUP(A111,CLASS!$B$2:$D$23,3,FALSE),F111))) ->  | H111: =IF(A111="","",'Subgrade Analysis'!#REF!) ->  | I111: =IF(A111="","",IF(OR(A111="1a",A111="1b",A111="3",A111="3a",A111="2-4",A111="2-5",A111="2-6",A111="2-7"),VLOOKUP(A111,CLASS!$A$2:$E$18,4,FALSE),IF(OR(A111="5",A111="7-5",A111="8a",A111="8b",A111="R",A111="S",A111="C"),"",IF(AND(OR(A111="4b",A111="4a"),'Subgrade Analysis'!#REF!="NP"),11,IF(H111="NP", VLOOKUP(A111,CLASS!$A$2:$E$18,4,FALSE),IF(AND(OR(A111="4a",A111="4b"),H111-5>=10),H111-5,IF(H111="NP", VLOOKUP(A111,CLASS!$A$2:$E$18,4,FALSE),IF(AND(A111="6a",H111-5>=14),H111-5,IF(H111="NP", VLOOKUP(A111,CLASS!$A$2:$E$18,4,FALSE),IF(AND(A111="6b",H111-5>=16),H111-5,IF(H111="NP", VLOOKUP(A111,CLASS!$A$2:$E$18,4,FALSE),IF(AND(A111="7-6",H111-3>=18),H111-3,VLOOKUP(A111,CLASS!$A$2:$E$18,4,FALSE))))))))))))) -> 
A112: =IFERROR(IF('Subgrade Analysis'!#REF!="","",'Subgrade Analysis'!#REF!),"") ->  | B112: =IF(A112="","",IF('Subgrade Analysis'!#REF!>75,40,IF('Subgrade Analysis'!#REF!<35,0,'Subgrade Analysis'!#REF!-35))) ->  | C112: =IFERROR(IF('Subgrade Analysis'!#REF!>55,40,IF('Subgrade Analysis'!#REF!<15,0,'Subgrade Analysis'!#REF!-15)),"") ->  | D112: =IF(A112="","",IF('Subgrade Analysis'!#REF!>60,20,IF('Subgrade Analysis'!#REF!<40,0,'Subgrade Analysis'!#REF!-40))) ->  | E112: =IF('Subgrade Analysis'!#REF!>30,20,IF('Subgrade Analysis'!#REF!<10,0,'Subgrade Analysis'!#REF!-10)) ->  | G112: =IF(A112="","",IF(SUM('Subgrade Analysis'!#REF!)=0,VLOOKUP('Group Index'!A112,CLASS!$B$2:$D$23,2,FALSE),IF(F112>VLOOKUP(A112,CLASS!$B$2:$D$23,3,FALSE),VLOOKUP(A112,CLASS!$B$2:$D$23,3,FALSE),F112))) ->  | H112: =IF(A112="","",'Subgrade Analysis'!#REF!) ->  | I112: =IF(A112="","",IF(OR(A112="1a",A112="1b",A112="3",A112="3a",A112="2-4",A112="2-5",A112="2-6",A112="2-7"),VLOOKUP(A112,CLASS!$A$2:$E$18,4,FALSE),IF(OR(A112="5",A112="7-5",A112="8a",A112="8b",A112="R",A112="S",A112="C"),"",IF(AND(OR(A112="4b",A112="4a"),'Subgrade Analysis'!#REF!="NP"),11,IF(H112="NP", VLOOKUP(A112,CLASS!$A$2:$E$18,4,FALSE),IF(AND(OR(A112="4a",A112="4b"),H112-5>=10),H112-5,IF(H112="NP", VLOOKUP(A112,CLASS!$A$2:$E$18,4,FALSE),IF(AND(A112="6a",H112-5>=14),H112-5,IF(H112="NP", VLOOKUP(A112,CLASS!$A$2:$E$18,4,FALSE),IF(AND(A112="6b",H112-5>=16),H112-5,IF(H112="NP", VLOOKUP(A112,CLASS!$A$2:$E$18,4,FALSE),IF(AND(A112="7-6",H112-3>=18),H112-3,VLOOKUP(A112,CLASS!$A$2:$E$18,4,FALSE))))))))))))) -> 
A113: =IFERROR(IF('Subgrade Analysis'!#REF!="","",'Subgrade Analysis'!#REF!),"") ->  | B113: =IF(A113="","",IF('Subgrade Analysis'!#REF!>75,40,IF('Subgrade Analysis'!#REF!<35,0,'Subgrade Analysis'!#REF!-35))) ->  | C113: =IFERROR(IF('Subgrade Analysis'!#REF!>55,40,IF('Subgrade Analysis'!#REF!<15,0,'Subgrade Analysis'!#REF!-15)),"") ->  | D113: =IF(A113="","",IF('Subgrade Analysis'!#REF!>60,20,IF('Subgrade Analysis'!#REF!<40,0,'Subgrade Analysis'!#REF!-40))) ->  | E113: =IF('Subgrade Analysis'!#REF!>30,20,IF('Subgrade Analysis'!#REF!<10,0,'Subgrade Analysis'!#REF!-10)) ->  | G113: =IF(A113="","",IF(SUM('Subgrade Analysis'!#REF!)=0,VLOOKUP('Group Index'!A113,CLASS!$B$2:$D$23,2,FALSE),IF(F113>VLOOKUP(A113,CLASS!$B$2:$D$23,3,FALSE),VLOOKUP(A113,CLASS!$B$2:$D$23,3,FALSE),F113))) ->  | H113: =IF(A113="","",'Subgrade Analysis'!#REF!) ->  | I113: =IF(A113="","",IF(OR(A113="1a",A113="1b",A113="3",A113="3a",A113="2-4",A113="2-5",A113="2-6",A113="2-7"),VLOOKUP(A113,CLASS!$A$2:$E$18,4,FALSE),IF(OR(A113="5",A113="7-5",A113="8a",A113="8b",A113="R",A113="S",A113="C"),"",IF(AND(OR(A113="4b",A113="4a"),'Subgrade Analysis'!#REF!="NP"),11,IF(H113="NP", VLOOKUP(A113,CLASS!$A$2:$E$18,4,FALSE),IF(AND(OR(A113="4a",A113="4b"),H113-5>=10),H113-5,IF(H113="NP", VLOOKUP(A113,CLASS!$A$2:$E$18,4,FALSE),IF(AND(A113="6a",H113-5>=14),H113-5,IF(H113="NP", VLOOKUP(A113,CLASS!$A$2:$E$18,4,FALSE),IF(AND(A113="6b",H113-5>=16),H113-5,IF(H113="NP", VLOOKUP(A113,CLASS!$A$2:$E$18,4,FALSE),IF(AND(A113="7-6",H113-3>=18),H113-3,VLOOKUP(A113,CLASS!$A$2:$E$18,4,FALSE))))))))))))) -> 
A114: =IFERROR(IF('Subgrade Analysis'!#REF!="","",'Subgrade Analysis'!#REF!),"") ->  | B114: =IF(A114="","",IF('Subgrade Analysis'!#REF!>75,40,IF('Subgrade Analysis'!#REF!<35,0,'Subgrade Analysis'!#REF!-35))) ->  | C114: =IFERROR(IF('Subgrade Analysis'!#REF!>55,40,IF('Subgrade Analysis'!#REF!<15,0,'Subgrade Analysis'!#REF!-15)),"") ->  | D114: =IF(A114="","",IF('Subgrade Analysis'!#REF!>60,20,IF('Subgrade Analysis'!#REF!<40,0,'Subgrade Analysis'!#REF!-40))) ->  | E114: =IF('Subgrade Analysis'!#REF!>30,20,IF('Subgrade Analysis'!#REF!<10,0,'Subgrade Analysis'!#REF!-10)) ->  | G114: =IF(A114="","",IF(SUM('Subgrade Analysis'!#REF!)=0,VLOOKUP('Group Index'!A114,CLASS!$B$2:$D$23,2,FALSE),IF(F114>VLOOKUP(A114,CLASS!$B$2:$D$23,3,FALSE),VLOOKUP(A114,CLASS!$B$2:$D$23,3,FALSE),F114))) ->  | H114: =IF(A114="","",'Subgrade Analysis'!#REF!) ->  | I114: =IF(A114="","",IF(OR(A114="1a",A114="1b",A114="3",A114="3a",A114="2-4",A114="2-5",A114="2-6",A114="2-7"),VLOOKUP(A114,CLASS!$A$2:$E$18,4,FALSE),IF(OR(A114="5",A114="7-5",A114="8a",A114="8b",A114="R",A114="S",A114="C"),"",IF(AND(OR(A114="4b",A114="4a"),'Subgrade Analysis'!#REF!="NP"),11,IF(H114="NP", VLOOKUP(A114,CLASS!$A$2:$E$18,4,FALSE),IF(AND(OR(A114="4a",A114="4b"),H114-5>=10),H114-5,IF(H114="NP", VLOOKUP(A114,CLASS!$A$2:$E$18,4,FALSE),IF(AND(A114="6a",H114-5>=14),H114-5,IF(H114="NP", VLOOKUP(A114,CLASS!$A$2:$E$18,4,FALSE),IF(AND(A114="6b",H114-5>=16),H114-5,IF(H114="NP", VLOOKUP(A114,CLASS!$A$2:$E$18,4,FALSE),IF(AND(A114="7-6",H114-3>=18),H114-3,VLOOKUP(A114,CLASS!$A$2:$E$18,4,FALSE))))))))))))) -> 
A115: =IFERROR(IF('Subgrade Analysis'!#REF!="","",'Subgrade Analysis'!#REF!),"") ->  | B115: =IF(A115="","",IF('Subgrade Analysis'!#REF!>75,40,IF('Subgrade Analysis'!#REF!<35,0,'Subgrade Analysis'!#REF!-35))) ->  | C115: =IFERROR(IF('Subgrade Analysis'!#REF!>55,40,IF('Subgrade Analysis'!#REF!<15,0,'Subgrade Analysis'!#REF!-15)),"") ->  | D115: =IF(A115="","",IF('Subgrade Analysis'!#REF!>60,20,IF('Subgrade Analysis'!#REF!<40,0,'Subgrade Analysis'!#REF!-40))) ->  | E115: =IF('Subgrade Analysis'!#REF!>30,20,IF('Subgrade Analysis'!#REF!<10,0,'Subgrade Analysis'!#REF!-10)) ->  | G115: =IF(A115="","",IF(SUM('Subgrade Analysis'!#REF!)=0,VLOOKUP('Group Index'!A115,CLASS!$B$2:$D$23,2,FALSE),IF(F115>VLOOKUP(A115,CLASS!$B$2:$D$23,3,FALSE),VLOOKUP(A115,CLASS!$B$2:$D$23,3,FALSE),F115))) ->  | H115: =IF(A115="","",'Subgrade Analysis'!#REF!) ->  | I115: =IF(A115="","",IF(OR(A115="1a",A115="1b",A115="3",A115="3a",A115="2-4",A115="2-5",A115="2-6",A115="2-7"),VLOOKUP(A115,CLASS!$A$2:$E$18,4,FALSE),IF(OR(A115="5",A115="7-5",A115="8a",A115="8b",A115="R",A115="S",A115="C"),"",IF(AND(OR(A115="4b",A115="4a"),'Subgrade Analysis'!#REF!="NP"),11,IF(H115="NP", VLOOKUP(A115,CLASS!$A$2:$E$18,4,FALSE),IF(AND(OR(A115="4a",A115="4b"),H115-5>=10),H115-5,IF(H115="NP", VLOOKUP(A115,CLASS!$A$2:$E$18,4,FALSE),IF(AND(A115="6a",H115-5>=14),H115-5,IF(H115="NP", VLOOKUP(A115,CLASS!$A$2:$E$18,4,FALSE),IF(AND(A115="6b",H115-5>=16),H115-5,IF(H115="NP", VLOOKUP(A115,CLASS!$A$2:$E$18,4,FALSE),IF(AND(A115="7-6",H115-3>=18),H115-3,VLOOKUP(A115,CLASS!$A$2:$E$18,4,FALSE))))))))))))) -> 
A116: =IFERROR(IF('Subgrade Analysis'!#REF!="","",'Subgrade Analysis'!#REF!),"") ->  | B116: =IF(A116="","",IF('Subgrade Analysis'!#REF!>75,40,IF('Subgrade Analysis'!#REF!<35,0,'Subgrade Analysis'!#REF!-35))) ->  | C116: =IFERROR(IF('Subgrade Analysis'!#REF!>55,40,IF('Subgrade Analysis'!#REF!<15,0,'Subgrade Analysis'!#REF!-15)),"") ->  | D116: =IF(A116="","",IF('Subgrade Analysis'!#REF!>60,20,IF('Subgrade Analysis'!#REF!<40,0,'Subgrade Analysis'!#REF!-40))) ->  | E116: =IF('Subgrade Analysis'!#REF!>30,20,IF('Subgrade Analysis'!#REF!<10,0,'Subgrade Analysis'!#REF!-10)) ->  | G116: =IF(A116="","",IF(SUM('Subgrade Analysis'!#REF!)=0,VLOOKUP('Group Index'!A116,CLASS!$B$2:$D$23,2,FALSE),IF(F116>VLOOKUP(A116,CLASS!$B$2:$D$23,3,FALSE),VLOOKUP(A116,CLASS!$B$2:$D$23,3,FALSE),F116))) ->  | H116: =IF(A116="","",'Subgrade Analysis'!#REF!) ->  | I116: =IF(A116="","",IF(OR(A116="1a",A116="1b",A116="3",A116="3a",A116="2-4",A116="2-5",A116="2-6",A116="2-7"),VLOOKUP(A116,CLASS!$A$2:$E$18,4,FALSE),IF(OR(A116="5",A116="7-5",A116="8a",A116="8b",A116="R",A116="S",A116="C"),"",IF(AND(OR(A116="4b",A116="4a"),'Subgrade Analysis'!#REF!="NP"),11,IF(H116="NP", VLOOKUP(A116,CLASS!$A$2:$E$18,4,FALSE),IF(AND(OR(A116="4a",A116="4b"),H116-5>=10),H116-5,IF(H116="NP", VLOOKUP(A116,CLASS!$A$2:$E$18,4,FALSE),IF(AND(A116="6a",H116-5>=14),H116-5,IF(H116="NP", VLOOKUP(A116,CLASS!$A$2:$E$18,4,FALSE),IF(AND(A116="6b",H116-5>=16),H116-5,IF(H116="NP", VLOOKUP(A116,CLASS!$A$2:$E$18,4,FALSE),IF(AND(A116="7-6",H116-3>=18),H116-3,VLOOKUP(A116,CLASS!$A$2:$E$18,4,FALSE))))))))))))) -> 
A117: =IFERROR(IF('Subgrade Analysis'!#REF!="","",'Subgrade Analysis'!#REF!),"") ->  | B117: =IF(A117="","",IF('Subgrade Analysis'!#REF!>75,40,IF('Subgrade Analysis'!#REF!<35,0,'Subgrade Analysis'!#REF!-35))) ->  | C117: =IFERROR(IF('Subgrade Analysis'!#REF!>55,40,IF('Subgrade Analysis'!#REF!<15,0,'Subgrade Analysis'!#REF!-15)),"") ->  | D117: =IF(A117="","",IF('Subgrade Analysis'!#REF!>60,20,IF('Subgrade Analysis'!#REF!<40,0,'Subgrade Analysis'!#REF!-40))) ->  | E117: =IF('Subgrade Analysis'!#REF!>30,20,IF('Subgrade Analysis'!#REF!<10,0,'Subgrade Analysis'!#REF!-10)) ->  | G117: =IF(A117="","",IF(SUM('Subgrade Analysis'!#REF!)=0,VLOOKUP('Group Index'!A117,CLASS!$B$2:$D$23,2,FALSE),IF(F117>VLOOKUP(A117,CLASS!$B$2:$D$23,3,FALSE),VLOOKUP(A117,CLASS!$B$2:$D$23,3,FALSE),F117))) ->  | H117: =IF(A117="","",'Subgrade Analysis'!#REF!) ->  | I117: =IF(A117="","",IF(OR(A117="1a",A117="1b",A117="3",A117="3a",A117="2-4",A117="2-5",A117="2-6",A117="2-7"),VLOOKUP(A117,CLASS!$A$2:$E$18,4,FALSE),IF(OR(A117="5",A117="7-5",A117="8a",A117="8b",A117="R",A117="S",A117="C"),"",IF(AND(OR(A117="4b",A117="4a"),'Subgrade Analysis'!#REF!="NP"),11,IF(H117="NP", VLOOKUP(A117,CLASS!$A$2:$E$18,4,FALSE),IF(AND(OR(A117="4a",A117="4b"),H117-5>=10),H117-5,IF(H117="NP", VLOOKUP(A117,CLASS!$A$2:$E$18,4,FALSE),IF(AND(A117="6a",H117-5>=14),H117-5,IF(H117="NP", VLOOKUP(A117,CLASS!$A$2:$E$18,4,FALSE),IF(AND(A117="6b",H117-5>=16),H117-5,IF(H117="NP", VLOOKUP(A117,CLASS!$A$2:$E$18,4,FALSE),IF(AND(A117="7-6",H117-3>=18),H117-3,VLOOKUP(A117,CLASS!$A$2:$E$18,4,FALSE))))))))))))) -> 
A118: =IFERROR(IF('Subgrade Analysis'!#REF!="","",'Subgrade Analysis'!#REF!),"") ->  | B118: =IF(A118="","",IF('Subgrade Analysis'!#REF!>75,40,IF('Subgrade Analysis'!#REF!<35,0,'Subgrade Analysis'!#REF!-35))) ->  | C118: =IFERROR(IF('Subgrade Analysis'!#REF!>55,40,IF('Subgrade Analysis'!#REF!<15,0,'Subgrade Analysis'!#REF!-15)),"") ->  | D118: =IF(A118="","",IF('Subgrade Analysis'!#REF!>60,20,IF('Subgrade Analysis'!#REF!<40,0,'Subgrade Analysis'!#REF!-40))) ->  | E118: =IF('Subgrade Analysis'!#REF!>30,20,IF('Subgrade Analysis'!#REF!<10,0,'Subgrade Analysis'!#REF!-10)) ->  | G118: =IF(A118="","",IF(SUM('Subgrade Analysis'!#REF!)=0,VLOOKUP('Group Index'!A118,CLASS!$B$2:$D$23,2,FALSE),IF(F118>VLOOKUP(A118,CLASS!$B$2:$D$23,3,FALSE),VLOOKUP(A118,CLASS!$B$2:$D$23,3,FALSE),F118))) ->  | H118: =IF(A118="","",'Subgrade Analysis'!#REF!) ->  | I118: =IF(A118="","",IF(OR(A118="1a",A118="1b",A118="3",A118="3a",A118="2-4",A118="2-5",A118="2-6",A118="2-7"),VLOOKUP(A118,CLASS!$A$2:$E$18,4,FALSE),IF(OR(A118="5",A118="7-5",A118="8a",A118="8b",A118="R",A118="S",A118="C"),"",IF(AND(OR(A118="4b",A118="4a"),'Subgrade Analysis'!#REF!="NP"),11,IF(H118="NP", VLOOKUP(A118,CLASS!$A$2:$E$18,4,FALSE),IF(AND(OR(A118="4a",A118="4b"),H118-5>=10),H118-5,IF(H118="NP", VLOOKUP(A118,CLASS!$A$2:$E$18,4,FALSE),IF(AND(A118="6a",H118-5>=14),H118-5,IF(H118="NP", VLOOKUP(A118,CLASS!$A$2:$E$18,4,FALSE),IF(AND(A118="6b",H118-5>=16),H118-5,IF(H118="NP", VLOOKUP(A118,CLASS!$A$2:$E$18,4,FALSE),IF(AND(A118="7-6",H118-3>=18),H118-3,VLOOKUP(A118,CLASS!$A$2:$E$18,4,FALSE))))))))))))) -> 
A119: =IFERROR(IF('Subgrade Analysis'!#REF!="","",'Subgrade Analysis'!#REF!),"") ->  | B119: =IF(A119="","",IF('Subgrade Analysis'!#REF!>75,40,IF('Subgrade Analysis'!#REF!<35,0,'Subgrade Analysis'!#REF!-35))) ->  | C119: =IFERROR(IF('Subgrade Analysis'!#REF!>55,40,IF('Subgrade Analysis'!#REF!<15,0,'Subgrade Analysis'!#REF!-15)),"") ->  | D119: =IF(A119="","",IF('Subgrade Analysis'!#REF!>60,20,IF('Subgrade Analysis'!#REF!<40,0,'Subgrade Analysis'!#REF!-40))) ->  | E119: =IF('Subgrade Analysis'!#REF!>30,20,IF('Subgrade Analysis'!#REF!<10,0,'Subgrade Analysis'!#REF!-10)) ->  | G119: =IF(A119="","",IF(SUM('Subgrade Analysis'!#REF!)=0,VLOOKUP('Group Index'!A119,CLASS!$B$2:$D$23,2,FALSE),IF(F119>VLOOKUP(A119,CLASS!$B$2:$D$23,3,FALSE),VLOOKUP(A119,CLASS!$B$2:$D$23,3,FALSE),F119))) ->  | H119: =IF(A119="","",'Subgrade Analysis'!#REF!) ->  | I119: =IF(A119="","",IF(OR(A119="1a",A119="1b",A119="3",A119="3a",A119="2-4",A119="2-5",A119="2-6",A119="2-7"),VLOOKUP(A119,CLASS!$A$2:$E$18,4,FALSE),IF(OR(A119="5",A119="7-5",A119="8a",A119="8b",A119="R",A119="S",A119="C"),"",IF(AND(OR(A119="4b",A119="4a"),'Subgrade Analysis'!#REF!="NP"),11,IF(H119="NP", VLOOKUP(A119,CLASS!$A$2:$E$18,4,FALSE),IF(AND(OR(A119="4a",A119="4b"),H119-5>=10),H119-5,IF(H119="NP", VLOOKUP(A119,CLASS!$A$2:$E$18,4,FALSE),IF(AND(A119="6a",H119-5>=14),H119-5,IF(H119="NP", VLOOKUP(A119,CLASS!$A$2:$E$18,4,FALSE),IF(AND(A119="6b",H119-5>=16),H119-5,IF(H119="NP", VLOOKUP(A119,CLASS!$A$2:$E$18,4,FALSE),IF(AND(A119="7-6",H119-3>=18),H119-3,VLOOKUP(A119,CLASS!$A$2:$E$18,4,FALSE))))))))))))) -> 
A120: =IFERROR(IF('Subgrade Analysis'!#REF!="","",'Subgrade Analysis'!#REF!),"") ->  | B120: =IF(A120="","",IF('Subgrade Analysis'!#REF!>75,40,IF('Subgrade Analysis'!#REF!<35,0,'Subgrade Analysis'!#REF!-35))) ->  | C120: =IFERROR(IF('Subgrade Analysis'!#REF!>55,40,IF('Subgrade Analysis'!#REF!<15,0,'Subgrade Analysis'!#REF!-15)),"") ->  | D120: =IF(A120="","",IF('Subgrade Analysis'!#REF!>60,20,IF('Subgrade Analysis'!#REF!<40,0,'Subgrade Analysis'!#REF!-40))) ->  | E120: =IF('Subgrade Analysis'!#REF!>30,20,IF('Subgrade Analysis'!#REF!<10,0,'Subgrade Analysis'!#REF!-10)) ->  | G120: =IF(A120="","",IF(SUM('Subgrade Analysis'!#REF!)=0,VLOOKUP('Group Index'!A120,CLASS!$B$2:$D$23,2,FALSE),IF(F120>VLOOKUP(A120,CLASS!$B$2:$D$23,3,FALSE),VLOOKUP(A120,CLASS!$B$2:$D$23,3,FALSE),F120))) ->  | H120: =IF(A120="","",'Subgrade Analysis'!#REF!) ->  | I120: =IF(A120="","",IF(OR(A120="1a",A120="1b",A120="3",A120="3a",A120="2-4",A120="2-5",A120="2-6",A120="2-7"),VLOOKUP(A120,CLASS!$A$2:$E$18,4,FALSE),IF(OR(A120="5",A120="7-5",A120="8a",A120="8b",A120="R",A120="S",A120="C"),"",IF(AND(OR(A120="4b",A120="4a"),'Subgrade Analysis'!#REF!="NP"),11,IF(H120="NP", VLOOKUP(A120,CLASS!$A$2:$E$18,4,FALSE),IF(AND(OR(A120="4a",A120="4b"),H120-5>=10),H120-5,IF(H120="NP", VLOOKUP(A120,CLASS!$A$2:$E$18,4,FALSE),IF(AND(A120="6a",H120-5>=14),H120-5,IF(H120="NP", VLOOKUP(A120,CLASS!$A$2:$E$18,4,FALSE),IF(AND(A120="6b",H120-5>=16),H120-5,IF(H120="NP", VLOOKUP(A120,CLASS!$A$2:$E$18,4,FALSE),IF(AND(A120="7-6",H120-3>=18),H120-3,VLOOKUP(A120,CLASS!$A$2:$E$18,4,FALSE))))))))))))) -> 
A121: =IFERROR(IF('Subgrade Analysis'!#REF!="","",'Subgrade Analysis'!#REF!),"") ->  | B121: =IF(A121="","",IF('Subgrade Analysis'!#REF!>75,40,IF('Subgrade Analysis'!#REF!<35,0,'Subgrade Analysis'!#REF!-35))) ->  | C121: =IFERROR(IF('Subgrade Analysis'!#REF!>55,40,IF('Subgrade Analysis'!#REF!<15,0,'Subgrade Analysis'!#REF!-15)),"") ->  | D121: =IF(A121="","",IF('Subgrade Analysis'!#REF!>60,20,IF('Subgrade Analysis'!#REF!<40,0,'Subgrade Analysis'!#REF!-40))) ->  | E121: =IF('Subgrade Analysis'!#REF!>30,20,IF('Subgrade Analysis'!#REF!<10,0,'Subgrade Analysis'!#REF!-10)) ->  | G121: =IF(A121="","",IF(SUM('Subgrade Analysis'!#REF!)=0,VLOOKUP('Group Index'!A121,CLASS!$B$2:$D$23,2,FALSE),IF(F121>VLOOKUP(A121,CLASS!$B$2:$D$23,3,FALSE),VLOOKUP(A121,CLASS!$B$2:$D$23,3,FALSE),F121))) ->  | H121: =IF(A121="","",'Subgrade Analysis'!#REF!) ->  | I121: =IF(A121="","",IF(OR(A121="1a",A121="1b",A121="3",A121="3a",A121="2-4",A121="2-5",A121="2-6",A121="2-7"),VLOOKUP(A121,CLASS!$A$2:$E$18,4,FALSE),IF(OR(A121="5",A121="7-5",A121="8a",A121="8b",A121="R",A121="S",A121="C"),"",IF(AND(OR(A121="4b",A121="4a"),'Subgrade Analysis'!#REF!="NP"),11,IF(H121="NP", VLOOKUP(A121,CLASS!$A$2:$E$18,4,FALSE),IF(AND(OR(A121="4a",A121="4b"),H121-5>=10),H121-5,IF(H121="NP", VLOOKUP(A121,CLASS!$A$2:$E$18,4,FALSE),IF(AND(A121="6a",H121-5>=14),H121-5,IF(H121="NP", VLOOKUP(A121,CLASS!$A$2:$E$18,4,FALSE),IF(AND(A121="6b",H121-5>=16),H121-5,IF(H121="NP", VLOOKUP(A121,CLASS!$A$2:$E$18,4,FALSE),IF(AND(A121="7-6",H121-3>=18),H121-3,VLOOKUP(A121,CLASS!$A$2:$E$18,4,FALSE))))))))))))) -> 
A122: =IFERROR(IF('Subgrade Analysis'!#REF!="","",'Subgrade Analysis'!#REF!),"") ->  | B122: =IF(A122="","",IF('Subgrade Analysis'!#REF!>75,40,IF('Subgrade Analysis'!#REF!<35,0,'Subgrade Analysis'!#REF!-35))) ->  | C122: =IFERROR(IF('Subgrade Analysis'!#REF!>55,40,IF('Subgrade Analysis'!#REF!<15,0,'Subgrade Analysis'!#REF!-15)),"") ->  | D122: =IF(A122="","",IF('Subgrade Analysis'!#REF!>60,20,IF('Subgrade Analysis'!#REF!<40,0,'Subgrade Analysis'!#REF!-40))) ->  | E122: =IF('Subgrade Analysis'!#REF!>30,20,IF('Subgrade Analysis'!#REF!<10,0,'Subgrade Analysis'!#REF!-10)) ->  | G122: =IF(A122="","",IF(SUM('Subgrade Analysis'!#REF!)=0,VLOOKUP('Group Index'!A122,CLASS!$B$2:$D$23,2,FALSE),IF(F122>VLOOKUP(A122,CLASS!$B$2:$D$23,3,FALSE),VLOOKUP(A122,CLASS!$B$2:$D$23,3,FALSE),F122))) ->  | H122: =IF(A122="","",'Subgrade Analysis'!#REF!) ->  | I122: =IF(A122="","",IF(OR(A122="1a",A122="1b",A122="3",A122="3a",A122="2-4",A122="2-5",A122="2-6",A122="2-7"),VLOOKUP(A122,CLASS!$A$2:$E$18,4,FALSE),IF(OR(A122="5",A122="7-5",A122="8a",A122="8b",A122="R",A122="S",A122="C"),"",IF(AND(OR(A122="4b",A122="4a"),'Subgrade Analysis'!#REF!="NP"),11,IF(H122="NP", VLOOKUP(A122,CLASS!$A$2:$E$18,4,FALSE),IF(AND(OR(A122="4a",A122="4b"),H122-5>=10),H122-5,IF(H122="NP", VLOOKUP(A122,CLASS!$A$2:$E$18,4,FALSE),IF(AND(A122="6a",H122-5>=14),H122-5,IF(H122="NP", VLOOKUP(A122,CLASS!$A$2:$E$18,4,FALSE),IF(AND(A122="6b",H122-5>=16),H122-5,IF(H122="NP", VLOOKUP(A122,CLASS!$A$2:$E$18,4,FALSE),IF(AND(A122="7-6",H122-3>=18),H122-3,VLOOKUP(A122,CLASS!$A$2:$E$18,4,FALSE))))))))))))) -> 
A123: =IFERROR(IF('Subgrade Analysis'!#REF!="","",'Subgrade Analysis'!#REF!),"") ->  | B123: =IF(A123="","",IF('Subgrade Analysis'!#REF!>75,40,IF('Subgrade Analysis'!#REF!<35,0,'Subgrade Analysis'!#REF!-35))) ->  | C123: =IFERROR(IF('Subgrade Analysis'!#REF!>55,40,IF('Subgrade Analysis'!#REF!<15,0,'Subgrade Analysis'!#REF!-15)),"") ->  | D123: =IF(A123="","",IF('Subgrade Analysis'!#REF!>60,20,IF('Subgrade Analysis'!#REF!<40,0,'Subgrade Analysis'!#REF!-40))) ->  | E123: =IF('Subgrade Analysis'!#REF!>30,20,IF('Subgrade Analysis'!#REF!<10,0,'Subgrade Analysis'!#REF!-10)) ->  | G123: =IF(A123="","",IF(SUM('Subgrade Analysis'!#REF!)=0,VLOOKUP('Group Index'!A123,CLASS!$B$2:$D$23,2,FALSE),IF(F123>VLOOKUP(A123,CLASS!$B$2:$D$23,3,FALSE),VLOOKUP(A123,CLASS!$B$2:$D$23,3,FALSE),F123))) ->  | H123: =IF(A123="","",'Subgrade Analysis'!#REF!) ->  | I123: =IF(A123="","",IF(OR(A123="1a",A123="1b",A123="3",A123="3a",A123="2-4",A123="2-5",A123="2-6",A123="2-7"),VLOOKUP(A123,CLASS!$A$2:$E$18,4,FALSE),IF(OR(A123="5",A123="7-5",A123="8a",A123="8b",A123="R",A123="S",A123="C"),"",IF(AND(OR(A123="4b",A123="4a"),'Subgrade Analysis'!#REF!="NP"),11,IF(H123="NP", VLOOKUP(A123,CLASS!$A$2:$E$18,4,FALSE),IF(AND(OR(A123="4a",A123="4b"),H123-5>=10),H123-5,IF(H123="NP", VLOOKUP(A123,CLASS!$A$2:$E$18,4,FALSE),IF(AND(A123="6a",H123-5>=14),H123-5,IF(H123="NP", VLOOKUP(A123,CLASS!$A$2:$E$18,4,FALSE),IF(AND(A123="6b",H123-5>=16),H123-5,IF(H123="NP", VLOOKUP(A123,CLASS!$A$2:$E$18,4,FALSE),IF(AND(A123="7-6",H123-3>=18),H123-3,VLOOKUP(A123,CLASS!$A$2:$E$18,4,FALSE))))))))))))) -> 
A124: =IFERROR(IF('Subgrade Analysis'!#REF!="","",'Subgrade Analysis'!#REF!),"") ->  | B124: =IF(A124="","",IF('Subgrade Analysis'!#REF!>75,40,IF('Subgrade Analysis'!#REF!<35,0,'Subgrade Analysis'!#REF!-35))) ->  | C124: =IFERROR(IF('Subgrade Analysis'!#REF!>55,40,IF('Subgrade Analysis'!#REF!<15,0,'Subgrade Analysis'!#REF!-15)),"") ->  | D124: =IF(A124="","",IF('Subgrade Analysis'!#REF!>60,20,IF('Subgrade Analysis'!#REF!<40,0,'Subgrade Analysis'!#REF!-40))) ->  | E124: =IF('Subgrade Analysis'!#REF!>30,20,IF('Subgrade Analysis'!#REF!<10,0,'Subgrade Analysis'!#REF!-10)) ->  | G124: =IF(A124="","",IF(SUM('Subgrade Analysis'!#REF!)=0,VLOOKUP('Group Index'!A124,CLASS!$B$2:$D$23,2,FALSE),IF(F124>VLOOKUP(A124,CLASS!$B$2:$D$23,3,FALSE),VLOOKUP(A124,CLASS!$B$2:$D$23,3,FALSE),F124))) ->  | H124: =IF(A124="","",'Subgrade Analysis'!#REF!) ->  | I124: =IF(A124="","",IF(OR(A124="1a",A124="1b",A124="3",A124="3a",A124="2-4",A124="2-5",A124="2-6",A124="2-7"),VLOOKUP(A124,CLASS!$A$2:$E$18,4,FALSE),IF(OR(A124="5",A124="7-5",A124="8a",A124="8b",A124="R",A124="S",A124="C"),"",IF(AND(OR(A124="4b",A124="4a"),'Subgrade Analysis'!#REF!="NP"),11,IF(H124="NP", VLOOKUP(A124,CLASS!$A$2:$E$18,4,FALSE),IF(AND(OR(A124="4a",A124="4b"),H124-5>=10),H124-5,IF(H124="NP", VLOOKUP(A124,CLASS!$A$2:$E$18,4,FALSE),IF(AND(A124="6a",H124-5>=14),H124-5,IF(H124="NP", VLOOKUP(A124,CLASS!$A$2:$E$18,4,FALSE),IF(AND(A124="6b",H124-5>=16),H124-5,IF(H124="NP", VLOOKUP(A124,CLASS!$A$2:$E$18,4,FALSE),IF(AND(A124="7-6",H124-3>=18),H124-3,VLOOKUP(A124,CLASS!$A$2:$E$18,4,FALSE))))))))))))) -> 
A125: =IFERROR(IF('Subgrade Analysis'!#REF!="","",'Subgrade Analysis'!#REF!),"") ->  | B125: =IF(A125="","",IF('Subgrade Analysis'!#REF!>75,40,IF('Subgrade Analysis'!#REF!<35,0,'Subgrade Analysis'!#REF!-35))) ->  | C125: =IFERROR(IF('Subgrade Analysis'!#REF!>55,40,IF('Subgrade Analysis'!#REF!<15,0,'Subgrade Analysis'!#REF!-15)),"") ->  | D125: =IF(A125="","",IF('Subgrade Analysis'!#REF!>60,20,IF('Subgrade Analysis'!#REF!<40,0,'Subgrade Analysis'!#REF!-40))) ->  | E125: =IF('Subgrade Analysis'!#REF!>30,20,IF('Subgrade Analysis'!#REF!<10,0,'Subgrade Analysis'!#REF!-10)) ->  | G125: =IF(A125="","",IF(SUM('Subgrade Analysis'!#REF!)=0,VLOOKUP('Group Index'!A125,CLASS!$B$2:$D$23,2,FALSE),IF(F125>VLOOKUP(A125,CLASS!$B$2:$D$23,3,FALSE),VLOOKUP(A125,CLASS!$B$2:$D$23,3,FALSE),F125))) ->  | H125: =IF(A125="","",'Subgrade Analysis'!#REF!) ->  | I125: =IF(A125="","",IF(OR(A125="1a",A125="1b",A125="3",A125="3a",A125="2-4",A125="2-5",A125="2-6",A125="2-7"),VLOOKUP(A125,CLASS!$A$2:$E$18,4,FALSE),IF(OR(A125="5",A125="7-5",A125="8a",A125="8b",A125="R",A125="S",A125="C"),"",IF(AND(OR(A125="4b",A125="4a"),'Subgrade Analysis'!#REF!="NP"),11,IF(H125="NP", VLOOKUP(A125,CLASS!$A$2:$E$18,4,FALSE),IF(AND(OR(A125="4a",A125="4b"),H125-5>=10),H125-5,IF(H125="NP", VLOOKUP(A125,CLASS!$A$2:$E$18,4,FALSE),IF(AND(A125="6a",H125-5>=14),H125-5,IF(H125="NP", VLOOKUP(A125,CLASS!$A$2:$E$18,4,FALSE),IF(AND(A125="6b",H125-5>=16),H125-5,IF(H125="NP", VLOOKUP(A125,CLASS!$A$2:$E$18,4,FALSE),IF(AND(A125="7-6",H125-3>=18),H125-3,VLOOKUP(A125,CLASS!$A$2:$E$18,4,FALSE))))))))))))) -> 
A126: =IFERROR(IF('Subgrade Analysis'!#REF!="","",'Subgrade Analysis'!#REF!),"") ->  | B126: =IF(A126="","",IF('Subgrade Analysis'!#REF!>75,40,IF('Subgrade Analysis'!#REF!<35,0,'Subgrade Analysis'!#REF!-35))) ->  | C126: =IFERROR(IF('Subgrade Analysis'!#REF!>55,40,IF('Subgrade Analysis'!#REF!<15,0,'Subgrade Analysis'!#REF!-15)),"") ->  | D126: =IF(A126="","",IF('Subgrade Analysis'!#REF!>60,20,IF('Subgrade Analysis'!#REF!<40,0,'Subgrade Analysis'!#REF!-40))) ->  | E126: =IF('Subgrade Analysis'!#REF!>30,20,IF('Subgrade Analysis'!#REF!<10,0,'Subgrade Analysis'!#REF!-10)) ->  | G126: =IF(A126="","",IF(SUM('Subgrade Analysis'!#REF!)=0,VLOOKUP('Group Index'!A126,CLASS!$B$2:$D$23,2,FALSE),IF(F126>VLOOKUP(A126,CLASS!$B$2:$D$23,3,FALSE),VLOOKUP(A126,CLASS!$B$2:$D$23,3,FALSE),F126))) ->  | H126: =IF(A126="","",'Subgrade Analysis'!#REF!) ->  | I126: =IF(A126="","",IF(OR(A126="1a",A126="1b",A126="3",A126="3a",A126="2-4",A126="2-5",A126="2-6",A126="2-7"),VLOOKUP(A126,CLASS!$A$2:$E$18,4,FALSE),IF(OR(A126="5",A126="7-5",A126="8a",A126="8b",A126="R",A126="S",A126="C"),"",IF(AND(OR(A126="4b",A126="4a"),'Subgrade Analysis'!#REF!="NP"),11,IF(H126="NP", VLOOKUP(A126,CLASS!$A$2:$E$18,4,FALSE),IF(AND(OR(A126="4a",A126="4b"),H126-5>=10),H126-5,IF(H126="NP", VLOOKUP(A126,CLASS!$A$2:$E$18,4,FALSE),IF(AND(A126="6a",H126-5>=14),H126-5,IF(H126="NP", VLOOKUP(A126,CLASS!$A$2:$E$18,4,FALSE),IF(AND(A126="6b",H126-5>=16),H126-5,IF(H126="NP", VLOOKUP(A126,CLASS!$A$2:$E$18,4,FALSE),IF(AND(A126="7-6",H126-3>=18),H126-3,VLOOKUP(A126,CLASS!$A$2:$E$18,4,FALSE))))))))))))) -> 
A127: =IFERROR(IF('Subgrade Analysis'!#REF!="","",'Subgrade Analysis'!#REF!),"") ->  | B127: =IF(A127="","",IF('Subgrade Analysis'!#REF!>75,40,IF('Subgrade Analysis'!#REF!<35,0,'Subgrade Analysis'!#REF!-35))) ->  | C127: =IFERROR(IF('Subgrade Analysis'!#REF!>55,40,IF('Subgrade Analysis'!#REF!<15,0,'Subgrade Analysis'!#REF!-15)),"") ->  | D127: =IF(A127="","",IF('Subgrade Analysis'!#REF!>60,20,IF('Subgrade Analysis'!#REF!<40,0,'Subgrade Analysis'!#REF!-40))) ->  | E127: =IF('Subgrade Analysis'!#REF!>30,20,IF('Subgrade Analysis'!#REF!<10,0,'Subgrade Analysis'!#REF!-10)) ->  | G127: =IF(A127="","",IF(SUM('Subgrade Analysis'!#REF!)=0,VLOOKUP('Group Index'!A127,CLASS!$B$2:$D$23,2,FALSE),IF(F127>VLOOKUP(A127,CLASS!$B$2:$D$23,3,FALSE),VLOOKUP(A127,CLASS!$B$2:$D$23,3,FALSE),F127))) ->  | H127: =IF(A127="","",'Subgrade Analysis'!#REF!) ->  | I127: =IF(A127="","",IF(OR(A127="1a",A127="1b",A127="3",A127="3a",A127="2-4",A127="2-5",A127="2-6",A127="2-7"),VLOOKUP(A127,CLASS!$A$2:$E$18,4,FALSE),IF(OR(A127="5",A127="7-5",A127="8a",A127="8b",A127="R",A127="S",A127="C"),"",IF(AND(OR(A127="4b",A127="4a"),'Subgrade Analysis'!#REF!="NP"),11,IF(H127="NP", VLOOKUP(A127,CLASS!$A$2:$E$18,4,FALSE),IF(AND(OR(A127="4a",A127="4b"),H127-5>=10),H127-5,IF(H127="NP", VLOOKUP(A127,CLASS!$A$2:$E$18,4,FALSE),IF(AND(A127="6a",H127-5>=14),H127-5,IF(H127="NP", VLOOKUP(A127,CLASS!$A$2:$E$18,4,FALSE),IF(AND(A127="6b",H127-5>=16),H127-5,IF(H127="NP", VLOOKUP(A127,CLASS!$A$2:$E$18,4,FALSE),IF(AND(A127="7-6",H127-3>=18),H127-3,VLOOKUP(A127,CLASS!$A$2:$E$18,4,FALSE))))))))))))) -> 
A128: =IFERROR(IF('Subgrade Analysis'!#REF!="","",'Subgrade Analysis'!#REF!),"") ->  | B128: =IF(A128="","",IF('Subgrade Analysis'!#REF!>75,40,IF('Subgrade Analysis'!#REF!<35,0,'Subgrade Analysis'!#REF!-35))) ->  | C128: =IFERROR(IF('Subgrade Analysis'!#REF!>55,40,IF('Subgrade Analysis'!#REF!<15,0,'Subgrade Analysis'!#REF!-15)),"") ->  | D128: =IF(A128="","",IF('Subgrade Analysis'!#REF!>60,20,IF('Subgrade Analysis'!#REF!<40,0,'Subgrade Analysis'!#REF!-40))) ->  | E128: =IF('Subgrade Analysis'!#REF!>30,20,IF('Subgrade Analysis'!#REF!<10,0,'Subgrade Analysis'!#REF!-10)) ->  | G128: =IF(A128="","",IF(SUM('Subgrade Analysis'!#REF!)=0,VLOOKUP('Group Index'!A128,CLASS!$B$2:$D$23,2,FALSE),IF(F128>VLOOKUP(A128,CLASS!$B$2:$D$23,3,FALSE),VLOOKUP(A128,CLASS!$B$2:$D$23,3,FALSE),F128))) ->  | H128: =IF(A128="","",'Subgrade Analysis'!#REF!) ->  | I128: =IF(A128="","",IF(OR(A128="1a",A128="1b",A128="3",A128="3a",A128="2-4",A128="2-5",A128="2-6",A128="2-7"),VLOOKUP(A128,CLASS!$A$2:$E$18,4,FALSE),IF(OR(A128="5",A128="7-5",A128="8a",A128="8b",A128="R",A128="S",A128="C"),"",IF(AND(OR(A128="4b",A128="4a"),'Subgrade Analysis'!#REF!="NP"),11,IF(H128="NP", VLOOKUP(A128,CLASS!$A$2:$E$18,4,FALSE),IF(AND(OR(A128="4a",A128="4b"),H128-5>=10),H128-5,IF(H128="NP", VLOOKUP(A128,CLASS!$A$2:$E$18,4,FALSE),IF(AND(A128="6a",H128-5>=14),H128-5,IF(H128="NP", VLOOKUP(A128,CLASS!$A$2:$E$18,4,FALSE),IF(AND(A128="6b",H128-5>=16),H128-5,IF(H128="NP", VLOOKUP(A128,CLASS!$A$2:$E$18,4,FALSE),IF(AND(A128="7-6",H128-3>=18),H128-3,VLOOKUP(A128,CLASS!$A$2:$E$18,4,FALSE))))))))))))) -> 
A129: =IFERROR(IF('Subgrade Analysis'!#REF!="","",'Subgrade Analysis'!#REF!),"") ->  | B129: =IF(A129="","",IF('Subgrade Analysis'!#REF!>75,40,IF('Subgrade Analysis'!#REF!<35,0,'Subgrade Analysis'!#REF!-35))) ->  | C129: =IFERROR(IF('Subgrade Analysis'!#REF!>55,40,IF('Subgrade Analysis'!#REF!<15,0,'Subgrade Analysis'!#REF!-15)),"") ->  | D129: =IF(A129="","",IF('Subgrade Analysis'!#REF!>60,20,IF('Subgrade Analysis'!#REF!<40,0,'Subgrade Analysis'!#REF!-40))) ->  | E129: =IF('Subgrade Analysis'!#REF!>30,20,IF('Subgrade Analysis'!#REF!<10,0,'Subgrade Analysis'!#REF!-10)) ->  | G129: =IF(A129="","",IF(SUM('Subgrade Analysis'!#REF!)=0,VLOOKUP('Group Index'!A129,CLASS!$B$2:$D$23,2,FALSE),IF(F129>VLOOKUP(A129,CLASS!$B$2:$D$23,3,FALSE),VLOOKUP(A129,CLASS!$B$2:$D$23,3,FALSE),F129))) ->  | H129: =IF(A129="","",'Subgrade Analysis'!#REF!) ->  | I129: =IF(A129="","",IF(OR(A129="1a",A129="1b",A129="3",A129="3a",A129="2-4",A129="2-5",A129="2-6",A129="2-7"),VLOOKUP(A129,CLASS!$A$2:$E$18,4,FALSE),IF(OR(A129="5",A129="7-5",A129="8a",A129="8b",A129="R",A129="S",A129="C"),"",IF(AND(OR(A129="4b",A129="4a"),'Subgrade Analysis'!#REF!="NP"),11,IF(H129="NP", VLOOKUP(A129,CLASS!$A$2:$E$18,4,FALSE),IF(AND(OR(A129="4a",A129="4b"),H129-5>=10),H129-5,IF(H129="NP", VLOOKUP(A129,CLASS!$A$2:$E$18,4,FALSE),IF(AND(A129="6a",H129-5>=14),H129-5,IF(H129="NP", VLOOKUP(A129,CLASS!$A$2:$E$18,4,FALSE),IF(AND(A129="6b",H129-5>=16),H129-5,IF(H129="NP", VLOOKUP(A129,CLASS!$A$2:$E$18,4,FALSE),IF(AND(A129="7-6",H129-3>=18),H129-3,VLOOKUP(A129,CLASS!$A$2:$E$18,4,FALSE))))))))))))) -> 
A130: =IFERROR(IF('Subgrade Analysis'!#REF!="","",'Subgrade Analysis'!#REF!),"") ->  | B130: =IF(A130="","",IF('Subgrade Analysis'!#REF!>75,40,IF('Subgrade Analysis'!#REF!<35,0,'Subgrade Analysis'!#REF!-35))) ->  | C130: =IFERROR(IF('Subgrade Analysis'!#REF!>55,40,IF('Subgrade Analysis'!#REF!<15,0,'Subgrade Analysis'!#REF!-15)),"") ->  | D130: =IF(A130="","",IF('Subgrade Analysis'!#REF!>60,20,IF('Subgrade Analysis'!#REF!<40,0,'Subgrade Analysis'!#REF!-40))) ->  | E130: =IF('Subgrade Analysis'!#REF!>30,20,IF('Subgrade Analysis'!#REF!<10,0,'Subgrade Analysis'!#REF!-10)) ->  | G130: =IF(A130="","",IF(SUM('Subgrade Analysis'!#REF!)=0,VLOOKUP('Group Index'!A130,CLASS!$B$2:$D$23,2,FALSE),IF(F130>VLOOKUP(A130,CLASS!$B$2:$D$23,3,FALSE),VLOOKUP(A130,CLASS!$B$2:$D$23,3,FALSE),F130))) ->  | H130: =IF(A130="","",'Subgrade Analysis'!#REF!) ->  | I130: =IF(A130="","",IF(OR(A130="1a",A130="1b",A130="3",A130="3a",A130="2-4",A130="2-5",A130="2-6",A130="2-7"),VLOOKUP(A130,CLASS!$A$2:$E$18,4,FALSE),IF(OR(A130="5",A130="7-5",A130="8a",A130="8b",A130="R",A130="S",A130="C"),"",IF(AND(OR(A130="4b",A130="4a"),'Subgrade Analysis'!#REF!="NP"),11,IF(H130="NP", VLOOKUP(A130,CLASS!$A$2:$E$18,4,FALSE),IF(AND(OR(A130="4a",A130="4b"),H130-5>=10),H130-5,IF(H130="NP", VLOOKUP(A130,CLASS!$A$2:$E$18,4,FALSE),IF(AND(A130="6a",H130-5>=14),H130-5,IF(H130="NP", VLOOKUP(A130,CLASS!$A$2:$E$18,4,FALSE),IF(AND(A130="6b",H130-5>=16),H130-5,IF(H130="NP", VLOOKUP(A130,CLASS!$A$2:$E$18,4,FALSE),IF(AND(A130="7-6",H130-3>=18),H130-3,VLOOKUP(A130,CLASS!$A$2:$E$18,4,FALSE))))))))))))) -> 
A131: =IFERROR(IF('Subgrade Analysis'!#REF!="","",'Subgrade Analysis'!#REF!),"") ->  | B131: =IF(A131="","",IF('Subgrade Analysis'!#REF!>75,40,IF('Subgrade Analysis'!#REF!<35,0,'Subgrade Analysis'!#REF!-35))) ->  | C131: =IFERROR(IF('Subgrade Analysis'!#REF!>55,40,IF('Subgrade Analysis'!#REF!<15,0,'Subgrade Analysis'!#REF!-15)),"") ->  | D131: =IF(A131="","",IF('Subgrade Analysis'!#REF!>60,20,IF('Subgrade Analysis'!#REF!<40,0,'Subgrade Analysis'!#REF!-40))) ->  | E131: =IF('Subgrade Analysis'!#REF!>30,20,IF('Subgrade Analysis'!#REF!<10,0,'Subgrade Analysis'!#REF!-10)) ->  | F131: =IFERROR(IF(A131="","",ROUND((0.2*B131)+(0.005*B131*D131)+(0.01*C131*E131),0)),"") ->  | G131: =IF(A131="","",IF(SUM('Subgrade Analysis'!#REF!)=0,VLOOKUP('Group Index'!A131,CLASS!$B$2:$D$23,2,FALSE),IF(F131>VLOOKUP(A131,CLASS!$B$2:$D$23,3,FALSE),VLOOKUP(A131,CLASS!$B$2:$D$23,3,FALSE),F131))) ->  | H131: =IF(A131="","",'Subgrade Analysis'!#REF!) ->  | I131: =IF(A131="","",IF(OR(A131="1a",A131="1b",A131="3",A131="3a",A131="2-4",A131="2-5",A131="2-6",A131="2-7"),VLOOKUP(A131,CLASS!$A$2:$E$18,4,FALSE),IF(OR(A131="5",A131="7-5",A131="8a",A131="8b",A131="R",A131="S",A131="C"),"",IF(AND(OR(A131="4b",A131="4a"),'Subgrade Analysis'!#REF!="NP"),11,IF(H131="NP", VLOOKUP(A131,CLASS!$A$2:$E$18,4,FALSE),IF(AND(OR(A131="4a",A131="4b"),H131-5>=10),H131-5,IF(H131="NP", VLOOKUP(A131,CLASS!$A$2:$E$18,4,FALSE),IF(AND(A131="6a",H131-5>=14),H131-5,IF(H131="NP", VLOOKUP(A131,CLASS!$A$2:$E$18,4,FALSE),IF(AND(A131="6b",H131-5>=16),H131-5,IF(H131="NP", VLOOKUP(A131,CLASS!$A$2:$E$18,4,FALSE),IF(AND(A131="7-6",H131-3>=18),H131-3,VLOOKUP(A131,CLASS!$A$2:$E$18,4,FALSE))))))))))))) -> 
A132: =IFERROR(IF('Subgrade Analysis'!#REF!="","",'Subgrade Analysis'!#REF!),"") ->  | B132: =IF(A132="","",IF('Subgrade Analysis'!#REF!>75,40,IF('Subgrade Analysis'!#REF!<35,0,'Subgrade Analysis'!#REF!-35))) ->  | C132: =IFERROR(IF('Subgrade Analysis'!#REF!>55,40,IF('Subgrade Analysis'!#REF!<15,0,'Subgrade Analysis'!#REF!-15)),"") ->  | D132: =IF(A132="","",IF('Subgrade Analysis'!#REF!>60,20,IF('Subgrade Analysis'!#REF!<40,0,'Subgrade Analysis'!#REF!-40))) ->  | E132: =IF('Subgrade Analysis'!#REF!>30,20,IF('Subgrade Analysis'!#REF!<10,0,'Subgrade Analysis'!#REF!-10)) ->  | G132: =IF(A132="","",IF(SUM('Subgrade Analysis'!#REF!)=0,VLOOKUP('Group Index'!A132,CLASS!$B$2:$D$23,2,FALSE),IF(F132>VLOOKUP(A132,CLASS!$B$2:$D$23,3,FALSE),VLOOKUP(A132,CLASS!$B$2:$D$23,3,FALSE),F132))) ->  | H132: =IF(A132="","",'Subgrade Analysis'!#REF!) ->  | I132: =IF(A132="","",IF(OR(A132="1a",A132="1b",A132="3",A132="3a",A132="2-4",A132="2-5",A132="2-6",A132="2-7"),VLOOKUP(A132,CLASS!$A$2:$E$18,4,FALSE),IF(OR(A132="5",A132="7-5",A132="8a",A132="8b",A132="R",A132="S",A132="C"),"",IF(AND(OR(A132="4b",A132="4a"),'Subgrade Analysis'!#REF!="NP"),11,IF(H132="NP", VLOOKUP(A132,CLASS!$A$2:$E$18,4,FALSE),IF(AND(OR(A132="4a",A132="4b"),H132-5>=10),H132-5,IF(H132="NP", VLOOKUP(A132,CLASS!$A$2:$E$18,4,FALSE),IF(AND(A132="6a",H132-5>=14),H132-5,IF(H132="NP", VLOOKUP(A132,CLASS!$A$2:$E$18,4,FALSE),IF(AND(A132="6b",H132-5>=16),H132-5,IF(H132="NP", VLOOKUP(A132,CLASS!$A$2:$E$18,4,FALSE),IF(AND(A132="7-6",H132-3>=18),H132-3,VLOOKUP(A132,CLASS!$A$2:$E$18,4,FALSE))))))))))))) -> 
A133: =IFERROR(IF('Subgrade Analysis'!#REF!="","",'Subgrade Analysis'!#REF!),"") ->  | B133: =IF(A133="","",IF('Subgrade Analysis'!#REF!>75,40,IF('Subgrade Analysis'!#REF!<35,0,'Subgrade Analysis'!#REF!-35))) ->  | C133: =IFERROR(IF('Subgrade Analysis'!#REF!>55,40,IF('Subgrade Analysis'!#REF!<15,0,'Subgrade Analysis'!#REF!-15)),"") ->  | D133: =IF(A133="","",IF('Subgrade Analysis'!#REF!>60,20,IF('Subgrade Analysis'!#REF!<40,0,'Subgrade Analysis'!#REF!-40))) ->  | E133: =IF('Subgrade Analysis'!#REF!>30,20,IF('Subgrade Analysis'!#REF!<10,0,'Subgrade Analysis'!#REF!-10)) ->  | G133: =IF(A133="","",IF(SUM('Subgrade Analysis'!#REF!)=0,VLOOKUP('Group Index'!A133,CLASS!$B$2:$D$23,2,FALSE),IF(F133>VLOOKUP(A133,CLASS!$B$2:$D$23,3,FALSE),VLOOKUP(A133,CLASS!$B$2:$D$23,3,FALSE),F133))) ->  | H133: =IF(A133="","",'Subgrade Analysis'!#REF!) ->  | I133: =IF(A133="","",IF(OR(A133="1a",A133="1b",A133="3",A133="3a",A133="2-4",A133="2-5",A133="2-6",A133="2-7"),VLOOKUP(A133,CLASS!$A$2:$E$18,4,FALSE),IF(OR(A133="5",A133="7-5",A133="8a",A133="8b",A133="R",A133="S",A133="C"),"",IF(AND(OR(A133="4b",A133="4a"),'Subgrade Analysis'!#REF!="NP"),11,IF(H133="NP", VLOOKUP(A133,CLASS!$A$2:$E$18,4,FALSE),IF(AND(OR(A133="4a",A133="4b"),H133-5>=10),H133-5,IF(H133="NP", VLOOKUP(A133,CLASS!$A$2:$E$18,4,FALSE),IF(AND(A133="6a",H133-5>=14),H133-5,IF(H133="NP", VLOOKUP(A133,CLASS!$A$2:$E$18,4,FALSE),IF(AND(A133="6b",H133-5>=16),H133-5,IF(H133="NP", VLOOKUP(A133,CLASS!$A$2:$E$18,4,FALSE),IF(AND(A133="7-6",H133-3>=18),H133-3,VLOOKUP(A133,CLASS!$A$2:$E$18,4,FALSE))))))))))))) -> 
A134: =IFERROR(IF('Subgrade Analysis'!#REF!="","",'Subgrade Analysis'!#REF!),"") ->  | B134: =IF(A134="","",IF('Subgrade Analysis'!#REF!>75,40,IF('Subgrade Analysis'!#REF!<35,0,'Subgrade Analysis'!#REF!-35))) ->  | C134: =IFERROR(IF('Subgrade Analysis'!#REF!>55,40,IF('Subgrade Analysis'!#REF!<15,0,'Subgrade Analysis'!#REF!-15)),"") ->  | D134: =IF(A134="","",IF('Subgrade Analysis'!#REF!>60,20,IF('Subgrade Analysis'!#REF!<40,0,'Subgrade Analysis'!#REF!-40))) ->  | E134: =IF('Subgrade Analysis'!#REF!>30,20,IF('Subgrade Analysis'!#REF!<10,0,'Subgrade Analysis'!#REF!-10)) ->  | G134: =IF(A134="","",IF(SUM('Subgrade Analysis'!#REF!)=0,VLOOKUP('Group Index'!A134,CLASS!$B$2:$D$23,2,FALSE),IF(F134>VLOOKUP(A134,CLASS!$B$2:$D$23,3,FALSE),VLOOKUP(A134,CLASS!$B$2:$D$23,3,FALSE),F134))) ->  | H134: =IF(A134="","",'Subgrade Analysis'!#REF!) ->  | I134: =IF(A134="","",IF(OR(A134="1a",A134="1b",A134="3",A134="3a",A134="2-4",A134="2-5",A134="2-6",A134="2-7"),VLOOKUP(A134,CLASS!$A$2:$E$18,4,FALSE),IF(OR(A134="5",A134="7-5",A134="8a",A134="8b",A134="R",A134="S",A134="C"),"",IF(AND(OR(A134="4b",A134="4a"),'Subgrade Analysis'!#REF!="NP"),11,IF(H134="NP", VLOOKUP(A134,CLASS!$A$2:$E$18,4,FALSE),IF(AND(OR(A134="4a",A134="4b"),H134-5>=10),H134-5,IF(H134="NP", VLOOKUP(A134,CLASS!$A$2:$E$18,4,FALSE),IF(AND(A134="6a",H134-5>=14),H134-5,IF(H134="NP", VLOOKUP(A134,CLASS!$A$2:$E$18,4,FALSE),IF(AND(A134="6b",H134-5>=16),H134-5,IF(H134="NP", VLOOKUP(A134,CLASS!$A$2:$E$18,4,FALSE),IF(AND(A134="7-6",H134-3>=18),H134-3,VLOOKUP(A134,CLASS!$A$2:$E$18,4,FALSE))))))))))))) -> 
A135: =IFERROR(IF('Subgrade Analysis'!#REF!="","",'Subgrade Analysis'!#REF!),"") ->  | B135: =IF(A135="","",IF('Subgrade Analysis'!#REF!>75,40,IF('Subgrade Analysis'!#REF!<35,0,'Subgrade Analysis'!#REF!-35))) ->  | C135: =IFERROR(IF('Subgrade Analysis'!#REF!>55,40,IF('Subgrade Analysis'!#REF!<15,0,'Subgrade Analysis'!#REF!-15)),"") ->  | D135: =IF(A135="","",IF('Subgrade Analysis'!#REF!>60,20,IF('Subgrade Analysis'!#REF!<40,0,'Subgrade Analysis'!#REF!-40))) ->  | E135: =IF('Subgrade Analysis'!#REF!>30,20,IF('Subgrade Analysis'!#REF!<10,0,'Subgrade Analysis'!#REF!-10)) ->  | G135: =IF(A135="","",IF(SUM('Subgrade Analysis'!#REF!)=0,VLOOKUP('Group Index'!A135,CLASS!$B$2:$D$23,2,FALSE),IF(F135>VLOOKUP(A135,CLASS!$B$2:$D$23,3,FALSE),VLOOKUP(A135,CLASS!$B$2:$D$23,3,FALSE),F135))) ->  | H135: =IF(A135="","",'Subgrade Analysis'!#REF!) ->  | I135: =IF(A135="","",IF(OR(A135="1a",A135="1b",A135="3",A135="3a",A135="2-4",A135="2-5",A135="2-6",A135="2-7"),VLOOKUP(A135,CLASS!$A$2:$E$18,4,FALSE),IF(OR(A135="5",A135="7-5",A135="8a",A135="8b",A135="R",A135="S",A135="C"),"",IF(AND(OR(A135="4b",A135="4a"),'Subgrade Analysis'!#REF!="NP"),11,IF(H135="NP", VLOOKUP(A135,CLASS!$A$2:$E$18,4,FALSE),IF(AND(OR(A135="4a",A135="4b"),H135-5>=10),H135-5,IF(H135="NP", VLOOKUP(A135,CLASS!$A$2:$E$18,4,FALSE),IF(AND(A135="6a",H135-5>=14),H135-5,IF(H135="NP", VLOOKUP(A135,CLASS!$A$2:$E$18,4,FALSE),IF(AND(A135="6b",H135-5>=16),H135-5,IF(H135="NP", VLOOKUP(A135,CLASS!$A$2:$E$18,4,FALSE),IF(AND(A135="7-6",H135-3>=18),H135-3,VLOOKUP(A135,CLASS!$A$2:$E$18,4,FALSE))))))))))))) -> 
A136: =IFERROR(IF('Subgrade Analysis'!#REF!="","",'Subgrade Analysis'!#REF!),"") ->  | B136: =IF(A136="","",IF('Subgrade Analysis'!#REF!>75,40,IF('Subgrade Analysis'!#REF!<35,0,'Subgrade Analysis'!#REF!-35))) ->  | C136: =IFERROR(IF('Subgrade Analysis'!#REF!>55,40,IF('Subgrade Analysis'!#REF!<15,0,'Subgrade Analysis'!#REF!-15)),"") ->  | D136: =IF(A136="","",IF('Subgrade Analysis'!#REF!>60,20,IF('Subgrade Analysis'!#REF!<40,0,'Subgrade Analysis'!#REF!-40))) ->  | E136: =IF('Subgrade Analysis'!#REF!>30,20,IF('Subgrade Analysis'!#REF!<10,0,'Subgrade Analysis'!#REF!-10)) ->  | G136: =IF(A136="","",IF(SUM('Subgrade Analysis'!#REF!)=0,VLOOKUP('Group Index'!A136,CLASS!$B$2:$D$23,2,FALSE),IF(F136>VLOOKUP(A136,CLASS!$B$2:$D$23,3,FALSE),VLOOKUP(A136,CLASS!$B$2:$D$23,3,FALSE),F136))) ->  | H136: =IF(A136="","",'Subgrade Analysis'!#REF!) ->  | I136: =IF(A136="","",IF(OR(A136="1a",A136="1b",A136="3",A136="3a",A136="2-4",A136="2-5",A136="2-6",A136="2-7"),VLOOKUP(A136,CLASS!$A$2:$E$18,4,FALSE),IF(OR(A136="5",A136="7-5",A136="8a",A136="8b",A136="R",A136="S",A136="C"),"",IF(AND(OR(A136="4b",A136="4a"),'Subgrade Analysis'!#REF!="NP"),11,IF(H136="NP", VLOOKUP(A136,CLASS!$A$2:$E$18,4,FALSE),IF(AND(OR(A136="4a",A136="4b"),H136-5>=10),H136-5,IF(H136="NP", VLOOKUP(A136,CLASS!$A$2:$E$18,4,FALSE),IF(AND(A136="6a",H136-5>=14),H136-5,IF(H136="NP", VLOOKUP(A136,CLASS!$A$2:$E$18,4,FALSE),IF(AND(A136="6b",H136-5>=16),H136-5,IF(H136="NP", VLOOKUP(A136,CLASS!$A$2:$E$18,4,FALSE),IF(AND(A136="7-6",H136-3>=18),H136-3,VLOOKUP(A136,CLASS!$A$2:$E$18,4,FALSE))))))))))))) -> 
A137: =IFERROR(IF('Subgrade Analysis'!#REF!="","",'Subgrade Analysis'!#REF!),"") ->  | B137: =IF(A137="","",IF('Subgrade Analysis'!#REF!>75,40,IF('Subgrade Analysis'!#REF!<35,0,'Subgrade Analysis'!#REF!-35))) ->  | C137: =IFERROR(IF('Subgrade Analysis'!#REF!>55,40,IF('Subgrade Analysis'!#REF!<15,0,'Subgrade Analysis'!#REF!-15)),"") ->  | D137: =IF(A137="","",IF('Subgrade Analysis'!#REF!>60,20,IF('Subgrade Analysis'!#REF!<40,0,'Subgrade Analysis'!#REF!-40))) ->  | E137: =IF('Subgrade Analysis'!#REF!>30,20,IF('Subgrade Analysis'!#REF!<10,0,'Subgrade Analysis'!#REF!-10)) ->  | G137: =IF(A137="","",IF(SUM('Subgrade Analysis'!#REF!)=0,VLOOKUP('Group Index'!A137,CLASS!$B$2:$D$23,2,FALSE),IF(F137>VLOOKUP(A137,CLASS!$B$2:$D$23,3,FALSE),VLOOKUP(A137,CLASS!$B$2:$D$23,3,FALSE),F137))) ->  | H137: =IF(A137="","",'Subgrade Analysis'!#REF!) ->  | I137: =IF(A137="","",IF(OR(A137="1a",A137="1b",A137="3",A137="3a",A137="2-4",A137="2-5",A137="2-6",A137="2-7"),VLOOKUP(A137,CLASS!$A$2:$E$18,4,FALSE),IF(OR(A137="5",A137="7-5",A137="8a",A137="8b",A137="R",A137="S",A137="C"),"",IF(AND(OR(A137="4b",A137="4a"),'Subgrade Analysis'!#REF!="NP"),11,IF(H137="NP", VLOOKUP(A137,CLASS!$A$2:$E$18,4,FALSE),IF(AND(OR(A137="4a",A137="4b"),H137-5>=10),H137-5,IF(H137="NP", VLOOKUP(A137,CLASS!$A$2:$E$18,4,FALSE),IF(AND(A137="6a",H137-5>=14),H137-5,IF(H137="NP", VLOOKUP(A137,CLASS!$A$2:$E$18,4,FALSE),IF(AND(A137="6b",H137-5>=16),H137-5,IF(H137="NP", VLOOKUP(A137,CLASS!$A$2:$E$18,4,FALSE),IF(AND(A137="7-6",H137-3>=18),H137-3,VLOOKUP(A137,CLASS!$A$2:$E$18,4,FALSE))))))))))))) -> 
A138: =IFERROR(IF('Subgrade Analysis'!#REF!="","",'Subgrade Analysis'!#REF!),"") ->  | B138: =IF(A138="","",IF('Subgrade Analysis'!#REF!>75,40,IF('Subgrade Analysis'!#REF!<35,0,'Subgrade Analysis'!#REF!-35))) ->  | C138: =IFERROR(IF('Subgrade Analysis'!#REF!>55,40,IF('Subgrade Analysis'!#REF!<15,0,'Subgrade Analysis'!#REF!-15)),"") ->  | D138: =IF(A138="","",IF('Subgrade Analysis'!#REF!>60,20,IF('Subgrade Analysis'!#REF!<40,0,'Subgrade Analysis'!#REF!-40))) ->  | E138: =IF('Subgrade Analysis'!#REF!>30,20,IF('Subgrade Analysis'!#REF!<10,0,'Subgrade Analysis'!#REF!-10)) ->  | G138: =IF(A138="","",IF(SUM('Subgrade Analysis'!#REF!)=0,VLOOKUP('Group Index'!A138,CLASS!$B$2:$D$23,2,FALSE),IF(F138>VLOOKUP(A138,CLASS!$B$2:$D$23,3,FALSE),VLOOKUP(A138,CLASS!$B$2:$D$23,3,FALSE),F138))) ->  | H138: =IF(A138="","",'Subgrade Analysis'!#REF!) ->  | I138: =IF(A138="","",IF(OR(A138="1a",A138="1b",A138="3",A138="3a",A138="2-4",A138="2-5",A138="2-6",A138="2-7"),VLOOKUP(A138,CLASS!$A$2:$E$18,4,FALSE),IF(OR(A138="5",A138="7-5",A138="8a",A138="8b",A138="R",A138="S",A138="C"),"",IF(AND(OR(A138="4b",A138="4a"),'Subgrade Analysis'!#REF!="NP"),11,IF(H138="NP", VLOOKUP(A138,CLASS!$A$2:$E$18,4,FALSE),IF(AND(OR(A138="4a",A138="4b"),H138-5>=10),H138-5,IF(H138="NP", VLOOKUP(A138,CLASS!$A$2:$E$18,4,FALSE),IF(AND(A138="6a",H138-5>=14),H138-5,IF(H138="NP", VLOOKUP(A138,CLASS!$A$2:$E$18,4,FALSE),IF(AND(A138="6b",H138-5>=16),H138-5,IF(H138="NP", VLOOKUP(A138,CLASS!$A$2:$E$18,4,FALSE),IF(AND(A138="7-6",H138-3>=18),H138-3,VLOOKUP(A138,CLASS!$A$2:$E$18,4,FALSE))))))))))))) -> 
A139: =IFERROR(IF('Subgrade Analysis'!#REF!="","",'Subgrade Analysis'!#REF!),"") ->  | B139: =IF(A139="","",IF('Subgrade Analysis'!#REF!>75,40,IF('Subgrade Analysis'!#REF!<35,0,'Subgrade Analysis'!#REF!-35))) ->  | C139: =IFERROR(IF('Subgrade Analysis'!#REF!>55,40,IF('Subgrade Analysis'!#REF!<15,0,'Subgrade Analysis'!#REF!-15)),"") ->  | D139: =IF(A139="","",IF('Subgrade Analysis'!#REF!>60,20,IF('Subgrade Analysis'!#REF!<40,0,'Subgrade Analysis'!#REF!-40))) ->  | E139: =IF('Subgrade Analysis'!#REF!>30,20,IF('Subgrade Analysis'!#REF!<10,0,'Subgrade Analysis'!#REF!-10)) ->  | G139: =IF(A139="","",IF(SUM('Subgrade Analysis'!#REF!)=0,VLOOKUP('Group Index'!A139,CLASS!$B$2:$D$23,2,FALSE),IF(F139>VLOOKUP(A139,CLASS!$B$2:$D$23,3,FALSE),VLOOKUP(A139,CLASS!$B$2:$D$23,3,FALSE),F139))) ->  | H139: =IF(A139="","",'Subgrade Analysis'!#REF!) ->  | I139: =IF(A139="","",IF(OR(A139="1a",A139="1b",A139="3",A139="3a",A139="2-4",A139="2-5",A139="2-6",A139="2-7"),VLOOKUP(A139,CLASS!$A$2:$E$18,4,FALSE),IF(OR(A139="5",A139="7-5",A139="8a",A139="8b",A139="R",A139="S",A139="C"),"",IF(AND(OR(A139="4b",A139="4a"),'Subgrade Analysis'!#REF!="NP"),11,IF(H139="NP", VLOOKUP(A139,CLASS!$A$2:$E$18,4,FALSE),IF(AND(OR(A139="4a",A139="4b"),H139-5>=10),H139-5,IF(H139="NP", VLOOKUP(A139,CLASS!$A$2:$E$18,4,FALSE),IF(AND(A139="6a",H139-5>=14),H139-5,IF(H139="NP", VLOOKUP(A139,CLASS!$A$2:$E$18,4,FALSE),IF(AND(A139="6b",H139-5>=16),H139-5,IF(H139="NP", VLOOKUP(A139,CLASS!$A$2:$E$18,4,FALSE),IF(AND(A139="7-6",H139-3>=18),H139-3,VLOOKUP(A139,CLASS!$A$2:$E$18,4,FALSE))))))))))))) -> 
A140: =IFERROR(IF('Subgrade Analysis'!#REF!="","",'Subgrade Analysis'!#REF!),"") ->  | B140: =IF(A140="","",IF('Subgrade Analysis'!#REF!>75,40,IF('Subgrade Analysis'!#REF!<35,0,'Subgrade Analysis'!#REF!-35))) ->  | C140: =IFERROR(IF('Subgrade Analysis'!#REF!>55,40,IF('Subgrade Analysis'!#REF!<15,0,'Subgrade Analysis'!#REF!-15)),"") ->  | D140: =IF(A140="","",IF('Subgrade Analysis'!#REF!>60,20,IF('Subgrade Analysis'!#REF!<40,0,'Subgrade Analysis'!#REF!-40))) ->  | E140: =IF('Subgrade Analysis'!#REF!>30,20,IF('Subgrade Analysis'!#REF!<10,0,'Subgrade Analysis'!#REF!-10)) ->  | G140: =IF(A140="","",IF(SUM('Subgrade Analysis'!#REF!)=0,VLOOKUP('Group Index'!A140,CLASS!$B$2:$D$23,2,FALSE),IF(F140>VLOOKUP(A140,CLASS!$B$2:$D$23,3,FALSE),VLOOKUP(A140,CLASS!$B$2:$D$23,3,FALSE),F140))) ->  | H140: =IF(A140="","",'Subgrade Analysis'!#REF!) ->  | I140: =IF(A140="","",IF(OR(A140="1a",A140="1b",A140="3",A140="3a",A140="2-4",A140="2-5",A140="2-6",A140="2-7"),VLOOKUP(A140,CLASS!$A$2:$E$18,4,FALSE),IF(OR(A140="5",A140="7-5",A140="8a",A140="8b",A140="R",A140="S",A140="C"),"",IF(AND(OR(A140="4b",A140="4a"),'Subgrade Analysis'!#REF!="NP"),11,IF(H140="NP", VLOOKUP(A140,CLASS!$A$2:$E$18,4,FALSE),IF(AND(OR(A140="4a",A140="4b"),H140-5>=10),H140-5,IF(H140="NP", VLOOKUP(A140,CLASS!$A$2:$E$18,4,FALSE),IF(AND(A140="6a",H140-5>=14),H140-5,IF(H140="NP", VLOOKUP(A140,CLASS!$A$2:$E$18,4,FALSE),IF(AND(A140="6b",H140-5>=16),H140-5,IF(H140="NP", VLOOKUP(A140,CLASS!$A$2:$E$18,4,FALSE),IF(AND(A140="7-6",H140-3>=18),H140-3,VLOOKUP(A140,CLASS!$A$2:$E$18,4,FALSE))))))))))))) -> 
A141: =IFERROR(IF('Subgrade Analysis'!#REF!="","",'Subgrade Analysis'!#REF!),"") ->  | B141: =IF(A141="","",IF('Subgrade Analysis'!#REF!>75,40,IF('Subgrade Analysis'!#REF!<35,0,'Subgrade Analysis'!#REF!-35))) ->  | C141: =IFERROR(IF('Subgrade Analysis'!#REF!>55,40,IF('Subgrade Analysis'!#REF!<15,0,'Subgrade Analysis'!#REF!-15)),"") ->  | D141: =IF(A141="","",IF('Subgrade Analysis'!#REF!>60,20,IF('Subgrade Analysis'!#REF!<40,0,'Subgrade Analysis'!#REF!-40))) ->  | E141: =IF('Subgrade Analysis'!#REF!>30,20,IF('Subgrade Analysis'!#REF!<10,0,'Subgrade Analysis'!#REF!-10)) ->  | G141: =IF(A141="","",IF(SUM('Subgrade Analysis'!#REF!)=0,VLOOKUP('Group Index'!A141,CLASS!$B$2:$D$23,2,FALSE),IF(F141>VLOOKUP(A141,CLASS!$B$2:$D$23,3,FALSE),VLOOKUP(A141,CLASS!$B$2:$D$23,3,FALSE),F141))) ->  | H141: =IF(A141="","",'Subgrade Analysis'!#REF!) ->  | I141: =IF(A141="","",IF(OR(A141="1a",A141="1b",A141="3",A141="3a",A141="2-4",A141="2-5",A141="2-6",A141="2-7"),VLOOKUP(A141,CLASS!$A$2:$E$18,4,FALSE),IF(OR(A141="5",A141="7-5",A141="8a",A141="8b",A141="R",A141="S",A141="C"),"",IF(AND(OR(A141="4b",A141="4a"),'Subgrade Analysis'!#REF!="NP"),11,IF(H141="NP", VLOOKUP(A141,CLASS!$A$2:$E$18,4,FALSE),IF(AND(OR(A141="4a",A141="4b"),H141-5>=10),H141-5,IF(H141="NP", VLOOKUP(A141,CLASS!$A$2:$E$18,4,FALSE),IF(AND(A141="6a",H141-5>=14),H141-5,IF(H141="NP", VLOOKUP(A141,CLASS!$A$2:$E$18,4,FALSE),IF(AND(A141="6b",H141-5>=16),H141-5,IF(H141="NP", VLOOKUP(A141,CLASS!$A$2:$E$18,4,FALSE),IF(AND(A141="7-6",H141-3>=18),H141-3,VLOOKUP(A141,CLASS!$A$2:$E$18,4,FALSE))))))))))))) -> 
A142: =IFERROR(IF('Subgrade Analysis'!#REF!="","",'Subgrade Analysis'!#REF!),"") ->  | B142: =IF(A142="","",IF('Subgrade Analysis'!#REF!>75,40,IF('Subgrade Analysis'!#REF!<35,0,'Subgrade Analysis'!#REF!-35))) ->  | C142: =IFERROR(IF('Subgrade Analysis'!#REF!>55,40,IF('Subgrade Analysis'!#REF!<15,0,'Subgrade Analysis'!#REF!-15)),"") ->  | D142: =IF(A142="","",IF('Subgrade Analysis'!#REF!>60,20,IF('Subgrade Analysis'!#REF!<40,0,'Subgrade Analysis'!#REF!-40))) ->  | E142: =IF('Subgrade Analysis'!#REF!>30,20,IF('Subgrade Analysis'!#REF!<10,0,'Subgrade Analysis'!#REF!-10)) ->  | G142: =IF(A142="","",IF(SUM('Subgrade Analysis'!#REF!)=0,VLOOKUP('Group Index'!A142,CLASS!$B$2:$D$23,2,FALSE),IF(F142>VLOOKUP(A142,CLASS!$B$2:$D$23,3,FALSE),VLOOKUP(A142,CLASS!$B$2:$D$23,3,FALSE),F142))) ->  | H142: =IF(A142="","",'Subgrade Analysis'!#REF!) ->  | I142: =IF(A142="","",IF(OR(A142="1a",A142="1b",A142="3",A142="3a",A142="2-4",A142="2-5",A142="2-6",A142="2-7"),VLOOKUP(A142,CLASS!$A$2:$E$18,4,FALSE),IF(OR(A142="5",A142="7-5",A142="8a",A142="8b",A142="R",A142="S",A142="C"),"",IF(AND(OR(A142="4b",A142="4a"),'Subgrade Analysis'!#REF!="NP"),11,IF(H142="NP", VLOOKUP(A142,CLASS!$A$2:$E$18,4,FALSE),IF(AND(OR(A142="4a",A142="4b"),H142-5>=10),H142-5,IF(H142="NP", VLOOKUP(A142,CLASS!$A$2:$E$18,4,FALSE),IF(AND(A142="6a",H142-5>=14),H142-5,IF(H142="NP", VLOOKUP(A142,CLASS!$A$2:$E$18,4,FALSE),IF(AND(A142="6b",H142-5>=16),H142-5,IF(H142="NP", VLOOKUP(A142,CLASS!$A$2:$E$18,4,FALSE),IF(AND(A142="7-6",H142-3>=18),H142-3,VLOOKUP(A142,CLASS!$A$2:$E$18,4,FALSE))))))))))))) -> 
A143: =IFERROR(IF('Subgrade Analysis'!#REF!="","",'Subgrade Analysis'!#REF!),"") ->  | B143: =IF(A143="","",IF('Subgrade Analysis'!#REF!>75,40,IF('Subgrade Analysis'!#REF!<35,0,'Subgrade Analysis'!#REF!-35))) ->  | C143: =IFERROR(IF('Subgrade Analysis'!#REF!>55,40,IF('Subgrade Analysis'!#REF!<15,0,'Subgrade Analysis'!#REF!-15)),"") ->  | D143: =IF(A143="","",IF('Subgrade Analysis'!#REF!>60,20,IF('Subgrade Analysis'!#REF!<40,0,'Subgrade Analysis'!#REF!-40))) ->  | E143: =IF('Subgrade Analysis'!#REF!>30,20,IF('Subgrade Analysis'!#REF!<10,0,'Subgrade Analysis'!#REF!-10)) ->  | G143: =IF(A143="","",IF(SUM('Subgrade Analysis'!#REF!)=0,VLOOKUP('Group Index'!A143,CLASS!$B$2:$D$23,2,FALSE),IF(F143>VLOOKUP(A143,CLASS!$B$2:$D$23,3,FALSE),VLOOKUP(A143,CLASS!$B$2:$D$23,3,FALSE),F143))) ->  | H143: =IF(A143="","",'Subgrade Analysis'!#REF!) ->  | I143: =IF(A143="","",IF(OR(A143="1a",A143="1b",A143="3",A143="3a",A143="2-4",A143="2-5",A143="2-6",A143="2-7"),VLOOKUP(A143,CLASS!$A$2:$E$18,4,FALSE),IF(OR(A143="5",A143="7-5",A143="8a",A143="8b",A143="R",A143="S",A143="C"),"",IF(AND(OR(A143="4b",A143="4a"),'Subgrade Analysis'!#REF!="NP"),11,IF(H143="NP", VLOOKUP(A143,CLASS!$A$2:$E$18,4,FALSE),IF(AND(OR(A143="4a",A143="4b"),H143-5>=10),H143-5,IF(H143="NP", VLOOKUP(A143,CLASS!$A$2:$E$18,4,FALSE),IF(AND(A143="6a",H143-5>=14),H143-5,IF(H143="NP", VLOOKUP(A143,CLASS!$A$2:$E$18,4,FALSE),IF(AND(A143="6b",H143-5>=16),H143-5,IF(H143="NP", VLOOKUP(A143,CLASS!$A$2:$E$18,4,FALSE),IF(AND(A143="7-6",H143-3>=18),H143-3,VLOOKUP(A143,CLASS!$A$2:$E$18,4,FALSE))))))))))))) -> 
A144: =IFERROR(IF('Subgrade Analysis'!#REF!="","",'Subgrade Analysis'!#REF!),"") ->  | B144: =IF(A144="","",IF('Subgrade Analysis'!#REF!>75,40,IF('Subgrade Analysis'!#REF!<35,0,'Subgrade Analysis'!#REF!-35))) ->  | C144: =IFERROR(IF('Subgrade Analysis'!#REF!>55,40,IF('Subgrade Analysis'!#REF!<15,0,'Subgrade Analysis'!#REF!-15)),"") ->  | D144: =IF(A144="","",IF('Subgrade Analysis'!#REF!>60,20,IF('Subgrade Analysis'!#REF!<40,0,'Subgrade Analysis'!#REF!-40))) ->  | E144: =IF('Subgrade Analysis'!#REF!>30,20,IF('Subgrade Analysis'!#REF!<10,0,'Subgrade Analysis'!#REF!-10)) ->  | G144: =IF(A144="","",IF(SUM('Subgrade Analysis'!#REF!)=0,VLOOKUP('Group Index'!A144,CLASS!$B$2:$D$23,2,FALSE),IF(F144>VLOOKUP(A144,CLASS!$B$2:$D$23,3,FALSE),VLOOKUP(A144,CLASS!$B$2:$D$23,3,FALSE),F144))) ->  | H144: =IF(A144="","",'Subgrade Analysis'!#REF!) ->  | I144: =IF(A144="","",IF(OR(A144="1a",A144="1b",A144="3",A144="3a",A144="2-4",A144="2-5",A144="2-6",A144="2-7"),VLOOKUP(A144,CLASS!$A$2:$E$18,4,FALSE),IF(OR(A144="5",A144="7-5",A144="8a",A144="8b",A144="R",A144="S",A144="C"),"",IF(AND(OR(A144="4b",A144="4a"),'Subgrade Analysis'!#REF!="NP"),11,IF(H144="NP", VLOOKUP(A144,CLASS!$A$2:$E$18,4,FALSE),IF(AND(OR(A144="4a",A144="4b"),H144-5>=10),H144-5,IF(H144="NP", VLOOKUP(A144,CLASS!$A$2:$E$18,4,FALSE),IF(AND(A144="6a",H144-5>=14),H144-5,IF(H144="NP", VLOOKUP(A144,CLASS!$A$2:$E$18,4,FALSE),IF(AND(A144="6b",H144-5>=16),H144-5,IF(H144="NP", VLOOKUP(A144,CLASS!$A$2:$E$18,4,FALSE),IF(AND(A144="7-6",H144-3>=18),H144-3,VLOOKUP(A144,CLASS!$A$2:$E$18,4,FALSE))))))))))))) -> 
A145: =IFERROR(IF('Subgrade Analysis'!#REF!="","",'Subgrade Analysis'!#REF!),"") ->  | B145: =IF(A145="","",IF('Subgrade Analysis'!#REF!>75,40,IF('Subgrade Analysis'!#REF!<35,0,'Subgrade Analysis'!#REF!-35))) ->  | C145: =IFERROR(IF('Subgrade Analysis'!#REF!>55,40,IF('Subgrade Analysis'!#REF!<15,0,'Subgrade Analysis'!#REF!-15)),"") ->  | D145: =IF(A145="","",IF('Subgrade Analysis'!#REF!>60,20,IF('Subgrade Analysis'!#REF!<40,0,'Subgrade Analysis'!#REF!-40))) ->  | E145: =IF('Subgrade Analysis'!#REF!>30,20,IF('Subgrade Analysis'!#REF!<10,0,'Subgrade Analysis'!#REF!-10)) ->  | G145: =IF(A145="","",IF(SUM('Subgrade Analysis'!#REF!)=0,VLOOKUP('Group Index'!A145,CLASS!$B$2:$D$23,2,FALSE),IF(F145>VLOOKUP(A145,CLASS!$B$2:$D$23,3,FALSE),VLOOKUP(A145,CLASS!$B$2:$D$23,3,FALSE),F145))) ->  | H145: =IF(A145="","",'Subgrade Analysis'!#REF!) ->  | I145: =IF(A145="","",IF(OR(A145="1a",A145="1b",A145="3",A145="3a",A145="2-4",A145="2-5",A145="2-6",A145="2-7"),VLOOKUP(A145,CLASS!$A$2:$E$18,4,FALSE),IF(OR(A145="5",A145="7-5",A145="8a",A145="8b",A145="R",A145="S",A145="C"),"",IF(AND(OR(A145="4b",A145="4a"),'Subgrade Analysis'!#REF!="NP"),11,IF(H145="NP", VLOOKUP(A145,CLASS!$A$2:$E$18,4,FALSE),IF(AND(OR(A145="4a",A145="4b"),H145-5>=10),H145-5,IF(H145="NP", VLOOKUP(A145,CLASS!$A$2:$E$18,4,FALSE),IF(AND(A145="6a",H145-5>=14),H145-5,IF(H145="NP", VLOOKUP(A145,CLASS!$A$2:$E$18,4,FALSE),IF(AND(A145="6b",H145-5>=16),H145-5,IF(H145="NP", VLOOKUP(A145,CLASS!$A$2:$E$18,4,FALSE),IF(AND(A145="7-6",H145-3>=18),H145-3,VLOOKUP(A145,CLASS!$A$2:$E$18,4,FALSE))))))))))))) -> 
A146: =IFERROR(IF('Subgrade Analysis'!#REF!="","",'Subgrade Analysis'!#REF!),"") ->  | B146: =IF(A146="","",IF('Subgrade Analysis'!#REF!>75,40,IF('Subgrade Analysis'!#REF!<35,0,'Subgrade Analysis'!#REF!-35))) ->  | C146: =IFERROR(IF('Subgrade Analysis'!#REF!>55,40,IF('Subgrade Analysis'!#REF!<15,0,'Subgrade Analysis'!#REF!-15)),"") ->  | D146: =IF(A146="","",IF('Subgrade Analysis'!#REF!>60,20,IF('Subgrade Analysis'!#REF!<40,0,'Subgrade Analysis'!#REF!-40))) ->  | E146: =IF('Subgrade Analysis'!#REF!>30,20,IF('Subgrade Analysis'!#REF!<10,0,'Subgrade Analysis'!#REF!-10)) ->  | G146: =IF(A146="","",IF(SUM('Subgrade Analysis'!#REF!)=0,VLOOKUP('Group Index'!A146,CLASS!$B$2:$D$23,2,FALSE),IF(F146>VLOOKUP(A146,CLASS!$B$2:$D$23,3,FALSE),VLOOKUP(A146,CLASS!$B$2:$D$23,3,FALSE),F146))) ->  | H146: =IF(A146="","",'Subgrade Analysis'!#REF!) ->  | I146: =IF(A146="","",IF(OR(A146="1a",A146="1b",A146="3",A146="3a",A146="2-4",A146="2-5",A146="2-6",A146="2-7"),VLOOKUP(A146,CLASS!$A$2:$E$18,4,FALSE),IF(OR(A146="5",A146="7-5",A146="8a",A146="8b",A146="R",A146="S",A146="C"),"",IF(AND(OR(A146="4b",A146="4a"),'Subgrade Analysis'!#REF!="NP"),11,IF(H146="NP", VLOOKUP(A146,CLASS!$A$2:$E$18,4,FALSE),IF(AND(OR(A146="4a",A146="4b"),H146-5>=10),H146-5,IF(H146="NP", VLOOKUP(A146,CLASS!$A$2:$E$18,4,FALSE),IF(AND(A146="6a",H146-5>=14),H146-5,IF(H146="NP", VLOOKUP(A146,CLASS!$A$2:$E$18,4,FALSE),IF(AND(A146="6b",H146-5>=16),H146-5,IF(H146="NP", VLOOKUP(A146,CLASS!$A$2:$E$18,4,FALSE),IF(AND(A146="7-6",H146-3>=18),H146-3,VLOOKUP(A146,CLASS!$A$2:$E$18,4,FALSE))))))))))))) -> 
A147: =IFERROR(IF('Subgrade Analysis'!#REF!="","",'Subgrade Analysis'!#REF!),"") ->  | B147: =IF(A147="","",IF('Subgrade Analysis'!#REF!>75,40,IF('Subgrade Analysis'!#REF!<35,0,'Subgrade Analysis'!#REF!-35))) ->  | C147: =IFERROR(IF('Subgrade Analysis'!#REF!>55,40,IF('Subgrade Analysis'!#REF!<15,0,'Subgrade Analysis'!#REF!-15)),"") ->  | D147: =IF(A147="","",IF('Subgrade Analysis'!#REF!>60,20,IF('Subgrade Analysis'!#REF!<40,0,'Subgrade Analysis'!#REF!-40))) ->  | E147: =IF('Subgrade Analysis'!#REF!>30,20,IF('Subgrade Analysis'!#REF!<10,0,'Subgrade Analysis'!#REF!-10)) ->  | G147: =IF(A147="","",IF(SUM('Subgrade Analysis'!#REF!)=0,VLOOKUP('Group Index'!A147,CLASS!$B$2:$D$23,2,FALSE),IF(F147>VLOOKUP(A147,CLASS!$B$2:$D$23,3,FALSE),VLOOKUP(A147,CLASS!$B$2:$D$23,3,FALSE),F147))) ->  | H147: =IF(A147="","",'Subgrade Analysis'!#REF!) ->  | I147: =IF(A147="","",IF(OR(A147="1a",A147="1b",A147="3",A147="3a",A147="2-4",A147="2-5",A147="2-6",A147="2-7"),VLOOKUP(A147,CLASS!$A$2:$E$18,4,FALSE),IF(OR(A147="5",A147="7-5",A147="8a",A147="8b",A147="R",A147="S",A147="C"),"",IF(AND(OR(A147="4b",A147="4a"),'Subgrade Analysis'!#REF!="NP"),11,IF(H147="NP", VLOOKUP(A147,CLASS!$A$2:$E$18,4,FALSE),IF(AND(OR(A147="4a",A147="4b"),H147-5>=10),H147-5,IF(H147="NP", VLOOKUP(A147,CLASS!$A$2:$E$18,4,FALSE),IF(AND(A147="6a",H147-5>=14),H147-5,IF(H147="NP", VLOOKUP(A147,CLASS!$A$2:$E$18,4,FALSE),IF(AND(A147="6b",H147-5>=16),H147-5,IF(H147="NP", VLOOKUP(A147,CLASS!$A$2:$E$18,4,FALSE),IF(AND(A147="7-6",H147-3>=18),H147-3,VLOOKUP(A147,CLASS!$A$2:$E$18,4,FALSE))))))))))))) -> 
A148: =IFERROR(IF('Subgrade Analysis'!#REF!="","",'Subgrade Analysis'!#REF!),"") ->  | B148: =IF(A148="","",IF('Subgrade Analysis'!#REF!>75,40,IF('Subgrade Analysis'!#REF!<35,0,'Subgrade Analysis'!#REF!-35))) ->  | C148: =IFERROR(IF('Subgrade Analysis'!#REF!>55,40,IF('Subgrade Analysis'!#REF!<15,0,'Subgrade Analysis'!#REF!-15)),"") ->  | D148: =IF(A148="","",IF('Subgrade Analysis'!#REF!>60,20,IF('Subgrade Analysis'!#REF!<40,0,'Subgrade Analysis'!#REF!-40))) ->  | E148: =IF('Subgrade Analysis'!#REF!>30,20,IF('Subgrade Analysis'!#REF!<10,0,'Subgrade Analysis'!#REF!-10)) ->  | G148: =IF(A148="","",IF(SUM('Subgrade Analysis'!#REF!)=0,VLOOKUP('Group Index'!A148,CLASS!$B$2:$D$23,2,FALSE),IF(F148>VLOOKUP(A148,CLASS!$B$2:$D$23,3,FALSE),VLOOKUP(A148,CLASS!$B$2:$D$23,3,FALSE),F148))) ->  | H148: =IF(A148="","",'Subgrade Analysis'!#REF!) ->  | I148: =IF(A148="","",IF(OR(A148="1a",A148="1b",A148="3",A148="3a",A148="2-4",A148="2-5",A148="2-6",A148="2-7"),VLOOKUP(A148,CLASS!$A$2:$E$18,4,FALSE),IF(OR(A148="5",A148="7-5",A148="8a",A148="8b",A148="R",A148="S",A148="C"),"",IF(AND(OR(A148="4b",A148="4a"),'Subgrade Analysis'!#REF!="NP"),11,IF(H148="NP", VLOOKUP(A148,CLASS!$A$2:$E$18,4,FALSE),IF(AND(OR(A148="4a",A148="4b"),H148-5>=10),H148-5,IF(H148="NP", VLOOKUP(A148,CLASS!$A$2:$E$18,4,FALSE),IF(AND(A148="6a",H148-5>=14),H148-5,IF(H148="NP", VLOOKUP(A148,CLASS!$A$2:$E$18,4,FALSE),IF(AND(A148="6b",H148-5>=16),H148-5,IF(H148="NP", VLOOKUP(A148,CLASS!$A$2:$E$18,4,FALSE),IF(AND(A148="7-6",H148-3>=18),H148-3,VLOOKUP(A148,CLASS!$A$2:$E$18,4,FALSE))))))))))))) -> 
A149: =IFERROR(IF('Subgrade Analysis'!#REF!="","",'Subgrade Analysis'!#REF!),"") ->  | B149: =IF(A149="","",IF('Subgrade Analysis'!#REF!>75,40,IF('Subgrade Analysis'!#REF!<35,0,'Subgrade Analysis'!#REF!-35))) ->  | C149: =IFERROR(IF('Subgrade Analysis'!#REF!>55,40,IF('Subgrade Analysis'!#REF!<15,0,'Subgrade Analysis'!#REF!-15)),"") ->  | D149: =IF(A149="","",IF('Subgrade Analysis'!#REF!>60,20,IF('Subgrade Analysis'!#REF!<40,0,'Subgrade Analysis'!#REF!-40))) ->  | E149: =IF('Subgrade Analysis'!#REF!>30,20,IF('Subgrade Analysis'!#REF!<10,0,'Subgrade Analysis'!#REF!-10)) ->  | G149: =IF(A149="","",IF(SUM('Subgrade Analysis'!#REF!)=0,VLOOKUP('Group Index'!A149,CLASS!$B$2:$D$23,2,FALSE),IF(F149>VLOOKUP(A149,CLASS!$B$2:$D$23,3,FALSE),VLOOKUP(A149,CLASS!$B$2:$D$23,3,FALSE),F149))) ->  | H149: =IF(A149="","",'Subgrade Analysis'!#REF!) ->  | I149: =IF(A149="","",IF(OR(A149="1a",A149="1b",A149="3",A149="3a",A149="2-4",A149="2-5",A149="2-6",A149="2-7"),VLOOKUP(A149,CLASS!$A$2:$E$18,4,FALSE),IF(OR(A149="5",A149="7-5",A149="8a",A149="8b",A149="R",A149="S",A149="C"),"",IF(AND(OR(A149="4b",A149="4a"),'Subgrade Analysis'!#REF!="NP"),11,IF(H149="NP", VLOOKUP(A149,CLASS!$A$2:$E$18,4,FALSE),IF(AND(OR(A149="4a",A149="4b"),H149-5>=10),H149-5,IF(H149="NP", VLOOKUP(A149,CLASS!$A$2:$E$18,4,FALSE),IF(AND(A149="6a",H149-5>=14),H149-5,IF(H149="NP", VLOOKUP(A149,CLASS!$A$2:$E$18,4,FALSE),IF(AND(A149="6b",H149-5>=16),H149-5,IF(H149="NP", VLOOKUP(A149,CLASS!$A$2:$E$18,4,FALSE),IF(AND(A149="7-6",H149-3>=18),H149-3,VLOOKUP(A149,CLASS!$A$2:$E$18,4,FALSE))))))))))))) -> 
A150: =IFERROR(IF('Subgrade Analysis'!#REF!="","",'Subgrade Analysis'!#REF!),"") ->  | B150: =IF(A150="","",IF('Subgrade Analysis'!#REF!>75,40,IF('Subgrade Analysis'!#REF!<35,0,'Subgrade Analysis'!#REF!-35))) ->  | C150: =IFERROR(IF('Subgrade Analysis'!#REF!>55,40,IF('Subgrade Analysis'!#REF!<15,0,'Subgrade Analysis'!#REF!-15)),"") ->  | D150: =IF(A150="","",IF('Subgrade Analysis'!#REF!>60,20,IF('Subgrade Analysis'!#REF!<40,0,'Subgrade Analysis'!#REF!-40))) ->  | E150: =IF('Subgrade Analysis'!#REF!>30,20,IF('Subgrade Analysis'!#REF!<10,0,'Subgrade Analysis'!#REF!-10)) ->  | G150: =IF(A150="","",IF(SUM('Subgrade Analysis'!#REF!)=0,VLOOKUP('Group Index'!A150,CLASS!$B$2:$D$23,2,FALSE),IF(F150>VLOOKUP(A150,CLASS!$B$2:$D$23,3,FALSE),VLOOKUP(A150,CLASS!$B$2:$D$23,3,FALSE),F150))) ->  | H150: =IF(A150="","",'Subgrade Analysis'!#REF!) ->  | I150: =IF(A150="","",IF(OR(A150="1a",A150="1b",A150="3",A150="3a",A150="2-4",A150="2-5",A150="2-6",A150="2-7"),VLOOKUP(A150,CLASS!$A$2:$E$18,4,FALSE),IF(OR(A150="5",A150="7-5",A150="8a",A150="8b",A150="R",A150="S",A150="C"),"",IF(AND(OR(A150="4b",A150="4a"),'Subgrade Analysis'!#REF!="NP"),11,IF(H150="NP", VLOOKUP(A150,CLASS!$A$2:$E$18,4,FALSE),IF(AND(OR(A150="4a",A150="4b"),H150-5>=10),H150-5,IF(H150="NP", VLOOKUP(A150,CLASS!$A$2:$E$18,4,FALSE),IF(AND(A150="6a",H150-5>=14),H150-5,IF(H150="NP", VLOOKUP(A150,CLASS!$A$2:$E$18,4,FALSE),IF(AND(A150="6b",H150-5>=16),H150-5,IF(H150="NP", VLOOKUP(A150,CLASS!$A$2:$E$18,4,FALSE),IF(AND(A150="7-6",H150-3>=18),H150-3,VLOOKUP(A150,CLASS!$A$2:$E$18,4,FALSE))))))))))))) -> 
A151: =IFERROR(IF('Subgrade Analysis'!#REF!="","",'Subgrade Analysis'!#REF!),"") ->  | B151: =IF(A151="","",IF('Subgrade Analysis'!#REF!>75,40,IF('Subgrade Analysis'!#REF!<35,0,'Subgrade Analysis'!#REF!-35))) ->  | C151: =IFERROR(IF('Subgrade Analysis'!#REF!>55,40,IF('Subgrade Analysis'!#REF!<15,0,'Subgrade Analysis'!#REF!-15)),"") ->  | D151: =IF(A151="","",IF('Subgrade Analysis'!#REF!>60,20,IF('Subgrade Analysis'!#REF!<40,0,'Subgrade Analysis'!#REF!-40))) ->  | E151: =IF('Subgrade Analysis'!#REF!>30,20,IF('Subgrade Analysis'!#REF!<10,0,'Subgrade Analysis'!#REF!-10)) ->  | G151: =IF(A151="","",IF(SUM('Subgrade Analysis'!#REF!)=0,VLOOKUP('Group Index'!A151,CLASS!$B$2:$D$23,2,FALSE),IF(F151>VLOOKUP(A151,CLASS!$B$2:$D$23,3,FALSE),VLOOKUP(A151,CLASS!$B$2:$D$23,3,FALSE),F151))) ->  | H151: =IF(A151="","",'Subgrade Analysis'!#REF!) ->  | I151: =IF(A151="","",IF(OR(A151="1a",A151="1b",A151="3",A151="3a",A151="2-4",A151="2-5",A151="2-6",A151="2-7"),VLOOKUP(A151,CLASS!$A$2:$E$18,4,FALSE),IF(OR(A151="5",A151="7-5",A151="8a",A151="8b",A151="R",A151="S",A151="C"),"",IF(AND(OR(A151="4b",A151="4a"),'Subgrade Analysis'!#REF!="NP"),11,IF(H151="NP", VLOOKUP(A151,CLASS!$A$2:$E$18,4,FALSE),IF(AND(OR(A151="4a",A151="4b"),H151-5>=10),H151-5,IF(H151="NP", VLOOKUP(A151,CLASS!$A$2:$E$18,4,FALSE),IF(AND(A151="6a",H151-5>=14),H151-5,IF(H151="NP", VLOOKUP(A151,CLASS!$A$2:$E$18,4,FALSE),IF(AND(A151="6b",H151-5>=16),H151-5,IF(H151="NP", VLOOKUP(A151,CLASS!$A$2:$E$18,4,FALSE),IF(AND(A151="7-6",H151-3>=18),H151-3,VLOOKUP(A151,CLASS!$A$2:$E$18,4,FALSE))))))))))))) -> 
A152: =IFERROR(IF('Subgrade Analysis'!#REF!="","",'Subgrade Analysis'!#REF!),"") ->  | B152: =IF(A152="","",IF('Subgrade Analysis'!#REF!>75,40,IF('Subgrade Analysis'!#REF!<35,0,'Subgrade Analysis'!#REF!-35))) ->  | C152: =IFERROR(IF('Subgrade Analysis'!#REF!>55,40,IF('Subgrade Analysis'!#REF!<15,0,'Subgrade Analysis'!#REF!-15)),"") ->  | D152: =IF(A152="","",IF('Subgrade Analysis'!#REF!>60,20,IF('Subgrade Analysis'!#REF!<40,0,'Subgrade Analysis'!#REF!-40))) ->  | E152: =IF('Subgrade Analysis'!#REF!>30,20,IF('Subgrade Analysis'!#REF!<10,0,'Subgrade Analysis'!#REF!-10)) ->  | G152: =IF(A152="","",IF(SUM('Subgrade Analysis'!#REF!)=0,VLOOKUP('Group Index'!A152,CLASS!$B$2:$D$23,2,FALSE),IF(F152>VLOOKUP(A152,CLASS!$B$2:$D$23,3,FALSE),VLOOKUP(A152,CLASS!$B$2:$D$23,3,FALSE),F152))) ->  | H152: =IF(A152="","",'Subgrade Analysis'!#REF!) ->  | I152: =IF(A152="","",IF(OR(A152="1a",A152="1b",A152="3",A152="3a",A152="2-4",A152="2-5",A152="2-6",A152="2-7"),VLOOKUP(A152,CLASS!$A$2:$E$18,4,FALSE),IF(OR(A152="5",A152="7-5",A152="8a",A152="8b",A152="R",A152="S",A152="C"),"",IF(AND(OR(A152="4b",A152="4a"),'Subgrade Analysis'!#REF!="NP"),11,IF(H152="NP", VLOOKUP(A152,CLASS!$A$2:$E$18,4,FALSE),IF(AND(OR(A152="4a",A152="4b"),H152-5>=10),H152-5,IF(H152="NP", VLOOKUP(A152,CLASS!$A$2:$E$18,4,FALSE),IF(AND(A152="6a",H152-5>=14),H152-5,IF(H152="NP", VLOOKUP(A152,CLASS!$A$2:$E$18,4,FALSE),IF(AND(A152="6b",H152-5>=16),H152-5,IF(H152="NP", VLOOKUP(A152,CLASS!$A$2:$E$18,4,FALSE),IF(AND(A152="7-6",H152-3>=18),H152-3,VLOOKUP(A152,CLASS!$A$2:$E$18,4,FALSE))))))))))))) -> 
A153: =IFERROR(IF('Subgrade Analysis'!#REF!="","",'Subgrade Analysis'!#REF!),"") ->  | B153: =IF(A153="","",IF('Subgrade Analysis'!#REF!>75,40,IF('Subgrade Analysis'!#REF!<35,0,'Subgrade Analysis'!#REF!-35))) ->  | C153: =IFERROR(IF('Subgrade Analysis'!#REF!>55,40,IF('Subgrade Analysis'!#REF!<15,0,'Subgrade Analysis'!#REF!-15)),"") ->  | D153: =IF(A153="","",IF('Subgrade Analysis'!#REF!>60,20,IF('Subgrade Analysis'!#REF!<40,0,'Subgrade Analysis'!#REF!-40))) ->  | E153: =IF('Subgrade Analysis'!#REF!>30,20,IF('Subgrade Analysis'!#REF!<10,0,'Subgrade Analysis'!#REF!-10)) ->  | G153: =IF(A153="","",IF(SUM('Subgrade Analysis'!#REF!)=0,VLOOKUP('Group Index'!A153,CLASS!$B$2:$D$23,2,FALSE),IF(F153>VLOOKUP(A153,CLASS!$B$2:$D$23,3,FALSE),VLOOKUP(A153,CLASS!$B$2:$D$23,3,FALSE),F153))) ->  | H153: =IF(A153="","",'Subgrade Analysis'!#REF!) ->  | I153: =IF(A153="","",IF(OR(A153="1a",A153="1b",A153="3",A153="3a",A153="2-4",A153="2-5",A153="2-6",A153="2-7"),VLOOKUP(A153,CLASS!$A$2:$E$18,4,FALSE),IF(OR(A153="5",A153="7-5",A153="8a",A153="8b",A153="R",A153="S",A153="C"),"",IF(AND(OR(A153="4b",A153="4a"),'Subgrade Analysis'!#REF!="NP"),11,IF(H153="NP", VLOOKUP(A153,CLASS!$A$2:$E$18,4,FALSE),IF(AND(OR(A153="4a",A153="4b"),H153-5>=10),H153-5,IF(H153="NP", VLOOKUP(A153,CLASS!$A$2:$E$18,4,FALSE),IF(AND(A153="6a",H153-5>=14),H153-5,IF(H153="NP", VLOOKUP(A153,CLASS!$A$2:$E$18,4,FALSE),IF(AND(A153="6b",H153-5>=16),H153-5,IF(H153="NP", VLOOKUP(A153,CLASS!$A$2:$E$18,4,FALSE),IF(AND(A153="7-6",H153-3>=18),H153-3,VLOOKUP(A153,CLASS!$A$2:$E$18,4,FALSE))))))))))))) -> 
A154: =IFERROR(IF('Subgrade Analysis'!#REF!="","",'Subgrade Analysis'!#REF!),"") ->  | B154: =IF(A154="","",IF('Subgrade Analysis'!#REF!>75,40,IF('Subgrade Analysis'!#REF!<35,0,'Subgrade Analysis'!#REF!-35))) ->  | C154: =IFERROR(IF('Subgrade Analysis'!#REF!>55,40,IF('Subgrade Analysis'!#REF!<15,0,'Subgrade Analysis'!#REF!-15)),"") ->  | D154: =IF(A154="","",IF('Subgrade Analysis'!#REF!>60,20,IF('Subgrade Analysis'!#REF!<40,0,'Subgrade Analysis'!#REF!-40))) ->  | E154: =IF('Subgrade Analysis'!#REF!>30,20,IF('Subgrade Analysis'!#REF!<10,0,'Subgrade Analysis'!#REF!-10)) ->  | G154: =IF(A154="","",IF(SUM('Subgrade Analysis'!#REF!)=0,VLOOKUP('Group Index'!A154,CLASS!$B$2:$D$23,2,FALSE),IF(F154>VLOOKUP(A154,CLASS!$B$2:$D$23,3,FALSE),VLOOKUP(A154,CLASS!$B$2:$D$23,3,FALSE),F154))) ->  | H154: =IF(A154="","",'Subgrade Analysis'!#REF!) ->  | I154: =IF(A154="","",IF(OR(A154="1a",A154="1b",A154="3",A154="3a",A154="2-4",A154="2-5",A154="2-6",A154="2-7"),VLOOKUP(A154,CLASS!$A$2:$E$18,4,FALSE),IF(OR(A154="5",A154="7-5",A154="8a",A154="8b",A154="R",A154="S",A154="C"),"",IF(AND(OR(A154="4b",A154="4a"),'Subgrade Analysis'!#REF!="NP"),11,IF(H154="NP", VLOOKUP(A154,CLASS!$A$2:$E$18,4,FALSE),IF(AND(OR(A154="4a",A154="4b"),H154-5>=10),H154-5,IF(H154="NP", VLOOKUP(A154,CLASS!$A$2:$E$18,4,FALSE),IF(AND(A154="6a",H154-5>=14),H154-5,IF(H154="NP", VLOOKUP(A154,CLASS!$A$2:$E$18,4,FALSE),IF(AND(A154="6b",H154-5>=16),H154-5,IF(H154="NP", VLOOKUP(A154,CLASS!$A$2:$E$18,4,FALSE),IF(AND(A154="7-6",H154-3>=18),H154-3,VLOOKUP(A154,CLASS!$A$2:$E$18,4,FALSE))))))))))))) -> 
A155: =IFERROR(IF('Subgrade Analysis'!#REF!="","",'Subgrade Analysis'!#REF!),"") ->  | B155: =IF(A155="","",IF('Subgrade Analysis'!#REF!>75,40,IF('Subgrade Analysis'!#REF!<35,0,'Subgrade Analysis'!#REF!-35))) ->  | C155: =IFERROR(IF('Subgrade Analysis'!#REF!>55,40,IF('Subgrade Analysis'!#REF!<15,0,'Subgrade Analysis'!#REF!-15)),"") ->  | D155: =IF(A155="","",IF('Subgrade Analysis'!#REF!>60,20,IF('Subgrade Analysis'!#REF!<40,0,'Subgrade Analysis'!#REF!-40))) ->  | E155: =IF('Subgrade Analysis'!#REF!>30,20,IF('Subgrade Analysis'!#REF!<10,0,'Subgrade Analysis'!#REF!-10)) ->  | G155: =IF(A155="","",IF(SUM('Subgrade Analysis'!#REF!)=0,VLOOKUP('Group Index'!A155,CLASS!$B$2:$D$23,2,FALSE),IF(F155>VLOOKUP(A155,CLASS!$B$2:$D$23,3,FALSE),VLOOKUP(A155,CLASS!$B$2:$D$23,3,FALSE),F155))) ->  | H155: =IF(A155="","",'Subgrade Analysis'!#REF!) ->  | I155: =IF(A155="","",IF(OR(A155="1a",A155="1b",A155="3",A155="3a",A155="2-4",A155="2-5",A155="2-6",A155="2-7"),VLOOKUP(A155,CLASS!$A$2:$E$18,4,FALSE),IF(OR(A155="5",A155="7-5",A155="8a",A155="8b",A155="R",A155="S",A155="C"),"",IF(AND(OR(A155="4b",A155="4a"),'Subgrade Analysis'!#REF!="NP"),11,IF(H155="NP", VLOOKUP(A155,CLASS!$A$2:$E$18,4,FALSE),IF(AND(OR(A155="4a",A155="4b"),H155-5>=10),H155-5,IF(H155="NP", VLOOKUP(A155,CLASS!$A$2:$E$18,4,FALSE),IF(AND(A155="6a",H155-5>=14),H155-5,IF(H155="NP", VLOOKUP(A155,CLASS!$A$2:$E$18,4,FALSE),IF(AND(A155="6b",H155-5>=16),H155-5,IF(H155="NP", VLOOKUP(A155,CLASS!$A$2:$E$18,4,FALSE),IF(AND(A155="7-6",H155-3>=18),H155-3,VLOOKUP(A155,CLASS!$A$2:$E$18,4,FALSE))))))))))))) -> 
A156: =IFERROR(IF('Subgrade Analysis'!#REF!="","",'Subgrade Analysis'!#REF!),"") ->  | B156: =IF(A156="","",IF('Subgrade Analysis'!#REF!>75,40,IF('Subgrade Analysis'!#REF!<35,0,'Subgrade Analysis'!#REF!-35))) ->  | C156: =IFERROR(IF('Subgrade Analysis'!#REF!>55,40,IF('Subgrade Analysis'!#REF!<15,0,'Subgrade Analysis'!#REF!-15)),"") ->  | D156: =IF(A156="","",IF('Subgrade Analysis'!#REF!>60,20,IF('Subgrade Analysis'!#REF!<40,0,'Subgrade Analysis'!#REF!-40))) ->  | E156: =IF('Subgrade Analysis'!#REF!>30,20,IF('Subgrade Analysis'!#REF!<10,0,'Subgrade Analysis'!#REF!-10)) ->  | G156: =IF(A156="","",IF(SUM('Subgrade Analysis'!#REF!)=0,VLOOKUP('Group Index'!A156,CLASS!$B$2:$D$23,2,FALSE),IF(F156>VLOOKUP(A156,CLASS!$B$2:$D$23,3,FALSE),VLOOKUP(A156,CLASS!$B$2:$D$23,3,FALSE),F156))) ->  | H156: =IF(A156="","",'Subgrade Analysis'!#REF!) ->  | I156: =IF(A156="","",IF(OR(A156="1a",A156="1b",A156="3",A156="3a",A156="2-4",A156="2-5",A156="2-6",A156="2-7"),VLOOKUP(A156,CLASS!$A$2:$E$18,4,FALSE),IF(OR(A156="5",A156="7-5",A156="8a",A156="8b",A156="R",A156="S",A156="C"),"",IF(AND(OR(A156="4b",A156="4a"),'Subgrade Analysis'!#REF!="NP"),11,IF(H156="NP", VLOOKUP(A156,CLASS!$A$2:$E$18,4,FALSE),IF(AND(OR(A156="4a",A156="4b"),H156-5>=10),H156-5,IF(H156="NP", VLOOKUP(A156,CLASS!$A$2:$E$18,4,FALSE),IF(AND(A156="6a",H156-5>=14),H156-5,IF(H156="NP", VLOOKUP(A156,CLASS!$A$2:$E$18,4,FALSE),IF(AND(A156="6b",H156-5>=16),H156-5,IF(H156="NP", VLOOKUP(A156,CLASS!$A$2:$E$18,4,FALSE),IF(AND(A156="7-6",H156-3>=18),H156-3,VLOOKUP(A156,CLASS!$A$2:$E$18,4,FALSE))))))))))))) -> 
A157: =IFERROR(IF('Subgrade Analysis'!#REF!="","",'Subgrade Analysis'!#REF!),"") ->  | B157: =IF(A157="","",IF('Subgrade Analysis'!#REF!>75,40,IF('Subgrade Analysis'!#REF!<35,0,'Subgrade Analysis'!#REF!-35))) ->  | C157: =IFERROR(IF('Subgrade Analysis'!#REF!>55,40,IF('Subgrade Analysis'!#REF!<15,0,'Subgrade Analysis'!#REF!-15)),"") ->  | D157: =IF(A157="","",IF('Subgrade Analysis'!#REF!>60,20,IF('Subgrade Analysis'!#REF!<40,0,'Subgrade Analysis'!#REF!-40))) ->  | E157: =IF('Subgrade Analysis'!#REF!>30,20,IF('Subgrade Analysis'!#REF!<10,0,'Subgrade Analysis'!#REF!-10)) ->  | G157: =IF(A157="","",IF(SUM('Subgrade Analysis'!#REF!)=0,VLOOKUP('Group Index'!A157,CLASS!$B$2:$D$23,2,FALSE),IF(F157>VLOOKUP(A157,CLASS!$B$2:$D$23,3,FALSE),VLOOKUP(A157,CLASS!$B$2:$D$23,3,FALSE),F157))) ->  | H157: =IF(A157="","",'Subgrade Analysis'!#REF!) ->  | I157: =IF(A157="","",IF(OR(A157="1a",A157="1b",A157="3",A157="3a",A157="2-4",A157="2-5",A157="2-6",A157="2-7"),VLOOKUP(A157,CLASS!$A$2:$E$18,4,FALSE),IF(OR(A157="5",A157="7-5",A157="8a",A157="8b",A157="R",A157="S",A157="C"),"",IF(AND(OR(A157="4b",A157="4a"),'Subgrade Analysis'!#REF!="NP"),11,IF(H157="NP", VLOOKUP(A157,CLASS!$A$2:$E$18,4,FALSE),IF(AND(OR(A157="4a",A157="4b"),H157-5>=10),H157-5,IF(H157="NP", VLOOKUP(A157,CLASS!$A$2:$E$18,4,FALSE),IF(AND(A157="6a",H157-5>=14),H157-5,IF(H157="NP", VLOOKUP(A157,CLASS!$A$2:$E$18,4,FALSE),IF(AND(A157="6b",H157-5>=16),H157-5,IF(H157="NP", VLOOKUP(A157,CLASS!$A$2:$E$18,4,FALSE),IF(AND(A157="7-6",H157-3>=18),H157-3,VLOOKUP(A157,CLASS!$A$2:$E$18,4,FALSE))))))))))))) -> 
A158: =IFERROR(IF('Subgrade Analysis'!#REF!="","",'Subgrade Analysis'!#REF!),"") ->  | B158: =IF(A158="","",IF('Subgrade Analysis'!#REF!>75,40,IF('Subgrade Analysis'!#REF!<35,0,'Subgrade Analysis'!#REF!-35))) ->  | C158: =IFERROR(IF('Subgrade Analysis'!#REF!>55,40,IF('Subgrade Analysis'!#REF!<15,0,'Subgrade Analysis'!#REF!-15)),"") ->  | D158: =IF(A158="","",IF('Subgrade Analysis'!#REF!>60,20,IF('Subgrade Analysis'!#REF!<40,0,'Subgrade Analysis'!#REF!-40))) ->  | E158: =IF('Subgrade Analysis'!#REF!>30,20,IF('Subgrade Analysis'!#REF!<10,0,'Subgrade Analysis'!#REF!-10)) ->  | G158: =IF(A158="","",IF(SUM('Subgrade Analysis'!#REF!)=0,VLOOKUP('Group Index'!A158,CLASS!$B$2:$D$23,2,FALSE),IF(F158>VLOOKUP(A158,CLASS!$B$2:$D$23,3,FALSE),VLOOKUP(A158,CLASS!$B$2:$D$23,3,FALSE),F158))) ->  | H158: =IF(A158="","",'Subgrade Analysis'!#REF!) ->  | I158: =IF(A158="","",IF(OR(A158="1a",A158="1b",A158="3",A158="3a",A158="2-4",A158="2-5",A158="2-6",A158="2-7"),VLOOKUP(A158,CLASS!$A$2:$E$18,4,FALSE),IF(OR(A158="5",A158="7-5",A158="8a",A158="8b",A158="R",A158="S",A158="C"),"",IF(AND(OR(A158="4b",A158="4a"),'Subgrade Analysis'!#REF!="NP"),11,IF(H158="NP", VLOOKUP(A158,CLASS!$A$2:$E$18,4,FALSE),IF(AND(OR(A158="4a",A158="4b"),H158-5>=10),H158-5,IF(H158="NP", VLOOKUP(A158,CLASS!$A$2:$E$18,4,FALSE),IF(AND(A158="6a",H158-5>=14),H158-5,IF(H158="NP", VLOOKUP(A158,CLASS!$A$2:$E$18,4,FALSE),IF(AND(A158="6b",H158-5>=16),H158-5,IF(H158="NP", VLOOKUP(A158,CLASS!$A$2:$E$18,4,FALSE),IF(AND(A158="7-6",H158-3>=18),H158-3,VLOOKUP(A158,CLASS!$A$2:$E$18,4,FALSE))))))))))))) -> 
A159: =IFERROR(IF('Subgrade Analysis'!#REF!="","",'Subgrade Analysis'!#REF!),"") ->  | B159: =IF(A159="","",IF('Subgrade Analysis'!#REF!>75,40,IF('Subgrade Analysis'!#REF!<35,0,'Subgrade Analysis'!#REF!-35))) ->  | C159: =IFERROR(IF('Subgrade Analysis'!#REF!>55,40,IF('Subgrade Analysis'!#REF!<15,0,'Subgrade Analysis'!#REF!-15)),"") ->  | D159: =IF(A159="","",IF('Subgrade Analysis'!#REF!>60,20,IF('Subgrade Analysis'!#REF!<40,0,'Subgrade Analysis'!#REF!-40))) ->  | E159: =IF('Subgrade Analysis'!#REF!>30,20,IF('Subgrade Analysis'!#REF!<10,0,'Subgrade Analysis'!#REF!-10)) ->  | G159: =IF(A159="","",IF(SUM('Subgrade Analysis'!#REF!)=0,VLOOKUP('Group Index'!A159,CLASS!$B$2:$D$23,2,FALSE),IF(F159>VLOOKUP(A159,CLASS!$B$2:$D$23,3,FALSE),VLOOKUP(A159,CLASS!$B$2:$D$23,3,FALSE),F159))) ->  | H159: =IF(A159="","",'Subgrade Analysis'!#REF!) ->  | I159: =IF(A159="","",IF(OR(A159="1a",A159="1b",A159="3",A159="3a",A159="2-4",A159="2-5",A159="2-6",A159="2-7"),VLOOKUP(A159,CLASS!$A$2:$E$18,4,FALSE),IF(OR(A159="5",A159="7-5",A159="8a",A159="8b",A159="R",A159="S",A159="C"),"",IF(AND(OR(A159="4b",A159="4a"),'Subgrade Analysis'!#REF!="NP"),11,IF(H159="NP", VLOOKUP(A159,CLASS!$A$2:$E$18,4,FALSE),IF(AND(OR(A159="4a",A159="4b"),H159-5>=10),H159-5,IF(H159="NP", VLOOKUP(A159,CLASS!$A$2:$E$18,4,FALSE),IF(AND(A159="6a",H159-5>=14),H159-5,IF(H159="NP", VLOOKUP(A159,CLASS!$A$2:$E$18,4,FALSE),IF(AND(A159="6b",H159-5>=16),H159-5,IF(H159="NP", VLOOKUP(A159,CLASS!$A$2:$E$18,4,FALSE),IF(AND(A159="7-6",H159-3>=18),H159-3,VLOOKUP(A159,CLASS!$A$2:$E$18,4,FALSE))))))))))))) -> 
A160: =IFERROR(IF('Subgrade Analysis'!#REF!="","",'Subgrade Analysis'!#REF!),"") ->  | B160: =IF(A160="","",IF('Subgrade Analysis'!#REF!>75,40,IF('Subgrade Analysis'!#REF!<35,0,'Subgrade Analysis'!#REF!-35))) ->  | C160: =IFERROR(IF('Subgrade Analysis'!#REF!>55,40,IF('Subgrade Analysis'!#REF!<15,0,'Subgrade Analysis'!#REF!-15)),"") ->  | D160: =IF(A160="","",IF('Subgrade Analysis'!#REF!>60,20,IF('Subgrade Analysis'!#REF!<40,0,'Subgrade Analysis'!#REF!-40))) ->  | E160: =IF('Subgrade Analysis'!#REF!>30,20,IF('Subgrade Analysis'!#REF!<10,0,'Subgrade Analysis'!#REF!-10)) ->  | G160: =IF(A160="","",IF(SUM('Subgrade Analysis'!#REF!)=0,VLOOKUP('Group Index'!A160,CLASS!$B$2:$D$23,2,FALSE),IF(F160>VLOOKUP(A160,CLASS!$B$2:$D$23,3,FALSE),VLOOKUP(A160,CLASS!$B$2:$D$23,3,FALSE),F160))) ->  | H160: =IF(A160="","",'Subgrade Analysis'!#REF!) ->  | I160: =IF(A160="","",IF(OR(A160="1a",A160="1b",A160="3",A160="3a",A160="2-4",A160="2-5",A160="2-6",A160="2-7"),VLOOKUP(A160,CLASS!$A$2:$E$18,4,FALSE),IF(OR(A160="5",A160="7-5",A160="8a",A160="8b",A160="R",A160="S",A160="C"),"",IF(AND(OR(A160="4b",A160="4a"),'Subgrade Analysis'!#REF!="NP"),11,IF(H160="NP", VLOOKUP(A160,CLASS!$A$2:$E$18,4,FALSE),IF(AND(OR(A160="4a",A160="4b"),H160-5>=10),H160-5,IF(H160="NP", VLOOKUP(A160,CLASS!$A$2:$E$18,4,FALSE),IF(AND(A160="6a",H160-5>=14),H160-5,IF(H160="NP", VLOOKUP(A160,CLASS!$A$2:$E$18,4,FALSE),IF(AND(A160="6b",H160-5>=16),H160-5,IF(H160="NP", VLOOKUP(A160,CLASS!$A$2:$E$18,4,FALSE),IF(AND(A160="7-6",H160-3>=18),H160-3,VLOOKUP(A160,CLASS!$A$2:$E$18,4,FALSE))))))))))))) -> 
A161: =IFERROR(IF('Subgrade Analysis'!#REF!="","",'Subgrade Analysis'!#REF!),"") ->  | B161: =IF(A161="","",IF('Subgrade Analysis'!#REF!>75,40,IF('Subgrade Analysis'!#REF!<35,0,'Subgrade Analysis'!#REF!-35))) ->  | C161: =IFERROR(IF('Subgrade Analysis'!#REF!>55,40,IF('Subgrade Analysis'!#REF!<15,0,'Subgrade Analysis'!#REF!-15)),"") ->  | D161: =IF(A161="","",IF('Subgrade Analysis'!#REF!>60,20,IF('Subgrade Analysis'!#REF!<40,0,'Subgrade Analysis'!#REF!-40))) ->  | E161: =IF('Subgrade Analysis'!#REF!>30,20,IF('Subgrade Analysis'!#REF!<10,0,'Subgrade Analysis'!#REF!-10)) ->  | G161: =IF(A161="","",IF(SUM('Subgrade Analysis'!#REF!)=0,VLOOKUP('Group Index'!A161,CLASS!$B$2:$D$23,2,FALSE),IF(F161>VLOOKUP(A161,CLASS!$B$2:$D$23,3,FALSE),VLOOKUP(A161,CLASS!$B$2:$D$23,3,FALSE),F161))) ->  | H161: =IF(A161="","",'Subgrade Analysis'!#REF!) ->  | I161: =IF(A161="","",IF(OR(A161="1a",A161="1b",A161="3",A161="3a",A161="2-4",A161="2-5",A161="2-6",A161="2-7"),VLOOKUP(A161,CLASS!$A$2:$E$18,4,FALSE),IF(OR(A161="5",A161="7-5",A161="8a",A161="8b",A161="R",A161="S",A161="C"),"",IF(AND(OR(A161="4b",A161="4a"),'Subgrade Analysis'!#REF!="NP"),11,IF(H161="NP", VLOOKUP(A161,CLASS!$A$2:$E$18,4,FALSE),IF(AND(OR(A161="4a",A161="4b"),H161-5>=10),H161-5,IF(H161="NP", VLOOKUP(A161,CLASS!$A$2:$E$18,4,FALSE),IF(AND(A161="6a",H161-5>=14),H161-5,IF(H161="NP", VLOOKUP(A161,CLASS!$A$2:$E$18,4,FALSE),IF(AND(A161="6b",H161-5>=16),H161-5,IF(H161="NP", VLOOKUP(A161,CLASS!$A$2:$E$18,4,FALSE),IF(AND(A161="7-6",H161-3>=18),H161-3,VLOOKUP(A161,CLASS!$A$2:$E$18,4,FALSE))))))))))))) -> 
